{"text_format":"3","workbook":"xlsx","n_sheets":12,"sheets":["Summary","KwaZulu Natal","Eastern Cape","Gauteng","Western Cape","Limpopo","North west","Free State","Northern Cape","Mpumalanga","Sheet8","Sheet9"],"read":"whole","date_system":"1900"}

{"sheet":"Summary","index":0,"n_rows":44,"n_cols":5,"rows_kept":44}
[null,"Security Guarding service"]
[null,"Posting List Quantities"]
[null,null,"Armed Grade C Security Officer","Grade C Security Officer"]
[null,null,"Monday to Friday 06H00 to 18H00","Monday to Friday 06H00 to 18H00"]
["ITEM","REGION","Monday to Sunday 18H00 to 06H00","Monday to Sunday 18H00 to 06H00","Total Manpower "]
[1,"KwaZulu Natal",218,451,{"$f":"SUM(C6:D6)","v":669}]
[2,"Eastern Cape",245,493,738]
[3,"Gauteng",182,511,693]
[4,"Western Cape",173,271,444]
[5,"Limpopo ",97,245,342]
[6,"North West",108,189,297]
[7,"Free State",169,285,454]
[8,"Northern Cape",39,196,235]
[9,"Mpumalanga",108,217,325]
[null,null,{"$f":"SUM(C6:C14)","v":1339},{"$f":"SUM(D6:D14)","v":2858},{"$f":"SUM(E6:E14)","v":4197}]
[]
[]
[null,null,"Armed Grade C Security Officer","Grade C Security Officer"]
["ITEM","REGION","Saturday and Sunday 06H00 to 18H00","Saturday and Sunday 06H00 to 18H00","Total Manpower "]
[1,"KwaZulu Natal",{"$f":"C35-C6","v":98},220,{"$f":"SUM(C20:D20)","v":318}]
[2,"Eastern Cape",120,251,371]
[3,"Gauteng",91,249,340]
[4,"Western Cape",73,83,156]
[5,"Limpopo ",48,92,140]
[6,"North West",54,78,132]
[7,"Free State",82,101,183]
[8,"Northern Cape",20,67,87]
[9,"Mpumalanga",51,78,129]
[null,null,{"$f":"SUM(C20:C28)","v":637},{"$f":"SUM(D20:D28)","v":1219},{"$f":"SUM(E20:E28)","v":1856}]
[]
[null,null,"Armed Grade C Security Officer","Grade C Security Officer"]
[null,null,"Monday to Friday 06H00 to 18H00","Monday to Friday 06H00 to 18H00"]
[null,null,"Saturday and Sunday 06H00 to 18H00","Saturday and Sunday 06H00 to 18H00"]
["ITEM","REGION","Monday to Sunday 18H00 to 06H00","Monday to Sunday 18H00 to 06H00","Total Manpower "]
[1,"KwaZulu Natal",316,671,{"$f":"SUM(C35:D35)","v":987}]
[2,"Eastern Cape",365,744,1109]
[3,"Gauteng",273,760,1033]
[4,"Western Cape",246,354,600]
[5,"Limpopo ",145,337,482]
[6,"North West",162,267,429]
[7,"Free State",251,386,637]
[8,"Northern Cape",59,263,322]
[9,"Mpumalanga",159,295,454]
[null,null,{"$f":"SUM(C35:C43)","v":1976},{"$f":"SUM(D35:D43)","v":4077},{"$f":"SUM(E35:E43)","v":6053}]

{"sheet":"KwaZulu Natal","index":1,"n_rows":1102,"n_cols":8,"rows_kept":1102,"merged":[[0,2,0,5]]}
[null,"          RFB 2021 12 KZN* "]
["Item no","KWAZULU NATAL","Grade B\n","Grade C Armed\n","Grade C Unarmed \n","Control Room CCTV","Hand Held Metaldetector(s) "]
[]
["1.1.1","LABOUR COURT: DURBAN"]
[null,"  06:00 TO 18:00 MONDAY TO FRIDAY"]
["Area 1","  Security Officer",null,1,2]
[null,"  06:00 TO 18:00 SATURDAY AND SUNDAY/PUBLIC HOLIDAY"]
[null,"  Security Officer",null,0,0]
[null,"  18:00 TO 06:00 MONDAY TO SUNDAY"]
[null,"  Security Officer",null,1,1]
[null,"  Handheld Metal Detector(s)",{"$nulls":4},3]
[]
["1.1.2","PIETERMARITZBURG FAMILY COURT(ANNEXE)"]
[null,"  06:00 TO 18:00 MONDAY TO FRIDAY"]
["Area 1","  Security Officer",null,1,5,null,null,3]
[null,"  06:00 TO 18:00 SATURDAY AND SUNDAY/PUBLIC HOLIDAY"]
[null,"  Security Officer",null,0,0]
[null,"  18:00 TO 06:00 MONDAY TO SUNDAY"]
[null,"  Security Officer",null,1,1]
[null,"  Handheld Metal Detector(s)",{"$nulls":4},5]
[]
["1.1.3","NEW HANOVER"]
[null,"  06:00 TO 18:00 MONDAY TO FRIDAY"]
["Area 3","  Security Officer",null,1,3]
[null,"  06:00 TO 18:00 SATURDAY AND SUNDAY/PUBLIC HOLIDAY"]
[null,"  Security Officer",null,0,0]
[null,"  18:00 TO 06:00 MONDAY TO SUNDAY"]
[null,"  Security Officer",null,1,1]
[null,"  Handheld Metal Detector(s)",{"$nulls":4},3]
{"$rows_empty":10}
["1.1.4","RICHMOND"]
[null,"  06:00 TO 18:00 MONDAY TO FRIDAY"]
["Area 3","  Security Officer",null,1,3,null,null,1]
[null,"  06:00 TO 18:00 SATURDAY AND SUNDAY/PUBLIC HOLIDAY"]
[null,"  Security Officer",null,0,0]
[null,"  18:00 TO 06:00 MONDAY TO SUNDAY"]
[null,"  Security Officer",null,1,1]
[null,"  Handheld Metal Detector(s)",{"$nulls":4},3]
[]
["1.1.5","UMBUMBULU"]
[null,"  06:00 TO 18:00 MONDAY TO FRIDAY"]
["Area 3","  Security Officer",null,1,3,null,null,1]
[null,"  06:00 TO 18:00 SATURDAY AND SUNDAY/PUBLIC HOLIDAY"]
[null,"  Security Officer",null,0,0]
[null,"  18:00 TO 06:00 MONDAY TO SUNDAY"]
[null,"  Security Officer",null,1,1,null,null,1]
[null,"  Handheld Metal Detector(s)",{"$nulls":4},3]
[]
["1.1.6","HOWICK"]
[null,"  06:00 TO 18:00 MONDAY TO FRIDAY"]
["Area 3","  Security Officer",null,1,3]
[null,"  06:00 TO 18:00 SATURDAY AND SUNDAY/PUBLIC HOLIDAY"]
[null,"  Security Officer",null,0,0]
[null,"  18:00 TO 06:00 MONDAY TO SUNDAY"]
[null,"  Security Officer",null,1,1]
[null,"  Handheld Metal Detector(s)",{"$nulls":4},3]
[]
["1.1.7","NDWEDWE"]
[null,"  06:00 TO 18:00 MONDAY TO FRIDAY"]
["Area 3","  Security Officer",null,1,3]
[null,"  06:00 TO 18:00 SATURDAY AND SUNDAY/PUBLIC HOLIDAY"]
[null,"  Security Officer",null,0,0]
[null,"  18:00 TO 06:00 MONDAY TO SUNDAY"]
[null,"  Security Officer",null,1,1]
[null,"  Handheld Metal Detector(s)",{"$nulls":4},3]
[]
["1.1.8","PORT SHEPSTONE"]
[null,"  06:00 TO 18:00 MONDAY TO FRIDAY"]
["Area 3","  Security Officer",null,1,4,null,null,1]
[null,"  06:00 TO 18:00 SATURDAY AND SUNDAY/PUBLIC HOLIDAY"]
[null,"  Security Officer",null,0,0]
[null,"  18:00 TO 06:00 MONDAY TO SUNDAY"]
[null,"  Security Officer",null,1,1,null,null,1]
[null,"  Handheld Metal Detector(s)",{"$nulls":4},3]
[]
["1.1.9","KOKSTAD"]
[null,"  06:00 TO 18:00 MONDAY TO FRIDAY"]
["Area 3","  Security Officer",null,1,3,null,null,1]
[null,"  06:00 TO 18:00 SATURDAY AND SUNDAY/PUBLIC HOLIDAY"]
[null,"  Security Officer",null,0,0]
[null,"  18:00 TO 06:00 MONDAY TO SUNDAY"]
[null,"  Security Officer",null,1,1]
[null,"  Handheld Metal Detector(s)",{"$nulls":4},3]
[]
["1.1.10","CAMPERDOWN"]
[null,"  06:00 TO 18:00 MONDAY TO FRIDAY"]
["Area 1","  Security Officer",null,1,3,null,null,1]
[null,"  06:00 TO 18:00 SATURDAY AND SUNDAY/PUBLIC HOLIDAY"]
[null,"  Security Officer",null,0,0]
[null,"  18:00 TO 06:00 MONDAY TO SUNDAY"]
[null,"  Security Officer",null,1,1]
[null,"  Handheld Metal Detector(s)",{"$nulls":4},3]
[]
["1.1.11","PINETOWN"]
[null,"  06:00 TO 18:00 MONDAY TO FRIDAY"]
["Area 1","  Security Officer",null,1,6,null,null,1]
[null,"  06:00 TO 18:00 SATURDAY AND SUNDAY/PUBLIC HOLIDAY"]
[null,"  Security Officer",null,0,0]
[null,"  18:00 TO 06:00 MONDAY TO SUNDAY"]
[null,"  Security Officer",null,1,2]
[null,"  Handheld Metal Detector(s)",{"$nulls":4},3]
[]
["1.1.12","NTUZUMA MAGISTRATE COURT - BRIDGE CITY"]
[null,"  06:00 TO 18:00 MONDAY TO FRIDAY"]
["Area 1","  Security Officer",null,2,7,null,null,1]
[null,"  06:00 TO 18:00 SATURDAY AND SUNDAY/PUBLIC HOLIDAY"]
[null,"  Security Officer",null,0,0]
[null,"  18:00 TO 06:00 MONDAY TO SUNDAY"]
[null,"  Security Officer",null,2,0,null,null,1]
[null,"  Handheld Metal Detector(s)",{"$nulls":4},5]
[]
["1.1.13","VULAMEHLO: PERIODICAL , SAWOTI"]
[null,"  06:00 TO 18:00 MONDAY TO FRIDAY"]
["Area 1","  Security Officer",null,1,2]
[null,"  06:00 TO 18:00 SATURDAY AND SUNDAY/PUBLIC HOLIDAY"]
[null,"  Security Officer",null,0,0]
[null,"  18:00 TO 06:00 MONDAY TO SUNDAY"]
[null,"  Security Officer",null,0,1]
[null,"  Handheld Metal Detector(s)",{"$nulls":4},2]
[]
["1.1.14","PIETERMARITZBURG MAGISTRATE"]
[null,"  06:00 TO 18:00 MONDAY TO FRIDAY"]
["Area 1","  Security Officer",null,1,4,null,null,2]
[null,"  06:00 TO 18:00 SATURDAY AND SUNDAY/PUBLIC HOLIDAY"]
[null,"  Security Officer",null,0,0]
[null,"  18:00 TO 06:00 MONDAY TO SUNDAY"]
[null,"  Security Officer",null,1,1]
[null,"  Handheld Metal Detector(s)",{"$nulls":4},3]
[]
["1.1.15","VERULAM"]
[null,"  06:00 TO 18:00 MONDAY TO FRIDAY"]
["Area 1","  Security Officer",null,1,5,null,null,1]
[null,"  06:00 TO 18:00 SATURDAY AND SUNDAY/PUBLIC HOLIDAY"]
[null,"  Security Officer",null,0,0]
[null,"  18:00 TO 06:00 MONDAY TO SUNDAY"]
[null,"  Security Officer",null,1,1]
[null,"  Handheld Metal Detector(s)",{"$nulls":4},3]
[]
["1.1.16","MPUMALANGA"]
[null,"  06:00 TO 18:00 MONDAY TO FRIDAY"]
["Area 1","  Security Officer",null,1,3]
[null,"  06:00 TO 18:00 SATURDAY AND SUNDAY/PUBLIC HOLIDAY"]
[null,"  Security Officer",null,0,0]
[null,"  18:00 TO 06:00 MONDAY TO SUNDAY"]
[null,"  Security Officer",null,1,1]
[null,"  Handheld Metal Detector(s)",{"$nulls":4},3]
[]
["1.1.17","IZINGOLWENI"]
[null,"  06:00 TO 18:00 MONDAY TO FRIDAY"]
["Area 3","  Security Officer",null,1,3]
[null,"  06:00 TO 18:00 SATURDAY AND SUNDAY/PUBLIC HOLIDAY"]
[null,"  Security Officer",null,0,0]
[null,"  18:00 TO 06:00 MONDAY TO SUNDAY"]
[null,"  Security Officer",null,1,1]
[null,"  Handheld Metal Detector(s)",{"$nulls":4},3]
[]
["1.1.18","IXOPO"]
[null,"  06:00 TO 18:00 MONDAY TO FRIDAY"]
["Area 3","  Security Officer",null,1,3]
[null,"  06:00 TO 18:00 SATURDAY AND SUNDAY/PUBLIC HOLIDAY"]
[null,"  Security Officer",null,0,0]
[null,"  18:00 TO 06:00 MONDAY TO SUNDAY"]
[null,"  Security Officer",null,1,1]
[null,"  Handheld Metal Detector(s)",{"$nulls":4},3]
[]
["1.1.19","CHATSWORTH"]
[null,"  06:00 TO 18:00 MONDAY TO FRIDAY"]
["Area 1","  Security Officer",null,1,3,null,null,2]
[null,"  06:00 TO 18:00 SATURDAY AND SUNDAY/PUBLIC HOLIDAY"]
[null,"  Security Officer",null,0,0]
[null,"  18:00 TO 06:00 MONDAY TO SUNDAY"]
[null,"  Security Officer",null,1,1]
[null,"  Handheld Metal Detector(s)",{"$nulls":4},3]
[]
["1.1.20","STANGER (KWA DUKUZA)"]
[null,"  06:00 TO 18:00 MONDAY TO FRIDAY"]
["Area 3","  Security Officer",null,1,4,null,null,2]
[null,"  06:00 TO 18:00 SATURDAY AND SUNDAY/PUBLIC HOLIDAY"]
[null,"  Security Officer",null,0,0]
[null,"  18:00 TO 06:00 MONDAY TO SUNDAY"]
[null,"  Security Officer",null,1,1]
[null,"  Handheld Metal Detector(s)",{"$nulls":4},3]
[]
["1.1.21","IMPENDLE"]
[null,"  06:00 TO 18:00 MONDAY TO FRIDAY"]
["Area 3","  Security Officer",null,1,3]
[null,"  06:00 TO 18:00 SATURDAY AND SUNDAY/PUBLIC HOLIDAY"]
[null,"  Security Officer",null,0,0]
[null,"  18:00 TO 06:00 MONDAY TO SUNDAY"]
[null,"  Security Officer",null,1,1]
[null,"  Handheld Metal Detector(s)",{"$nulls":4},3]
[]
["1.1.22","MOOIRIVIER"]
[null,"  06:00 TO 18:00 MONDAY TO FRIDAY"]
["Area 3","  Security Officer",null,1,3]
[null,"  06:00 TO 18:00 SATURDAY AND SUNDAY/PUBLIC HOLIDAY"]
[null,"  Security Officer",null,0,0]
[null,"  18:00 TO 06:00 MONDAY TO SUNDAY"]
[null,"  Security Officer",null,1,1]
[null,"  Handheld Metal Detector(s)",{"$nulls":4},3]
[]
["1.1.23","REGIONAL OFFICE KZN (Shared Court Service) "]
[null,"  06:00 TO 18:00 MONDAY TO FRIDAY"]
["Area 1","  Security Officer",null,1,7,null,null,2]
[null,"  06:00 TO 18:00 SATURDAY AND SUNDAY/PUBLIC HOLIDAY"]
[null,"  Security Officer",null,1,0]
[null,"  18:00 TO 06:00 MONDAY TO SUNDAY"]
[null,"  Security Officer",null,1,1]
[null,"  Handheld Metal Detector(s)",{"$nulls":4},5]
{"$rows_empty":10}
["1.1.24","SCOTTBURGH"]
[null,"  06:00 TO 18:00 MONDAY TO FRIDAY"]
["Area 3","  Security Officer",null,1,3,null,null,2]
[null,"  06:00 TO 18:00 SATURDAY AND SUNDAY/PUBLIC HOLIDAY"]
[null,"  Security Officer",null,0,0]
[null,"  18:00 TO 06:00 MONDAY TO SUNDAY"]
[null,"  Security Officer",null,1,1]
[null,"  Handheld Metal Detector(s)",{"$nulls":4},3]
[]
["1.1.25","EMLAZI"]
[null,"  06:00 TO 18:00 MONDAY TO FRIDAY"]
["Area 3","  Security Officer",null,1,5,null,null,2]
[null,"  06:00 TO 18:00 SATURDAY AND SUNDAY/PUBLIC HOLIDAY"]
[null,"  Security Officer",null,0,0]
[null,"  18:00 TO 06:00 MONDAY TO SUNDAY"]
[null,"  Security Officer",null,1,1,null,null,1]
[null,"  Handheld Metal Detector(s)",{"$nulls":4},5]
[]
["1.1.26","DURBAN MAG"]
[null,"  06:00 TO 18:00 MONDAY TO FRIDAY"]
["Area 1","  Security Officer",null,1,10,null,null,4]
[null,"  06:00 TO 18:00 SATURDAY AND SUNDAY/PUBLIC HOLIDAY"]
[null,"  Security Officer",null,0,0]
[null,"  18:00 TO 06:00 MONDAY TO SUNDAY"]
[null,"  Security Officer",null,1,2]
[null,"  Handheld Metal Detector(s)",{"$nulls":4},5]
[]
["1.1.27","FAMILY ADVOCATE: PIETERMARITZBURG"]
[null,"  06:00 TO 18:00 MONDAY TO FRIDAY"]
["Area 1","  Security Officer",null,0,4]
[null,"  06:00 TO 18:00 SATURDAY AND SUNDAY/PUBLIC HOLIDAY"]
[null,"  Security Officer",null,0,0]
[null,"  18:00 TO 06:00 MONDAY TO SUNDAY"]
[null,"  Security Officer",null,0,1]
[null,"  Handheld Metal Detector(s)",{"$nulls":4},3]
[]
["1.1.28","REGISTRAR HIGH COURT: DURBAN"]
[null,"  06:00 TO 18:00 MONDAY TO FRIDAY"]
["Area 1","  Security Officer",null,1,3,null,null,1]
[null,"  06:00 TO 18:00 SATURDAY AND SUNDAY/PUBLIC HOLIDAY"]
[null,"  Security Officer",null,0,0]
[null,"  18:00 TO 06:00 MONDAY TO SUNDAY"]
[null,"  Security Officer",null,1,1,null,null,1]
[null,"  Handheld Metal Detector(s)",{"$nulls":4},3]
[]
["1.1.29","PHUNGASHE"]
[null,"  06:00 TO 18:00 MONDAY TO FRIDAY"]
["Area 3","  Security Officer",null,1,3]
[null,"  06:00 TO 18:00 SATURDAY AND SUNDAY/PUBLIC HOLIDAY"]
[null,"  Security Officer",null,0,0]
[null,"  18:00 TO 06:00 MONDAY TO SUNDAY"]
[null,"  Security Officer",null,1,1]
[null,"  Handheld Metal Detector(s)",{"$nulls":4},3]
{"$rows_empty":10}
["1.1.30","REGISTRAR HIGH COURT: PIETERMARITZBURG"]
[null,"  06:00 TO 18:00 MONDAY TO FRIDAY"]
["Area 1","  Security Officer",null,1,3,null,null,1]
[null,"  06:00 TO 18:00 SATURDAY AND SUNDAY/PUBLIC HOLIDAY"]
[null,"  Security Officer",null,0,0]
[null,"  18:00 TO 06:00 MONDAY TO SUNDAY"]
[null,"  Security Officer",null,1,2]
[null,"  Handheld Metal Detector(s)",{"$nulls":4},5]
{"$rows_empty":9}
["1.1.31","HLANGANANI"]
[null,"  06:00 TO 18:00 MONDAY TO FRIDAY"]
["Area 3","  Security Officer",null,1,3]
[null,"  06:00 TO 18:00 SATURDAY AND SUNDAY/PUBLIC HOLIDAY"]
[null,"  Security Officer",null,0,0]
[null,"  18:00 TO 06:00 MONDAY TO SUNDAY"]
[null,"  Security Officer",null,1,1]
[null,"  Handheld Metal Detector(s)",{"$nulls":4},3]
{"$rows_empty":10}
["1.1.32","EMZUMBE"]
[null,"  06:00 TO 18:00 MONDAY TO FRIDAY"]
["Area 3","  Security Officer",null,1,3]
[null,"  06:00 TO 18:00 SATURDAY AND SUNDAY/PUBLIC HOLIDAY"]
[null,"  Security Officer",null,0,0]
[null,"  18:00 TO 06:00 MONDAY TO SUNDAY"]
[null,"  Security Officer",null,1,1]
[null,"  Handheld Metal Detector(s)",{"$nulls":4},3]
[]
["1.1.33","PORT SHEPSTONE: BRANCH COURT, RAMSGATE"]
[null,"  06:00 TO 18:00 MONDAY TO FRIDAY"]
["Area 3","  Security Officer",null,1,3,null,null,1]
[null,"  06:00 TO 18:00 SATURDAY AND SUNDAY/PUBLIC HOLIDAY"]
[null,"  Security Officer",null,0,0]
[null,"  18:00 TO 06:00 MONDAY TO SUNDAY"]
[null,"  Security Officer",null,1,1]
[null,"  Handheld Metal Detector(s)",{"$nulls":4},3]
[]
["1.1.34","VULAMEHLO"]
[null,"  06:00 TO 18:00 MONDAY TO FRIDAY"]
["Area 3","  Security Officer",null,1,3]
[null,"  06:00 TO 18:00 SATURDAY AND SUNDAY/PUBLIC HOLIDAY"]
[null,"  Security Officer",null,0,0]
[null,"  18:00 TO 06:00 MONDAY TO SUNDAY"]
[null,"  Security Officer",null,1,1]
[null,"  Handheld Metal Detector(s)",{"$nulls":4},3]
[]
["1.1.35","DURBAN: PERIODICAL COURT, WENTWORTH"]
[null,"  06:00 TO 18:00 MONDAY TO FRIDAY"]
["Area 1","  Security Officer",null,1,1,null,null,2]
[null,"  06:00 TO 18:00 SATURDAY AND SUNDAY/PUBLIC HOLIDAY"]
[null,"  Security Officer",null,0,0]
[null,"  18:00 TO 06:00 MONDAY TO SUNDAY"]
[null,"  Security Officer",null,1,1]
[null,"  Handheld Metal Detector(s)",{"$nulls":4},3]
[]
["1.1.36","DURBAN: PERIODICAL COURT, AMANZIMTOTI"]
[null,"  06:00 TO 18:00 MONDAY TO FRIDAY"]
["Area 1","  Security Officer",null,1,2,null,null,1]
[null,"  06:00 TO 18:00 SATURDAY AND SUNDAY/PUBLIC HOLIDAY"]
[null,"  Security Officer",null,0]
[null,"  18:00 TO 06:00 MONDAY TO SUNDAY"]
[null,"  Security Officer",null,1]
[null,"  Handheld Metal Detector(s)",{"$nulls":4},3]
[]
["1.1.37","DURBAN: COMMUNITY COURT, POINT BRANCH COURT"]
[null,"  06:00 TO 18:00 MONDAY TO FRIDAY"]
["Area 1","  Security Officer",null,1,3,null,null,2]
[null,"  06:00 TO 18:00 SATURDAY AND SUNDAY/PUBLIC HOLIDAY"]
[null,"  Security Officer",null,0,0]
[null,"  18:00 TO 06:00 MONDAY TO SUNDAY"]
[null,"  Security Officer",null,1,1]
[null,"  Handheld Metal Detector(s)",{"$nulls":4},3]
[]
["1.1.38","UMZIMKULU: PERIODICAL COURT, NTSIKENI"]
[null,"  06:00 TO 18:00 MONDAY TO FRIDAY"]
["Area 3","  Security Officer",null,1,1]
[null,"  06:00 TO 18:00 SATURDAY AND SUNDAY/PUBLIC HOLIDAY"]
[null,"  Security Officer",null,0]
[null,"  18:00 TO 06:00 MONDAY TO SUNDAY"]
[null,"  Security Officer",null,1]
[null,"  Handheld Metal Detector(s)",{"$nulls":4},3]
[]
["1.1.39","EMLAZI: PERIODICAL COURT, MID-ILLOVO"]
[null,"  06:00 TO 18:00 MONDAY TO FRIDAY"]
["Area 3","  Security Officer",null,1,1]
[null,"  06:00 TO 18:00 SATURDAY AND SUNDAY/PUBLIC HOLIDAY"]
[null,"  Security Officer",null,0]
[null,"  18:00 TO 06:00 MONDAY TO SUNDAY"]
[null,"  Security Officer",null,1]
[null,"  Handheld Metal Detector(s)",{"$nulls":4},1]
[]
["1.1.40","UMZIMKHULU"]
[null,"  06:00 TO 18:00 MONDAY TO FRIDAY"]
["Area 3","  Security Officer",null,1,3,null,null,1]
[null,"  06:00 TO 18:00 SATURDAY AND SUNDAY/PUBLIC HOLIDAY"]
[null,"  Security Officer",null,0,0]
[null,"  18:00 TO 06:00 MONDAY TO SUNDAY"]
[null,"  Security Officer",null,1,1]
[null,"  Handheld Metal Detector(s)",{"$nulls":4},3]
[]
["1.1.41","PHUNGASHE HIGHFLATS OFFICE"]
[null,"  06:00 TO 18:00 MONDAY TO FRIDAY"]
["Area 3","  Security Officer",null,1,2]
[null,"  06:00 TO 18:00 SATURDAY AND SUNDAY/PUBLIC HOLIDAY"]
[null,"  Security Officer",null,0]
[null,"  18:00 TO 06:00 MONDAY TO SUNDAY"]
[null,"  Security Officer",null,1]
[null,"  Handheld Metal Detector(s)",{"$nulls":4},3]
[]
["1.1.42","HLANGANANI: PERIODICAL COURT, DONNYBROOK"]
[null,"  06:00 TO 18:00 MONDAY TO FRIDAY"]
["Area 3","  Security Officer",null,null,2,null,null,1]
[null,"  06:00 TO 18:00 SATURDAY AND SUNDAY/PUBLIC HOLIDAY"]
[null,"  Security Officer",null,null,0]
[null,"  18:00 TO 06:00 MONDAY TO SUNDAY"]
[null,"  Security Officer",null,null,1]
[null,"  Handheld Metal Detector(s)",{"$nulls":4},3]
[]
["1.1.43","VERULAM ANNEXE (FAMILY COURT)"]
[null,"  06:00 TO 18:00 MONDAY TO FRIDAY"]
["Area 1","  Security Officer",null,1,3,null,null,2]
[null,"  06:00 TO 18:00 SATURDAY AND SUNDAY/PUBLIC HOLIDAY"]
[null,"  Security Officer",null,0,0]
[null,"  18:00 TO 06:00 MONDAY TO SUNDAY"]
[null,"  Security Officer",null,1,1]
[null,"  Handheld Metal Detector(s)",{"$nulls":4},3]
{"$rows_empty":10}
["1.1.44","EMZUMBE: PERIODICAL COURT, UMZINTO"]
[null,"  06:00 TO 18:00 MONDAY TO FRIDAY"]
["Area 3","  Security Officer",null,1,2,null,null,1]
[null,"  06:00 TO 18:00 SATURDAY AND SUNDAY/PUBLIC HOLIDAY"]
[null,"  Security Officer",null,null,0]
[null,"  18:00 TO 06:00 MONDAY TO SUNDAY"]
[null,"  Security Officer",null,null,1]
[null,"  Handheld Metal Detector(s)",{"$nulls":4},3]
{"$rows_empty":10}
["1.1.45","STANGER: PERIODICAL COURT, UMHLALI"]
[null,"  06:00 TO 18:00 MONDAY TO FRIDAY"]
["Area 3","  Security Officer",null,null,2,null,null,1]
[null,"  06:00 TO 18:00 SATURDAY AND SUNDAY/PUBLIC HOLIDAY"]
[null,"  Security Officer",null,null,0]
[null,"  18:00 TO 06:00 MONDAY TO SUNDAY"]
[null,"  Security Officer",null,null,1]
[null,"  Handheld Metal Detector(s)",{"$nulls":4},3]
[]
["1.1.46","NPA: DPP DURBAN: SOUTHERN LIFE BUILDING"]
[null,"  06:00 TO 18:00 MONDAY TO FRIDAY"]
["Area 1","  Security Officer",null,2,6,null,null,4]
[null,"  06:00 TO 18:00 SATURDAY AND SUNDAY/PUBLIC HOLIDAY"]
[null,"  Security Officer",null,0,0]
[null,"  18:00 TO 06:00 MONDAY TO SUNDAY"]
[null,"  Security Officer",null,2,3,null,null,5]
[null,"  Handheld Metal Detector(s)",{"$nulls":4},7]
[]
["1.1.47","NPA: SPECIALISED COMMERCIAL CRIME UNIT DURBAN"]
[null,"  06:00 TO 18:00 MONDAY TO FRIDAY"]
["Area 1","  Security Officer",null,1,2,null,null,1]
[null,"  06:00 TO 18:00 SATURDAY AND SUNDAY/PUBLIC HOLIDAY"]
[null,"  Security Officer",null,0,0]
[null,"  18:00 TO 06:00 MONDAY TO SUNDAY"]
[null,"  Security Officer",null,1,1,null,null,1]
[null,"  Handheld Metal Detector(s)",{"$nulls":4},3]
[]
["1.1.48","NPA: DPP PIETERMARITZBURG NEW Bldg 2"]
[null,"  06:00 TO 18:00 MONDAY TO FRIDAY"]
["Area 1","  Security Officer",null,4,4,null,null,3]
[null,"  06:00 TO 18:00 SATURDAY AND SUNDAY/PUBLIC HOLIDAY"]
[null,"  Security Officer",null,0,0]
[null,"  18:00 TO 06:00 MONDAY TO SUNDAY"]
[null,"  Security Officer",null,2,1,null,null,4]
[null,"  Handheld Metal Detector(s)",{"$nulls":4},7]
[]
["1.1.49","STATE ATTORNEYS: DURBAN       "]
[null,"  06:00 TO 18:00 MONDAY TO FRIDAY"]
["Area 1","  Security Officer",null,1,2,null,null,2]
[null,"  06:00 TO 18:00 SATURDAY AND SUNDAY/PUBLIC HOLIDAY"]
[null,"  Security Officer",null,0,0]
[null,"  18:00 TO 06:00 MONDAY TO SUNDAY"]
[null,"  Security Officer",null,1,1]
[null,"  Handheld Metal Detector(s)",{"$nulls":4},3]
[]
["1.1.50","FAMILY ADVOCATE: DURBAN      "]
[null,"  06:00 TO 18:00 MONDAY TO FRIDAY"]
["Area 1","  Security Officer",null,1,2,null,null,1]
[null,"  06:00 TO 18:00 SATURDAY AND SUNDAY/PUBLIC HOLIDAY"]
[null,"  Security Officer",null,0,0]
[null,"  18:00 TO 06:00 MONDAY TO SUNDAY"]
[null,"  Security Officer",null,1,1]
[null,"  Handheld Metal Detector(s)",{"$nulls":4},3]
[]
["1.1.51","BABANANGO"]
[null,"  06:00 TO 18:00 MONDAY TO FRIDAY"]
["Area 3","  Security Officer",null,1,3]
[null,"  06:00 TO 18:00 SATURDAY AND SUNDAY/PUBLIC HOLIDAY"]
[null,"  Security Officer",null,0,0]
[null,"  18:00 TO 06:00 MONDAY TO SUNDAY"]
[null,"  Security Officer",null,1,1]
[null,"  Handheld Metal Detector(s)",{"$nulls":4},3]
[]
["1.1.52","BERGVILLE"]
[null,"  06:00 TO 18:00 MONDAY TO FRIDAY"]
["Area 3","  Security Officer",null,1,3]
[null,"  06:00 TO 18:00 SATURDAY AND SUNDAY/PUBLIC HOLIDAY"]
[null,"  Security Officer",null,0,0]
[null,"  18:00 TO 06:00 MONDAY TO SUNDAY"]
[null,"  Security Officer",null,1,1]
[null,"  Handheld Metal Detector(s)",{"$nulls":4},3]
[]
["1.1.53","COLENSO "]
[null,"  06:00 TO 18:00 MONDAY TO FRIDAY"]
["Area 3","  Security Officer",null,1,3]
[null,"  06:00 TO 18:00 SATURDAY AND SUNDAY/PUBLIC HOLIDAY"]
[null,"  Security Officer",null,0,0]
[null,"  18:00 TO 06:00 MONDAY TO SUNDAY"]
[null,"  Security Officer",null,1,1]
[null,"  Handheld Metal Detector(s)",{"$nulls":4},3]
[]
["1.1.54","DANNHAUSER "]
[null,"  06:00 TO 18:00 MONDAY TO FRIDAY"]
["Area 3","  Security Officer",null,1,3]
[null,"  06:00 TO 18:00 SATURDAY AND SUNDAY/PUBLIC HOLIDAY"]
[null,"  Security Officer",null,0,0]
[null,"  18:00 TO 06:00 MONDAY TO SUNDAY"]
[null,"  Security Officer",null,1,1]
[null,"  Handheld Metal Detector(s)",{"$nulls":4},3]
[]
["1.1.55","HLABISA "]
[null,"  06:00 TO 18:00 MONDAY TO FRIDAY"]
["Area 3","  Security Officer",null,1,3]
[null,"  06:00 TO 18:00 SATURDAY AND SUNDAY/PUBLIC HOLIDAY"]
[null,"  Security Officer",null,0,0]
[null,"  18:00 TO 06:00 MONDAY TO SUNDAY"]
[null,"  Security Officer",null,1,1]
[null,"  Handheld Metal Detector(s)",{"$nulls":4},3]
[]
["1.1.56","MAGUDU "]
[null,"  06:00 TO 18:00 MONDAY TO FRIDAY"]
["Area 3","  Security Officer",null,1,3]
[null,"  06:00 TO 18:00 SATURDAY AND SUNDAY/PUBLIC HOLIDAY"]
[null,"  Security Officer",null,0,0]
[null,"  18:00 TO 06:00 MONDAY TO SUNDAY"]
[null,"  Security Officer",null,1,1]
[null,"  Handheld Metal Detector(s)",{"$nulls":4},3]
[]
["1.1.57","MANGUZI "]
[null,"  06:00 TO 18:00 MONDAY TO FRIDAY"]
["Area 3","  Security Officer",null,1,3]
[null,"  06:00 TO 18:00 SATURDAY AND SUNDAY/PUBLIC HOLIDAY"]
[null,"  Security Officer",null,0,0]
[null,"  18:00 TO 06:00 MONDAY TO SUNDAY"]
[null,"  Security Officer",null,1,1]
[null,"  Handheld Metal Detector(s)",{"$nulls":4},3]
[]
["1.1.58","PAULPIETERSBURG"]
[null,"  06:00 TO 18:00 MONDAY TO FRIDAY",null,null," "]
["Area 3","  Security Officer",null,1,3]
[null,"  06:00 TO 18:00 SATURDAY AND SUNDAY/PUBLIC HOLIDAY"]
[null,"  Security Officer",null,0,0]
[null,"  18:00 TO 06:00 MONDAY TO SUNDAY"]
[null,"  Security Officer",null,1,1]
[null,"  Handheld Metal Detector(s)",{"$nulls":4},3]
[]
["1.1.59","UTRECHT "]
[null,"  06:00 TO 18:00 MONDAY TO FRIDAY"]
["Area 3","  Security Officer",null,1,3]
[null,"  06:00 TO 18:00 SATURDAY AND SUNDAY/PUBLIC HOLIDAY"]
[null,"  Security Officer",null,0,0]
[null,"  18:00 TO 06:00 MONDAY TO SUNDAY"]
[null,"  Security Officer",null,1,1]
[null,"  Handheld Metal Detector(s)",{"$nulls":4},3]
[]
["1.1.60","VRYHEID "]
[null,"  06:00 TO 18:00 MONDAY TO FRIDAY"]
["Area 3","  Security Officer",null,1,3]
[null,"  06:00 TO 18:00 SATURDAY AND SUNDAY/PUBLIC HOLIDAY"]
[null,"  Security Officer",null,0,0]
[null,"  18:00 TO 06:00 MONDAY TO SUNDAY"]
[null,"  Security Officer",null,1,1]
[null,"  Handheld Metal Detector(s)",{"$nulls":4},3]
[]
["1.1.61","WEENEN "]
[null,"  06:00 TO 18:00 MONDAY TO FRIDAY"]
["Area 3","  Security Officer",null,1,3]
[null,"  06:00 TO 18:00 SATURDAY AND SUNDAY/PUBLIC HOLIDAY"]
[null,"  Security Officer",null,0," "]
[null,"  18:00 TO 06:00 MONDAY TO SUNDAY"]
[null,"  Security Officer",null,1," "]
[null,"  Handheld Metal Detector(s)",{"$nulls":4},3]
[]
["1.1.62","INKHANYESI : PERIODICAL COURT, SUNDUMBILI"]
[null,"  06:00 TO 18:00 MONDAY TO FRIDAY"]
["Area 3","  Security Officer",null,1,1]
[null,"  06:00 TO 18:00 SATURDAY AND SUNDAY/PUBLIC HOLIDAY"]
[null,"  Security Officer",null,0]
[null,"  18:00 TO 06:00 MONDAY TO SUNDAY"]
[null,"  Security Officer",null,1]
[null,"  Handheld Metal Detector(s)",{"$nulls":4},2]
[]
["1.1.63","ULUNDI"]
[null,"  06:00 TO 18:00 MONDAY TO FRIDAY"]
["Area 3","  Security Officer",null,1,3]
[null,"  06:00 TO 18:00 SATURDAY AND SUNDAY/PUBLIC HOLIDAY"]
[null,"  Security Officer",null,0,0]
[null,"  18:00 TO 06:00 MONDAY TO SUNDAY"]
[null,"  Security Officer",null,1,1]
[null,"  Handheld Metal Detector(s)",{"$nulls":4},3]
[]
["1.1.64","MADADENI"]
[null,"  06:00 TO 18:00 MONDAY TO FRIDAY"]
["Area 3","  Security Officer",null,1,4,null,null,2]
[null,"  06:00 TO 18:00 SATURDAY AND SUNDAY/PUBLIC HOLIDAY"]
[null,"  Security Officer",null,0,0]
[null,"  18:00 TO 06:00 MONDAY TO SUNDAY"]
[null,"  Security Officer",null,1,1]
[null,"  Handheld Metal Detector(s)",{"$nulls":4},3]
[]
["1.1.65","MAHLABATINI"]
[null,"  06:00 TO 18:00 MONDAY TO FRIDAY"]
["Area 3","  Security Officer",null,1,2]
[null,"  06:00 TO 18:00 SATURDAY AND SUNDAY/PUBLIC HOLIDAY"]
[null,"  Security Officer",null,0,0]
[null,"  18:00 TO 06:00 MONDAY TO SUNDAY"]
[null,"  Security Officer",null,1,1]
[null,"  Handheld Metal Detector(s)",{"$nulls":4},3]
[]
["1.1.66","INGWAVUMA"]
[null,"  06:00 TO 18:00 MONDAY TO FRIDAY"]
["Area 3","  Security Officer",null,1,3]
[null,"  06:00 TO 18:00 SATURDAY AND SUNDAY/PUBLIC HOLIDAY"]
[null,"  Security Officer",null,0,0]
[null,"  18:00 TO 06:00 MONDAY TO SUNDAY"]
[null,"  Security Officer",null,1,1]
[null,"  Handheld Metal Detector(s)",{"$nulls":4},3]
[]
["1.1.67","SIMDLANGETSHA "]
[null,"  06:00 TO 18:00 MONDAY TO FRIDAY"]
["Area 3","  Security Officer",null,1,1]
[null,"  06:00 TO 18:00 SATURDAY AND SUNDAY/PUBLIC HOLIDAY"]
[null,"  Security Officer",null,0,0]
[null,"  18:00 TO 06:00 MONDAY TO SUNDAY"]
[null,"  Security Officer",null,1,0,null,null,1]
[null,"  Handheld Metal Detector(s)",{"$nulls":4},1]
[]
["1.1.68","NONGOMA"]
[null,"  06:00 TO 18:00 MONDAY TO FRIDAY"]
["Area 3","  Security Officer",null,1,3,null,null,1]
[null,"  06:00 TO 18:00 SATURDAY AND SUNDAY/PUBLIC HOLIDAY"]
[null,"  Security Officer",null,0,0]
[null,"  18:00 TO 06:00 MONDAY TO SUNDAY"]
[null,"  Security Officer",null,1,1]
[null,"  Handheld Metal Detector(s)",{"$nulls":4},3]
[]
["1.1.69","NKANDLA"]
[null,"  06:00 TO 18:00 MONDAY TO FRIDAY"]
["Area 3","  Security Officer",null,1,3]
[null,"  06:00 TO 18:00 SATURDAY AND SUNDAY/PUBLIC HOLIDAY"]
[null,"  Security Officer",null,0,0]
[null,"  18:00 TO 06:00 MONDAY TO SUNDAY"]
[null,"  Security Officer",null,1,1]
[null,"  Handheld Metal Detector(s)",{"$nulls":4},3]
[]
["1.1.70","GLENCOE"]
[null,"  06:00 TO 18:00 MONDAY TO FRIDAY"]
["Area 3","  Security Officer",null,1,3]
[null,"  06:00 TO 18:00 SATURDAY AND SUNDAY/PUBLIC HOLIDAY"]
[null,"  Security Officer",null,0,0]
[null,"  18:00 TO 06:00 MONDAY TO SUNDAY"]
[null,"  Security Officer",null,1,1]
[null,"  Handheld Metal Detector(s)",{"$nulls":4},3]
[]
["1.1.71","EKUVUKENI"]
[null,"  06:00 TO 18:00 MONDAY TO FRIDAY"]
["Area 3","  Security Officer",null,1,2]
[null,"  06:00 TO 18:00 SATURDAY AND SUNDAY/PUBLIC HOLIDAY"]
[null,"  Security Officer",null,0,0]
[null,"  18:00 TO 06:00 MONDAY TO SUNDAY"]
[null,"  Security Officer",null,1,1]
[null,"  Handheld Metal Detector(s)",{"$nulls":4},3]
[]
["1.1.72","MTUNZINI"]
[null,"  06:00 TO 18:00 MONDAY TO FRIDAY"]
["Area 3","  Security Officer",null,1,3,null,null,1]
[null,"  06:00 TO 18:00 SATURDAY AND SUNDAY/PUBLIC HOLIDAY"]
[null,"  Security Officer",null,0,0]
[null,"  18:00 TO 06:00 MONDAY TO SUNDAY"]
[null,"  Security Officer",null,1,1]
[null,"  Handheld Metal Detector(s)",{"$nulls":4},3]
[]
["1.1.73","DUNDEE"]
[null,"  06:00 TO 18:00 MONDAY TO FRIDAY"]
["Area 3","  Security Officer",null,1,3,null,null,1]
[null,"  06:00 TO 18:00 SATURDAY AND SUNDAY/PUBLIC HOLIDAY"]
[null,"  Security Officer",null,0,0]
[null,"  18:00 TO 06:00 MONDAY TO SUNDAY"]
[null,"  Security Officer",null,1,1]
[null,"  Handheld Metal Detector(s)",{"$nulls":4},3]
[]
["1.1.74","LADYSMITH"]
[null,"  06:00 TO 18:00 MONDAY TO FRIDAY"]
["Area 3","  Security Officer",null,1,4,null,null,1]
[null,"  06:00 TO 18:00 SATURDAY AND SUNDAY/PUBLIC HOLIDAY"]
[null,"  Security Officer",null,0,0]
[null,"  18:00 TO 06:00 MONDAY TO SUNDAY"]
[null,"  Security Officer",null,1,1]
[null,"  Handheld Metal Detector(s)",{"$nulls":4},3]
[]
["1.1.75","DUKUZA"]
[null,"  06:00 TO 18:00 MONDAY TO FRIDAY"]
["Area 3","  Security Officer",null,1,3]
[null,"  06:00 TO 18:00 SATURDAY AND SUNDAY/PUBLIC HOLIDAY"]
[null,"  Security Officer",null,0,0]
[null,"  18:00 TO 06:00 MONDAY TO SUNDAY"]
[null,"  Security Officer",null,1,1]
[null,"  Handheld Metal Detector(s)",{"$nulls":4},3]
[]
["1.1.76","PONGOLA"]
[null,"  06:00 TO 18:00 MONDAY TO FRIDAY"]
["Area 3","  Security Officer",null,1,3,null,null,2]
[null,"  06:00 TO 18:00 SATURDAY AND SUNDAY/PUBLIC HOLIDAY"]
[null,"  Security Officer",null,0,0]
[null,"  18:00 TO 06:00 MONDAY TO SUNDAY"]
[null,"  Security Officer",null,1,1]
[null,"  Handheld Metal Detector(s)",{"$nulls":4},3]
[]
["1.1.77","UBOMBO"]
[null,"  06:00 TO 18:00 MONDAY TO FRIDAY"]
["Area 3","  Security Officer",null,1,3]
[null,"  06:00 TO 18:00 SATURDAY AND SUNDAY/PUBLIC HOLIDAY"]
[null,"  Security Officer",null,0,0]
[null,"  18:00 TO 06:00 MONDAY TO SUNDAY"]
[null,"  Security Officer",null,1,1]
[null,"  Handheld Metal Detector(s)",{"$nulls":4},3]
[]
["1.1.78","ESHOWE"]
[null,"  06:00 TO 18:00 MONDAY TO FRIDAY"]
["Area 3","  Security Officer",null,1,3]
[null,"  06:00 TO 18:00 SATURDAY AND SUNDAY/PUBLIC HOLIDAY"]
[null,"  Security Officer",null,0,0]
[null,"  18:00 TO 06:00 MONDAY TO SUNDAY"]
[null,"  Security Officer",null,1,1]
[null,"  Handheld Metal Detector(s)",{"$nulls":4},3]
[]
["1.1.79","ESCOURT"]
[null,"  06:00 TO 18:00 MONDAY TO FRIDAY"]
["Area 3","  Security Officer",null,1,3,null,null,1]
[null,"  06:00 TO 18:00 SATURDAY AND SUNDAY/PUBLIC HOLIDAY"]
[null,"  Security Officer",null,0,0]
[null,"  18:00 TO 06:00 MONDAY TO SUNDAY"]
[null,"  Security Officer",null,1,1]
[null,"  Handheld Metal Detector(s)",{"$nulls":4},3]
[]
["1.1.80","EMNAMBITHI"]
[null,"  06:00 TO 18:00 MONDAY TO FRIDAY"]
["Area 3","  Security Officer",null,1,3,null,null,1]
[null,"  06:00 TO 18:00 SATURDAY AND SUNDAY/PUBLIC HOLIDAY"]
[null,"  Security Officer",null,0,0]
[null,"  18:00 TO 06:00 MONDAY TO SUNDAY"]
[null,"  Security Officer",null,1,1]
[null,"  Handheld Metal Detector(s)",{"$nulls":4},3]
[]
["1.1.81","LOUWSBURG"]
[null,"  06:00 TO 18:00 MONDAY TO FRIDAY"]
["Area 3","  Security Officer",null,1,3]
[null,"  06:00 TO 18:00 SATURDAY AND SUNDAY/PUBLIC HOLIDAY"]
[null,"  Security Officer",null,0,0]
[null,"  18:00 TO 06:00 MONDAY TO SUNDAY"]
[null,"  Security Officer",null,1,1]
[null,"  Handheld Metal Detector(s)",{"$nulls":4},3]
[]
["1.1.82","NQUTU"]
[null,"  06:00 TO 18:00 MONDAY TO FRIDAY"]
["Area 3","  Security Officer",null,1,3,null,null,1]
[null,"  06:00 TO 18:00 SATURDAY AND SUNDAY/PUBLIC HOLIDAY"]
[null,"  Security Officer",null,0,0]
[null,"  18:00 TO 06:00 MONDAY TO SUNDAY"]
[null,"  Security Officer",null,1,1]
[null,"  Handheld Metal Detector(s)",{"$nulls":4},3]
[]
["1.1.83","INKHANYEZI"]
[null,"  06:00 TO 18:00 MONDAY TO FRIDAY"]
["Area 3","  Security Officer",null,1,2]
[null,"  06:00 TO 18:00 SATURDAY AND SUNDAY/PUBLIC HOLIDAY"]
[null,"  Security Officer",null,0,0]
[null,"  18:00 TO 06:00 MONDAY TO SUNDAY"]
[null,"  Security Officer",null,1,1]
[null,"  Handheld Metal Detector(s)",{"$nulls":4},3]
[]
["1.1.84","MELMOTH"]
[null,"  06:00 TO 18:00 MONDAY TO FRIDAY"]
["Area 3","  Security Officer",null,1,3]
[null,"  06:00 TO 18:00 SATURDAY AND SUNDAY/PUBLIC HOLIDAY"]
[null,"  Security Officer",null,0,0]
[null,"  18:00 TO 06:00 MONDAY TO SUNDAY"]
[null,"  Security Officer",null,1,1]
[null,"  Handheld Metal Detector(s)",{"$nulls":4},3]
[]
["1.1.85","NEWCASTLE     "]
[null,"  06:00 TO 18:00 MONDAY TO FRIDAY"]
["Area 3","  Security Officer",null,1,4,null,null,2]
[null,"  06:00 TO 18:00 SATURDAY AND SUNDAY/PUBLIC HOLIDAY"]
[null,"  Security Officer",null,0,0]
[null,"  18:00 TO 06:00 MONDAY TO SUNDAY"]
[null,"  Security Officer",null,1,2]
[null,"  Handheld Metal Detector(s)",{"$nulls":4},3]
[]
["1.1.86","MSINGA"]
[null,"  06:00 TO 18:00 MONDAY TO FRIDAY"]
["Area 3","  Security Officer",null,1,3]
[null,"  06:00 TO 18:00 SATURDAY AND SUNDAY/PUBLIC HOLIDAY"]
[null,"  Security Officer",null,0,0]
[null,"  18:00 TO 06:00 MONDAY TO SUNDAY"]
[null,"  Security Officer",null,1,1]
[null,"  Handheld Metal Detector(s)",{"$nulls":4},3]
[]
["1.1.87","COLENSO: BRANCH COURT, WINTERTON"]
[null,"  06:00 TO 18:00 MONDAY TO FRIDAY"]
["Area 3","  Security Officer",null,1,1]
[null,"  06:00 TO 18:00 SATURDAY AND SUNDAY/PUBLIC HOLIDAY"]
[null,"  Security Officer",null,0]
[null,"  18:00 TO 06:00 MONDAY TO SUNDAY"]
[null,"  Security Officer",null,1]
[null,"  Handheld Metal Detector(s)",{"$nulls":4},2]
[]
["1.1.88","MSINGA: PERIODICAL COURT, POMEROY"]
[null,"  06:00 TO 18:00 MONDAY TO FRIDAY"]
["Area 3","  Security Officer",null,1,1]
[null,"  06:00 TO 18:00 SATURDAY AND SUNDAY/PUBLIC HOLIDAY"]
[null,"  Security Officer",null,0,0]
[null,"  18:00 TO 06:00 MONDAY TO SUNDAY"]
[null,"  Security Officer",null,1]
[null,"  Handheld Metal Detector(s)",{"$nulls":4},2]
[]
["1.1.89","MAPHUMULO: PERIODICAL COURT, NSUZE"]
[null,"  06:00 TO 18:00 MONDAY TO FRIDAY"]
["Area 3","  Security Officer",null,null,2]
[null,"  06:00 TO 18:00 SATURDAY AND SUNDAY/PUBLIC HOLIDAY"]
[null,"  Security Officer",null,null,0]
[null,"  18:00 TO 06:00 MONDAY TO SUNDAY"]
[null,"  Security Officer",null,null,1]
[null,"  Handheld Metal Detector(s)",{"$nulls":4},2]
[]
["1.1.90","VRYHEID: PERIODICAL COURT, HLOBANE"]
[null,"  06:00 TO 18:00 MONDAY TO FRIDAY"]
["Area 3","  Security Officer",null,null,1]
[null,"  06:00 TO 18:00 SATURDAY AND SUNDAY/PUBLIC HOLIDAY"]
[null,"  Security Officer",null,null,0]
[null,"  18:00 TO 06:00 MONDAY TO SUNDAY"]
[null,"  Security Officer",null,null,1]
[null,"  Handheld Metal Detector(s)",{"$nulls":4},1]
[]
["1.1.91","NEW CASTLE: PERIODICAL COURT, CHARLESTOWN"]
[null,"  06:00 TO 18:00 MONDAY TO FRIDAY"]
["Area 3","  Security Officer",null,null,2]
[null,"  06:00 TO 18:00 SATURDAY AND SUNDAY/PUBLIC HOLIDAY"]
[null,"  Security Officer",null,null,0]
[null,"  18:00 TO 06:00 MONDAY TO SUNDAY"]
[null,"  Security Officer",null,null,1]
[null,"  Handheld Metal Detector(s)",{"$nulls":4},2]
[]
["1.1.92","VRYHEID: PERIODICAL COURT, GLUCKSTADT"]
[null,"  06:00 TO 18:00 MONDAY TO FRIDAY"]
["Area 3","  Security Officer",null,null,2]
[null,"  06:00 TO 18:00 SATURDAY AND SUNDAY/PUBLIC HOLIDAY"]
[null,"  Security Officer",null,null,0]
[null,"  18:00 TO 06:00 MONDAY TO SUNDAY"]
[null,"  Security Officer",null,null,1]
[null,"  Handheld Metal Detector(s)",{"$nulls":4},2]
[]
["1.1.93","NONGOMA: PERIODICAL COURT, MBAZWANA"]
[null,"  06:00 TO 18:00 MONDAY TO FRIDAY"]
["Area 3","  Security Officer",null,null,2,null,null,1]
[null,"  06:00 TO 18:00 SATURDAY AND SUNDAY/PUBLIC HOLIDAY"]
[null,"  Security Officer",null,null,0]
[null,"  18:00 TO 06:00 MONDAY TO SUNDAY"]
[null,"  Security Officer",null,null,1]
[null,"  Handheld Metal Detector(s)",{"$nulls":4},3]
[]
["1.1.94","NQUTU: PERIODICAL COURT, EKHOMBE"]
[null,"  06:00 TO 18:00 MONDAY TO FRIDAY"]
["Area 3","  Security Officer",null,null,2]
[null,"  06:00 TO 18:00 SATURDAY AND SUNDAY/PUBLIC HOLIDAY"]
[null,"  Security Officer",null,null,0]
[null,"  18:00 TO 06:00 MONDAY TO SUNDAY"]
[null,"  Security Officer",null,null,1]
[null,"  Handheld Metal Detector(s)",{"$nulls":4},2]
[]
["1.1.95","MTUNZINI: PERIODICAL COURT, GINGINDLOVO"]
[null,"  06:00 TO 18:00 MONDAY TO FRIDAY"]
["Area 3","  Security Officer",null,null,2,null,null,1]
[null,"  06:00 TO 18:00 SATURDAY AND SUNDAY/PUBLIC HOLIDAY"]
[null,"  Security Officer",null,null,0]
[null,"  18:00 TO 06:00 MONDAY TO SUNDAY"]
[null,"  Security Officer",null,null,1]
[null,"  Handheld Metal Detector(s)",{"$nulls":4},3]
[]
["1.1.96","HLABISA: PERIODICAL COURT, HLUHLUWE"]
[null,"  06:00 TO 18:00 MONDAY TO FRIDAY"]
["Area 3","  Security Officer",null,null,2,null,null,1]
[null,"  06:00 TO 18:00 SATURDAY AND SUNDAY/PUBLIC HOLIDAY"]
[null,"  Security Officer",null,null,0]
[null,"  18:00 TO 06:00 MONDAY TO SUNDAY"]
[null,"  Security Officer",null,null,1]
[null,"  Handheld Metal Detector(s)",{"$nulls":4},3]
[]
["1.1.97","GREYTOWN"]
[null,"  06:00 TO 18:00 MONDAY TO FRIDAY"]
["Area 3","  Security Officer",null,1,3]
[null,"  06:00 TO 18:00 SATURDAY AND SUNDAY/PUBLIC HOLIDAY"]
[null,"  Security Officer",null,1,0]
[null,"  18:00 TO 06:00 MONDAY TO SUNDAY"]
[null,"  Security Officer",null,1,1]
[null,"  Handheld Metal Detector(s)",{"$nulls":4},3]
[]
["1.1.98","ENSELENI "]
[null,"  06:00 TO 18:00 MONDAY TO FRIDAY"]
["Area 3","  Security Officer",null,1,3]
[null,"  06:00 TO 18:00 SATURDAY AND SUNDAY/PUBLIC HOLIDAY"]
[null,"  Security Officer",null,1,0]
[null,"  18:00 TO 06:00 MONDAY TO SUNDAY"]
[null,"  Security Officer",null,1,1]
[null,"  Handheld Metal Detector(s)",{"$nulls":4},3]
[]
["1.1.99","KRANSKOP "]
[null,"  06:00 TO 18:00 MONDAY TO FRIDAY"]
["Area 3","  Security Officer",null,1,3]
[null,"  06:00 TO 18:00 SATURDAY AND SUNDAY/PUBLIC HOLIDAY"]
[null,"  Security Officer",null,1,0]
[null,"  18:00 TO 06:00 MONDAY TO SUNDAY"]
[null,"  Security Officer",null,1,1]
[null,"  Handheld Metal Detector(s)",{"$nulls":4},3]
[]
["1.1.100","KWA MSANE "]
[null,"  06:00 TO 18:00 MONDAY TO FRIDAY"]
["Area 3","  Security Officer",null,1,3]
[null,"  06:00 TO 18:00 SATURDAY AND SUNDAY/PUBLIC HOLIDAY"]
[null,"  Security Officer",null,1,0]
[null,"  18:00 TO 06:00 MONDAY TO SUNDAY"]
[null,"  Security Officer",null,1,1]
[null,"  Handheld Metal Detector(s)",{"$nulls":4},3]
[]
["1.1.101","ONGOYE"]
[null,"  06:00 TO 18:00 MONDAY TO FRIDAY"]
["Area 3","  Security Officer",null,1,3]
[null,"  06:00 TO 18:00 SATURDAY AND SUNDAY/PUBLIC HOLIDAY"]
[null,"  Security Officer",null,1,0]
[null,"  18:00 TO 06:00 MONDAY TO SUNDAY"]
[null,"  Security Officer",null,1,1]
[null,"  Handheld Metal Detector(s)",{"$nulls":4},3]
[]
["1.1.102","RICHARDS BAY"]
[null,"  06:00 TO 18:00 MONDAY TO FRIDAY"]
["Area 3","  Security Officer",null,1,3]
[null,"  06:00 TO 18:00 SATURDAY AND SUNDAY/PUBLIC HOLIDAY"]
[null,"  Security Officer",null,0,0]
[null,"  18:00 TO 06:00 MONDAY TO SUNDAY"]
[null,"  Security Officer",null,1,1]
[null,"  Handheld Metal Detector(s)",{"$nulls":4},3]
[]
["1.1.103","EMPANGENI"]
[null,"  06:00 TO 18:00 MONDAY TO FRIDAY"]
["Area 3","  Security Officer",null,1,3,null,null,1]
[null,"  06:00 TO 18:00 SATURDAY AND SUNDAY/PUBLIC HOLIDAY"]
[null,"  Security Officer",null,0,0]
[null,"  18:00 TO 06:00 MONDAY TO SUNDAY"]
[null,"  Security Officer",null,1,1]
[null,"  Handheld Metal Detector(s)",{"$nulls":4},3]
[]
["1.1.104","MTUBATUBA"]
[null,"  06:00 TO 18:00 MONDAY TO FRIDAY"]
["Area 3","  Security Officer",null,1,3]
[null,"  06:00 TO 18:00 SATURDAY AND SUNDAY/PUBLIC HOLIDAY"]
[null,"  Security Officer",null,0,0]
[null,"  18:00 TO 06:00 MONDAY TO SUNDAY"]
[null,"  Security Officer",null,1,1]
[null,"  Handheld Metal Detector(s)",{"$nulls":4},3]
[]
["1.1.105","MAPHUMULO"]
[null,"  06:00 TO 18:00 MONDAY TO FRIDAY"]
["Area 3","  Security Officer",null,1,3]
[null,"  06:00 TO 18:00 SATURDAY AND SUNDAY/PUBLIC HOLIDAY"]
[null,"  Security Officer",null,0,0]
[null,"  18:00 TO 06:00 MONDAY TO SUNDAY"]
[null,"  Security Officer",null,1,1]
[null,"  Handheld Metal Detector(s)",{"$nulls":4},3]
[]
["1.1.106","MTUNZINI: PERIODICAL COURT, NYONI"]
[null,"  06:00 TO 18:00 MONDAY TO FRIDAY"]
["Area 3","  Security Officer",null,null,2,null,null,1]
[null,"  06:00 TO 18:00 SATURDAY AND SUNDAY/PUBLIC HOLIDAY"]
[null,"  Security Officer",null,null,0]
[null,"  18:00 TO 06:00 MONDAY TO SUNDAY"]
[null,"  Security Officer",null,null,1]
[null,"  Handheld Metal Detector(s)",{"$nulls":4},3]
[]
["1.1.107","ENSELENI: PERIODICAL COURT, KWAMBONAMBI"]
[null,"  06:00 TO 18:00 MONDAY TO FRIDAY"]
["Area 3","  Security Officer",null,1,1,null,null,1]
[null,"  06:00 TO 18:00 SATURDAY AND SUNDAY/PUBLIC HOLIDAY"]
[null,"  Security Officer",null,0,0]
[null,"  18:00 TO 06:00 MONDAY TO SUNDAY"]
[null,"  Security Officer",null,1,1]
[null,"  Handheld Metal Detector(s)",{"$nulls":4},3]
[]
["1.1.108","HIMEVILLE "]
[null,"  06:00 TO 18:00 MONDAY TO FRIDAY"]
["Area 3","  Security Officer",null,1,3]
[null,"  06:00 TO 18:00 SATURDAY AND SUNDAY/PUBLIC HOLIDAY"]
[null,"  Security Officer",null,0,0]
[null,"  18:00 TO 06:00 MONDAY TO SUNDAY"]
[null,"  Security Officer",null,1,1]
[null,"  Handheld Metal Detector(s)",{"$nulls":4},3]
[]
["1.1.109","HARDING "]
[null,"  06:00 TO 18:00 MONDAY TO FRIDAY"]
["Area 3","  Security Officer",null,1,3]
[null,"  06:00 TO 18:00 SATURDAY AND SUNDAY/PUBLIC HOLIDAY"]
[null,"  Security Officer",null,0,0]
[null,"  18:00 TO 06:00 MONDAY TO SUNDAY"]
[null,"  Security Officer",null,1,1]
[null,"  Handheld Metal Detector(s)",{"$nulls":4},3]
[]
["1.1.110","MATATIELE "]
[null,"  06:00 TO 18:00 MONDAY TO FRIDAY"]
["Area 3","  Security Officer",null,1,3]
[null,"  06:00 TO 18:00 SATURDAY AND SUNDAY/PUBLIC HOLIDAY"]
[null,"  Security Officer",null,0,0]
[null,"  18:00 TO 06:00 MONDAY TO SUNDAY"]
[null,"  Security Officer",null,1,1]
[null,"  Handheld Metal Detector(s)",{"$nulls":4},3]
[]
["1.1.111","MASTER OF THE HIGH COURT COLONIAL BUILDING (PMB)"]
[null,"  06:00 TO 18:00 MONDAY TO FRIDAY"]
["Area 1","  Security Officer",null,1,6,null,null,2]
[null,"  06:00 TO 18:00 SATURDAY AND SUNDAY/PUBLIC HOLIDAY"]
[null,"  Security Officer",null,0,0]
[null,"  18:00 TO 06:00 MONDAY TO SUNDAY"]
[null,"  Security Officer",null,1,2]
[null,"  Handheld Metal Detector(s)",{"$nulls":4},5]
[]
["1.1.112","VERULAM:BRANCH COURT, PHOENIX  "]
[null,"  06:00 TO 18:00 MONDAY TO FRIDAY"]
["Area 1","  Security Officer",null,1,3,null,null,1]
[null,"  06:00 TO 18:00 SATURDAY AND SUNDAY/PUBLIC HOLIDAY"]
[null,"  Security Officer",null,0,0]
[null,"  18:00 TO 06:00 MONDAY TO SUNDAY"]
[null,"  Security Officer",null,1,1]
[null,"  Handheld Metal Detector(s)",{"$nulls":4},3]
[]
["1.1.113","VERULAM: PERIODICAL COURT, NEWLANDS  "]
[null,"  06:00 TO 18:00 MONDAY TO FRIDAY"]
["Area 1","  Security Officer",null,1,1,null,null,1]
[null,"  06:00 TO 18:00 SATURDAY AND SUNDAY/PUBLIC HOLIDAY"]
[null,"  Security Officer",null,0,0]
[null,"  18:00 TO 06:00 MONDAY TO SUNDAY"]
[null,"  Security Officer",null,1,1]
[null,"  Handheld Metal Detector(s)",{"$nulls":4},3]
[]
["1.1.114","VERULAM: COMMUNITY COURT, KWA MASHU(DALMENY RD)"]
[null,"  06:00 TO 18:00 MONDAY TO FRIDAY"]
["Area 1","  Security Officer",null,1,1]
[null,"  06:00 TO 18:00 SATURDAY AND SUNDAY/PUBLIC HOLIDAY"]
[null,"  Security Officer",null,0,0]
[null,"  18:00 TO 06:00 MONDAY TO SUNDAY"]
[null,"  Security Officer",null,1,1]
[null,"  Handheld Metal Detector(s)",{"$nulls":4},2]
[]
["1.1.115","UMBUMBULU: BRANCH COURT, NSIMBINI "]
[null,"  06:00 TO 18:00 MONDAY TO FRIDAY"]
["Area 3","  Security Officer",null,1,2,null,null,1]
[null,"  06:00 TO 18:00 SATURDAY AND SUNDAY/PUBLIC HOLIDAY"]
[null,"  Security Officer",null,0,0,null," "]
[null,"  18:00 TO 06:00 MONDAY TO SUNDAY"]
[null,"  Security Officer",null,1,1]
[null,"  Handheld Metal Detector(s)",{"$nulls":4},3]
[{"$nulls":3},{"$f":"SUM(D4:D1099)","v":218},{"$f":"SUM(E4:E1099)","v":451}]
[]
[{"$nulls":3},"Total",669]

{"sheet":"Eastern Cape","index":2,"n_rows":1084,"n_cols":8,"rows_kept":1084,"merged":[[0,2,0,5]]}
[null,"              RFB2021 __ EC  "]
["Item no","EASTERN CAPE","Grade B\n","Grade C Armed\n","Grade C Unarmed \n","Control Room CCTV","Hand Held Metaldetector(s) "]
["2.1.1","WHITTLESEA"]
[null,"  06:00 TO 18:00 MONDAY TO FRIDAY"]
["Area 3","  Security Officer",null,1,3,null,null,1]
[null,"  06:00 TO 18:00 SATURDAY AND SUNDAY/PUBLIC HOLIDAY"]
[null,"  Security Officer",null,0,0]
[null,"  18:00 TO 06:00 MONDAY TO SUNDAY"]
[null,"  Security Officer",null,1,1]
[null,"  Handheld Metal Detector(s)",{"$nulls":4},4]
[]
["2.1.2","QUEENSTOWN"]
[null,"  06:00 TO 18:00 MONDAY TO FRIDAY"]
["Area 3","  Security Officer",null,1,6,null,null,2]
[null,"  06:00 TO 18:00 SATURDAY AND SUNDAY/PUBLIC HOLIDAY"]
[null,"  Security Officer",null,0,0]
[null,"  18:00 TO 06:00 MONDAY TO SUNDAY"]
[null,"  Security Officer",null,1,1]
[null,"  Handheld Metal Detector(s)",{"$nulls":4},4]
[]
["2.1.3","STUTTERHEIM"]
[null,"  06:00 TO 18:00 MONDAY TO FRIDAY"]
["Area 3","  Security Officer",null,1,3]
[null,"  06:00 TO 18:00 SATURDAY AND SUNDAY/PUBLIC HOLIDAY"]
[null,"  Security Officer",null,0,0]
[null,"  18:00 TO 06:00 MONDAY TO SUNDAY"]
[null,"  Security Officer",null,1,1]
[null,"  Handheld Metal Detector(s)",{"$nulls":4},3]
[]
["2.1.4","JAMESTOWN"]
[null,"  06:00 TO 18:00 MONDAY TO FRIDAY"]
["Area 3","  Security Officer",null,1,2]
[null,"  06:00 TO 18:00 SATURDAY AND SUNDAY/PUBLIC HOLIDAY"]
[null,"  Security Officer",null,0,0]
[null,"  18:00 TO 06:00 MONDAY TO SUNDAY"]
[null,"  Security Officer",null,1,1]
[null,"  Handheld Metal Detector(s)",{"$nulls":4},3]
[]
["2.1.5","NERINA PLACE OF SAFETY"]
[null,"  06:00 TO 18:00 MONDAY TO FRIDAY"]
["Area 1","  Security Officer",null,1,6,null,null,4]
[null,"  06:00 TO 18:00 SATURDAY AND SUNDAY/PUBLIC HOLIDAY"]
[null,"  Security Officer",null,0,0]
[null,"  18:00 TO 06:00 MONDAY TO SUNDAY"]
[null,"  Security Officer",null,1,1]
[null,"  Handheld Metal Detector(s)",{"$nulls":4},5]
[]
["2.1.6","VENTERSTAD"]
[null,"  06:00 TO 18:00 MONDAY TO FRIDAY"]
["Area 3","  Security Officer",null,1,2]
[null,"  06:00 TO 18:00 SATURDAY AND SUNDAY/PUBLIC HOLIDAY"]
[null,"  Security Officer",null,0,0]
[null,"  18:00 TO 06:00 MONDAY TO SUNDAY"]
[null,"  Security Officer",null,1,1]
[null,"  Handheld Metal Detector(s)",{"$nulls":4},3]
[]
["2.1.7","EZIBELENI"]
[null,"  06:00 TO 18:00 MONDAY TO FRIDAY"]
["Area 3","  Security Officer",null,1,2]
[null,"  06:00 TO 18:00 SATURDAY AND SUNDAY/PUBLIC HOLIDAY"]
[null,"  Security Officer",null,0,0]
[null,"  18:00 TO 06:00 MONDAY TO SUNDAY"]
[null,"  Security Officer",null,1,1]
[null,"  Handheld Metal Detector(s)",{"$nulls":4},3]
[]
["2.1.8","NTABETHEMBA"]
[null,"  06:00 TO 18:00 MONDAY TO FRIDAY"]
["Area 3","  Security Officer",null,1,2]
[null,"  06:00 TO 18:00 SATURDAY AND SUNDAY/PUBLIC HOLIDAY"]
[null,"  Security Officer",null,0,0]
[null,"  18:00 TO 06:00 MONDAY TO SUNDAY"]
[null,"  Security Officer",null,1,1]
[null,"  Handheld Metal Detector(s)",{"$nulls":4},3]
[]
["2.1.9","CATHCART"]
[null,"  06:00 TO 18:00 MONDAY TO FRIDAY"]
["Area 3","  Security Officer",null,1,2]
[null,"  06:00 TO 18:00 SATURDAY AND SUNDAY/PUBLIC HOLIDAY"]
[null,"  Security Officer",null,0,0]
[null,"  18:00 TO 06:00 MONDAY TO SUNDAY"]
[null,"  Security Officer",null,1,1]
[null,"  Handheld Metal Detector(s)",{"$nulls":4},3]
[]
["2.1.10","MOLTENO"]
[null,"  06:00 TO 18:00 MONDAY TO FRIDAY"]
["Area 3","  Security Officer",null,1,2]
[null,"  06:00 TO 18:00 SATURDAY AND SUNDAY/PUBLIC HOLIDAY"]
[null,"  Security Officer",null,0,0]
[null,"  18:00 TO 06:00 MONDAY TO SUNDAY"]
[null,"  Security Officer",null,1,1]
[null,"  Handheld Metal Detector(s)",{"$nulls":4},3]
[]
["2.1.11","TARKASTAD"]
[null,"  06:00 TO 18:00 MONDAY TO FRIDAY"]
["Area 3","  Security Officer",null,1,2,null,null,1]
[null,"  06:00 TO 18:00 SATURDAY AND SUNDAY/PUBLIC HOLIDAY"]
[null,"  Security Officer",null,0,0]
[null,"  18:00 TO 06:00 MONDAY TO SUNDAY"]
[null,"  Security Officer",null,1,1]
[null,"  Handheld Metal Detector(s)",{"$nulls":4},3]
[]
["2.1.12","BURGERSDORP"]
[null,"  06:00 TO 18:00 MONDAY TO FRIDAY"]
["Area 3","  Security Officer",null,1,2]
[null,"  06:00 TO 18:00 SATURDAY AND SUNDAY/PUBLIC HOLIDAY"]
[null,"  Security Officer",null,0,0]
[null,"  18:00 TO 06:00 MONDAY TO SUNDAY"]
[null,"  Security Officer",null,1,1]
[null,"  Handheld Metal Detector(s)",{"$nulls":4},3]
[]
["2.1.13","LADY GREY "]
[null,"  06:00 TO 18:00 MONDAY TO FRIDAY"]
["Area 3","  Security Officer",null,1,2]
[null,"  06:00 TO 18:00 SATURDAY AND SUNDAY/PUBLIC HOLIDAY"]
[null,"  Security Officer",null,0,0]
[null,"  18:00 TO 06:00 MONDAY TO SUNDAY"]
[null,"  Security Officer",null,1,1]
[null,"  Handheld Metal Detector(s)",{"$nulls":4},3]
[]
["2.1.14","STEYNSBURG"]
[null,"  06:00 TO 18:00 MONDAY TO FRIDAY"]
["Area 3","  Security Officer",null,1,2]
[null,"  06:00 TO 18:00 SATURDAY AND SUNDAY/PUBLIC HOLIDAY"]
[null,"  Security Officer",null,0,0]
[null,"  18:00 TO 06:00 MONDAY TO SUNDAY"]
[null,"  Security Officer",null,1,1]
[null,"  Handheld Metal Detector(s)",{"$nulls":4},3]
[]
["2.1.15","HOFMEYER"]
[null,"  06:00 TO 18:00 MONDAY TO FRIDAY"]
["Area 3","  Security Officer",null,1,2]
[null,"  06:00 TO 18:00 SATURDAY AND SUNDAY/PUBLIC HOLIDAY"]
[null,"  Security Officer",null,0,0]
[null,"  18:00 TO 06:00 MONDAY TO SUNDAY"]
[null,"  Security Officer",null,1,1]
[null,"  Handheld Metal Detector(s)",{"$nulls":4},3]
[]
["2.1.16","STREKSTROOM"]
[null,"  06:00 TO 18:00 MONDAY TO FRIDAY"]
["Area 3","  Security Officer",null,1,2]
[null,"  06:00 TO 18:00 SATURDAY AND SUNDAY/PUBLIC HOLIDAY"]
[null,"  Security Officer",null,0,0]
[null,"  18:00 TO 06:00 MONDAY TO SUNDAY"]
[null,"  Security Officer",null,1,1]
[null,"  Handheld Metal Detector(s)",{"$nulls":4},3]
[]
["2.1.17","CALA"]
[null,"  06:00 TO 18:00 MONDAY TO FRIDAY"]
["Area 3","  Security Officer",null,1,2,null,null,1]
[null,"  06:00 TO 18:00 SATURDAY AND SUNDAY/PUBLIC HOLIDAY"]
[null,"  Security Officer",null,0,0]
[null,"  18:00 TO 06:00 MONDAY TO SUNDAY"]
[null,"  Security Officer",null,1,1]
[null,"  Handheld Metal Detector(s)",{"$nulls":4},3]
[]
["2.1.18","STERKSPRUIT"]
[null,"  06:00 TO 18:00 MONDAY TO FRIDAY"]
["Area 3","  Security Officer",null,1,2,null,null,2]
[null,"  06:00 TO 18:00 SATURDAY AND SUNDAY/PUBLIC HOLIDAY"]
[null,"  Security Officer",null,0,0]
[null,"  18:00 TO 06:00 MONDAY TO SUNDAY"]
[null,"  Security Officer",null,1,1]
[null,"  Handheld Metal Detector(s)",{"$nulls":4},3]
[]
["2.1.19","ALIWAL NORTH"]
[null,"  06:00 TO 18:00 MONDAY TO FRIDAY"]
["Area 3","  Security Officer",null,1,4,null,null,2]
[null,"  06:00 TO 18:00 SATURDAY AND SUNDAY/PUBLIC HOLIDAY"]
[null,"  Security Officer",null,0,0]
[null,"  18:00 TO 06:00 MONDAY TO SUNDAY"]
[null,"  Security Officer",null,1,1]
[null,"  Handheld Metal Detector(s)",{"$nulls":4},3]
[]
["2.1.20","BARKLEY EAST"]
[null,"  06:00 TO 18:00 MONDAY TO FRIDAY"]
["Area 3","  Security Officer",null,1,2,null,null,1]
[null,"  06:00 TO 18:00 SATURDAY AND SUNDAY/PUBLIC HOLIDAY"]
[null,"  Security Officer",null,0,0]
[null,"  18:00 TO 06:00 MONDAY TO SUNDAY"]
[null,"  Security Officer",null,1,1]
[null,"  Handheld Metal Detector(s)",{"$nulls":4},3]
[]
["2.1.21","COFIMVABA"]
[null,"  06:00 TO 18:00 MONDAY TO FRIDAY"]
["Area 3","  Security Officer",null,1,2,null,null,1]
[null,"  06:00 TO 18:00 SATURDAY AND SUNDAY/PUBLIC HOLIDAY"]
[null,"  Security Officer",null,0,0]
[null,"  18:00 TO 06:00 MONDAY TO SUNDAY"]
[null,"  Security Officer",null,1,1]
[null,"  Handheld Metal Detector(s)",{"$nulls":4},3]
[]
["2.1.22","DORDRECHT"]
[null,"  06:00 TO 18:00 MONDAY TO FRIDAY"]
["Area 3","  Security Officer",null,1,3,null,null,2]
[null,"  06:00 TO 18:00 SATURDAY AND SUNDAY/PUBLIC HOLIDAY"]
[null,"  Security Officer",null,0,0]
[null,"  18:00 TO 06:00 MONDAY TO SUNDAY"]
[null,"  Security Officer",null,1,1]
[null,"  Handheld Metal Detector(s)",{"$nulls":4},3]
[]
["2.1.23","INDWE "]
[null,"  06:00 TO 18:00 MONDAY TO FRIDAY"]
["Area 3","  Security Officer",null,1,2]
[null,"  06:00 TO 18:00 SATURDAY AND SUNDAY/PUBLIC HOLIDAY"]
[null,"  Security Officer",null,0,0]
[null,"  18:00 TO 06:00 MONDAY TO SUNDAY"]
[null,"  Security Officer",null,1,1]
[null,"  Handheld Metal Detector(s)",{"$nulls":4},3]
[]
["2.1.24","LADY FRERE"]
[null,"  06:00 TO 18:00 MONDAY TO FRIDAY"]
["Area 3","  Security Officer",null,1,4,null,null,1]
[null,"  06:00 TO 18:00 SATURDAY AND SUNDAY/PUBLIC HOLIDAY"]
[null,"  Security Officer",null,0,0]
[null,"  18:00 TO 06:00 MONDAY TO SUNDAY"]
[null,"  Security Officer",null,1,1]
[null,"  Handheld Metal Detector(s)                                                              Guards to be posted at Periodical Court Bholotwa once a week",{"$nulls":4},3]
[]
["2.1.25","BUTTERWORTH"]
[null,"  06:00 TO 18:00 MONDAY TO FRIDAY"]
["Area 3","  Security Officer",null,1,3,null,null,2]
[null,"  06:00 TO 18:00 SATURDAY AND SUNDAY/PUBLIC HOLIDAY"]
[null,"  Security Officer",null,0,0]
[null,"  18:00 TO 06:00 MONDAY TO SUNDAY"]
[null,"  Security Officer",null,1,1]
[null,"  Handheld Metal Detector(s)",{"$nulls":4},3]
[]
["2.1.26","NGQAMAKHWE"]
[null,"  06:00 TO 18:00 MONDAY TO FRIDAY"]
["Area 3","  Security Officer",null,1,2,null,null,1]
[null,"  06:00 TO 18:00 SATURDAY AND SUNDAY/PUBLIC HOLIDAY"]
[null,"  Security Officer",null,0,0]
[null,"  18:00 TO 06:00 MONDAY TO SUNDAY"]
[null,"  Security Officer",null,1,1]
[null,"  Handheld Metal Detector(s)",{"$nulls":4},3]
[]
["2.1.27","TSOMO"]
[null,"  06:00 TO 18:00 MONDAY TO FRIDAY"]
["Area 3","  Security Officer",null,1,2]
[null,"  06:00 TO 18:00 SATURDAY AND SUNDAY/PUBLIC HOLIDAY"]
[null,"  Security Officer",null,0,0]
[null,"  18:00 TO 06:00 MONDAY TO SUNDAY"]
[null,"  Security Officer",null,1,1]
[null,"  Handheld Metal Detector(s)",{"$nulls":4},3]
[]
["2.1.28","WILLOWVALE"]
[null,"  06:00 TO 18:00 MONDAY TO FRIDAY"]
["Area 3","  Security Officer",null,1,2,null,null,1]
[null,"  06:00 TO 18:00 SATURDAY AND SUNDAY/PUBLIC HOLIDAY"]
[null,"  Security Officer",null,0,0]
[null,"  18:00 TO 06:00 MONDAY TO SUNDAY"]
[null,"  Security Officer",null,1,1]
[null,"  Handheld Metal Detector(s)",{"$nulls":4},3]
[]
["2.1.29","DUTYWA"]
[null,"  06:00 TO 18:00 MONDAY TO FRIDAY"]
["Area 3","  Security Officer",null,1,2,null,null,1]
[null,"  06:00 TO 18:00 SATURDAY AND SUNDAY/PUBLIC HOLIDAY"]
[null,"  Security Officer",null,0,0]
[null,"  18:00 TO 06:00 MONDAY TO SUNDAY"]
[null,"  Security Officer",null,1,1]
[null,"  Handheld Metal Detector(s)"]
[]
["2.1.30","CENTANI"]
[null,"  06:00 TO 18:00 MONDAY TO FRIDAY"]
["Area 3","  Security Officer",null,1,2,null,null,1]
[null,"  06:00 TO 18:00 SATURDAY AND SUNDAY/PUBLIC HOLIDAY"]
[null,"  Security Officer",null,0,0]
[null,"  18:00 TO 06:00 MONDAY TO SUNDAY"]
[null,"  Security Officer",null,1,1]
[null,"  Handheld Metal Detector(s)",{"$nulls":4},3]
[]
["2.1.31","MOUNT FRERE"]
[null,"  06:00 TO 18:00 MONDAY TO FRIDAY"]
["Area 3","  Security Officer",null,1,3,null,null,1]
[null,"  06:00 TO 18:00 SATURDAY AND SUNDAY/PUBLIC HOLIDAY"]
[null,"  Security Officer",null,0,0]
[null,"  18:00 TO 06:00 MONDAY TO SUNDAY"]
[null,"  Security Officer",null,1,1]
[null,"  Handheld Metal Detector(s)",{"$nulls":4},3]
[]
["2.1.32","PORT ST JOHNS"]
[null,"  06:00 TO 18:00 MONDAY TO FRIDAY"]
["Area 3","  Security Officer",null,1,3]
[null,"  06:00 TO 18:00 SATURDAY AND SUNDAY/PUBLIC HOLIDAY"]
[null,"  Security Officer",null,0,0]
[null,"  18:00 TO 06:00 MONDAY TO SUNDAY"]
[null,"  Security Officer",null,1,1]
[null,"  Handheld Metal Detector(s)",{"$nulls":4},3]
[]
["2.1.33","TABANKULU"]
[null,"  06:00 TO 18:00 MONDAY TO FRIDAY"]
["Area 3","  Security Officer",null,1,3]
[null,"  06:00 TO 18:00 SATURDAY AND SUNDAY/PUBLIC HOLIDAY"]
[null,"  Security Officer",null,0,0]
[null,"  18:00 TO 06:00 MONDAY TO SUNDAY"]
[null,"  Security Officer",null,1,1]
[null,"  Handheld Metal Detector(s)",{"$nulls":4},3]
[]
["2.1.34","FLAGSTAFF"]
[null,"  06:00 TO 18:00 MONDAY TO FRIDAY"]
["Area 3","  Security Officer",null,1,3]
[null,"  06:00 TO 18:00 SATURDAY AND SUNDAY/PUBLIC HOLIDAY"]
[null,"  Security Officer",null,0,0]
[null,"  18:00 TO 06:00 MONDAY TO SUNDAY"]
[null,"  Security Officer",null,1,1]
[null,"  Handheld Metal Detector(s)",{"$nulls":4},3]
[]
["2.1.35","MOUNT AYLIFF"]
[null,"  06:00 TO 18:00 MONDAY TO FRIDAY"]
["Area 3","  Security Officer",null,1,3]
[null,"  06:00 TO 18:00 SATURDAY AND SUNDAY/PUBLIC HOLIDAY"]
[null,"  Security Officer",null,0,0]
[null,"  18:00 TO 06:00 MONDAY TO SUNDAY"]
[null,"  Security Officer",null,1,1]
[null,"  Handheld Metal Detector(s)"]
[]
["2.1.36","MALUTI"]
[null,"  06:00 TO 18:00 MONDAY TO FRIDAY"]
["Area 3","  Security Officer",null,1,3,null,null,2]
[null,"  06:00 TO 18:00 SATURDAY AND SUNDAY/PUBLIC HOLIDAY"]
[null,"  Security Officer",null,0,0]
[null,"  18:00 TO 06:00 MONDAY TO SUNDAY"]
[null,"  Security Officer",null,1,1]
[null,"  Handheld Metal Detector(s)",{"$nulls":4},3]
[]
["2.1.37","BIZANA"]
[null,"  06:00 TO 18:00 MONDAY TO FRIDAY"]
["Area 3","  Security Officer",null,1,3]
[null,"  06:00 TO 18:00 SATURDAY AND SUNDAY/PUBLIC HOLIDAY"]
[null,"  Security Officer",null,0,0]
[null,"  18:00 TO 06:00 MONDAY TO SUNDAY"]
[null,"  Security Officer",null,1,1]
[null,"  Handheld Metal Detector(s)",{"$nulls":4},3]
[]
["2.1.38","MOUNT FLETCHER"]
[null,"  06:00 TO 18:00 MONDAY TO FRIDAY"]
["Area 3","  Security Officer",null,1,3,null,null,1]
[null,"  06:00 TO 18:00 SATURDAY AND SUNDAY/PUBLIC HOLIDAY"]
[null,"  Security Officer",null,0,0]
[null,"  18:00 TO 06:00 MONDAY TO SUNDAY"]
[null,"  Security Officer",null,1,1]
[null,"  Handheld Metal Detector(s)",{"$nulls":4},3]
[]
["2.1.39","ELLIOTDALE"]
[null,"  06:00 TO 18:00 MONDAY TO FRIDAY"]
["Area 3","  Security Officer",null,1,2]
[null,"  06:00 TO 18:00 SATURDAY AND SUNDAY/PUBLIC HOLIDAY"]
[null,"  Security Officer",null,0,0]
[null,"  18:00 TO 06:00 MONDAY TO SUNDAY"]
[null,"  Security Officer",null,1,1]
[null,"  Handheld Metal Detector(s)",{"$nulls":4},3]
[]
["2.1.40","ELLIOT"]
[null,"  06:00 TO 18:00 MONDAY TO FRIDAY"]
["Area 3","  Security Officer",null,1,3]
[null,"  06:00 TO 18:00 SATURDAY AND SUNDAY/PUBLIC HOLIDAY"]
[null,"  Security Officer",null,0,0]
[null,"  18:00 TO 06:00 MONDAY TO SUNDAY"]
[null,"  Security Officer",null,1,1]
[null,"  Handheld Metal Detector(s)",{"$nulls":4},3]
[]
["2.1.41","LIBODE"]
[null,"  06:00 TO 18:00 MONDAY TO FRIDAY"]
["Area 3","  Security Officer",null,1,4,null,null,1]
[null,"  06:00 TO 18:00 SATURDAY AND SUNDAY/PUBLIC HOLIDAY"]
[null,"  Security Officer",null,0,0]
[null,"  18:00 TO 06:00 MONDAY TO SUNDAY"]
[null,"  Security Officer",null,1,1]
[null,"  Handheld Metal Detector(s)                                                             Guards to be posted at Periodical Court Tina Falls once a week",{"$nulls":4},3]
[]
["2.1.42","MACLEAR"]
[null,"  06:00 TO 18:00 MONDAY TO FRIDAY"]
["Area 3","  Security Officer",null,1,5,null,null,1]
[null,"  06:00 TO 18:00 SATURDAY AND SUNDAY/PUBLIC HOLIDAY"]
[null,"  Security Officer",null,0,0]
[null,"  18:00 TO 06:00 MONDAY TO SUNDAY"]
[null,"  Security Officer",null,1,1]
[null,"  Handheld Metal Detector(s)                                                               Guards to be posted at Periodical Court Ugie once a week",{"$nulls":4},3]
[]
["2.1.43","MQANDULI "]
[null,"  06:00 TO 18:00 MONDAY TO FRIDAY"]
["Area 3","  Security Officer",null,1,3,null,null,1]
[null,"  06:00 TO 18:00 SATURDAY AND SUNDAY/PUBLIC HOLIDAY"]
[null,"  Security Officer",null,0,0]
[null,"  18:00 TO 06:00 MONDAY TO SUNDAY"]
[null,"  Security Officer",null,1,1]
[null,"  Handheld Metal Detector(s)",{"$nulls":4},3]
[]
["2.1.44","MTHATHA"]
[null,"  06:00 TO 18:00 MONDAY TO FRIDAY"]
["Area 3","  Security Officer",null,1,7,null,null,5]
[null,"  06:00 TO 18:00 SATURDAY AND SUNDAY/PUBLIC HOLIDAY"]
[null,"  Security Officer",null,0,0]
[null,"  18:00 TO 06:00 MONDAY TO SUNDAY"]
[null,"  Security Officer",null,1,1]
[null,"  Handheld Metal Detector(s)",{"$nulls":4},5]
[]
["2.1.45","ENGCOBO"]
[null,"  06:00 TO 18:00 MONDAY TO FRIDAY"]
["Area 3","  Security Officer",null,1,4,null,null,2]
[null,"  06:00 TO 18:00 SATURDAY AND SUNDAY/PUBLIC HOLIDAY"]
[null,"  Security Officer",null,0,0]
[null,"  18:00 TO 06:00 MONDAY TO SUNDAY"]
[null,"  Security Officer",null,1,1]
[null,"  Handheld Metal Detector(s)                                                                   Guards to be posted at Periodical court Dalisille once a week",{"$nulls":4},3]
[]
["2.1.46","NGQELENI"]
[null,"  06:00 TO 18:00 MONDAY TO FRIDAY"]
["Area 3","  Security Officer",null,1,3]
[null,"  06:00 TO 18:00 SATURDAY AND SUNDAY/PUBLIC HOLIDAY"]
[null,"  Security Officer",null,0,0]
[null,"  18:00 TO 06:00 MONDAY TO SUNDAY"]
[null,"  Security Officer",null,1,1]
[null,"  Handheld Metal Detector(s)",{"$nulls":4},3]
[]
["2.1.47","QUMBU"]
[null,"  06:00 TO 18:00 MONDAY TO FRIDAY"]
["Area 3","  Security Officer",null,1,3]
[null,"  06:00 TO 18:00 SATURDAY AND SUNDAY/PUBLIC HOLIDAY"]
[null,"  Security Officer",null,0,0]
[null,"  18:00 TO 06:00 MONDAY TO SUNDAY"]
[null,"  Security Officer",null,1,1]
[null,"  Handheld Metal Detector(s)",{"$nulls":4},3]
[]
["2.1.48","TSOLO"]
[null,"  06:00 TO 18:00 MONDAY TO FRIDAY"]
["Area 3","  Security Officer",null,1,3]
[null,"  06:00 TO 18:00 SATURDAY AND SUNDAY/PUBLIC HOLIDAY"]
[null,"  Security Officer",null,0,0]
[null,"  18:00 TO 06:00 MONDAY TO SUNDAY"]
[null,"  Security Officer",null,1,1]
[null,"  Handheld Metal Detector(s)",{"$nulls":4},3]
[]
["2.1.49","REGISTRAR OF HIGH COURT MTHATHA "]
[null,"  06:00 TO 18:00 MONDAY TO FRIDAY"]
["Area 3","  Security Officer",null,1,5,null,null,3]
[null,"  06:00 TO 18:00 SATURDAY AND SUNDAY/PUBLIC HOLIDAY"]
[null,"  Security Officer",null,0,0]
[null,"  18:00 TO 06:00 MONDAY TO SUNDAY"]
[null,"  Security Officer",null,1,2]
[null,"  Handheld Metal Detector(s)",{"$nulls":4},5]
[]
["2.1.50","FAMILY ADVOCATE: UMTHATHA"]
[null,"  06:00 TO 18:00 MONDAY TO FRIDAY"]
["Area 3","  Security Officer",null,1,2]
[null,"  06:00 TO 18:00 SATURDAY AND SUNDAY/PUBLIC HOLIDAY"]
[null,"  Security Officer",null,0,0]
[null,"  18:00 TO 06:00 MONDAY TO SUNDAY"]
[null,"  Security Officer",null,1,1]
[null,"  Handheld Metal Detector(s)",{"$nulls":4},3]
[]
["2.1.51","MASTER OF THE HIGH UMTHATHA"]
[null,"  06:00 TO 18:00 MONDAY TO FRIDAY"]
["Area 3","  Security Officer",null,1,3,null,null,1]
[null,"  06:00 TO 18:00 SATURDAY AND SUNDAY/PUBLIC HOLIDAY"]
[null,"  Security Officer",null,0,0]
[null,"  18:00 TO 06:00 MONDAY TO SUNDAY"]
[null,"  Security Officer",null,1,1]
[null,"  Handheld Metal Detector(s)",{"$nulls":4},3]
[]
["2.1.52","STATE ATTORNEY: UMTHATHA"]
[null,"  06:00 TO 18:00 MONDAY TO FRIDAY"]
["Area 3","  Security Officer",null,1,2]
[null,"  06:00 TO 18:00 SATURDAY AND SUNDAY/PUBLIC HOLIDAY"]
[null,"  Security Officer",null,0,0]
[null,"  18:00 TO 06:00 MONDAY TO SUNDAY"]
[null,"  Security Officer",null,1,1]
[null,"  Handheld Metal Detector(s)",{"$nulls":4},3]
[]
["2.1.53","LUSIKISIKI"]
[null,"  06:00 TO 18:00 MONDAY TO FRIDAY"]
["Area 3","  Security Officer",null,1,5]
[null,"  06:00 TO 18:00 SATURDAY AND SUNDAY/PUBLIC HOLIDAY"]
[null,"  Security Officer",null,0,0]
[null,"  18:00 TO 06:00 MONDAY TO SUNDAY"]
[null,"  Security Officer",null,1,2]
[null,"  Handheld Metal Detector(s)                                                                 Guards to be posted at Periodical court Mtontsasa once a week",{"$nulls":4},3]
[]
["2.1.54","NPA: DPP MTHATHA"]
[null,"  06:00 TO 18:00 MONDAY TO FRIDAY"]
["Area 3","  Security Officer",null,2,2,null,null,2]
[null,"  06:00 TO 18:00 SATURDAY AND SUNDAY/PUBLIC HOLIDAY"]
[null,"  Security Officer",null,0,0]
[null,"  18:00 TO 06:00 MONDAY TO SUNDAY"]
[null,"  Security Officer",null,1,2]
[null,"  Handheld Metal Detector(s)",{"$nulls":4},3]
[]
["2.1.55","BALFOUR (SEYMOUR)"]
[null,"  06:00 TO 18:00 MONDAY TO FRIDAY"]
["Area 3","  Security Officer",null,1,2]
[null,"  06:00 TO 18:00 SATURDAY AND SUNDAY/PUBLIC HOLIDAY"]
[null,"  Security Officer",null,0,0]
[null,"  18:00 TO 06:00 MONDAY TO SUNDAY"]
[null,"  Security Officer",null,1,1]
[null,"  Handheld Metal Detector(s)",{"$nulls":4},3]
[]
["2.1.56","NPA: ALIWAL NORTH NPA OFFICE"]
[null,"  06:00 TO 18:00 MONDAY TO FRIDAY"]
["Area 3","  Security Officer",null,1,2]
[null,"  06:00 TO 18:00 SATURDAY AND SUNDAY/PUBLIC HOLIDAY"]
[null,"  Security Officer",null,0,0]
[null,"  18:00 TO 06:00 MONDAY TO SUNDAY"]
[null,"  Security Officer",null,1,1]
[null,"  Handheld Metal Detector(s)",{"$nulls":4},2]
[]
["2.1.57","BITYI"]
[null,"  06:00 TO 18:00 MONDAY TO FRIDAY "]
["Area 3","  Security Officer",null,1,3,null,null,2]
[null,"  06:00 TO 18:00 SATURDAY AND SUNDAY/PUBLIC HOLIDAY"]
[null,"  Security Officer",null,0,0]
[null,"  18:00 TO 06:00 MONDAY TO SUNDAY"]
[null,"  Security Officer",null,1,1]
[null,"  Handheld Metal Detector(s)",{"$nulls":4},3]
[]
["2.1.58","SEYMOUR"]
[null,"  06:00 TO 18:00 MONDAY TO FRIDAY"]
["Area 3","  Security Officer",null,1,2]
[null,"  06:00 TO 18:00 SATURDAY AND SUNDAY/PUBLIC HOLIDAY"]
[null,"  Security Officer",null,0,0]
[null,"  18:00 TO 06:00 MONDAY TO SUNDAY"]
[null,"  Security Officer",null,1,1]
[null,"  Handheld Metal Detector(s)",{"$nulls":4},3]
[]
["2.1.59","FORT BEAUFORT"]
[null,"  06:00 TO 18:00 MONDAY TO FRIDAY"]
["Area 3","  Security Officer",null,1,3]
[null,"  06:00 TO 18:00 SATURDAY AND SUNDAY/PUBLIC HOLIDAY"]
[null,"  Security Officer",null,0,0]
[null,"  18:00 TO 06:00 MONDAY TO SUNDAY"]
[null,"  Security Officer",null,1,1]
[null,"  Handheld Metal Detector(s)",{"$nulls":4},2]
[]
["2.1.60"," ALICE"]
[null,"  06:00 TO 18:00 MONDAY TO FRIDAY"]
["Area 3","  Security Officer",null,1,3]
[null,"  06:00 TO 18:00 SATURDAY AND SUNDAY/PUBLIC HOLIDAY"]
[null,"  Security Officer",null,0,0]
[null,"  18:00 TO 06:00 MONDAY TO SUNDAY"]
[null,"  Security Officer",null,1,1]
[null,"  Handheld Metal Detector(s)",{"$nulls":4},3]
[]
["2.1.61","UITENHAGE"]
[null,"  06:00 TO 18:00 MONDAY TO FRIDAY"]
["Area 1","  Security Officer",null,1,4,null,null,4]
[null,"  06:00 TO 18:00 SATURDAY AND SUNDAY/PUBLIC HOLIDAY"]
[null,"  Security Officer",null,0,0]
[null,"  18:00 TO 06:00 MONDAY TO SUNDAY"]
[null,"  Security Officer",null,1,1]
[null,"  Handheld Metal Detector(s)",{"$nulls":4},5]
[]
["2.1.62","NEW LAW COURT PORT ELIZABEH "]
[null,"  06:00 TO 18:00 MONDAY TO FRIDAY"]
["Area 1","  Security Officer",null,1,8,null,null,6]
[null,"  06:00 TO 18:00 SATURDAY AND SUNDAY/PUBLIC HOLIDAY"]
[null,"  Security Officer",null,0,0]
[null,"  18:00 TO 06:00 MONDAY TO SUNDAY"]
[null,"  Security Officer",null,1,1]
[null,"  Handheld Metal Detector(s)",{"$nulls":4},5]
[]
["2.1.63","GRAHAMSTOWN"]
[null,"  06:00 TO 18:00 MONDAY TO FRIDAY"]
["Area 3","  Security Officer",null,1,4,null,null,2]
[null,"  06:00 TO 18:00 SATURDAY AND SUNDAY/PUBLIC HOLIDAY"]
[null,"  Security Officer",null,0,0]
[null,"  18:00 TO 06:00 MONDAY TO SUNDAY"]
[null,"  Security Officer",null,1,1]
[null,"  Handheld Metal Detector(s)",{"$nulls":4},3]
[]
["2.1.64","REGISTRAR PORT ELIZABETH"]
[null,"  06:00 TO 18:00 MONDAY TO FRIDAY"]
["Area 1","  Security Officer",null,1,4,null,null,3]
[null,"  06:00 TO 18:00 SATURDAY AND SUNDAY/PUBLIC HOLIDAY"]
[null,"  Security Officer",null,0,0]
[null,"  18:00 TO 06:00 MONDAY TO SUNDAY"]
[null,"  Security Officer",null,1,2,null,5]
[null,"  Handheld Metal Detector(s)"]
[]
["2.1.65","MASTER GRAHAMSTOWN"]
[null,"  06:00 TO 18:00 MONDAY TO FRIDAY"]
["Area 3","  Security Officer",null,1,3,null,null,1]
[null,"  06:00 TO 18:00 SATURDAY AND SUNDAY/PUBLIC HOLIDAY"]
[null,"  Security Officer",null,0,0]
[null,"  18:00 TO 06:00 MONDAY TO SUNDAY"]
[null,"  Security Officer",null,1,1]
[null,"  Handheld Metal Detector(s)",{"$nulls":4},3]
[]
["2.1.66","NEW BRIGHTON"]
[null,"  06:00 TO 18:00 MONDAY TO FRIDAY"]
["Area 1","  Security Officer",null,1,6,null,null,3]
[null,"  06:00 TO 18:00 SATURDAY AND SUNDAY/PUBLIC HOLIDAY"]
[null,"  Security Officer",null,0,0]
[null,"  18:00 TO 06:00 MONDAY TO SUNDAY"]
[null,"  Security Officer",null,1,1]
[null,"  Handheld Metal Detector(s)",{"$nulls":4},5]
[]
["2.1.67","ABERDEEN"]
[null,"  06:00 TO 18:00 MONDAY TO FRIDAY"]
["Area 3","  Security Officer",null,1,2]
[null,"  06:00 TO 18:00 SATURDAY AND SUNDAY/PUBLIC HOLIDAY"]
[null,"  Security Officer",null,0,0]
[null,"  18:00 TO 06:00 MONDAY TO SUNDAY"]
[null,"  Security Officer",null,1,1]
[null,"  Handheld Metal Detector(s)",{"$nulls":4},3]
[]
["2.1.68","FAMILY ADVOCATE PORT ELIZABEH"]
[null,"  06:00 TO 18:00 MONDAY TO FRIDAY"]
["Area 1","  Security Officer",null,1,2,null,null,1]
[null,"  06:00 TO 18:00 SATURDAY AND SUNDAY/PUBLIC HOLIDAY"]
[null,"  Security Officer",null,0,0]
[null,"  18:00 TO 06:00 MONDAY TO SUNDAY"]
[null,"  Security Officer",null,1,1]
[null,"  Handheld Metal Detector(s)",{"$nulls":4},3]
[]
["2.1.69","MOTHERWELL"]
[null,"  06:00 TO 18:00 MONDAY TO FRIDAY"]
["Area 1","  Security Officer",null,1,6,null,null,4]
[null,"  06:00 TO 18:00 SATURDAY AND SUNDAY/PUBLIC HOLIDAY"]
[null,"  Security Officer",null,0,0]
[null,"  18:00 TO 06:00 MONDAY TO SUNDAY"]
[null,"  Security Officer",null,1,1]
[null,"  Handheld Metal Detector(s)",{"$nulls":4},5]
[]
["2.1.70","GELVANDALE"]
[null,"  06:00 TO 18:00 MONDAY TO FRIDAY"]
["Area 3","  Security Officer",null,2,4,null,null,3]
[null,"  06:00 TO 18:00 SATURDAY AND SUNDAY/PUBLIC HOLIDAY"]
[null,"  Security Officer",null,0,0]
[null,"  18:00 TO 06:00 MONDAY TO SUNDAY"]
[null,"  Security Officer",null,2,2]
[null,"  Handheld Metal Detector(s)",{"$nulls":4},4]
[]
["2.1.71","LABOUR COURT PORT ELIZABETH"]
[null,"  06:00 TO 18:00 MONDAY TO FRIDAY"]
["Area 1","  Security Officer",null,1,3]
[null,"  06:00 TO 18:00 SATURDAY AND SUNDAY/PUBLIC HOLIDAY"]
[null,"  Security Officer",null,0,0]
[null,"  18:00 TO 06:00 MONDAY TO SUNDAY"]
[null,"  Security Officer",null,1,1]
[null,"  Handheld Metal Detector(s)",{"$nulls":4},3]
[]
["2.1.72","MIDDLEBURG (EC)"]
[null,"  06:00 TO 18:00 MONDAY TO FRIDAY"]
["Area 3","  Security Officer",null,1,3]
[null,"  06:00 TO 18:00 SATURDAY AND SUNDAY/PUBLIC HOLIDAY"]
[null,"  Security Officer",null,0,0]
[null,"  18:00 TO 06:00 MONDAY TO SUNDAY"]
[null,"  Security Officer",null,1,1]
[null,"  Handheld Metal Detector(s)",{"$nulls":4},3]
[]
["2.1.73","ADELAIDE"]
[null,"  06:00 TO 18:00 MONDAY TO FRIDAY"]
["Area 3","  Security Officer",null,1,2]
[null,"  06:00 TO 18:00 SATURDAY AND SUNDAY/PUBLIC HOLIDAY"]
[null,"  Security Officer",null,0,0]
[null,"  18:00 TO 06:00 MONDAY TO SUNDAY"]
[null,"  Security Officer",null,1,1]
[null,"  Handheld Metal Detector(s)",{"$nulls":4},3]
[]
["2.1.74","KWANOBUHLE"]
[null,"  06:00 TO 18:00 MONDAY TO FRIDAY"]
["Area 1","  Security Officer",null,1,3]
[null,"  06:00 TO 18:00 SATURDAY AND SUNDAY/PUBLIC HOLIDAY"]
[null,"  Security Officer",null,0,0]
[null,"  18:00 TO 06:00 MONDAY TO SUNDAY"]
[null,"  Security Officer",null,1,1]
[null,"  Handheld Metal Detector(s)",{"$nulls":4},3]
[]
["2.1.75","PEDDIE"]
[null,"  06:00 TO 18:00 MONDAY TO FRIDAY"]
["Area 3","  Security Officer",null,1,6,null,null,3]
[null,"  06:00 TO 18:00 SATURDAY AND SUNDAY/PUBLIC HOLIDAY"]
[null,"  Security Officer",null,0,0]
[null,"  18:00 TO 06:00 MONDAY TO SUNDAY"]
[null,"  Security Officer",null,1,1]
[null,"  Handheld Metal Detector(s)",{"$nulls":4},6]
[]
["2.1.76","ALEXANDRIA"]
[null,"  06:00 TO 18:00 MONDAY TO FRIDAY"]
["Area 3","  Security Officer",null,1,2]
[null,"  06:00 TO 18:00 SATURDAY AND SUNDAY/PUBLIC HOLIDAY"]
[null,"  Security Officer",null,0,0]
[null,"  18:00 TO 06:00 MONDAY TO SUNDAY"]
[null,"  Security Officer",null,1,1]
[null,"  Handheld Metal Detector(s)",{"$nulls":4},3]
[]
["2.1.77","MASTER HIGH COURT: PORT ELIZABETH"]
[null,"  06:00 TO 18:00 MONDAY TO FRIDAY"]
["Area 1","  Security Officer",null,1,3]
[null,"  06:00 TO 18:00 SATURDAY AND SUNDAY/PUBLIC HOLIDAY"]
[null,"  Security Officer",null,0,0]
[null,"  18:00 TO 06:00 MONDAY TO SUNDAY"]
[null,"  Security Officer",null,1,1]
[null,"  Handheld Metal Detector(s)",{"$nulls":4},3]
[]
["2.1.78","GRAAFF REINET"]
[null,"  06:00 TO 18:00 MONDAY TO FRIDAY"]
["Area 3","  Security Officer",null,1,4,null,null,2]
[null,"  06:00 TO 18:00 SATURDAY AND SUNDAY/PUBLIC HOLIDAY"]
[null,"  Security Officer",null,0,0]
[null,"  18:00 TO 06:00 MONDAY TO SUNDAY"]
[null,"  Security Officer",null,1,1]
[null,"  Handheld Metal Detector(s)",{"$nulls":4},3]
[]
["2.1.79","PORT ALFRED"]
[null,"  06:00 TO 18:00 MONDAY TO FRIDAY"]
["Area 3","  Security Officer",null,1,3,null,null,2]
[null,"  06:00 TO 18:00 SATURDAY AND SUNDAY/PUBLIC HOLIDAY"]
[null,"  Security Officer",null,0,0]
[null,"  18:00 TO 06:00 MONDAY TO SUNDAY"]
[null,"  Security Officer",null,1,1]
[null,"  Handheld Metal Detector(s)",{"$nulls":4},3]
[]
["2.1.80","WILLOWMORE"]
[null,"  06:00 TO 18:00 MONDAY TO FRIDAY"]
["Area 3","  Security Officer",null,1,2]
[null,"  06:00 TO 18:00 SATURDAY AND SUNDAY/PUBLIC HOLIDAY"]
[null,"  Security Officer",null,0,0]
[null,"  18:00 TO 06:00 MONDAY TO SUNDAY"]
[null,"  Security Officer",null,1,1]
[null,"  Handheld Metal Detector(s)",{"$nulls":4},3]
[]
["2.1.81","BEDFORD"]
[null,"  06:00 TO 18:00 MONDAY TO FRIDAY"]
["Area 3","  Security Officer",null,1,3]
[null,"  06:00 TO 18:00 SATURDAY AND SUNDAY/PUBLIC HOLIDAY"]
[null,"  Security Officer",null,0,0]
[null,"  18:00 TO 06:00 MONDAY TO SUNDAY"]
[null,"  Security Officer",null,1,1]
[null,"  Handheld Metal Detector(s)",{"$nulls":4},3]
[]
["2.1.82","HUMANSDORP"]
[null,"  06:00 TO 18:00 MONDAY TO FRIDAY"]
["Area 3","  Security Officer",null,1,8,null,null,6]
[null,"  06:00 TO 18:00 SATURDAY AND SUNDAY/PUBLIC HOLIDAY"]
[null,"  Security Officer",null,0,0]
[null,"  18:00 TO 06:00 MONDAY TO SUNDAY"]
[null,"  Security Officer",null,1,1]
[null,"  Handheld Metal Detector(s)                                                                Guards to be posted at Periodical Court Storms river and Kareedouw once a week",{"$nulls":4},4]
[]
["2.1.83","KIRKWOOD"]
[null,"  06:00 TO 18:00 MONDAY TO FRIDAY"]
["Area 3","  Security Officer",null,1,3]
[null,"  06:00 TO 18:00 SATURDAY AND SUNDAY/PUBLIC HOLIDAY"]
[null,"  Security Officer",null,0,0]
[null,"  18:00 TO 06:00 MONDAY TO SUNDAY"]
[null,"  Security Officer",null,1,1]
[null,"  Handheld Metal Detector(s)",{"$nulls":4},3]
[]
["2.1.84","SOMERSET EAST"]
[null,"  06:00 TO 18:00 MONDAY TO FRIDAY"]
["Area 3","  Security Officer",null,1,3]
[null,"  06:00 TO 18:00 SATURDAY AND SUNDAY/PUBLIC HOLIDAY"]
[null,"  Security Officer",null,0,0]
[null,"  18:00 TO 06:00 MONDAY TO SUNDAY"]
[null,"  Security Officer",null,1,1]
[null,"  Handheld Metal Detector(s)",{"$nulls":4},3]
[]
["2.1.85","JANSENVIILLE"]
[null,"  06:00 TO 18:00 MONDAY TO FRIDAY"]
["Area 3","  Security Officer",null,1,2]
[null,"  06:00 TO 18:00 SATURDAY AND SUNDAY/PUBLIC HOLIDAY"]
[null,"  Security Officer",null,0,0]
[null,"  18:00 TO 06:00 MONDAY TO SUNDAY"]
[null,"  Security Officer",null,1,1]
[null,"  Handheld Metal Detector(s)",{"$nulls":4},3]
[]
["2.1.86","PEARSTON"]
[null,"  06:00 TO 18:00 MONDAY TO FRIDAY"]
["Area 3","  Security Officer",null,1,3]
[null,"  06:00 TO 18:00 SATURDAY AND SUNDAY/PUBLIC HOLIDAY"]
[null,"  Security Officer",null,0,0]
[null,"  18:00 TO 06:00 MONDAY TO SUNDAY"]
[null,"  Security Officer",null,1,1]
[null,"  Handheld Metal Detector(s)",{"$nulls":4},3]
[]
["2.1.87","JOUBERTINA"]
[null,"  06:00 TO 18:00 MONDAY TO FRIDAY"]
["Area 3","  Security Officer",null,1,3,null,null,1]
[null,"  06:00 TO 18:00 SATURDAY AND SUNDAY/PUBLIC HOLIDAY"]
[null,"  Security Officer",null,0,0]
[null,"  18:00 TO 06:00 MONDAY TO SUNDAY"]
[null,"  Security Officer",null,1,1]
[null,"  Handheld Metal Detector(s)",{"$nulls":4},3]
[]
["2.1.88","STEYTLERVILLE"]
[null,"  06:00 TO 18:00 MONDAY TO FRIDAY"]
["Area 3","  Security Officer",null,1,2]
[null,"  06:00 TO 18:00 SATURDAY AND SUNDAY/PUBLIC HOLIDAY"]
[null,"  Security Officer",null,0,0]
[null,"  18:00 TO 06:00 MONDAY TO SUNDAY"]
[null,"  Security Officer",null,1,1]
[null,"  Handheld Metal Detector(s)",{"$nulls":4},3]
[]
["2.1.89","HANKEY"]
[null,"  06:00 TO 18:00 MONDAY TO FRIDAY"]
["Area 3","  Security Officer",null,1,4,null,null,1]
[null,"  06:00 TO 18:00 SATURDAY AND SUNDAY/PUBLIC HOLIDAY"]
[null,"  Security Officer",null,0,0]
[null,"  18:00 TO 06:00 MONDAY TO SUNDAY"]
[null,"  Security Officer",null,1,1]
[null,"  Handheld Metal Detector(s)                                                                   Guards to be posted at Periodical Court Patensie once a week",{"$nulls":4},3]
[]
["2.1.90","REGISTRAR OF THE HIGH GRAHAMSTOWN"]
[null,"  06:00 TO 18:00 MONDAY TO FRIDAY"]
["Area 3","  Security Officer",null,1,5,null,null,2]
[null,"  06:00 TO 18:00 SATURDAY AND SUNDAY/PUBLIC HOLIDAY"]
[null,"  Security Officer",null,0,0]
[null,"  18:00 TO 06:00 MONDAY TO SUNDAY"]
[null,"  Security Officer",null,1,1]
[null,"  Handheld Metal Detector(s)",{"$nulls":4},5]
[]
["2.1.91","ALEXANDRIA: BRANCH COURT, KENTON ON SEA"]
[null,"  06:00 TO 18:00 MONDAY TO FRIDAY"]
["Area 3","  Security Officer",null,1,2]
[null,"  06:00 TO 18:00 SATURDAY AND SUNDAY/PUBLIC HOLIDAY"]
[null,"  Security Officer",null,0,0]
[null,"  18:00 TO 06:00 MONDAY TO SUNDAY"]
[null,"  Security Officer",null,1,1]
[null,"  Handheld Metal Detector(s)",{"$nulls":4},3]
[]
["2.1.92","ALEXANDRIA: BRANCH COURT, PATERSON"]
[null,"  06:00 TO 18:00 MONDAY TO FRIDAY"]
["Area 3","  Security Officer",null,1,2]
[null,"  06:00 TO 18:00 SATURDAY AND SUNDAY/PUBLIC HOLIDAY"]
[null,"  Security Officer",null,0,0]
[null,"  18:00 TO 06:00 MONDAY TO SUNDAY"]
[null,"  Security Officer",null,1,1]
[null,"  Handheld Metal Detector(s)",{"$nulls":4},3]
[]
["2.1.93","KIRKWOOD: BRANCH COURT, ADDO"]
[null,"  06:00 TO 18:00 MONDAY TO FRIDAY"]
["Area 3","  Security Officer",null,1,2]
[null,"  06:00 TO 18:00 SATURDAY AND SUNDAY/PUBLIC HOLIDAY"]
[null,"  Security Officer",null,0,0]
[null,"  18:00 TO 06:00 MONDAY TO SUNDAY"]
[null,"  Security Officer",null,1,1]
[null,"  Handheld Metal Detector(s)",{"$nulls":4},3]
[]
["2.1.94","STATE ATTORNEY: PORT ELIZABETH"]
[null,"  06:00 TO 18:00 MONDAY TO FRIDAY"]
["Area 1","  Security Officer",null,1,2]
[null,"  06:00 TO 18:00 SATURDAY AND SUNDAY/PUBLIC HOLIDAY"]
[null,"  Security Officer",null,0,0]
[null,"  18:00 TO 06:00 MONDAY TO SUNDAY"]
[null,"  Security Officer",null,1,1]
[null,"  Handheld Metal Detector(s)",{"$nulls":4},3]
[]
["2.1.95","SOMERSET EAST: BRANCH COURT, COOK HOUSE    "]
[null,"  06:00 TO 18:00 MONDAY TO FRIDAY"]
["Area 3","  Security Officer",null,1,2]
[null,"  06:00 TO 18:00 SATURDAY AND SUNDAY/PUBLIC HOLIDAY"]
[null,"  Security Officer",null,0,0]
[null,"  18:00 TO 06:00 MONDAY TO SUNDAY"]
[null,"  Security Officer",null,1,1]
[null,"  Handheld Metal Detector(s)",{"$nulls":4},3]
[]
["2.1.96","CRADOCK"]
[null,"  06:00 TO 18:00 MONDAY TO FRIDAY"]
["Area 3","  Security Officer",null,1,3,null,null,1]
[null,"  06:00 TO 18:00 SATURDAY AND SUNDAY/PUBLIC HOLIDAY"]
[null,"  Security Officer",null,0,0]
[null,"  18:00 TO 06:00 MONDAY TO SUNDAY"]
[null,"  Security Officer",null,1,1]
[null,"  Handheld Metal Detector(s)",{"$nulls":4},3]
[]
["2.1.97","NPA: DPP GRAHAMSTOWN"]
[null,"  06:00 TO 18:00 MONDAY TO FRIDAY"]
["Area 3","  Security Officer",null,2,3]
[null,"  06:00 TO 18:00 SATURDAY AND SUNDAY/PUBLIC HOLIDAY"]
[null,"  Security Officer",null,0,0]
[null,"  18:00 TO 06:00 MONDAY TO SUNDAY"]
[null,"  Security Officer",null,1,2]
[null,"  Handheld Metal Detector(s)",{"$nulls":4},2]
[]
["2.1.98","NPA: Special Commercial Crime Unit PORT ELIZABETH"]
[null,"  06:00 TO 18:00 MONDAY TO FRIDAY"]
["Area 1","  Security Officer",null,2,3,null,null,3]
[null,"  06:00 TO 18:00 SATURDAY AND SUNDAY/PUBLIC HOLIDAY"]
[null,"  Security Officer",null,0,0]
[null,"  18:00 TO 06:00 MONDAY TO SUNDAY"]
[null,"  Security Officer",null,1,2,null,null,2]
[null,"  Handheld Metal Detector(s)",{"$nulls":4},3]
[]
["2.1.99","NPA: GRAAF REINET"]
[null,"  06:00 TO 18:00 MONDAY TO FRIDAY"]
["Area 3","  Security Officer",null,1,1]
[null,"  06:00 TO 18:00 SATURDAY AND SUNDAY/PUBLIC HOLIDAY"]
[null,"  Security Officer",null,0,0]
[null,"  18:00 TO 06:00 MONDAY TO SUNDAY"]
[null,"  Security Officer",null,1,1]
[null,"  Handheld Metal Detector(s)",{"$nulls":4},2]
[]
["2.1.100","   SPECIALIZED COMMERCIAL CRIME COURT PORT ELIZABETH"]
[null,"  06:00 TO 18:00 MONDAY TO FRIDAY"]
["Area 1","  Security Officer",null,1,1]
[null,"  06:00 TO 18:00 SATURDAY AND SUNDAY/PUBLIC HOLIDAY"]
[null,"  Security Officer",null,0,0]
[null,"  18:00 TO 06:00 MONDAY TO SUNDAY"]
[null,"  Security Officer",null,1,1]
[null,"  Handheld Metal Detector(s)",{"$nulls":4},3]
[]
["2.1.101","GRAHAMSTOWN: BRANCH COURT, ALICEDALE"]
[null,"  06:00 TO 18:00 MONDAY TO FRIDAY"]
["Area 3","  Security Officer",null,1,2]
[null,"  06:00 TO 18:00 SATURDAY AND SUNDAY/PUBLIC HOLIDAY"]
[null,"  Security Officer",null,0,0]
[null,"  18:00 TO 06:00 MONDAY TO SUNDAY"]
[null,"  Security Officer",null,1,1]
[null,"  Handheld Metal Detector(s)",{"$nulls":4},3]
[]
["2.1.102","ALEXANDRIA (EC) BRANCH COURT, KINKELBOS"]
[null,"  06:00 TO 18:00 MONDAY TO FRIDAY"]
["Area 3","  Security Officer",null,1,1]
[null,"  06:00 TO 18:00 SATURDAY AND SUNDAY/PUBLIC HOLIDAY"]
[null,"  Security Officer",null,0,0]
[null,"  18:00 TO 06:00 MONDAY TO SUNDAY"]
[null,"  Security Officer",null,1,1]
[null,"  Handheld Metal Detector(s)",{"$nulls":4},3]
[]
["2.1.103","NPA: CRADOCK NPA OFFICE"]
[null,"  06:00 TO 18:00 MONDAY TO FRIDAY"]
["Area 3","  Security Officer",null,1,2,null,null,1]
[null,"  06:00 TO 18:00 SATURDAY AND SUNDAY/PUBLIC HOLIDAY"]
[null,"  Security Officer",null,0,0]
[null,"  18:00 TO 06:00 MONDAY TO SUNDAY"]
[null,"  Security Officer",null,1,1]
[null,"  Handheld Metal Detector(s)",{"$nulls":4},2]
[]
["2.1.104"," KING WILLIAM'S TOWN"]
[null,"  06:00 TO 18:00 MONDAY TO FRIDAY"]
["Area 3","  Security Officer",null,1,4,null,null,2]
[null,"  06:00 TO 18:00 SATURDAY AND SUNDAY/PUBLIC HOLIDAY"]
[null,"  Security Officer",null,0,0]
[null,"  18:00 TO 06:00 MONDAY TO SUNDAY"]
[null,"  Security Officer",null,1,1]
[null,"  Handheld Metal Detector(s)",{"$nulls":4},5]
[]
["2.1.105","MASTER OF THE HIGH COURT: BHISHO"]
[null,"  06:00 TO 18:00 MONDAY TO FRIDAY"]
["Area 3","  Security Officer",null,1,2]
[null,"  06:00 TO 18:00 SATURDAY AND SUNDAY/PUBLIC HOLIDAY"]
[null,"  Security Officer",null,0,0]
[null,"  18:00 TO 06:00 MONDAY TO SUNDAY"]
[null,"  Security Officer",null,1,1]
[null,"  Handheld Metal Detector(s)",{"$nulls":4},3]
[]
["2.1.106","DIVORCE COURT: KING WILLIAMS TOWN"]
[null,"  06:00 TO 18:00 MONDAY TO FRIDAY"]
["Area 3","  Security Officer",null,1,2]
[null,"  06:00 TO 18:00 SATURDAY AND SUNDAY/PUBLIC HOLIDAY"]
[null,"  Security Officer",null,0,0]
[null,"  18:00 TO 06:00 MONDAY TO SUNDAY"]
[null,"  Security Officer",null,1,1]
[null,"  Handheld Metal Detector(s)",{"$nulls":4},3]
[]
["2.1.107","ZWELITSHA"]
[null,"  06:00 TO 18:00 MONDAY TO FRIDAY"]
["Area 3","  Security Officer",null,1,5,null,null,2]
[null,"  06:00 TO 18:00 SATURDAY AND SUNDAY/PUBLIC HOLIDAY"]
[null,"  Security Officer",null,0,0]
[null,"  18:00 TO 06:00 MONDAY TO SUNDAY"]
[null,"  Security Officer",null,1,1]
[null,"  Handheld Metal Detector(s)",{"$nulls":4},5]
[]
["2.1.108","KEISKAMMAHOEK"]
[null,"  06:00 TO 18:00 MONDAY TO FRIDAY"]
["Area 3","  Security Officer",null,1,3,null,null,1]
[null,"  06:00 TO 18:00 SATURDAY AND SUNDAY/PUBLIC HOLIDAY"]
[null,"  Security Officer",null,0,0]
[null,"  18:00 TO 06:00 MONDAY TO SUNDAY"]
[null,"  Security Officer",null,1,1]
[null,"  Handheld Metal Detector(s)",{"$nulls":4},3]
[]
["2.1.109","ZWELITSHA: BRANCH COURT, DIMBAZA"]
[null,"  06:00 TO 18:00 MONDAY TO FRIDAY"]
["Area 3","  Security Officer",null,1,3,null,null,2]
[null,"  06:00 TO 18:00 SATURDAY AND SUNDAY/PUBLIC HOLIDAY"]
[null,"  Security Officer",null,0,0]
[null,"  18:00 TO 06:00 MONDAY TO SUNDAY"]
[null,"  Security Officer",null,1,1]
[null,"  Handheld Metal Detector(s)",{"$nulls":4},3]
[]
["2.1.110","KOMGA"]
[null,"  06:00 TO 18:00 MONDAY TO FRIDAY"]
["Area 3","  Security Officer",null,1,3,null,null,1]
[null,"  06:00 TO 18:00 SATURDAY AND SUNDAY/PUBLIC HOLIDAY"]
[null,"  Security Officer",null,0,0]
[null,"  18:00 TO 06:00 MONDAY TO SUNDAY"]
[null,"  Security Officer",null,1,1]
[null,"  Handheld Metal Detector(s)                                                         Guards to be posted at Periodical Court Kei Mouth once a week",{"$nulls":4},3]
[]
["2.1.111","MIDDLEDRIFT"]
[null,"  06:00 TO 18:00 MONDAY TO FRIDAY"]
["Area 3","  Security Officer",null,1,2]
[null,"  06:00 TO 18:00 SATURDAY AND SUNDAY/PUBLIC HOLIDAY"]
[null,"  Security Officer",null,0,0]
[null,"  18:00 TO 06:00 MONDAY TO SUNDAY"]
[null,"  Security Officer",null,1,1]
[null,"  Handheld Metal Detector(s)",{"$nulls":4},3]
[]
["2.1.112","HIGH COURT BHISHO"]
[null,"  06:00 TO 18:00 MONDAY TO FRIDAY"]
["Area 3","  Security Officer",null,1,7,null,null,3]
[null,"  06:00 TO 18:00 SATURDAY AND SUNDAY/PUBLIC HOLIDAY"]
[null,"  Security Officer",null,0,0]
[null,"  18:00 TO 06:00 MONDAY TO SUNDAY"]
[null,"  Security Officer",null,1,1]
[null,"  Handheld Metal Detector(s)",{"$nulls":4},3]
[]
["2.1.113","NPA: DDPP BHISHO"]
[null,"  06:00 TO 18:00 MONDAY TO FRIDAY"]
["Area 3","  Security Officer",null,1,2,null,null,1]
[null,"  06:00 TO 18:00 SATURDAY AND SUNDAY/PUBLIC HOLIDAY"]
[null,"  Security Officer",null,0,0]
[null,"  18:00 TO 06:00 MONDAY TO SUNDAY"]
[null,"  Security Officer",null,1,1,null,null,1]
[null,"  Handheld Metal Detector(s)",{"$nulls":4},2]
[]
["2.1.114","MDANTSANE"]
[null,"  06:00 TO 18:00 MONDAY TO FRIDAY"]
["Area 1","  Security Officer",null,1,6,null,null,4]
[null,"  06:00 TO 18:00 SATURDAY AND SUNDAY/PUBLIC HOLIDAY"]
[null,"  Security Officer",null,0,0]
[null,"  18:00 TO 06:00 MONDAY TO SUNDAY"]
[null,"  Security Officer",null,1,1]
[null,"  Handheld Metal Detector(s)",{"$nulls":4},5]
[]
["2.1.115","SHARED COURT SERVICE CENTRE EASTERN CAPE"]
[null,"  06:00 TO 18:00 MONDAY TO FRIDAY"]
["Area 1","  Security Officer",null,1,5]
[null,"  06:00 TO 18:00 SATURDAY AND SUNDAY/PUBLIC HOLIDAY"]
[null,"  Security Officer",null,0,0]
[null,"  18:00 TO 06:00 MONDAY TO SUNDAY"]
[null,"  Security Officer",null,1,1]
[null,"  Handheld Metal Detector(s)",{"$nulls":4},3]
[]
["2.1.116","EAST LONDON"]
[null,"  06:00 TO 18:00 MONDAY TO FRIDAY"]
["Area 1","  Security Officer",null,1,5,null,null,5]
[null,"  06:00 TO 18:00 SATURDAY AND SUNDAY/PUBLIC HOLIDAY"]
[null,"  Security Officer",null,0,0]
[null,"  18:00 TO 06:00 MONDAY TO SUNDAY"]
[null,"  Security Officer",null,1,1]
[null,"  Handheld Metal Detector(s)",{"$nulls":4},5]
[]
["2.1.117","FAMILY ADVOCATE EAST LONDON"]
[null,"  06:00 TO 18:00 MONDAY TO FRIDAY"]
["Area 1","  Security Officer",null,1,2]
[null,"  06:00 TO 18:00 SATURDAY AND SUNDAY/PUBLIC HOLIDAY"]
[null,"  Security Officer",null,0,0]
[null,"  18:00 TO 06:00 MONDAY TO SUNDAY"]
[null,"  Security Officer",null,1,1]
[null,"  Handheld Metal Detector(s)",{"$nulls":4},3]
[]
["2.1.118","STATE ATTORNEY EAST LONDON"]
[null,"  06:00 TO 18:00 MONDAY TO FRIDAY"]
["Area 1","  Security Officer",null,1,2]
[null,"  06:00 TO 18:00 SATURDAY AND SUNDAY/PUBLIC HOLIDAY"]
[null,"  Security Officer",null,0,0]
[null,"  18:00 TO 06:00 MONDAY TO SUNDAY"]
[null,"  Security Officer",null,1,1]
[null,"  Handheld Metal Detector(s)",{"$nulls":4},3]
[]
["2.1.119","OCJ SPECIAL TRIBUNAL/OCJ CENTRE EC REGION: EAST LONDON"]
[null,"  06:00 TO 18:00 MONDAY TO FRIDAY "]
["Area 1","  Security Officer",null,1,3]
[null,"  06:00 TO 18:00 SATURDAY AND SUNDAY/PUBLIC HOLIDAY"]
[null,"  Security Officer",null,null,0]
[null,"  18:00 TO 06:00 MONDAY TO SUNDAY"]
[null,"  Security Officer",null,null,2,null,3]
[null,"  Handheld Metal Detector(s)"]
[]
["2.1.120","NPA: DDPP EAST LONDON"]
[null,"  06:00 TO 18:00 MONDAY TO FRIDAY"]
["Area 1","  Security Officer",null,2,2,null,null,2]
[null,"  06:00 TO 18:00 SATURDAY AND SUNDAY/PUBLIC HOLIDAY"]
[null,"  Security Officer",null,0,0]
[null,"  18:00 TO 06:00 MONDAY TO SUNDAY"]
[null,"  Security Officer",null,1,1,null,null,1]
[null,"  Handheld Metal Detector(s)",{"$nulls":4},2]
[{"$nulls":3},{"$f":"SUM(D3:D1081)","v":245},{"$f":"SUM(E3:E1081)","v":493}]
[]
[{"$nulls":3},"Total",738]

{"sheet":"Gauteng","index":3,"n_rows":814,"n_cols":8,"rows_kept":814,"merged":[[0,2,0,5],[681,0,684,0],[700,0,703,0],[709,0,712,0],[718,0,721,0],[727,0,730,0],[736,0,739,0],[745,0,748,0],[754,0,757,0],[763,0,766,0],[798,0,801,0],[807,0,810,0]]}
[null,"             RFB 2021 __ GP*"]
["Item no","GAUTENG","Grade B\n","Grade C Armed\n","Grade C Unarmed \n","Control Room CCTV","Hand Held Metaldetector(s) "]
["3.1.1","REGISTRAR OF THE HIGH COURT, JOHANNESBURG"]
[null,"  06:00 TO 18:00 MONDAY TO FRIDAY"]
["Area 1","  Security Officer",null,1,15,null,null,10]
[null,"  06:00 TO 18:00 SATURDAY AND SUNDAY/PUBLIC HOLIDAY"]
[null,"  Security Officer",null,0,0]
[null,"  18:00 TO 06:00 MONDAY TO SUNDAY"]
[null,"  Security Officer",null,1,3]
[null,"  Handheld Metal Detector(s)",{"$nulls":4},5]
[]
["3.1.2","CONSTITUTIONAL COURT, BRAAMFONTEIN"]
[null,"  06:00 TO 18:00 MONDAY TO FRIDAY"]
["Area 1","  Security Officer",null,1,7]
[null,"  06:00 TO 18:00 SATURDAY AND SUNDAY/PUBLIC HOLIDAY"]
[null,"  Security Officer",null,0,0]
[null,"  18:00 TO 06:00 MONDAY TO SUNDAY"]
[null,"  Security Officer",null,1,3]
[null,"  Handheld Metal Detector(s)",{"$nulls":4},3]
[]
["3.1.3","BOKSBURG"]
[null,"  06:00 TO 18:00 MONDAY TO FRIDAY"]
["Area 1","  Security Officer",null,1,4,null,null,1]
[null,"  06:00 TO 18:00 SATURDAY AND SUNDAY/PUBLIC HOLIDAY"]
[null,"  Security Officer",null,0,0]
[null,"  18:00 TO 06:00 MONDAY TO SUNDAY"]
[null,"  Security Officer",null,1,1]
[null,"  Handheld Metal Detector(s)",{"$nulls":4},3]
[]
["3.1.4","GERMISTON"]
[null,"  06:00 TO 18:00 MONDAY TO FRIDAY"]
["Area 1","  Security Officer",null,1,5,null,null,2]
[null,"  06:00 TO 18:00 SATURDAY AND SUNDAY/PUBLIC HOLIDAY"]
[null,"  Security Officer",null,0,0]
[null,"  18:00 TO 06:00 MONDAY TO SUNDAY"]
[null,"  Security Officer",null,1,2]
[null,"  Handheld Metal Detector(s)",{"$nulls":4},3]
[]
["3.1.5","GERMISTON: BRANCH COURT, HARDACH STREET"]
[null,"  06:00 TO 18:00 MONDAY TO FRIDAY"]
["Area 1","  Security Officer",null,1,4]
[null,"  06:00 TO 18:00 SATURDAY AND SUNDAY/PUBLIC HOLIDAY"]
[null,"  Security Officer",null,0,0]
[null,"  18:00 TO 06:00 MONDAY TO SUNDAY"]
[null,"  Security Officer",null,1,1]
[null,"  Handheld Metal Detector(s)",{"$nulls":4},3]
[]
["3.1.6","JOHANNESBURG: BRANCH COURT, BRIXTON"]
[null,"  06:00 TO 18:00 MONDAY TO FRIDAY"]
["Area 1","  Security Officer",null,1,4]
[null,"  06:00 TO 18:00 SATURDAY AND SUNDAY/PUBLIC HOLIDAY"]
[null,"  Security Officer",null,0,0]
[null,"  18:00 TO 06:00 MONDAY TO SUNDAY"]
[null,"  Security Officer",null,1,1]
[null,"  Handheld Metal Detector(s)",{"$nulls":4},3]
[]
["3.1.7","JOHANNEBURG: BRANCH COURT, KLIPTOWN"]
[null,"  06:00 TO 18:00 MONDAY TO FRIDAY"]
["Area 1","  Security Officer",null,1,3]
[null,"  06:00 TO 18:00 SATURDAY AND SUNDAY/PUBLIC HOLIDAY"]
[null,"  Security Officer",null,0,0]
[null,"  18:00 TO 06:00 MONDAY TO SUNDAY"]
[null,"  Security Officer",null,1,1]
[null,"  Handheld Metal Detector(s)",{"$nulls":4},3]
[]
["3.1.8","JOHANNESBURG: ORLANDO"]
[null,"  06:00 TO 18:00 MONDAY TO FRIDAY"]
["Area 1","  Security Officer",null,1,5]
[null,"  06:00 TO 18:00 SATURDAY AND SUNDAY/PUBLIC HOLIDAY"]
[null,"  Security Officer",null,0,0]
[null,"  18:00 TO 06:00 MONDAY TO SUNDAY"]
[null,"  Security Officer",null,1,1]
[null,"  Handheld Metal Detector(s)",{"$nulls":4},3]
[]
["3.1.9","JOHANNESBURG: BRANCH COURT, SOWETO (PROTEA"]
[null,"  06:00 TO 18:00 MONDAY TO FRIDAY"]
["Area 1","  Security Officer",null,1,7,null,null,1]
[null,"  06:00 TO 18:00 SATURDAY AND SUNDAY/PUBLIC HOLIDAY"]
[null,"  Security Officer",null,0,0]
[null,"  18:00 TO 06:00 MONDAY TO SUNDAY"]
[null,"  Security Officer",null,1,1]
[null,"  Handheld Metal Detector(s)",{"$nulls":4},3]
[]
["3.1.10","JOHANNESBURG: 15 MARKET STREET"]
[null,"  06:00 TO 18:00 MONDAY TO FRIDAY"]
["Area 1","  Security Officer",null,1,3]
[null,"  06:00 TO 18:00 SATURDAY AND SUNDAY/PUBLIC HOLIDAY"]
[null,"  Security Officer",null,0,0]
[null,"  18:00 TO 06:00 MONDAY TO SUNDAY"]
[null,"  Security Officer",null,1,1]
[null,"  Handheld Metal Detector(s)",{"$nulls":4},4]
[]
["3.1.11","RANDBURG"]
[null,"  06:00 TO 18:00 MONDAY TO FRIDAY"]
["Area 1","  Security Officer",null,1,6,null,null,2]
[null,"  06:00 TO 18:00 SATURDAY AND SUNDAY/PUBLIC HOLIDAY"]
[null,"  Security Officer",null,0,0]
[null,"  18:00 TO 06:00 MONDAY TO SUNDAY"]
[null,"  Security Officer",null,1,1]
[null,"  Handheld Metal Detector(s)",{"$nulls":4},5]
[]
["3.1.12","RANDBURG: BRANCH COURT, WYNBERG/ALEXANDRIA"]
[null,"  06:00 TO 18:00 MONDAY TO FRIDAY"]
["Area 1","  Security Officer",null,1,7,null,null,1]
[null,"  06:00 TO 18:00 SATURDAY AND SUNDAY/PUBLIC HOLIDAY"]
[null,"  Security Officer",null,0,0]
[null,"  18:00 TO 06:00 MONDAY TO SUNDAY"]
[null,"  Security Officer",null,1,1]
[null,"  Handheld Metal Detector(s)",{"$nulls":4},5]
[]
["3.1.13","JOHANNESBURG"]
[null,"  06:00 TO 18:00 MONDAY TO FRIDAY"]
["Area 1","  Security Officer",null,2,15,null,null,3]
[null,"  06:00 TO 18:00 SATURDAY AND SUNDAY/PUBLIC HOLIDAY"]
[null,"  Security Officer",null,0,0]
[null,"  18:00 TO 06:00 MONDAY TO SUNDAY"]
[null,"  Security Officer",null,1,2]
[null,"  Handheld Metal Detector(s)",{"$nulls":4},5]
[]
["3.1.14","KRUGERSDORP"]
[null,"  06:00 TO 18:00 MONDAY TO FRIDAY"]
["Area 1","  Security Officer",null,1,4,null,null,1]
[null,"  06:00 TO 18:00 SATURDAY AND SUNDAY/PUBLIC HOLIDAY"]
[null,"  Security Officer",null,0,0]
[null,"  18:00 TO 06:00 MONDAY TO SUNDAY"]
[null,"  Security Officer",null,1,1]
[null,"  Handheld Metal Detector(s)",{"$nulls":4},3]
[]
["3.1.15","FAMILY COURT, BOKSBURG "]
[null,"  06:00 TO 18:00 MONDAY TO FRIDAY"]
["Area 1","  Security Officer",null,1,3]
[null,"  06:00 TO 18:00 SATURDAY AND SUNDAY/PUBLIC HOLIDAY"]
[null,"  Security Officer",null,0,0]
[null,"  18:00 TO 06:00 MONDAY TO SUNDAY"]
[null,"  Security Officer",null,1,1]
[null,"  Handheld Metal Detector(s)",{"$nulls":4},3]
[]
["3.1.16","REGISTRAR OF THE LABOUR COURT, JHB "]
[null,"  06:00 TO 18:00 MONDAY TO FRIDAY"]
["Area 1","  Security Officer",null,1,4,null,null,1]
[null,"  06:00 TO 18:00 SATURDAY AND SUNDAY/PUBLIC HOLIDAY"]
[null,"  Security Officer",null,0,0]
[null,"  18:00 TO 06:00 MONDAY TO SUNDAY"]
[null,"  Security Officer",null,1,1]
[null,"  Handheld Metal Detector(s)",{"$nulls":4},3]
[]
["3.1.17","FAMILY ADVOCATE, JOHANNESBURG"]
[null,"  06:00 TO 18:00 MONDAY TO FRIDAY"]
["Area 1","  Security Officer",null,1,3]
[null,"  06:00 TO 18:00 SATURDAY AND SUNDAY/PUBLIC HOLIDAY"]
[null,"  Security Officer",null,0,0]
[null,"  18:00 TO 06:00 MONDAY TO SUNDAY"]
[null,"  Security Officer",null,1,1]
[null,"  Handheld Metal Detector(s)",{"$nulls":4},3]
[]
["3.1.18","MASTER OF THE HIGH COURT, JOHANNESBURG"]
[null,"  06:00 TO 18:00 MONDAY TO FRIDAY"]
["Area 1","  Security Officer",null,1,6,null,null,1]
[null,"  06:00 TO 18:00 SATURDAY AND SUNDAY/PUBLIC HOLIDAY"]
[null,"  Security Officer",null,0,0]
[null,"  18:00 TO 06:00 MONDAY TO SUNDAY"]
[null,"  Security Officer",null,1,1]
[null,"  Handheld Metal Detector(s)",{"$nulls":4},5]
[]
["3.1.19","RANDFONTEIN"]
[null,"  06:00 TO 18:00 MONDAY TO FRIDAY"]
["Area 1","  Security Officer",null,1,5]
[null,"  06:00 TO 18:00 SATURDAY AND SUNDAY/PUBLIC HOLIDAY"]
[null,"  Security Officer",null,0,0]
[null,"  18:00 TO 06:00 MONDAY TO SUNDAY"]
[null,"  Security Officer",null,1,1]
[null,"  Handheld Metal Detector(s)",{"$nulls":4},3]
[]
["3.1.20","BRAKPAN, BRANCH COURT TSAKANE"]
[null,"  06:00 TO 18:00 MONDAY TO FRIDAY"]
["Area 1","  Security Officer",null,1,5]
[null,"  06:00 TO 18:00 SATURDAY AND SUNDAY/PUBLIC HOLIDAY"]
[null,"  Security Officer",null,0,0]
[null,"  18:00 TO 06:00 MONDAY TO SUNDAY"]
[null,"  Security Officer",null,1,1]
[null,"  Handheld Metal Detector(s)",{"$nulls":4},3]
[]
["3.1.21","ROODEPOORT"]
[null,"  06:00 TO 18:00 MONDAY TO FRIDAY"]
["Area 1","  Security Officer",null,1,7,null,null,2]
[null,"  06:00 TO 18:00 SATURDAY AND SUNDAY/PUBLIC HOLIDAY"]
[null,"  Security Officer",null,0,0]
[null,"  18:00 TO 06:00 MONDAY TO SUNDAY"]
[null,"  Security Officer",null,1,1]
[null,"  Handheld Metal Detector(s)",{"$nulls":4},5]
[]
["3.1.22","KRUGERSDORP: BRANCH COURT, KAGISO"]
[null,"  06:00 TO 18:00 MONDAY TO FRIDAY"]
["Area 1","  Security Officer",null,1,6,null,null,2]
[null,"  06:00 TO 18:00 SATURDAY AND SUNDAY/PUBLIC HOLIDAY"]
[null,"  Security Officer",null,0,0]
[null,"  18:00 TO 06:00 MONDAY TO SUNDAY"]
[null,"  Security Officer",null,1,1]
[null,"  Handheld Metal Detector(s)",{"$nulls":4},5]
[]
["3.1.23","JOHANNESBURG: BRANCH COURT, BOOYSEN"]
[null,"  06:00 TO 18:00 MONDAY TO FRIDAY"]
["Area 1","  Security Officer",null,1,8,null,null,2]
[null,"  06:00 TO 18:00 SATURDAY AND SUNDAY/PUBLIC HOLIDAY"]
[null,"  Security Officer",null,0,0]
[null,"  18:00 TO 06:00 MONDAY TO SUNDAY"]
[null,"  Security Officer",null,1,2]
[null,"  Handheld Metal Detector(s)",{"$nulls":4},3]
[]
["3.1.24","JOHANNEBURG: BRANCH COURT, HILLBROW"]
[null,"  06:00 TO 18:00 MONDAY TO FRIDAY"]
["Area 1","  Security Officer",null,1,4]
[null,"  06:00 TO 18:00 SATURDAY AND SUNDAY/PUBLIC HOLIDAY"]
[null,"  Security Officer",null,0,0]
[null,"  18:00 TO 06:00 MONDAY TO SUNDAY"]
[null,"  Security Officer",null,1,1]
[null,"  Handheld Metal Detector(s)",{"$nulls":4},3]
[]
["3.1.25","JOHANNESBURG: BRANCH COURT, JEPPE"]
[null,"  06:00 TO 18:00 MONDAY TO FRIDAY"]
["Area 1","  Security Officer",null,1,3]
[null,"  06:00 TO 18:00 SATURDAY AND SUNDAY/PUBLIC HOLIDAY"]
[null,"  Security Officer",null,0,0]
[null,"  18:00 TO 06:00 MONDAY TO SUNDAY"]
[null,"  Security Officer",null,1,1]
[null,"  Handheld Metal Detector(s)",{"$nulls":4},3]
[]
["3.1.26","JOHANNESBURG: BRANCH COURT, LENASIA"]
[null,"  06:00 TO 18:00 MONDAY TO FRIDAY"]
["Area 1","  Security Officer",null,1,3]
[null,"  06:00 TO 18:00 SATURDAY AND SUNDAY/PUBLIC HOLIDAY"]
[null,"  Security Officer",null,0,0]
[null,"  18:00 TO 06:00 MONDAY TO SUNDAY"]
[null,"  Security Officer",null,1,1]
[null,"  Handheld Metal Detector(s)",{"$nulls":4},3]
[]
["3.1.27","JOHANNESBURG:  BRANCH COURT, MEADOWLANDS"]
[null,"  06:00 TO 18:00 MONDAY TO FRIDAY"]
["Area 1","  Security Officer",null,1,3]
[null,"  06:00 TO 18:00 SATURDAY AND SUNDAY/PUBLIC HOLIDAY"]
[null,"  Security Officer",null,0,0]
[null,"  18:00 TO 06:00 MONDAY TO SUNDAY"]
[null,"  Security Officer",null,1,1]
[null,"  Handheld Metal Detector(s)",{"$nulls":4},3]
[]
["3.1.28","JOHANNESBURG: BRANCH COURT, NEWLANDS"]
[null,"  06:00 TO 18:00 MONDAY TO FRIDAY"]
["Area 1","  Security Officer",null,1,3]
[null,"  06:00 TO 18:00 SATURDAY AND SUNDAY/PUBLIC HOLIDAY"]
[null,"  Security Officer",null,0,0]
[null,"  18:00 TO 06:00 MONDAY TO SUNDAY"]
[null,"  Security Officer",null,1,1]
[null,"  Handheld Metal Detector(s)",{"$nulls":4},3]
[]
["3.1.29","VANDERBIJLPARK: BRANCH COURT, SEBOKENG"]
[null,"  06:00 TO 18:00 MONDAY TO FRIDAY"]
["Area 1","  Security Officer",null,1,4,null,null,1]
[null,"  06:00 TO 18:00 SATURDAY AND SUNDAY/PUBLIC HOLIDAY"]
[null,"  Security Officer",null,0,0]
[null,"  18:00 TO 06:00 MONDAY TO SUNDAY"]
[null,"  Security Officer",null,1,1]
[null,"  Handheld Metal Detector(s)",{"$nulls":4},5]
[]
["3.1.30","WESTONARIA"]
[null,"  06:00 TO 18:00 MONDAY TO FRIDAY"]
["Area 1","  Security Officer",null,1,3]
[null,"  06:00 TO 18:00 SATURDAY AND SUNDAY/PUBLIC HOLIDAY"]
[null,"  Security Officer",null,0,0]
[null,"  18:00 TO 06:00 MONDAY TO SUNDAY"]
[null,"  Security Officer",null,1,1]
[null,"  Handheld Metal Detector(s)",{"$nulls":4},3]
[]
["3.1.31","VEREENIGING"]
[null,"  06:00 TO 18:00 MONDAY TO FRIDAY"]
["Area 1","  Security Officer",null,1,3]
[null,"  06:00 TO 18:00 SATURDAY AND SUNDAY/PUBLIC HOLIDAY"]
[null,"  Security Officer",null,0,0]
[null,"  18:00 TO 06:00 MONDAY TO SUNDAY"]
[null,"  Security Officer",null,1,1]
[null,"  Handheld Metal Detector(s)",{"$nulls":4},3]
[]
["3.1.32","OBERHOLZER"]
[null,"  06:00 TO 18:00 MONDAY TO FRIDAY"]
["Area 1","  Security Officer",null,1,3]
[null,"  06:00 TO 18:00 SATURDAY AND SUNDAY/PUBLIC HOLIDAY"]
[null,"  Security Officer",null,1,1]
[null,"  18:00 TO 06:00 MONDAY TO SUNDAY"]
[null,"  Security Officer",null,1,1]
[null,"  Handheld Metal Detector(s)",{"$nulls":4},3]
[]
["3.1.33","BRAKPAN"]
[null,"  06:00 TO 18:00 MONDAY TO FRIDAY"]
["Area 1","  Security Officer",null,1,3,null,null,1]
[null,"  06:00 TO 18:00 SATURDAY AND SUNDAY/PUBLIC HOLIDAY"]
[null,"  Security Officer",null,0,0]
[null,"  18:00 TO 06:00 MONDAY TO SUNDAY"]
[null,"  Security Officer",null,1,1]
[null,"  Handheld Metal Detector(s)",{"$nulls":4},4]
[]
["3.1.34","VANDERBIJLPARK"]
[null,"  06:00 TO 18:00 MONDAY TO FRIDAY"]
["Area 1","  Security Officer",null,1,3]
[null,"  06:00 TO 18:00 SATURDAY AND SUNDAY/PUBLIC HOLIDAY"]
[null,"  Security Officer",null,0,0]
[null,"  18:00 TO 06:00 MONDAY TO SUNDAY"]
[null,"  Security Officer",null,1,1]
[null,"  Handheld Metal Detector(s)",{"$nulls":4},3]
[]
["3.1.35","NPA: DPP JOHANNESBURG"]
[null,"  06:00 TO 18:00 MONDAY TO FRIDAY"]
["Area 1","  Security Officer",null,3,6,null,null,6]
[null,"  06:00 TO 18:00 SATURDAY AND SUNDAY/PUBLIC HOLIDAY"]
[null,"  Security Officer",null,0,0]
[null,"  18:00 TO 06:00 MONDAY TO SUNDAY"]
[null,"  Security Officer",null,2,4,null,null,2]
[null,"  Handheld Metal Detector(s)",{"$nulls":4},5]
[]
["3.1.36","STATE ATTORNEY: JOHANNESBURG"]
[null,"  06:00 TO 18:00 MONDAY TO FRIDAY"]
["Area 1","  Security Officer",null,1,4]
[null,"  06:00 TO 18:00 SATURDAY AND SUNDAY/PUBLIC HOLIDAY"]
[null,"  Security Officer",null,0,0]
[null,"  18:00 TO 06:00 MONDAY TO SUNDAY"]
[null,"  Security Officer",null,1,1]
[null,"  Handheld Metal Detector(s)",{"$nulls":4},3]
[]
["3.1.37","SHARED COURT SERVICE CENTRE, GAUTENG"]
[null,"  06:00 TO 18:00 MONDAY TO FRIDAY"]
["Area 1","  Security Officer",null,1,6,null,null,1]
[null,"  06:00 TO 18:00 SATURDAY AND SUNDAY/PUBLIC HOLIDAY"]
[null,"  Security Officer",null,0,0]
[null,"  18:00 TO 06:00 MONDAY TO SUNDAY"]
[null,"  Security Officer",null,1,2,null,null,1]
[null,"  Handheld Metal Detector(s)",{"$nulls":4},5]
[]
["3.1.38","SPECIALIZED COMMERCIAL CRIME,JHB,64 ELLOFF STREET"]
[null,"  06:00 TO 18:00 MONDAY TO FRIDAY"]
["Area 1","  Security Officer",null,1,4]
[null,"  06:00 TO 18:00 SATURDAY AND SUNDAY/PUBLIC HOLIDAY"]
[null,"  Security Officer",null,0,0]
[null,"  18:00 TO 06:00 MONDAY TO SUNDAY"]
[null,"  Security Officer",null,1,1]
[null,"  Handheld Metal Detector(s)",{"$nulls":4},3]
[]
["3.1.39","DEVON"]
[null,"  06:00 TO 18:00 MONDAY TO FRIDAY"]
["Area 1","  Security Officer",null,1,1]
[null,"  06:00 TO 18:00 SATURDAY AND SUNDAY/PUBLIC HOLIDAY"]
[null,"  Security Officer",null,0,0]
[null,"  18:00 TO 06:00 MONDAY TO SUNDAY"]
[null,"  Security Officer",null,1,1]
[null,"  Handheld Metal Detector(s)",{"$nulls":4},3]
[]
["3.1.40","PALM RIDGE "]
[null,"  06:00 TO 18:00 MONDAY TO FRIDAY"]
["Area 1","  Security Officer",null,4,9,null,null,4]
[null,"  06:00 TO 18:00 SATURDAY AND SUNDAY/PUBLIC HOLIDAY"]
[null,"  Security Officer",null,0,0]
[null,"  18:00 TO 06:00 MONDAY TO SUNDAY"]
[null,"  Security Officer",null,1,1]
[null,"  Handheld Metal Detector(s)",{"$nulls":4},6]
[]
["3.1.41","OBERHOLZER, BRANCH COURT; EVATON"]
[null,"  06:00 TO 18:00 MONDAY TO FRIDAY"]
["Area 1","  Security Officer",null,1,1]
[null,"  06:00 TO 18:00 SATURDAY AND SUNDAY/PUBLIC HOLIDAY"]
[null,"  Security Officer",null,0,0]
[null,"  18:00 TO 06:00 MONDAY TO SUNDAY"]
[null,"  Security Officer",null,1,1]
[null,"  Handheld Metal Detector(s)",{"$nulls":4},3]
[]
["3.1.42","REGISTRAR OF THE LAND CLAIMS COURT"]
[null,"  06:00 TO 18:00 MONDAY TO FRIDAY"]
["Area 1","  Security Officer",null,1,2]
[null,"  06:00 TO 18:00 SATURDAY AND SUNDAY/PUBLIC HOLIDAY"]
[null,"  Security Officer",null,0]
[null,"  18:00 TO 06:00 MONDAY TO SUNDAY"]
[null,"  Security Officer",null,1]
[null,"  Handheld Metal Detector(s)",{"$nulls":4},3]
[]
["3.1.43","VEREENIGING: FAMILY COURT"]
[null,"  06:00 TO 18:00 MONDAY TO FRIDAY"]
["Area 1","  Security Officer",null,1,1]
[null,"  06:00 TO 18:00 SATURDAY AND SUNDAY/PUBLIC HOLIDAY"]
[null,"  Security Officer",null,0,0]
[null,"  18:00 TO 06:00 MONDAY TO SUNDAY"]
[null,"  Security Officer",null,0,0]
[null,"  Handheld Metal Detector(s)",{"$nulls":4},2]
[]
["3.1.44","KEMPTON PARK"]
[null,"  06:00 TO 18:00 MONDAY TO FRIDAY"]
["Area 1","  Security Officer",null,1,6,null,null,2]
[null,"  06:00 TO 18:00 SATURDAY AND SUNDAY/PUBLIC HOLIDAY"]
[null,"  Security Officer",null,0,0]
[null,"  18:00 TO 06:00 MONDAY TO SUNDAY"]
[null,"  Security Officer",null,1,1]
[null,"  Handheld Metal Detector(s)",{"$nulls":4},5]
[]
["3.1.45","KEMPTON PARK: BRANCH COURT, TEMBISA"]
[null,"  06:00 TO 18:00 MONDAY TO FRIDAY"]
["Area 1","  Security Officer",null,1,7,null,null,1]
[null,"  06:00 TO 18:00 SATURDAY AND SUNDAY/PUBLIC HOLIDAY"]
[null,"  Security Officer",null,0,0]
[null,"  18:00 TO 06:00 MONDAY TO SUNDAY"]
[null,"  Security Officer",null,1,1]
[null,"  Handheld Metal Detector(s)",{"$nulls":4},5]
[]
["3.1.46","BENONI, BRANCH COURT DAVEYTON"]
[null,"  06:00 TO 18:00 MONDAY TO FRIDAY"]
["Area 1","  Security Officer",null,1,4,null,null,1]
[null,"  06:00 TO 18:00 SATURDAY AND SUNDAY/PUBLIC HOLIDAY"]
[null,"  Security Officer",null,0,0]
[null,"  18:00 TO 06:00 MONDAY TO SUNDAY"]
[null,"  Security Officer",null,1,1]
[null,"  Handheld Metal Detector(s)",{"$nulls":4},3]
[]
["3.1.47","PRETORIA NORTH"]
[null,"  06:00 TO 18:00 MONDAY TO FRIDAY"]
["Area 1","  Security Officer",null,1,4,null,null,1]
[null,"  06:00 TO 18:00 SATURDAY AND SUNDAY/PUBLIC HOLIDAY"]
[null,"  Security Officer",null,0,0]
[null,"  18:00 TO 06:00 MONDAY TO SUNDAY"]
[null,"  Security Officer",null,1,1]
[null,"  Handheld Metal Detector(s)",{"$nulls":4},3]
[]
["3.1.48","PRETORIA NORTH: BRANCH COURT, MAMELODI"]
[null,"  06:00 TO 18:00 MONDAY TO FRIDAY"]
["Area 1","  Security Officer",null,1,3,null,null,1]
[null,"  06:00 TO 18:00 SATURDAY AND SUNDAY/PUBLIC HOLIDAY"]
[null,"  Security Officer",null,0,0]
[null,"  18:00 TO 06:00 MONDAY TO SUNDAY"]
[null,"  Security Officer",null,1,1]
[null,"  Handheld Metal Detector(s)",{"$nulls":4},3]
[]
["3.1.49","MAMELODI FAMILY SERVICES: PRETORIA"]
[null,"  06:00 TO 18:00 MONDAY TO FRIDAY"]
["Area 1","  Security Officer",null,1,3]
[null,"  06:00 TO 18:00 SATURDAY AND SUNDAY/PUBLIC HOLIDAY"]
[null,"  Security Officer",null,0,0]
[null,"  18:00 TO 06:00 MONDAY TO SUNDAY"]
[null,"  Security Officer",null,1,1]
[null,"  Handheld Metal Detector(s)",{"$nulls":4},3]
[]
["3.1.50","SOSHANGUVE"]
[null,"  06:00 TO 18:00 MONDAY TO FRIDAY"]
["Area 1","  Security Officer",null,1,4,null,null,1]
[null,"  06:00 TO 18:00 SATURDAY AND SUNDAY/PUBLIC HOLIDAY"]
[null,"  Security Officer",null,0,0]
[null,"  18:00 TO 06:00 MONDAY TO SUNDAY"]
[null,"  Security Officer",null,1,1]
[null,"  Handheld Metal Detector(s)",{"$nulls":4},5]
[]
["3.1.51","FAMILY ADVOCATE, PRETORIA"]
[null,"  06:00 TO 18:00 MONDAY TO FRIDAY"]
["Area 1","  Security Officer",null,1,3]
[null,"  06:00 TO 18:00 SATURDAY AND SUNDAY/PUBLIC HOLIDAY"]
[null,"  Security Officer",null,0,0]
[null,"  18:00 TO 06:00 MONDAY TO SUNDAY"]
[null,"  Security Officer",null,1,1]
[null,"  Handheld Metal Detector(s)",{"$nulls":4},3]
[]
["3.1.52","PRETORIA"]
[null,"  06:00 TO 18:00 MONDAY TO FRIDAY"]
["Area 1","  Security Officer",null,1,10,null,null,4]
[null,"  06:00 TO 18:00 SATURDAY AND SUNDAY/PUBLIC HOLIDAY"]
[null,"  Security Officer",null,0,0]
[null,"  18:00 TO 06:00 MONDAY TO SUNDAY"]
[null,"  Security Officer",null,1,2]
[null,"  Handheld Metal Detector(s)",{"$nulls":4},5]
[]
["3.1.53","REGISTRAR OF THE HIGH COURT, PRETORIA"]
[null,"  06:00 TO 18:00 MONDAY TO FRIDAY"]
["Area 1","  Security Officer",null,2,12,null,null,4]
[null,"  06:00 TO 18:00 SATURDAY AND SUNDAY/PUBLIC HOLIDAY"]
[null,"  Security Officer",null,0,0]
[null,"  18:00 TO 06:00 MONDAY TO SUNDAY"]
[null,"  Security Officer",null,2,2]
[null,"  Handheld Metal Detector(s)",{"$nulls":4},5]
[]
["3.1.54","REGISTRAR OF THE HIGH COURT, PRETORIA, PALACE"]
[null,"  06:00 TO 18:00 MONDAY TO FRIDAY"]
["Area 1","  Security Officer",null,1,3,null,null,1]
[null,"  06:00 TO 18:00 SATURDAY AND SUNDAY/PUBLIC HOLIDAY"]
[null,"  Security Officer",null,0,0]
[null,"  18:00 TO 06:00 MONDAY TO SUNDAY"]
[null,"  Security Officer",null,1,1]
[null,"  Handheld Metal Detector(s)",{"$nulls":4},3]
[]
["3.1.55","OBERHOLZER, BRANCH COURT; KHUTSONG"]
[null,"  06:00 TO 18:00 MONDAY TO FRIDAY"]
["Area 1","  Security Officer",null,1,2]
[null,"  06:00 TO 18:00 SATURDAY AND SUNDAY/PUBLIC HOLIDAY"]
[null,"  Security Officer",null,0,0]
[null,"  18:00 TO 06:00 MONDAY TO SUNDAY"]
[null,"  Security Officer",null,1,1]
[null,"  Handheld Metal Detector(s)",{"$nulls":4},3]
[]
["3.1.56","RANDBURG: BRANCH COURT, MIDRAND"]
[null,"  06:00 TO 18:00 MONDAY TO FRIDAY"]
["Area 1","  Security Officer",null,1,3]
[null,"  06:00 TO 18:00 SATURDAY AND SUNDAY/PUBLIC HOLIDAY"]
[null,"  Security Officer",null,0,0]
[null,"  18:00 TO 06:00 MONDAY TO SUNDAY"]
[null,"  Security Officer",null,1,1]
[null,"  Handheld Metal Detector(s)",{"$nulls":4},3]
[]
["3.1.57","BENONI"]
[null,"  06:00 TO 18:00 MONDAY TO FRIDAY"]
["Area 1","  Security Officer",null,1,7,null,null,2]
[null,"  06:00 TO 18:00 SATURDAY AND SUNDAY/PUBLIC HOLIDAY"]
[null,"  Security Officer",null,0,0]
[null,"  18:00 TO 06:00 MONDAY TO SUNDAY"]
[null,"  Security Officer",null,1,3]
[null,"  Handheld Metal Detector(s)",{"$nulls":4},3]
[]
["3.1.58","CULLINAN"]
[null,"  06:00 TO 18:00 MONDAY TO FRIDAY"]
["Area 1","  Security Officer",null,1,3]
[null,"  06:00 TO 18:00 SATURDAY AND SUNDAY/PUBLIC HOLIDAY"]
[null,"  Security Officer",null,0,0]
[null,"  18:00 TO 06:00 MONDAY TO SUNDAY"]
[null,"  Security Officer",null,1,1]
[null,"  Handheld Metal Detector(s)",{"$nulls":4},3]
[]
["3.1.59","HEIDELBERG (GP)"]
[null,"  06:00 TO 18:00 MONDAY TO FRIDAY"]
["Area 1","  Security Officer",null,1,4,null,null,1]
[null,"  06:00 TO 18:00 SATURDAY AND SUNDAY/PUBLIC HOLIDAY"]
[null,"  Security Officer",null,0,0]
[null,"  18:00 TO 06:00 MONDAY TO SUNDAY"]
[null,"  Security Officer",null,1,2]
[null,"  Handheld Metal Detector(s)",{"$nulls":4},3]
[]
["3.1.60","NIGEL"]
[null,"  06:00 TO 18:00 MONDAY TO FRIDAY"]
["Area 1","  Security Officer",null,1,3]
[null,"  06:00 TO 18:00 SATURDAY AND SUNDAY/PUBLIC HOLIDAY"]
[null,"  Security Officer",null,0,0]
[null,"  18:00 TO 06:00 MONDAY TO SUNDAY"]
[null,"  Security Officer",null,1,1]
[null,"  Handheld Metal Detector(s)",{"$nulls":4},4]
[]
["3.1.61","BRONKHORSTSPRUIT"]
[null,"  06:00 TO 18:00 MONDAY TO FRIDAY"]
["Area 1","  Security Officer",null,1,3]
[null,"  06:00 TO 18:00 SATURDAY AND SUNDAY/PUBLIC HOLIDAY"]
[null,"  Security Officer",null,0,0]
[null,"  18:00 TO 06:00 MONDAY TO SUNDAY"]
[null,"  Security Officer",null,1,1]
[null,"  Handheld Metal Detector(s)",{"$nulls":4},3]
[]
["3.1.62","MEYERTON"]
[null,"  06:00 TO 18:00 MONDAY TO FRIDAY"]
["Area 1","  Security Officer",null,1,3,null,null,1]
[null,"  06:00 TO 18:00 SATURDAY AND SUNDAY/PUBLIC HOLIDAY"]
[null,"  Security Officer",null,0,0]
[null,"  18:00 TO 06:00 MONDAY TO SUNDAY"]
[null,"  Security Officer",null,1,1]
[null,"  Handheld Metal Detector(s)",{"$nulls":4},3]
[]
["3.1.63","BOKSBURG: BRANCH COURT, VOSLOORUS"]
[null,"  06:00 TO 18:00 MONDAY TO FRIDAY"]
["Area 1","  Security Officer",null,1,4,null,null,2]
[null,"  06:00 TO 18:00 SATURDAY AND SUNDAY/PUBLIC HOLIDAY"]
[null,"  Security Officer",null,0,0]
[null,"  18:00 TO 06:00 MONDAY TO SUNDAY"]
[null,"  Security Officer",null,1,1]
[null,"  Handheld Metal Detector(s)",{"$nulls":4},3]
[]
["3.1.64","PRETORIA: BRANCH COURT, ATTERIDGEVILLE"]
[null,"  06:00 TO 18:00 MONDAY TO FRIDAY"]
["Area 1","  Security Officer",null,1,6,null,null,2]
[null,"  06:00 TO 18:00 SATURDAY AND SUNDAY/PUBLIC HOLIDAY"]
[null,"  Security Officer",null,0,0]
[null,"  18:00 TO 06:00 MONDAY TO SUNDAY"]
[null,"  Security Officer",null,1,3]
[null,"  Handheld Metal Detector(s)",{"$nulls":4},3]
[]
["3.1.65","GERMISTON: BRANCH COURT, EDENVALE"]
[null,"  06:00 TO 18:00 MONDAY TO FRIDAY"]
["Area 1","  Security Officer",null,1,3]
[null,"  06:00 TO 18:00 SATURDAY AND SUNDAY/PUBLIC HOLIDAY"]
[null,"  Security Officer",null,0,0]
[null,"  18:00 TO 06:00 MONDAY TO SUNDAY"]
[null,"  Security Officer",null,1,1]
[null,"  Handheld Metal Detector(s)",{"$nulls":4},3]
[]
["3.1.66","SPRINGS"]
[null,"  06:00 TO 18:00 MONDAY TO FRIDAY"]
["Area 1","  Security Officer",null,1,4,null,null,1]
[null,"  06:00 TO 18:00 SATURDAY AND SUNDAY/PUBLIC HOLIDAY"]
[null,"  Security Officer",null,0,0]
[null,"  18:00 TO 06:00 MONDAY TO SUNDAY"]
[null,"  Security Officer",null,1,1]
[null,"  Handheld Metal Detector(s)",{"$nulls":4},3]
[]
["3.1.67","SPRINGS: BRANCH COURT, KWA-THEMA"]
[null,"  06:00 TO 18:00 MONDAY TO FRIDAY"]
["Area 1","  Security Officer",null,1,3]
[null,"  06:00 TO 18:00 SATURDAY AND SUNDAY/PUBLIC HOLIDAY"]
[null,"  Security Officer",null,0,0]
[null,"  18:00 TO 06:00 MONDAY TO SUNDAY"]
[null,"  Security Officer",null,1,1]
[null,"  Handheld Metal Detector(s)",{"$nulls":4},3]
[]
["3.1.68","PRETORIA: SPECIALIZED COMMECIAL CRIME COURT"]
[null,"  06:00 TO 18:00 MONDAY TO FRIDAY"]
["Area 1","  Security Officer",null,1,3]
[null,"  06:00 TO 18:00 SATURDAY AND SUNDAY/PUBLIC HOLIDAY"]
[null,"  Security Officer",null,0,0]
[null,"  18:00 TO 06:00 MONDAY TO SUNDAY"]
[null,"  Security Officer",null,1,1]
[null,"  Handheld Metal Detector(s)",{"$nulls":4},3]
[]
["3.1.69","NPA: DPP PRETORIA"]
[null,"  06:00 TO 18:00 MONDAY TO FRIDAY"]
["Area 1","  Security Officer",null,2,5,null,null,4]
[null,"  06:00 TO 18:00 SATURDAY AND SUNDAY/PUBLIC HOLIDAY"]
[null,"  Security Officer",null,0,0]
[null,"  18:00 TO 06:00 MONDAY TO SUNDAY"]
[null,"  Security Officer",null,1,2,null,null,2]
[null,"  Handheld Metal Detector(s)",{"$nulls":4},5]
[]
["3.1.70","NPA: Special Commercial Crime Unit, PRETORIA"]
[null,"  06:00 TO 18:00 MONDAY TO FRIDAY"]
["Area 1","  Security Officer",null,1,3]
[null,"  06:00 TO 18:00 SATURDAY AND SUNDAY/PUBLIC HOLIDAY"]
[null,"  Security Officer",null,null,0]
[null,"  18:00 TO 06:00 MONDAY TO SUNDAY"]
[null,"  Security Officer",null,null,2]
[null,"  Handheld Metal Detector(s)",{"$nulls":4},3]
[]
["3.1.71","HATFIELD"]
[null,"  06:00 TO 18:00 MONDAY TO FRIDAY"]
["Area 1","  Security Officer",null,1,3]
[null,"  06:00 TO 18:00 SATURDAY AND SUNDAY/PUBLIC HOLIDAY"]
[null,"  Security Officer",null,0,0]
[null,"  18:00 TO 06:00 MONDAY TO SUNDAY"]
[null,"  Security Officer",null,1,1]
[null,"  Handheld Metal Detector(s)",{"$nulls":4},3]
[]
["3.1.72","DUNOTAR"]
[null,"  06:00 TO 18:00 MONDAY TO FRIDAY"]
["Area 1","  Security Officer",null,1,1]
[null,"  06:00 TO 18:00 SATURDAY AND SUNDAY/PUBLIC HOLIDAY"]
[null,"  Security Officer",null,0,0]
[null,"  18:00 TO 06:00 MONDAY TO SUNDAY"]
[null,"  Security Officer",null,1,1]
[null,"  Handheld Metal Detector(s)",{"$nulls":4},3]
[]
["3.1.73","EKANGALA"]
[null,"  06:00 TO 18:00 MONDAY TO FRIDAY"]
["Area 1","  Security Officer",null,1,5,null,null,1]
[null,"  06:00 TO 18:00 SATURDAY AND SUNDAY/PUBLIC HOLIDAY"]
[null,"  Security Officer",null,0,0]
[null,"  18:00 TO 06:00 MONDAY TO SUNDAY"]
[null,"  Security Officer",null,1,1]
[null,"  Handheld Metal Detector(s)",{"$nulls":4},5]
[]
["3.1.74","CENTURION COURT"]
[null,"  06:00 TO 18:00 MONDAY TO FRIDAY"]
["Area 1","  Security Officer",null,1,1]
[null,"  06:00 TO 18:00 SATURDAY AND SUNDAY/PUBLIC HOLIDAY"]
[null,"  Security Officer",null,0,0]
[null,"  18:00 TO 06:00 MONDAY TO SUNDAY"]
[null,"  Security Officer",null,1,1]
[null,"  Handheld Metal Detector(s)",{"$nulls":4},2]
[]
["3.1.75","FOCHVILLE MAGISTRATE COURT "]
[null,"  06:00 TO 18:00 MONDAY TO FRIDAY"]
["Area 1","  Security Officer",null,1,3]
[null,"  06:00 TO 18:00 SATURDAY AND SUNDAY/PUBLIC HOLIDAY"]
[null,"  Security Officer",null,0,0]
[null,"  18:00 TO 06:00 MONDAY TO SUNDAY"]
[null,"  Security Officer",null,1,1]
[null,"  Handheld Metal Detector(s)",{"$nulls":4},3]
[]
["3.1.76","WELBEKEND MAGISTRATE COURT"]
[null,"  06:00 TO 18:00 MONDAY TO FRIDAY"]
["Area 1","  Security Officer",null,1,3]
[null,"  06:00 TO 18:00 SATURDAY AND SUNDAY/PUBLIC HOLIDAY"]
[null,"  Security Officer",null,0,0]
[null,"  18:00 TO 06:00 MONDAY TO SUNDAY"]
[null,"  Security Officer",null,1,1]
[null,"  Handheld Metal Detector(s)",{"$nulls":4},3]
[]
["3.1.77","RANDBURG: BRANCH COURT, DIEPSLOOT"]
[null,"  06:00 TO 18:00 MONDAY TO FRIDAY"]
["Area 1","  Security Officer",null,1,9,null,null,2]
[null,"  06:00 TO 18:00 SATURDAY AND SUNDAY/PUBLIC HOLIDAY"]
[null,"  Security Officer",null,0,0]
[null,"  18:00 TO 06:00 MONDAY TO SUNDAY"]
[null,"  Security Officer",null,1,2]
[null,"  Handheld Metal Detector(s)",{"$nulls":4},3]
[]
[]
["3.1.78","NPA: VGM BUILDING"]
[null,"  06:00 TO 18:00 MONDAY TO FRIDAY"]
["Area 1","  Security Officer",1,0,0]
[null,"  06:00 TO 18:00 SATURDAY AND SUNDAY/PUBLIC HOLIDAY"]
[null,"  Security Officer",1,0,0]
[null,"  18:00 TO 06:00 MONDAY TO SUNDAY"]
[null,"  Security Officer",1,0,0]
[null,"  Handheld Metal Detector(s)",{"$nulls":4},8]
[]
["3.1.79","OCJ: MORVEST BUILDING: MIDRAND"]
[null,"  06:00 TO 18:00 MONDAY TO FRIDAY"]
["Area 1","  Security Officer",null,1,6,null,null,1]
[null,"  06:00 TO 18:00 SATURDAY AND SUNDAY/PUBLIC HOLIDAY"]
[null,"  Security Officer",null,0,0]
[null,"  18:00 TO 06:00 MONDAY TO SUNDAY"]
[null,"  Security Officer",null,1,1]
[null,"  Handheld Metal Detector(s)",{"$nulls":4},6]
[]
["3.1.80","SOUTH AFRICAN LAW COMMISSION"]
[null,"  06:00 TO 18:00 MONDAY TO FRIDAY"]
["Area 1","  Security Officer",null,1,2,null,null,1]
[null,"  06:00 TO 18:00 SATURDAY AND SUNDAY/PUBLIC HOLIDAY"]
[null,"  Security Officer",null,0,0]
[null,"  18:00 TO 06:00 MONDAY TO SUNDAY"]
[null,"  Security Officer",null,1,2]
[null,"  Hand Held Metaldetector(s) ",{"$nulls":4},3]
[]
["3.1.81","RULES BOARD OFFICE, PRETORIA"]
[null,"  06:00 TO 18:00 MONDAY TO FRIDAY"]
["Area 1","  Security Officer",null,1,1]
[null,"  06:00 TO 18:00 SATURDAY AND SUNDAY/PUBLIC HOLIDAY"]
[null,"  Security Officer",null,0]
[null,"  18:00 TO 06:00 MONDAY TO SUNDAY"]
[null,"  Security Officer",null,1]
[null,"  Hand Held Metaldetector(s) ",{"$nulls":4},2]
[]
["3.1.82","JUSTICE COLLEGE, PRETORIA"]
[null,"  06:00 TO 18:00 MONDAY TO FRIDAY"]
["Area 1","  Security Officer",null,1,3,null,null,1]
[null,"  06:00 TO 18:00 SATURDAY AND SUNDAY/PUBLIC HOLIDAY"]
[null,"  Security Officer",null,0,0]
[null,"  18:00 TO 06:00 MONDAY TO SUNDAY"]
[null,"  Security Officer",null,1,1]
[null,"  Hand Held Metaldetector(s) ",{"$nulls":4},3]
[]
["3.1.83","MAGISTRATE COMMISSION/QUALITY ASSURANCE"]
[null,"  06:00 TO 18:00 MONDAY TO FRIDAY"]
["Area 1","  Security Officer",null,1,2]
[null,"  06:00 TO 18:00 SATURDAY AND SUNDAY/PUBLIC HOLIDAY"]
[null,"  Security Officer",null,0,0]
[null,"  18:00 TO 06:00 MONDAY TO SUNDAY"]
[null,"  Security Officer",null,1,1]
[null,"  Hand Held Metaldetector(s) ",{"$nulls":4},3]
[]
["3.1.84","STATE ATTORNEY (S/A): PRETORIA"]
[null,"  06:00 TO 18:00 MONDAY TO FRIDAY"]
["Area 1","  Security Officer",null,1,3]
[null,"  06:00 TO 18:00 SATURDAY AND SUNDAY/PUBLIC HOLIDAY"]
[null,"  Security Officer",null,0,0]
[null,"  18:00 TO 06:00 MONDAY TO SUNDAY"]
[null,"  Security Officer",null,1,1]
[null,"  Hand Held Metaldetector(s) ",{"$nulls":4},3]
[]
["3.1.85","MASTER OF THE HIGH COURT, PRETORIA "]
[null,"  06:00 TO 18:00 MONDAY TO FRIDAY"]
["Area 1","  Security Officer",null,null,3,null,null,1]
[null,"  06:00 TO 18:00 SATURDAY AND SUNDAY/PUBLIC HOLIDAY"]
[null,"  Security Officer",null,null,0]
[null,"  18:00 TO 06:00 MONDAY TO SUNDAY"]
[null,"  Security Officer",null,null,1]
[null,"  Hand Held Metaldetector(s) ",{"$nulls":4},3]
[]
["3.1.86"," NATIONAL OFFICE:MOMENTUM CENTRE"]
[null,"  06:00 TO 18:00 MONDAY TO FRIDAY"]
["Area 1","  Security Officer",null,2,13,null,null,4]
[null,"  06:00 TO 18:00 SATURDAY AND SUNDAY/PUBLIC HOLIDAY"]
[null,"  Security Officer",null,0,0]
[null,"  18:00 TO 06:00 MONDAY TO SUNDAY"]
[null,"  Security Officer",null,2,4]
[null,"  Hand Held Metaldetector(s) ",{"$nulls":4},5]
[]
["3.1.87"," NATIONAL OFFICE: PRETMED BUILDING  "]
[null,"  06:00 TO 18:00 MONDAY TO FRIDAY"]
["Area 1","  Security Officer",null,null,6]
[null,"  06:00 TO 18:00 SATURDAY AND SUNDAY/PUBLIC HOLIDAY"]
[null,"  Security Officer",null,null,0]
[null,"  18:00 TO 06:00 MONDAY TO SUNDAY"]
[null,"  Security Officer",null,null,2]
[]
["3.1.88","NATIONAL OFFICE: SALU BUILDING"]
[null,"  06:00 TO 18:00 MONDAY TO FRIDAY"]
["Area 1","  Security Officer",null,null,6,null,null,6]
[null,"  06:00 TO 18:00 SATURDAY AND SUNDAY/PUBLIC HOLIDAY"]
[null,"  Security Officer",null,null,0]
[null,"  18:00 TO 06:00 MONDAY TO SUNDAY"]
[null,"  Security Officer",null,null,3]
[null,"  Hand Held Metaldetector(s) ",{"$nulls":4},5]
[]
["3.1.89","NATIONAL OFFICE: COMMISSION OF ENQUIRY "]
[null,"  06:00 TO 18:00 MONDAY TO FRIDAY"]
["Area 1","  Security Officer",null,0,0,null,null,2]
[null,"  06:00 TO 18:00 SATURDAY AND SUNDAY/PUBLIC HOLIDAY"]
[null,"  Security Officer",null,0,0]
[null,"  18:00 TO 06:00 MONDAY TO SUNDAY"]
[null,"  Security Officer",null,0,0,null,null,2]
[null,"  Hand Held Metaldetector(s) ",{"$nulls":4},3]
[]
["3.1.90","NPA: Investigation Directorate BROOKLYN LINTON HOUSE"]
[null,"  06:00 TO 18:00 MONDAY TO FRIDAY"]
["Area 1","  Security Officer",null,2,4]
[null,"  06:00 TO 18:00 SATURDAY AND SUNDAY/PUBLIC HOLIDAY"]
[null,"  Security Officer",null,0,0]
[null,"  18:00 TO 06:00 MONDAY TO SUNDAY"]
[null,"  Security Officer",null,1,1]
[null,"  Hand Held Metaldetector(s) ",{"$nulls":4},3]
[{"$nulls":3},{"$f":"SUM(D3:D811)","v":182},{"$f":"SUM(E3:E811)","v":511}]
[]
[{"$nulls":3},"Total",693]

{"sheet":"Western Cape","index":4,"n_rows":820,"n_cols":8,"rows_kept":820,"merged":[[0,2,0,5]]}
[null,"          RFB 2021 __ WC"]
["Item no","WESTERN CAPE","Grade B\n","Grade C Armed\n","Grade C Unarmed \n","Control Room CCTV","Hand Held Metaldetector(s) "]
["4.1.01","REGIONAL OFFICE, CAPE TOWN W/C "]
[null,"  06:00 TO 18:00 MONDAY TO FRIDAY"]
["Area 1","  Security Officer",null,1,3]
[null,"  06:00 TO 18:00 SATURDAY AND SUNDAY/PUBLIC HOLIDAY"]
[null,"  Security Officer",null,0]
[null,"  18:00 TO 06:00 MONDAY TO SUNDAY"]
[null,"  Security Officer",null,1]
[null,"  Handheld Metal Detector(s)",{"$nulls":4},3]
[]
["4.1.02","REGISTRAR OF THE HIGH COURT, CAPE TOWN "]
[null,"  06:00 TO 18:00 MONDAY TO FRIDAY"]
["Area 1","  Security Officer",null,2,9,null,null,3]
[null,"  06:00 TO 18:00 SATURDAY AND SUNDAY/PUBLIC HOLIDAY"]
[null,"  Security Officer",null,0,0]
[null,"  18:00 TO 06:00 MONDAY TO SUNDAY"]
[null,"  Security Officer",null,1,1]
[null,"  Handheld Metal Detector(s)",{"$nulls":4},5]
[]
["4.1.03","LABOUR COURT, CAPE TOWN"]
[null,"  06:00 TO 18:00 MONDAY TO FRIDAY"]
["Area 1","  Security Officer",null,1,2]
[null,"  06:00 TO 18:00 SATURDAY AND SUNDAY/PUBLIC HOLIDAY"]
[null,"  Security Officer",null,0,0]
[null,"  18:00 TO 06:00 MONDAY TO SUNDAY"]
[null,"  Security Officer",null,1,1]
[null,"  Handheld Metal Detector(s)",{"$nulls":4},3]
[]
["4.1.04","CAPE TOWN: MASTER'S OFFICE, 45 ON CASTLE BUILDING, CASTLE STREET"]
[null,"  06:00 TO 18:00 MONDAY TO FRIDAY"]
["Area 1","  Security Officer",null,1,3,null,null,1]
[null,"  06:00 TO 18:00 SATURDAY AND SUNDAY/PUBLIC HOLIDAY"]
[null,"  Security Officer",null,0,0]
[null,"  18:00 TO 06:00 MONDAY TO SUNDAY"]
[null,"  Security Officer",null,1,1]
[null,"  Handheld Metal Detector(s)",{"$nulls":4},3]
[]
["    4.1.05","MAGISRATE OFFICE, CAPE TOWN (NSIP)"]
[null,"  06:00 TO 18:00 MONDAY TO FRIDAY"]
["Area 1","  Security Officer",null,2,5,null,null,2]
[null,"  06:00 TO 18:00 SATURDAY AND SUNDAY/PUBLIC HOLIDAY"]
[null,"  Security Officer",null,0,0]
[null,"  18:00 TO 06:00 MONDAY TO SUNDAY"]
[null,"  Security Officer",null,1,1]
[null,"  Handheld Metal Detector(s)",{"$nulls":4},5]
[]
["4.1.06","CAPE TOWN, REGIONAL COURT + FAMILY COURT (IUSTITIA BUILDING)"]
[null,"  06:00 TO 18:00 MONDAY TO FRIDAY"]
["Area 1","  Security Officer",null,1,4,null,null,1]
[null,"  06:00 TO 18:00 SATURDAY AND SUNDAY/PUBLIC HOLIDAY"]
[null,"  Security Officer",null,0,0]
[null,"  18:00 TO 06:00 MONDAY TO SUNDAY"]
[null,"  Security Officer",null,1,1]
[null,"  Handheld Metal Detector(s)",{"$nulls":4},5]
[]
["4.1.07","CAPE TOWN:COMMUNITY COURT"]
[null,"  06:00 TO 18:00 MONDAY TO FRIDAY"]
["Area 1","  Security Officer",null,1,2]
[null,"  06:00 TO 18:00 SATURDAY AND SUNDAY/PUBLIC HOLIDAY"]
[null,"  Security Officer",null,0]
[null,"  18:00 TO 06:00 MONDAY TO SUNDAY"]
[null,"  Security Officer",null,1]
[null,"  Handheld Metal Detector(s)",{"$nulls":4},3]
[]
["4.1.08","KHAYELITSHA MAGISTRATE (NSIP)"]
[null,"  06:00 TO 18:00 MONDAY TO FRIDAY"]
["Area 1","  Security Officer",null,2,5,null,null,1]
[null,"  06:00 TO 18:00 SATURDAY AND SUNDAY/PUBLIC HOLIDAY"]
[null,"  Security Officer",null,0,0]
[null,"  18:00 TO 06:00 MONDAY TO SUNDAY"]
[null,"  Security Officer",null,1,2]
[null,"  Handheld Metal Detector(s)",{"$nulls":4},5]
[]
["4.1.09","MITCHELL'S PLAIN MAGISTRATE"]
[null,"  06:00 TO 18:00 MONDAY TO FRIDAY"]
["Area 1","  Security Officer",null,2,4,null,null,2]
[null,"  06:00 TO 18:00 SATURDAY AND SUNDAY/PUBLIC HOLIDAY"]
[null,"  Security Officer",null,0,0]
[null,"  18:00 TO 06:00 MONDAY TO SUNDAY"]
[null,"  Security Officer",null,1,2]
[null,"  Handheld Metal Detector(s)",{"$nulls":4},5]
[]
["4.1.10","WYNBERG MAGISTRATE (NSIP)"]
[null,"  06:00 TO 18:00 MONDAY TO FRIDAY"]
["Area 1","  Security Officer",null,2,6,null,null,2]
[null,"  06:00 TO 18:00 SATURDAY AND SUNDAY/PUBLIC HOLIDAY"]
[null,"  Security Officer",null,0,0]
[null,"  18:00 TO 06:00 MONDAY TO SUNDAY"]
[null,"  Security Officer",null,1,1]
[null,"  Handheld Metal Detector(s)",{"$nulls":4},5]
[]
["4.1.11","SIMON’S TOWN  MAGISTRATE"]
[null,"  06:00 TO 18:00 MONDAY TO FRIDAY"]
["Area 1","  Security Officer",null,1,4]
[null,"  06:00 TO 18:00 SATURDAY AND SUNDAY/PUBLIC HOLIDAY"]
[null,"  Security Officer",null,0,0]
[null,"  18:00 TO 06:00 MONDAY TO SUNDAY"]
[null,"  Security Officer",null,1,1]
[null,"  Handheld Metal Detector(s)",{"$nulls":4},3]
[]
["4.1.12","SIMONS TOWN: PERIODICAL COURT, MUIZENBERG "]
[null,"  06:00 TO 18:00 MONDAY TO FRIDAY"]
["Area 1","  Security Officer",null,1,2]
[null,"  06:00 TO 18:00 SATURDAY AND SUNDAY/PUBLIC HOLIDAY"]
[null,"  Security Officer",null,0]
[null,"  18:00 TO 06:00 MONDAY TO SUNDAY"]
[null,"  Security Officer",null,1,1]
[null,"  Handheld Metal Detector(s)",{"$nulls":4},3]
[]
["4.1.13","ATHLONE  MAGISTRATE"]
[null,"  06:00 TO 18:00 MONDAY TO FRIDAY"]
["Area 1","  Security Officer",null,1,4,null,null,1]
[null,"  06:00 TO 18:00 SATURDAY AND SUNDAY/PUBLIC HOLIDAY"]
[null,"  Security Officer",null,0]
[null,"  18:00 TO 06:00 MONDAY TO SUNDAY"]
[null,"  Security Officer",null,1]
[null,"  Handheld Metal Detector(s)",{"$nulls":4},3]
[]
["4.1.14","ATHLONE: MAINTENANCE COURT (BHORAT CENTRE)"]
[null,"  06:00 TO 18:00 MONDAY TO FRIDAY"]
["Area 1","  Security Officer",null,1,1]
[null,"  06:00 TO 18:00 SATURDAY AND SUNDAY/PUBLIC HOLIDAY"]
[null,"  Security Officer",null,0,0]
[null,"  18:00 TO 06:00 MONDAY TO SUNDAY"]
[null,"  Security Officer",null,1,1]
[null,"  Handheld Metal Detector(s)",{"$nulls":4},3]
[]
["4.1.15","WYNBERG: BRANCH COURT, PHILLIPPI"]
[null,"  06:00 TO 18:00 MONDAY TO FRIDAY"]
["Area 1","  Security Officer",null,1,5]
[null,"  06:00 TO 18:00 SATURDAY AND SUNDAY/PUBLIC HOLIDAY"]
[null,"  Security Officer",null,0,0]
[null,"  18:00 TO 06:00 MONDAY TO SUNDAY"]
[null,"  Security Officer",null,1,1]
[null,"  Handheld Metal Detector(s)",{"$nulls":4},3]
[]
["4.1.16","WYNBERG: FEZEKA COMMUNITY COURT"]
[null,"  06:00 TO 18:00 MONDAY TO FRIDAY"]
["Area 1","  Security Officer",null,1,2]
[null,"  06:00 TO 18:00 SATURDAY AND SUNDAY/PUBLIC HOLIDAY"]
[null,"  Security Officer",null,0]
[null,"  18:00 TO 06:00 MONDAY TO SUNDAY"]
[null,"  Security Officer",null,1,1]
[null,"  Handheld Metal Detector(s)",{"$nulls":4},2]
[]
["4.1.17","BELLVILLE MAGISTRATE (NSIP)"]
[null,"  06:00 TO 18:00 MONDAY TO FRIDAY"]
["Area 1","  Security Officer",null,2,7,null,null,1]
[null,"  06:00 TO 18:00 SATURDAY AND SUNDAY/PUBLIC HOLIDAY"]
[null,"  Security Officer",null,0,0]
[null,"  18:00 TO 06:00 MONDAY TO SUNDAY"]
[null,"  Security Officer",null,1,1]
[null,"  Handheld Metal Detector(s)",{"$nulls":4},5]
[]
["4.1.18","PAROW REGIONAL COURT "]
[null,"  06:00 TO 18:00 MONDAY TO FRIDAY"]
["Area 1","  Security Officer",null,1,3]
[null,"  06:00 TO 18:00 SATURDAY AND SUNDAY/PUBLIC HOLIDAY"]
[null,"  Security Officer",null,0,0]
[null,"  18:00 TO 06:00 MONDAY TO SUNDAY"]
[null,"  Security Officer",null,1,1]
[null,"  Handheld Metal Detector(s)",{"$nulls":4},3]
[]
["4.1.19","GOODWOOD MAGISTRATE"]
[null,"  06:00 TO 18:00 MONDAY TO FRIDAY"]
["Area 1","  Security Officer",null,1,3,null,null,1]
[null,"  06:00 TO 18:00 SATURDAY AND SUNDAY/PUBLIC HOLIDAY"]
[null,"  Security Officer",null,0,0]
[null,"  18:00 TO 06:00 MONDAY TO SUNDAY"]
[null,"  Security Officer",null,1,1]
[null,"  Handheld Metal Detector(s)",{"$nulls":4},3]
[]
["  4.1.20","GOODWOOD: BRANCH COURT, BISHOP LAVIS (NSIP)"]
[null,"  06:00 TO 18:00 MONDAY TO FRIDAY"]
["Area 1","  Security Officer",null,2,3]
[null,"  06:00 TO 18:00 SATURDAY AND SUNDAY/PUBLIC HOLIDAY"]
[null,"  Security Officer",null,0,0]
[null,"  18:00 TO 06:00 MONDAY TO SUNDAY"]
[null,"  Security Officer",null,1,1]
[null,"  Handheld Metal Detector(s)",{"$nulls":4},3]
[]
["4.1.21","KUILS RIVER MAGISTRATE (NSIP)"]
[null,"  06:00 TO 18:00 MONDAY TO FRIDAY"]
["Area 1","  Security Officer",null,2,3]
[null,"  06:00 TO 18:00 SATURDAY AND SUNDAY/PUBLIC HOLIDAY"]
[null,"  Security Officer",null,0,0]
[null,"  18:00 TO 06:00 MONDAY TO SUNDAY"]
[null,"  Security Officer",null,1,1]
[null,"  Handheld Metal Detector(s)",{"$nulls":4},3]
[]
["4.1.22","KUILSRIVER: BRANCH COURT, BLUEDOWNS (NSIP)"]
[null,"  06:00 TO 18:00 MONDAY TO FRIDAY"]
["Area 1","  Security Officer",null,2,4,null,null,2]
[null,"  06:00 TO 18:00 SATURDAY AND SUNDAY/PUBLIC HOLIDAY"]
[null,"  Security Officer",null,0,0]
[null,"  18:00 TO 06:00 MONDAY TO SUNDAY"]
[null,"  Security Officer",null,1,1]
[null,"  Handheld Metal Detector(s)",{"$nulls":4},3]
[]
["4.1.23","SOMERSET WEST MAGISTRATE (NSIP)"]
[null,"  06:00 TO 18:00 MONDAY TO FRIDAY"]
["Area 1","  Security Officer",null,2,4,null,null,1]
[null,"  06:00 TO 18:00 SATURDAY AND SUNDAY/PUBLIC HOLIDAY"]
[null,"  Security Officer",null,0,0]
[null,"  18:00 TO 06:00 MONDAY TO SUNDAY"]
[null,"  Security Officer",null,1,1]
[null,"  Handheld Metal Detector(s)",{"$nulls":4},3]
[]
["4.1.24","STRAND MAGISTRATE"]
[null,"  06:00 TO 18:00 MONDAY TO FRIDAY"]
["Area 1","  Security Officer",null,1,3]
[null,"  06:00 TO 18:00 SATURDAY AND SUNDAY/PUBLIC HOLIDAY"]
[null,"  Security Officer",null,0,0]
[null,"  18:00 TO 06:00 MONDAY TO SUNDAY"]
[null,"  Security Officer",null,1,0]
[null,"  Handheld Metal Detector(s)",{"$nulls":4},3]
[]
["4.1.25","STATE ATTORNEY, CAPE TOWN  "]
[null,"  06:00 TO 18:00 MONDAY TO FRIDAY"]
["Area 1","  Security Officer",null,null,2]
[null,"  06:00 TO 18:00 SATURDAY AND SUNDAY/PUBLIC HOLIDAY"]
[null,"  Security Officer",null,null,0]
[null,"  18:00 TO 06:00 MONDAY TO SUNDAY"]
[null,"  Security Officer",null,null,1]
[null,"  Handheld Metal Detector(s)",{"$nulls":4},3]
[]
["4.1.26","NPA: DPP: CAPE TOWN"]
[null,"  06:00 TO 18:00 MONDAY TO FRIDAY"]
["Area 1","  Security Officer",null,2,5,null,null,5]
[null,"  06:00 TO 18:00 SATURDAY AND SUNDAY/PUBLIC HOLIDAY"]
[null,"  Security Officer",null,0,0]
[null,"  18:00 TO 06:00 MONDAY TO SUNDAY"]
[null,"  Security Officer",null,1,2,null,null,1]
[null,"  Handheld Metal Detector(s)",{"$nulls":4},5]
[]
["4.1.27","NPA SCCU / DOJ & CD SCCC:                                                                                                                       SERIOUS COMMERCIAL CRIME UNIT / SPECIALIZED COMMERCIAL CRIME COURT: BELLVILLE /CAPE TOWN "]
[null,"  06:00 TO 18:00 MONDAY TO FRIDAY"]
["Area 1","  Security Officer",null,null,2]
[null,"  06:00 TO 18:00 SATURDAY AND SUNDAY/PUBLIC HOLIDAY"]
[null,"  Security Officer",null,null,0]
[null,"  18:00 TO 06:00 MONDAY TO SUNDAY"]
[null,"  Security Officer",null,null,2]
[null,"  Handheld Metal Detector(s)",{"$nulls":4},2]
[]
["4.1.28","REGIONAL OFFICE TRAINING CENTRE, CAPE TOWN"]
[null,"  06:00 TO 18:00 MONDAY TO FRIDAY"]
["Area 1","  Security Officer",null,0,0]
[null,"  06:00 TO 18:00 SATURDAY AND SUNDAY/PUBLIC HOLIDAY"]
[null,"  Security Officer",null,null,0]
[null,"  18:00 TO 06:00 MONDAY TO SUNDAY"]
[null,"  Security Officer",null,null,1]
[null,"  Handheld Metal Detector(s)",{"$nulls":4},1]
[]
["4.1.29","STATE LAW ADVISOR, CAPE TOWN"]
[null,"  06:00 TO 18:00 MONDAY TO FRIDAY"]
["Area 1","  Security Officer",null,0,2]
[null,"  06:00 TO 18:00 SATURDAY AND SUNDAY/PUBLIC HOLIDAY"]
[null,"  Security Officer",null,0,0]
[null,"  18:00 TO 06:00 MONDAY TO SUNDAY"]
[null,"  Security Officer",null,0,2]
[null,"  Handheld Metal Detector(s)",{"$nulls":4},3]
[]
["4.1.30","CAPE TOWN : FAMILY ADVOCATE"]
[null,"  06:00 TO 18:00 MONDAY TO FRIDAY"]
["Area 1","  Security Officer",null,0,2]
[null,"  06:00 TO 18:00 SATURDAY AND SUNDAY/PUBLIC HOLIDAY"]
[null,"  Security Officer",null,0,0]
[null,"  18:00 TO 06:00 MONDAY TO SUNDAY"]
[null,"  Security Officer",null,0,2]
[null,"  Handheld Metal Detector(s)",{"$nulls":4},3]
[]
["4.1.31","GRABOUW "]
[null,"  06:00 TO 18:00 MONDAY TO FRIDAY"]
["Area 3","  Security Officer",null,1,3]
[null,"  06:00 TO 18:00 SATURDAY AND SUNDAY/PUBLIC HOLIDAY"]
[null,"  Security Officer",null,0,0]
[null,"  18:00 TO 06:00 MONDAY TO SUNDAY"]
[null,"  Security Officer",null,1,1]
[null,"  Handheld Metal Detector(s)",{"$nulls":4},3]
[]
["4.1.32","CALEDON  "]
[null,"  06:00 TO 18:00 MONDAY TO FRIDAY"]
["Area 3","  Security Officer",null,1,3]
[null,"  06:00 TO 18:00 SATURDAY AND SUNDAY/PUBLIC HOLIDAY"]
[null,"  Security Officer",null,0]
[null,"  18:00 TO 06:00 MONDAY TO SUNDAY"]
[null,"  Security Officer",null,1]
[null,"  Handheld Metal Detector(s)",{"$nulls":4},3]
[]
["4.1.33","HERMANUS"]
[null,"  06:00 TO 18:00 MONDAY TO FRIDAY"]
["Area 3","  Security Officer",null,2,3,null,null,2]
[null,"  06:00 TO 18:00 SATURDAY AND SUNDAY/PUBLIC HOLIDAY"]
[null,"  Security Officer",null,0,0]
[null,"  18:00 TO 06:00 MONDAY TO SUNDAY"]
[null,"  Security Officer",null,1,1]
[null,"  Handheld Metal Detector(s)",{"$nulls":4},3]
[]
["4.1.34","BREDASDORP  MAGISTRATE "]
[null,"  06:00 TO 18:00 MONDAY TO FRIDAY"]
["Area 3","  Security Officer",null,1,3]
[null,"  06:00 TO 18:00 SATURDAY AND SUNDAY/PUBLIC HOLIDAY"]
[null,"  Security Officer",null,0,0]
[null,"  18:00 TO 06:00 MONDAY TO SUNDAY"]
[null,"  Security Officer",null,1,1]
[null,"  Handheld Metal Detector(s)",{"$nulls":4},3]
[]
["4.1.35","WELLINGTON  MAGISTRATE"]
[null,"  06:00 TO 18:00 MONDAY TO FRIDAY"]
["Area 3","  Security Officer",null,1,3]
[null,"  06:00 TO 18:00 SATURDAY AND SUNDAY/PUBLIC HOLIDAY"]
[null,"  Security Officer",null,0]
[null,"  18:00 TO 06:00 MONDAY TO SUNDAY"]
[null,"  Security Officer",null,1]
[null,"  Handheld Metal Detector(s)",{"$nulls":4},3]
[]
["4.1.36","TULBAGH MAGISTRATE"]
[null,"  06:00 TO 18:00 MONDAY TO FRIDAY"]
["Area 3","  Security Officer",null,1,2]
[null,"  06:00 TO 18:00 SATURDAY AND SUNDAY/PUBLIC HOLIDAY"]
[null,"  Security Officer",null,0]
[null,"  18:00 TO 06:00 MONDAY TO SUNDAY"]
[null,"  Security Officer",null,1]
[null,"  Handheld Metal Detector(s)",{"$nulls":4},3]
[]
["4.1.37","WOLSELEY MAGISTRATE"]
[null,"  06:00 TO 18:00 MONDAY TO FRIDAY"]
["Area 3","  Security Officer",null,1,2]
[null,"  06:00 TO 18:00 SATURDAY AND SUNDAY/PUBLIC HOLIDAY"]
[null,"  Security Officer",null,0]
[null,"  18:00 TO 06:00 MONDAY TO SUNDAY"]
[null,"  Security Officer",null,1]
[null,"  Handheld Metal Detector(s)",{"$nulls":4},2]
[]
["4.1.38","WORCESTER  MAGISTRATE "]
[null,"  06:00 TO 18:00 MONDAY TO FRIDAY"]
["Area 3","  Security Officer",null,1,4,null,null,2]
[null,"  06:00 TO 18:00 SATURDAY AND SUNDAY/PUBLIC HOLIDAY"]
[null,"  Security Officer",null,0,0]
[null,"  18:00 TO 06:00 MONDAY TO SUNDAY"]
[null,"  Security Officer",null,1,1]
[null,"  Handheld Metal Detector(s)",{"$nulls":4},5]
[]
["4.1.39","WORCESTER: PERIODICAL COURT, DE DOORNS "]
[null,"  06:00 TO 18:00 MONDAY TO FRIDAY"]
["Area 3","  Security Officer",null,1,2]
[null,"  06:00 TO 18:00 SATURDAY AND SUNDAY/PUBLIC HOLIDAY"]
[null,"  Security Officer",null,0]
[null,"  18:00 TO 06:00 MONDAY TO SUNDAY"]
[null,"  Security Officer",null,1]
[null,"  Handheld Metal Detector(s)",{"$nulls":4},3]
[]
["4.1.40","WORCESTER: PERIODICAL COURT, TOUWSRIVER"]
[null,"  06:00 TO 18:00 MONDAY TO FRIDAY"]
["Area 3","  Security Officer",null,1,2]
[null,"  06:00 TO 18:00 SATURDAY AND SUNDAY/PUBLIC HOLIDAY"]
[null,"  Security Officer",null,0]
[null,"  18:00 TO 06:00 MONDAY TO SUNDAY"]
[null,"  Security Officer",null,1]
[null,"  Handheld Metal Detector(s)",{"$nulls":4},3]
[]
["4.1.41","ROBERTSON  MAGISTRATE "]
[null,"  06:00 TO 18:00 MONDAY TO FRIDAY"]
["Area 3","  Security Officer",null,1,2]
[null,"  06:00 TO 18:00 SATURDAY AND SUNDAY/PUBLIC HOLIDAY"]
[null,"  Security Officer",null,0]
[null,"  18:00 TO 06:00 MONDAY TO SUNDAY"]
[null,"  Security Officer",null,1]
[null,"  Handheld Metal Detector(s)",{"$nulls":4},3]
[]
["4.1.42","LAINGSBURG MAGISTRATE"]
[null,"  06:00 TO 18:00 MONDAY TO FRIDAY"]
["Area 3","  Security Officer",null,1,1]
[null,"  06:00 TO 18:00 SATURDAY AND SUNDAY/PUBLIC HOLIDAY"]
[null,"  Security Officer",null,0]
[null,"  18:00 TO 06:00 MONDAY TO SUNDAY"]
[null,"  Security Officer",null,1]
[null,"  Handheld Metal Detector(s)",{"$nulls":4},2]
[]
["4.1.43","MONTAGU   MAGISTRATE"]
[null,"  06:00 TO 18:00 MONDAY TO FRIDAY"]
["Area 3","  Security Officer",null,1,2]
[null,"  06:00 TO 18:00 SATURDAY AND SUNDAY/PUBLIC HOLIDAY"]
[null,"  Security Officer",null,0]
[null,"  18:00 TO 06:00 MONDAY TO SUNDAY"]
[null,"  Security Officer",null,1]
[null,"  Handheld Metal Detector(s)",{"$nulls":4},3]
[]
["4.1.44","MONTAGU:PERIODICAL COURT, ASHTON"]
[null,"  06:00 TO 18:00 MONDAY TO FRIDAY"]
["Area 3","  Security Officer",null,1,2]
[null,"  06:00 TO 18:00 SATURDAY AND SUNDAY/PUBLIC HOLIDAY"]
[null,"  Security Officer",null,0]
[null,"  18:00 TO 06:00 MONDAY TO SUNDAY"]
[null,"  Security Officer",null,1]
[null,"  Handheld Metal Detector(s)",{"$nulls":4},3]
[]
["4.1.45","SWELLENDAM  MAGISTRATE"]
[null,"  06:00 TO 18:00 MONDAY TO FRIDAY"]
["Area 3","  Security Officer",null,1,2]
[null,"  06:00 TO 18:00 SATURDAY AND SUNDAY/PUBLIC HOLIDAY"]
[null,"  Security Officer",null,0,0]
[null,"  18:00 TO 06:00 MONDAY TO SUNDAY"]
[null,"  Security Officer",null,1,1]
[null,"  Handheld Metal Detector(s)",{"$nulls":4},3]
[]
["4.1.46","BONNIEVALE  MAGISTRATE "]
[null,"  06:00 TO 18:00 MONDAY TO FRIDAY"]
["Area 3","  Security Officer",null,1,1]
[null,"  06:00 TO 18:00 SATURDAY AND SUNDAY/PUBLIC HOLIDAY"]
[null,"  Security Officer",null,0]
[null,"  18:00 TO 06:00 MONDAY TO SUNDAY"]
[null,"  Security Officer",null,1]
[null,"  Handheld Metal Detector(s)",{"$nulls":4},2]
[]
["4.1.47","OUDTSHOORN  MAGISTRATE"]
[null,"  06:00 TO 18:00 MONDAY TO FRIDAY"]
["Area 3","  Security Officer",null,1,3,null,null,1]
[null,"  06:00 TO 18:00 SATURDAY AND SUNDAY/PUBLIC HOLIDAY"]
[null,"  Security Officer",null,0,0]
[null,"  18:00 TO 06:00 MONDAY TO SUNDAY"]
[null,"  Security Officer",null,1,1]
[null,"  Handheld Metal Detector(s)",{"$nulls":4},5]
[]
["4.1.48","CALITZDORP  MAGISTRATE"]
[null,"  06:00 TO 18:00 MONDAY TO FRIDAY"]
["Area 3","  Security Officer",null,1,2]
[null,"  06:00 TO 18:00 SATURDAY AND SUNDAY/PUBLIC HOLIDAY"]
[null,"  Security Officer",null,0]
[null,"  18:00 TO 06:00 MONDAY TO SUNDAY"]
[null,"  Security Officer",null,1]
[null,"  Handheld Metal Detector(s)",{"$nulls":4},3]
[]
["4.1.49","LADISMITH MAGISTRATE"]
[null,"  06:00 TO 18:00 MONDAY TO FRIDAY"]
["Area 3","  Security Officer",null,1,3]
[null,"  06:00 TO 18:00 SATURDAY AND SUNDAY/PUBLIC HOLIDAY"]
[null,"  Security Officer",null,0]
[null,"  18:00 TO 06:00 MONDAY TO SUNDAY"]
[null,"  Security Officer",null,1]
[null,"  Handheld Metal Detector(s)",{"$nulls":4},3]
[]
["4.1.50","PRINCE ALBERT MAGISTRATE"]
[null,"  06:00 TO 18:00 MONDAY TO FRIDAY"]
["Area 3","  Security Officer",null,1,2]
[null,"  06:00 TO 18:00 SATURDAY AND SUNDAY/PUBLIC HOLIDAY"]
[null,"  Security Officer",null,0]
[null,"  18:00 TO 06:00 MONDAY TO SUNDAY"]
[null,"  Security Officer",null,1]
[null,"  Handheld Metal Detector(s)",{"$nulls":4},3]
[]
["4.1.51","BEAUFORT WEST MAGISTRATE"]
[null,"  06:00 TO 18:00 MONDAY TO FRIDAY"]
["Area 3","  Security Officer",null,1,3]
[null,"  06:00 TO 18:00 SATURDAY AND SUNDAY/PUBLIC HOLIDAY"]
[null,"  Security Officer",null,0,0]
[null,"  18:00 TO 06:00 MONDAY TO SUNDAY"]
[null,"  Security Officer",null,1,1]
[null,"  Handheld Metal Detector(s)",{"$nulls":4},3]
[]
["4.1.52","MURRAYSBURG MAGISTRATE"]
[null,"  06:00 TO 18:00 MONDAY TO FRIDAY"]
["Area 3","  Security Officer",null,1,2]
[null,"  06:00 TO 18:00 SATURDAY AND SUNDAY/PUBLIC HOLIDAY"]
[null,"  Security Officer",null,0]
[null,"  18:00 TO 06:00 MONDAY TO SUNDAY"]
[null,"  Security Officer",null,1]
[null,"  Handheld Metal Detector(s)",{"$nulls":4},3]
[]
["4.1.53","UNIONDALE  "]
[null,"  06:00 TO 18:00 MONDAY TO FRIDAY"]
["Area 3","  Security Officer",null,1,2]
[null,"  06:00 TO 18:00 SATURDAY AND SUNDAY/PUBLIC HOLIDAY"]
[null,"  Security Officer",null,0]
[null,"  18:00 TO 06:00 MONDAY TO SUNDAY"]
[null,"  Security Officer",null,1]
[null,"  Handheld Metal Detector(s)",{"$nulls":4},3]
[]
["4.1.54","GEORGE  MAGISTRATE"]
[null,"  06:00 TO 18:00 MONDAY TO FRIDAY"]
["Area 3","  Security Officer",null,2,2,null,null,2]
[null,"  06:00 TO 18:00 SATURDAY AND SUNDAY/PUBLIC HOLIDAY"]
[null,"  Security Officer",null,0,0]
[null,"  18:00 TO 06:00 MONDAY TO SUNDAY"]
[null,"  Security Officer",null,1,1]
[null,"  Handheld Metal Detector(s)",{"$nulls":4},5]
[]
["4.1.55","THEMBALETHU BRANCH COURT"]
[null,"  06:00 TO 18:00 MONDAY TO FRIDAY"]
["Area 3","  Security Officer",null,1,3]
[null,"  06:00 TO 18:00 SATURDAY AND SUNDAY/PUBLIC HOLIDAY"]
[null,"  Security Officer",null,0,0]
[null,"  18:00 TO 06:00 MONDAY TO SUNDAY"]
[null,"  Security Officer",null,1,1]
[null,"  Handheld Metal Detector(s)",{"$nulls":4},3]
[]
["4.1.56","KNYSNA  MAGISTRATE"]
[null,"  06:00 TO 18:00 MONDAY TO FRIDAY"]
["Area 3","  Security Officer",null,1,3,null,null,1]
[null,"  06:00 TO 18:00 SATURDAY AND SUNDAY/PUBLIC HOLIDAY"]
[null,"  Security Officer",null,0,0]
[null,"  18:00 TO 06:00 MONDAY TO SUNDAY"]
[null,"  Security Officer",null,1,1]
[null,"  Handheld Metal Detector(s)",{"$nulls":4},3]
[]
["4.1.57","KNYSNA:  PERIODICAL COURT PLETTENBERG BAY"]
[null,"  06:00 TO 18:00 MONDAY TO FRIDAY"]
["Area 3","  Security Officer",null,2,2,null,null,2]
[null,"  06:00 TO 18:00 SATURDAY AND SUNDAY/PUBLIC HOLIDAY"]
[null,"  Security Officer",null,0,0]
[null,"  18:00 TO 06:00 MONDAY TO SUNDAY"]
[null,"  Security Officer",null,1,1]
[null,"  Handheld Metal Detector(s)",{"$nulls":4},3]
[]
["4.1.58","ALBERTINIA  MAGISTRATE"]
[null,"  06:00 TO 18:00 MONDAY TO FRIDAY"]
["Area 3","  Security Officer",null,1,1]
[null,"  06:00 TO 18:00 SATURDAY AND SUNDAY/PUBLIC HOLIDAY"]
[null,"  Security Officer",null,0]
[null,"  18:00 TO 06:00 MONDAY TO SUNDAY"]
[null,"  Security Officer",null,1]
[null,"  Handheld Metal Detector(s)",{"$nulls":4},2]
[]
["4.1.59","HEIDELBERG   MAGISTRATE (WC)"]
[null,"  06:00 TO 18:00 MONDAY TO FRIDAY"]
["Area 3","  Security Officer",null,1,1]
[null,"  06:00 TO 18:00 SATURDAY AND SUNDAY/PUBLIC HOLIDAY"]
[null,"  Security Officer",null,0]
[null,"  18:00 TO 06:00 MONDAY TO SUNDAY"]
[null,"  Security Officer",null,1]
[null,"  Handheld Metal Detector(s)",{"$nulls":4},2]
[]
["4.1.60","RIVERSDALE  MAGISTRATE"]
[null,"  06:00 TO 18:00 MONDAY TO FRIDAY"]
["Area 3","  Security Officer",null,1,2]
[null,"  06:00 TO 18:00 SATURDAY AND SUNDAY/PUBLIC HOLIDAY"]
[null,"  Security Officer",null,0]
[null,"  18:00 TO 06:00 MONDAY TO SUNDAY"]
[null,"  Security Officer",null,1]
[null,"  Handheld Metal Detector(s)",{"$nulls":4},3]
[]
["4.1.61","MOSSELBAY  MAGISTRATE"]
[null,"  06:00 TO 18:00 MONDAY TO FRIDAY"]
["Area 3","  Security Officer",null,1,2]
[null,"  06:00 TO 18:00 SATURDAY AND SUNDAY/PUBLIC HOLIDAY"]
[null,"  Security Officer",null,0,0]
[null,"  18:00 TO 06:00 MONDAY TO SUNDAY"]
[null,"  Security Officer",null,1,1]
[null,"  Handheld Metal Detector(s)",{"$nulls":4},3]
[]
["4.1.62","CALEDON: PERIODICAL COURT VILLIERSDORP"]
[null,"  06:00 TO 18:00 MONDAY TO FRIDAY"]
["Area 3","  Security Officer",null,0,1]
[null,"  06:00 TO 18:00 SATURDAY AND SUNDAY/PUBLIC HOLIDAY"]
[null,"  Security Officer",null,0,0]
[null,"  18:00 TO 06:00 MONDAY TO SUNDAY"]
[null,"  Security Officer",null,0,0]
[null,"  Handheld Metal Detector(s)",{"$nulls":4},1]
[]
["4.1.63","CALEDON: PERIODICAL COURT GENADENDAL"]
[null,"  06:00 TO 18:00 MONDAY TO FRIDAY"]
["Area 3","  Security Officer",null,0,1]
[null,"  06:00 TO 18:00 SATURDAY AND SUNDAY/PUBLIC HOLIDAY"]
[null,"  Security Officer",null,0,0]
[null,"  18:00 TO 06:00 MONDAY TO SUNDAY"]
[null,"  Security Officer",null,0,0]
[null,"  Handheld Metal Detector(s)",{"$nulls":4},1]
[]
["4.1.64","CALEDON:PERIODICAL COURT RIVIERSONDEREND"]
[null,"  06:00 TO 18:00 MONDAY TO FRIDAY"]
["Area 3","  Security Officer",null,0,1]
[null,"  06:00 TO 18:00 SATURDAY AND SUNDAY/PUBLIC HOLIDAY"]
[null,"  Security Officer",null,0,0]
[null,"  18:00 TO 06:00 MONDAY TO SUNDAY"]
[null,"  Security Officer",null,0,0]
[null,"  Handheld Metal Detector(s)",{"$nulls":4},1]
[]
["4.1.65","PRINCE ALBERT: PERIODICAL COURT,    LEEU-GAMKA"]
[null,"  06:00 TO 18:00 MONDAY TO FRIDAY"]
["Area 3","  Security Officer",null,0,1]
[null,"  06:00 TO 18:00 SATURDAY AND SUNDAY/PUBLIC HOLIDAY"]
[null,"  Security Officer",null,0,0]
[null,"  18:00 TO 06:00 MONDAY TO SUNDAY"]
[null,"  Security Officer",null,0,0]
[null,"  Handheld Metal Detector(s)",{"$nulls":4},1]
[]
["4.1.66","BEAUFORT WEST: PERIODICAL COURT, MERWEVILLE"]
[null,"  06:00 TO 18:00 MONDAY TO FRIDAY"]
["Area 3","  Security Officer",null,0,1]
[null,"  06:00 TO 18:00 SATURDAY AND SUNDAY/PUBLIC HOLIDAY"]
[null,"  Security Officer",null,0,0]
[null,"  18:00 TO 06:00 MONDAY TO SUNDAY"]
[null,"  Security Officer",null,0,0]
[null,"  Handheld Metal Detector(s)",{"$nulls":4},1]
[]
["4.1.67","WORCESTER : FAMILY ADVOCATE"]
[null,"  06:00 TO 18:00 MONDAY TO FRIDAY"]
["Area 3","  Security Officer",null,1,1]
[null,"  06:00 TO 18:00 SATURDAY AND SUNDAY/PUBLIC HOLIDAY"]
[null,"  Security Officer",null,0,0]
[null,"  18:00 TO 06:00 MONDAY TO SUNDAY"]
[null,"  Security Officer",null,0,0]
[null,"  Handheld Metal Detector(s)",{"$nulls":4},2]
[]
["4.1.68","GEORGE : FAMILY ADVOCATE"]
[null,"  06:00 TO 18:00 MONDAY TO FRIDAY"]
["Area 3","  Security Officer",null,1,1]
[null,"  06:00 TO 18:00 SATURDAY AND SUNDAY/PUBLIC HOLIDAY"]
[null,"  Security Officer",null,0,0]
[null,"  18:00 TO 06:00 MONDAY TO SUNDAY"]
[null,"  Security Officer",null,0,0]
[null,"  Handheld Metal Detector(s)",{"$nulls":4},2]
[]
["4.1.69","WORCESTER : RAWSONVILLE PERIODICAL"]
[null,"  06:00 TO 18:00 MONDAY TO FRIDAY"]
["Area 3","  Security Officer",null,1,1]
[null,"  06:00 TO 18:00 SATURDAY AND SUNDAY/PUBLIC HOLIDAY"]
[null,"  Security Officer",null,0,0]
[null,"  18:00 TO 06:00 MONDAY TO SUNDAY"]
[null,"  Security Officer",null,0,0]
[null,"  Handheld Metal Detector(s)",{"$nulls":4},2]
[]
["4.1.70","SWELLENDAM : BARRYDALE PERIODICAL"]
[null,"  06:00 TO 18:00 MONDAY TO FRIDAY"]
["Area 3","  Security Officer",null,1,1]
[null,"  06:00 TO 18:00 SATURDAY AND SUNDAY/PUBLIC HOLIDAY"]
[null,"  Security Officer",null,0,0]
[null,"  18:00 TO 06:00 MONDAY TO SUNDAY"]
[null,"  Security Officer",null,0,0]
[null,"  Handheld Metal Detector(s)",{"$nulls":4},2]
[]
["4.1.71","PAARL  MAGISTRATE"]
[null,"  06:00 TO 18:00 MONDAY TO FRIDAY"]
["Area 1","  Security Officer",null,1,3]
[null,"  06:00 TO 18:00 SATURDAY AND SUNDAY/PUBLIC HOLIDAY"]
[null,"  Security Officer",null,0,0]
[null,"  18:00 TO 06:00 MONDAY TO SUNDAY"]
[null,"  Security Officer",null,1,1]
[null,"  Handheld Metal Detector(s)",{"$nulls":4},3]
[]
["4.1.72","PAARL: REGIONAL COURT"]
[null,"  06:00 TO 18:00 MONDAY TO FRIDAY"]
["Area 1","  Security Officer",null,1,2]
[null,"  06:00 TO 18:00 SATURDAY AND SUNDAY/PUBLIC HOLIDAY"]
[null,"  Security Officer",null,0]
[null,"  18:00 TO 06:00 MONDAY TO SUNDAY"]
[null,"  Security Officer",null,1]
[null,"  Handheld Metal Detector(s)",{"$nulls":4},3]
[]
["4.1.73","CERES  MAGISTRATE"]
[null,"  06:00 TO 18:00 MONDAY TO FRIDAY"]
["Area 3","  Security Officer",null,1,2]
[null,"  06:00 TO 18:00 SATURDAY AND SUNDAY/PUBLIC HOLIDAY"]
[null,"  Security Officer",null,0,0]
[null,"  18:00 TO 06:00 MONDAY TO SUNDAY"]
[null,"  Security Officer",null,1,1]
[null,"  Handheld Metal Detector(s)",{"$nulls":4},3]
[]
["4.1.74","STELLENBOSCH  MAGISTRATE"]
[null,"  06:00 TO 18:00 MONDAY TO FRIDAY"]
["Area 1","  Security Officer",null,1,2]
[null,"  06:00 TO 18:00 SATURDAY AND SUNDAY/PUBLIC HOLIDAY"]
[null,"  Security Officer",null,0,0]
[null,"  18:00 TO 06:00 MONDAY TO SUNDAY"]
[null,"  Security Officer",null,1,1]
[null,"  Handheld Metal Detector(s)",{"$nulls":4},3]
[]
["4.1.75","ATLANTIS MAGISTRATE (NSIP)"]
[null,"  06:00 TO 18:00 MONDAY TO FRIDAY"]
["Area 3","  Security Officer",null,2,2,null,null,2]
[null,"  06:00 TO 18:00 SATURDAY AND SUNDAY/PUBLIC HOLIDAY"]
[null,"  Security Officer",null,0,0]
[null,"  18:00 TO 06:00 MONDAY TO SUNDAY"]
[null,"  Security Officer",null,1,1]
[null,"  Handheld Metal Detector(s)",{"$nulls":4},3]
[]
["4.1.76","MALMESBURY MAGISTRATE"]
[null,"  06:00 TO 18:00 MONDAY TO FRIDAY"]
["Area 3","  Security Officer",null,1,3]
[null,"  06:00 TO 18:00 SATURDAY AND SUNDAY/PUBLIC HOLIDAY"]
[null,"  Security Officer",null,0,0]
[null,"  18:00 TO 06:00 MONDAY TO SUNDAY"]
[null,"  Security Officer",null,1,1]
[null,"  Handheld Metal Detector(s)",{"$nulls":4},3]
[]
["4.1.77","MALMESBURY: PERIODICAL COURT:DARLING"]
[null,"  06:00 TO 18:00 MONDAY TO FRIDAY"]
["Area 3","  Security Officer",null,1,2]
[null,"  06:00 TO 18:00 SATURDAY AND SUNDAY/PUBLIC HOLIDAY"]
[null,"  Security Officer",null,0]
[null,"  18:00 TO 06:00 MONDAY TO SUNDAY"]
[null,"  Security Officer",null,1]
[null,"  Handheld Metal Detector(s)",{"$nulls":4},3]
[]
["4.1.78","HOPEFIELD  "]
[null,"  06:00 TO 18:00 MONDAY TO FRIDAY"]
["Area 3","  Security Officer",null,1,1]
[null,"  06:00 TO 18:00 SATURDAY AND SUNDAY/PUBLIC HOLIDAY"]
[null,"  Security Officer",null,0]
[null,"  18:00 TO 06:00 MONDAY TO SUNDAY"]
[null,"  Security Officer",null,1]
[null,"  Handheld Metal Detector(s)",{"$nulls":4},2]
[]
["4.1.79","MOORREESBURG MAGISTRATE "]
[null,"  06:00 TO 18:00 MONDAY TO FRIDAY"]
["Area 3","  Security Officer",null,1,2]
[null,"  06:00 TO 18:00 SATURDAY AND SUNDAY/PUBLIC HOLIDAY"]
[null,"  Security Officer",null,0]
[null,"  18:00 TO 06:00 MONDAY TO SUNDAY"]
[null,"  Security Officer",null,1]
[null,"  Handheld Metal Detector(s)",{"$nulls":4},3]
[]
["4.1.80","LAAIPLEK  "]
[null,"  06:00 TO 18:00 MONDAY TO FRIDAY"]
["Area 3","  Security Officer",null,1,2]
[null,"  06:00 TO 18:00 SATURDAY AND SUNDAY/PUBLIC HOLIDAY"]
[null,"  Security Officer",null,0]
[null,"  18:00 TO 06:00 MONDAY TO SUNDAY"]
[null,"  Security Officer",null,1]
[null,"  Handheld Metal Detector(s)",{"$nulls":4},3]
[]
["4.1.81","VREDENBURG MAGISTRATE "]
[null,"  06:00 TO 18:00 MONDAY TO FRIDAY"]
["Area 3","  Security Officer",null,2,3,null,null,2]
[null,"  06:00 TO 18:00 SATURDAY AND SUNDAY/PUBLIC HOLIDAY"]
[null,"  Security Officer",null,0,0]
[null,"  18:00 TO 06:00 MONDAY TO SUNDAY"]
[null,"  Security Officer",null,1,1]
[null,"  Handheld Metal Detector(s)",{"$nulls":4},3]
[]
["4.1.82","VREDENDAL MAGISTRATE "]
[null,"  06:00 TO 18:00 MONDAY TO FRIDAY"]
["Area 3","  Security Officer",null,1,2]
[null,"  06:00 TO 18:00 SATURDAY AND SUNDAY/PUBLIC HOLIDAY"]
[null,"  Security Officer",null,0,0]
[null,"  18:00 TO 06:00 MONDAY TO SUNDAY"]
[null,"  Security Officer",null,1,1]
[null,"  Handheld Metal Detector(s)",{"$nulls":4},3]
[]
["4.1.83","VREDENDAL:PERIODICAL COURT LUTZVILLE"]
[null,"  06:00 TO 18:00 MONDAY TO FRIDAY"]
["Area 3","  Security Officer",null,1,1]
[null,"  06:00 TO 18:00 SATURDAY AND SUNDAY/PUBLIC HOLIDAY"]
[null,"  Security Officer",null,0]
[null,"  18:00 TO 06:00 MONDAY TO SUNDAY"]
[null,"  Security Officer",null,1]
[null,"  Handheld Metal Detector(s)",{"$nulls":4},2]
[]
["4.1.84","CLANWILLIAM   MAGISTRATE"]
[null,"  06:00 TO 18:00 MONDAY TO FRIDAY"]
["Area 3","  Security Officer",null,1,2]
[null,"  06:00 TO 18:00 SATURDAY AND SUNDAY/PUBLIC HOLIDAY"]
[null,"  Security Officer",null,0]
[null,"  18:00 TO 06:00 MONDAY TO SUNDAY"]
[null,"  Security Officer",null,1]
[null,"  Handheld Metal Detector(s)",{"$nulls":4},3]
[]
["4.1.85","CLANWILLIAM: PERIODICAL COURT CITRUSDAL"]
[null,"  06:00 TO 18:00 MONDAY TO FRIDAY"]
["Area 3","  Security Officer",null,1,1]
[null,"  06:00 TO 18:00 SATURDAY AND SUNDAY/PUBLIC HOLIDAY"]
[null,"  Security Officer",null,0]
[null,"  18:00 TO 06:00 MONDAY TO SUNDAY"]
[null,"  Security Officer",null,1]
[null,"  Handheld Metal Detector(s)",{"$nulls":4},2]
[]
["4.1.86","CLANWILLIAM: PERIODICAL COURT LAMBERTSBAY"]
[null,"  06:00 TO 18:00 MONDAY TO FRIDAY"]
["Area 3","  Security Officer",null,1,1]
[null,"  06:00 TO 18:00 SATURDAY AND SUNDAY/PUBLIC HOLIDAY"]
[null,"  Security Officer",null,0]
[null,"  18:00 TO 06:00 MONDAY TO SUNDAY"]
[null,"  Security Officer",null,1]
[null,"  Handheld Metal Detector(s)",{"$nulls":4},2]
[]
["4.1.87","PIKETBERG   MAGISTRATE"]
[null,"  06:00 TO 18:00 MONDAY TO FRIDAY"]
["Area 3","  Security Officer",null,1,1]
[null,"  06:00 TO 18:00 SATURDAY AND SUNDAY/PUBLIC HOLIDAY"]
[null,"  Security Officer",null,0]
[null,"  18:00 TO 06:00 MONDAY TO SUNDAY"]
[null,"  Security Officer",null,1]
[null,"  Handheld Metal Detector(s)",{"$nulls":4},2]
[]
["4.1.88","PORTERVILLE   MAGISTRATE"]
[null,"  06:00 TO 18:00 MONDAY TO FRIDAY"]
["Area 3","  Security Officer",null,1,1]
[null,"  06:00 TO 18:00 SATURDAY AND SUNDAY/PUBLIC HOLIDAY"]
[null,"  Security Officer",null,0]
[null,"  18:00 TO 06:00 MONDAY TO SUNDAY"]
[null,"  Security Officer",null,1]
[null,"  Handheld Metal Detector(s)",{"$nulls":4},2]
[]
["4.1.89","VAN RHYNSDORP  MAGISTRATE"]
[null,"  06:00 TO 18:00 MONDAY TO FRIDAY"]
["Area 3","  Security Officer",null,1,2]
[null,"  06:00 TO 18:00 SATURDAY AND SUNDAY/PUBLIC HOLIDAY"]
[null,"  Security Officer",null,0]
[null,"  18:00 TO 06:00 MONDAY TO SUNDAY"]
[null,"  Security Officer",null,1]
[null,"  Handheld Metal Detector(s)",{"$nulls":4},3]
[]
["4.1.90","VANRHYNSDORP : KLAWER PERIODICAL"]
[null,"  06:00 TO 18:00 MONDAY TO FRIDAY"]
["Area 3","  Security Officer",null,1,1]
[null,"  06:00 TO 18:00 SATURDAY AND SUNDAY/PUBLIC HOLIDAY"]
[null,"  Security Officer",null,0,0]
[null,"  18:00 TO 06:00 MONDAY TO SUNDAY"]
[null,"  Security Officer",null,0,0]
[null,"  Handheld Metal Detector(s)",{"$nulls":4},2]
["4.1.91","OCJ PROVINCIAL SERVICE CENTRE (AA- BUILDING), CAPE TOWN W/C "]
[null,"  06:00 TO 18:00 MONDAY TO FRIDAY"]
["Area 3","  Security Officer",null,1,1]
[null,"  06:00 TO 18:00 SATURDAY AND SUNDAY/PUBLIC HOLIDAY"]
[null,"  Security Officer",null,0,0]
[null,"  18:00 TO 06:00 MONDAY TO SUNDAY"]
[null,"  Security Officer",null,1,0]
[null,"  Handheld Metal Detector(s)",{"$nulls":4},2]
[{"$nulls":3},{"$f":"SUM(D4:D819)","v":173},{"$f":"SUM(E4:E819)","v":271}]

{"sheet":"Limpopo","index":5,"n_rows":571,"n_cols":8,"rows_kept":571,"merged":[[0,2,0,5]]}
[null,"             RFB 2021 __ LP*"]
["Item no","LIMPOPO","Grade B\n","Grade C Armed\n","Grade C Unarmed \n","Control Room CCTV","Hand Held Metaldetector(s) "]
["5.1.1","SENWABARWANA/BOCHUM"]
[null,"  06:00 TO 18:00 MONDAY TO FRIDAY"]
["Area 3","  Security Officer",null,1,2]
[null,"  06:00 TO 18:00 SATURDAY AND SUNDAY/PUBLIC HOLIDAY"]
[null,"  Security Officer",null,0,0]
[null,"  18:00 TO 06:00 MONDAY TO SUNDAY"]
[null,"  Security Officer",null,1,1]
[null,"  Handheld Metal Detector(s)",{"$nulls":4},3]
[]
["5.1.2","MODIMOLLE"]
[null,"  06:00 TO 18:00 MONDAY TO FRIDAY"]
["Area 3","  Security Officer",null,1,3,null,null,1]
[null,"  06:00 TO 18:00 SATURDAY AND SUNDAY/PUBLIC HOLIDAY"]
[null,"  Security Officer",null,0,0]
[null,"  18:00 TO 06:00 MONDAY TO SUNDAY"]
[null,"  Security Officer",null,1,1]
[null,"  Handheld Metal Detector(s)",{"$nulls":4},3]
[]
["5.1.3","PHALALA"]
[null,"  06:00 TO 18:00 MONDAY TO FRIDAY"]
["Area 3","  Security Officer",null,1,2]
[null,"  06:00 TO 18:00 SATURDAY AND SUNDAY/PUBLIC HOLIDAY"]
[null,"  Security Officer",null,0,0]
[null,"  18:00 TO 06:00 MONDAY TO SUNDAY"]
[null,"  Security Officer",null,1,1]
[null,"  Handheld Metal Detector(s)",{"$nulls":4},3]
[]
["5.1.4","NAMAKGALE"]
[null,"  06:00 TO 18:00 MONDAY TO FRIDAY"]
["Area 3","  Security Officer",null,1,3]
[null,"  06:00 TO 18:00 SATURDAY AND SUNDAY/PUBLIC HOLIDAY"]
[null,"  Security Officer",null,0,0]
[null,"  18:00 TO 06:00 MONDAY TO SUNDAY"]
[null,"  Security Officer",null,1,1]
[null,"  Handheld Metal Detector(s)",{"$nulls":4},3]
[]
["5.1.5","LEPHALALE / ELLISRAS"]
[null,"  06:00 TO 18:00 MONDAY TO FRIDAY"]
["Area 3","  Security Officer",null,1,3]
[null,"  06:00 TO 18:00 SATURDAY AND SUNDAY/PUBLIC HOLIDAY"]
[null,"  Security Officer",null,0,0]
[null,"  18:00 TO 06:00 MONDAY TO SUNDAY"]
[null,"  Security Officer",null,1,1]
[null,"  Handheld Metal Detector(s)",{"$nulls":4},3]
[]
["5.1.6","MAHWELERENG / MOKERONG"]
[null,"  06:00 TO 18:00 MONDAY TO FRIDAY"]
["Area 3","  Security Officer",null,1,3]
[null,"  06:00 TO 18:00 SATURDAY AND SUNDAY/PUBLIC HOLIDAY"]
[null,"  Security Officer",null,0,0]
[null,"  18:00 TO 06:00 MONDAY TO SUNDAY"]
[null,"  Security Officer",null,1,1]
[null,"  Handheld Metal Detector(s)",{"$nulls":4},3]
[]
["5.1.7","LEBOWAKGOMO: PERIODICAL COURT, MAGATLE "]
[null,"  06:00 TO 18:00 MONDAY TO FRIDAY"]
["Area 3","  Security Officer",null,null,2]
[null,"  06:00 TO 18:00 SATURDAY AND SUNDAY/PUBLIC HOLIDAY"]
[null,"  Security Officer",null,null,0]
[null,"  18:00 TO 06:00 MONDAY TO SUNDAY"]
[null,"  Security Officer",null,null,2]
[null,"  Handheld Metal Detector(s)",{"$nulls":4},2]
[]
["5.1.8","MAHWELERENG: PERIODICAL COURT, GILEAD "]
[null,"  06:00 TO 18:00 MONDAY TO FRIDAY"]
["Area 3","  Security Officer",null,null,2]
[null,"  06:00 TO 18:00 SATURDAY AND SUNDAY/PUBLIC HOLIDAY"]
[null,"  Security Officer",null,null,0]
[null,"  18:00 TO 06:00 MONDAY TO SUNDAY"]
[null,"  Security Officer",null,null,2]
[null,"  Handheld Metal Detector(s)",{"$nulls":4},2]
[]
["5.1.9","MOKOPANE"]
[null,"  06:00 TO 18:00 MONDAY TO FRIDAY"]
["Area 3","  Security Officer",null,1,2]
[null,"  06:00 TO 18:00 SATURDAY AND SUNDAY/PUBLIC HOLIDAY"]
[null,"  Security Officer",null,0,0]
[null,"  18:00 TO 06:00 MONDAY TO SUNDAY"]
[null,"  Security Officer",null,1,1]
[null,"  Handheld Metal Detector(s)",{"$nulls":4},3]
[]
["5.1.10","POLOKWANE"]
[null,"  06:00 TO 18:00 MONDAY TO FRIDAY"]
["Area 3","  Security Officer",null,1,5,null,null,2]
[null,"  06:00 TO 18:00 SATURDAY AND SUNDAY/PUBLIC HOLIDAY"]
[null,"  Security Officer",null,0,0]
[null,"  18:00 TO 06:00 MONDAY TO SUNDAY"]
[null,"  Security Officer",null,1,2]
[null,"  Handheld Metal Detector(s)",{"$nulls":4},3]
[]
["5.1.11","MANKWENG"]
[null,"  06:00 TO 18:00 MONDAY TO FRIDAY"]
["Area 3","  Security Officer",null,1,3,null,null,1]
[null,"  06:00 TO 18:00 SATURDAY AND SUNDAY/PUBLIC HOLIDAY"]
[null,"  Security Officer",null,0,0]
[null,"  18:00 TO 06:00 MONDAY TO SUNDAY"]
[null,"  Security Officer",null,1,1]
[null,"  Handheld Metal Detector(s)",{"$nulls":4},3]
[]
["5.1.12","THABAZIMBI"]
[null,"  06:00 TO 18:00 MONDAY TO FRIDAY"]
["Area 3","  Security Officer",null,1,3]
[null,"  06:00 TO 18:00 SATURDAY AND SUNDAY/PUBLIC HOLIDAY"]
[null,"  Security Officer",null,0,0]
[null,"  18:00 TO 06:00 MONDAY TO SUNDAY"]
[null,"  Security Officer",null,1,1]
[null,"  Handheld Metal Detector(s)",{"$nulls":4},3]
[]
["5.1.13","NORTHAM"]
[null,"  06:00 TO 18:00 MONDAY TO FRIDAY"]
["Area 3","  Security Officer",null,1,2]
[null,"  06:00 TO 18:00 SATURDAY AND SUNDAY/PUBLIC HOLIDAY"]
[null,"  Security Officer",null,0,0]
[null,"  18:00 TO 06:00 MONDAY TO SUNDAY"]
[null,"  Security Officer",null,1,1]
[null,"  Handheld Metal Detector(s)",{"$nulls":4},3]
[]
["5.1.14","BELA-BELA"]
[null,"  06:00 TO 18:00 MONDAY TO FRIDAY"]
["Area 3","  Security Officer",null,1,3]
[null,"  06:00 TO 18:00 SATURDAY AND SUNDAY/PUBLIC HOLIDAY"]
[null,"  Security Officer",null,0,0]
[null,"  18:00 TO 06:00 MONDAY TO SUNDAY"]
[null,"  Security Officer",null,1,1]
[null,"  Handheld Metal Detector(s)",{"$nulls":4},3]
[]
["5.1.15","REGISTRAR OF THE HIGH COURT, POLOKWANE BLOCK A & C"]
[null,"  06:00 TO 18:00 MONDAY TO FRIDAY"]
["Area 3","  Security Officer",null,1,9,null,null,3]
[null,"  06:00 TO 18:00 SATURDAY AND SUNDAY/PUBLIC HOLIDAY"]
[null,"  Security Officer",null,0,0]
[null,"  18:00 TO 06:00 MONDAY TO SUNDAY"]
[null,"  Security Officer",null,1,1]
[null,"  Handheld Metal Detector(s)",{"$nulls":4},5]
[]
["5.1.16","PRAKTISEER: PERIODICAL COURT, LEBOENG  "]
[null,"  06:00 TO 18:00 MONDAY TO FRIDAY"]
["Area 3","  Security Officer",null,null,2]
[null,"  06:00 TO 18:00 SATURDAY AND SUNDAY/PUBLIC HOLIDAY"]
[null,"  Security Officer",null,null,0]
[null,"  18:00 TO 06:00 MONDAY TO SUNDAY"]
[null,"  Security Officer",null,null,2]
[null,"  Handheld Metal Detector(s)",{"$nulls":4},2]
[]
["5.1.17","PRAKTISEER: PERIODICAL COURT, MECKLENBURG "]
[null,"  06:00 TO 18:00 MONDAY TO FRIDAY"]
["Area 3","  Security Officer",null,null,2]
[null,"  06:00 TO 18:00 SATURDAY AND SUNDAY/PUBLIC HOLIDAY"]
[null,"  Security Officer",null,null,0]
[null,"  18:00 TO 06:00 MONDAY TO SUNDAY"]
[null,"  Security Officer",null,null,2]
[null,"  Handheld Metal Detector(s)",{"$nulls":4},2]
[]
["5.1.18"," PRAKTISEER"]
[null,"  06:00 TO 18:00 MONDAY TO FRIDAY"]
["Area 3","  Security Officer",null,1,2]
[null,"  06:00 TO 18:00 SATURDAY AND SUNDAY/PUBLIC HOLIDAY"]
[null,"  Security Officer",null,0,0]
[null,"  18:00 TO 06:00 MONDAY TO SUNDAY"]
[null,"  Security Officer",null,1,1]
[null,"  Handheld Metal Detector(s)",{"$nulls":4},3]
[]
["5.1.19","SEKHUKHUNE"]
[null,"  06:00 TO 18:00 MONDAY TO FRIDAY"]
["Area 3","  Security Officer",null,1,3]
[null,"  06:00 TO 18:00 SATURDAY AND SUNDAY/PUBLIC HOLIDAY"]
[null,"  Security Officer",null,0,0]
[null,"  18:00 TO 06:00 MONDAY TO SUNDAY"]
[null,"  Security Officer",null,1,1]
[null,"  Handheld Metal Detector(s)",{"$nulls":4},3]
[]
["5.1.20","SESHEGO"]
[null,"  06:00 TO 18:00 MONDAY TO FRIDAY"]
["Area 3","  Security Officer",null,1,3]
[null,"  06:00 TO 18:00 SATURDAY AND SUNDAY/PUBLIC HOLIDAY"]
[null,"  Security Officer",null,0,0]
[null,"  18:00 TO 06:00 MONDAY TO SUNDAY"]
[null,"  Security Officer",null,1,1]
[null,"  Handheld Metal Detector(s)",{"$nulls":4},3]
[]
["5.1.21","SESHEGO: PERIODICAL COURT, MATLALA "]
[null,"  06:00 TO 18:00 MONDAY TO FRIDAY"]
["Area 3","  Security Officer",null,null,2]
[null,"  06:00 TO 18:00 SATURDAY AND SUNDAY/PUBLIC HOLIDAY"]
[null,"  Security Officer",null,null,0]
[null,"  18:00 TO 06:00 MONDAY TO SUNDAY"]
[null,"  Security Officer",null,null,2]
[null,"  Handheld Metal Detector(s)",{"$nulls":4},2]
[]
["5.1.22","NEBO"]
[null,"  06:00 TO 18:00 MONDAY TO FRIDAY"]
["Area 3","  Security Officer",null,1,3]
[null,"  06:00 TO 18:00 SATURDAY AND SUNDAY/PUBLIC HOLIDAY"]
[null,"  Security Officer",null,0,0]
[null,"  18:00 TO 06:00 MONDAY TO SUNDAY"]
[null,"  Security Officer",null,1,1]
[null,"  Handheld Metal Detector(s)",{"$nulls":4},3]
[]
["5.1.23","GROBLERSDAL: PERIODICAL COURT, MOTETEMA  "]
[null,"  06:00 TO 18:00 MONDAY TO FRIDAY"]
["Area 3","  Security Officer",null,1,1]
[null,"  06:00 TO 18:00 SATURDAY AND SUNDAY/PUBLIC HOLIDAY"]
[null,"  Security Officer",null,0,0]
[null,"  18:00 TO 06:00 MONDAY TO SUNDAY"]
[null,"  Security Officer",null,1,1]
[null,"  Handheld Metal Detector(s)",{"$nulls":4},2]
[]
["5.1.24","MOOKGOPHONG (NABOOMSPRUIT)"]
[null,"  06:00 TO 18:00 MONDAY TO FRIDAY"]
["Area 3","  Security Officer",null,1,2]
[null,"  06:00 TO 18:00 SATURDAY AND SUNDAY/PUBLIC HOLIDAY"]
[null,"  Security Officer",null,0,0]
[null,"  18:00 TO 06:00 MONDAY TO SUNDAY"]
[null,"  Security Officer",null,1,1]
[null,"  Handheld Metal Detector(s)",{"$nulls":4},3]
[]
["5.1.25"," LEBOWAKGOMO / THABAMOOPO"]
[null,"  06:00 TO 18:00 MONDAY TO FRIDAY"]
["Area 3","  Security Officer",null,1,3]
[null,"  06:00 TO 18:00 SATURDAY AND SUNDAY/PUBLIC HOLIDAY"]
[null,"  Security Officer",null,0,0]
[null,"  18:00 TO 06:00 MONDAY TO SUNDAY"]
[null,"  Security Officer",null,1,1]
[null,"  Handheld Metal Detector(s)",{"$nulls":4},3]
[]
["5.1.26","LULEKANI"]
[null,"  06:00 TO 18:00 MONDAY TO FRIDAY"]
["Area 3","  Security Officer",null,1,2]
[null,"  06:00 TO 18:00 SATURDAY AND SUNDAY/PUBLIC HOLIDAY"]
[null,"  Security Officer",null,0,0]
[null,"  18:00 TO 06:00 MONDAY TO SUNDAY"]
[null,"  Security Officer",null,1,1]
[null,"  Handheld Metal Detector(s)",{"$nulls":4},3]
[]
["5.1.27","NAMAKGALE: PERIODICAL COURT GRAVELOTTE "]
[null,"  06:00 TO 18:00 MONDAY TO FRIDAY"]
["Area 3","  Security Officer",null,null,2]
[null,"  06:00 TO 18:00 SATURDAY AND SUNDAY/PUBLIC HOLIDAY"]
[null,"  Security Officer",null,null,0]
[null,"  18:00 TO 06:00 MONDAY TO SUNDAY"]
[null,"  Security Officer",null,null,2]
[null,"  Handheld Metal Detector(s)",{"$nulls":4},2]
[]
["5.1.28","SHARED SERVICE COURT CENTRE: LIMPOPO"]
[null,"  06:00 TO 18:00 MONDAY TO FRIDAY"]
["Area 3","  Security Officer",null,1,2]
[null,"  06:00 TO 18:00 SATURDAY AND SUNDAY/PUBLIC HOLIDAY"]
[null,"  Security Officer",null,0,0]
[null,"  18:00 TO 06:00 MONDAY TO SUNDAY"]
[null,"  Security Officer",null,1,1]
[null,"  Handheld Metal Detector(s)",{"$nulls":4},3]
[]
["5.1.29","LEBOWAKGOMO: PERIODICAL COURT, MALIEPSDRIFT"]
[null,"  06:00 TO 18:00 MONDAY TO FRIDAY"]
["Area 3","  Security Officer",null,null,2]
[null,"  06:00 TO 18:00 SATURDAY AND SUNDAY/PUBLIC HOLIDAY"]
[null,"  Security Officer",null,null,0]
[null,"  18:00 TO 06:00 MONDAY TO SUNDAY"]
[null,"  Security Officer",null,null,2]
[null,"  Handheld Metal Detector(s)",{"$nulls":4},2]
[]
["5.1.30","TIYANI: PERIODICAL COURT, LOMONDEKOP"]
[null,"  06:00 TO 18:00 MONDAY TO FRIDAY"]
["Area 3","  Security Officer",null,null,2]
[null,"  06:00 TO 18:00 SATURDAY AND SUNDAY/PUBLIC HOLIDAY"]
[null,"  Security Officer",null,null,0]
[null,"  18:00 TO 06:00 MONDAY TO SUNDAY"]
[null,"  Security Officer",null,null,2]
[null,"  Handheld Metal Detector(s)",{"$nulls":4},2]
[]
["5.1.31","PRAKTISEER: BURGERSFORT  REGIONAL COURT"]
[null,"  06:00 TO 18:00 MONDAY TO FRIDAY"]
["Area 3","  Security Officer",null,1,2]
[null,"  06:00 TO 18:00 SATURDAY AND SUNDAY/PUBLIC HOLIDAY"]
[null,"  Security Officer",null,0,0]
[null,"  18:00 TO 06:00 MONDAY TO SUNDAY"]
[null,"  Security Officer",null,1,1]
[null,"  Handheld Metal Detector(s)",{"$nulls":4},3]
[]
["5.1.32","MOUTSE"]
[null,"  06:00 TO 18:00 MONDAY TO FRIDAY "]
["Area ","  Security Officer",null,1,3]
[null,"  06:00 TO 18:00 SATURDAY AND SUNDAY/PUBLIC HOLIDAY"]
[null,"  Security Officer",null,0,0]
[null,"  18:00 TO 06:00 MONDAY TO SUNDAY"]
[null,"  Security Officer",null,1,1]
[null,"  Handheld Metal Detector(s)",{"$nulls":4},3]
[]
["5.1.33","GROBLERSDAL "]
[null,"  06:00 TO 18:00 MONDAY TO FRIDAY "]
["Area ","  Security Officer",null,1,3]
[null,"  06:00 TO 18:00 SATURDAY AND SUNDAY/PUBLIC HOLIDAY"]
[null,"  Security Officer",null,0,0]
[null,"  18:00 TO 06:00 MONDAY TO SUNDAY"]
[null,"  Security Officer",null,1,1]
[null,"  Handheld Metal Detector(s)",{"$nulls":4},3]
[null," "]
["5.1.34","GROBLERSDAL: PERIODICAL COURT MARBLE HALL"]
[null,"  06:00 TO 18:00 MONDAY TO FRIDAY "]
["Area ","  Security Officer",null,1,1]
[null,"  06:00 TO 18:00 SATURDAY AND SUNDAY/PUBLIC HOLIDAY"]
[null,"  Security Officer",null,0,0]
[null,"  18:00 TO 06:00 MONDAY TO SUNDAY"]
[null,"  Security Officer",null,1,1]
[null,"  Handheld Metal Detector(s)",{"$nulls":4},2]
[]
["5.1.35","PHALALA: PERIODICAL COURT TOM BURKE"]
[null,"  06:00 TO 18:00 MONDAY TO FRIDAY "]
["Area ","  Security Officer",null,1,1]
[null,"  06:00 TO 18:00 SATURDAY AND SUNDAY/PUBLIC HOLIDAY"]
[null,"  Security Officer",null,0,0]
[null,"  18:00 TO 06:00 MONDAY TO SUNDAY"]
[null,"  Security Officer",null,1,1]
[null,"  Handheld Metal Detector(s)",{"$nulls":4},2]
[]
["5.1.36","LEBOWAKGOMO: PERIODICAL COURT ZEBEDIELA"]
[null,"  06:00 TO 18:00 MONDAY TO FRIDAY "]
["Area ","  Security Officer",null,null,2]
[null,"  06:00 TO 18:00 SATURDAY AND SUNDAY/PUBLIC HOLIDAY"]
[null,"  Security Officer",null,null,0]
[null,"  18:00 TO 06:00 MONDAY TO SUNDAY"]
[null,"  Security Officer",null,null,2]
[null,"  Handheld Metal Detector(s)",{"$nulls":4},2]
[]
["5.1.37","REGISTRAR OF THE HIGH COURT, POLOKWANE BLOCK B"]
[null,"  06:00 TO 18:00 MONDAY TO FRIDAY "]
["Area 3","  Security Officer",null,1,6]
[null,"  06:00 TO 18:00 SATURDAY AND SUNDAY/PUBLIC HOLIDAY"]
[null,"  Security Officer",null,0,0]
[null,"  18:00 TO 06:00 MONDAY TO SUNDAY"]
[null,"  Security Officer",null,1,1]
[null,"  Handheld Metal Detector(s)",{"$nulls":4},3]
[]
["5.1.38","NPA REGISTRAR OF THE HIGH COURT, POLOKWANE BLOCK B"]
[null,"  06:00 TO 18:00 MONDAY TO FRIDAY ",null,1,2]
["Area 3","  Security Officer"]
[null,"  06:00 TO 18:00 SATURDAY AND SUNDAY/PUBLIC HOLIDAY",null,null,0]
[null,"  Security Officer"]
[null,"  18:00 TO 06:00 MONDAY TO SUNDAY",null,null,2]
[null,"  Security Officer"]
[null,"  Handheld Metal Detector(s)",{"$nulls":4},2]
[]
["5.1.39","MUSSINA"]
[null,"  06:00 TO 18:00 MONDAY TO FRIDAY"]
["Area 3","  Security Officer",null,1,3]
[null,"  06:00 TO 18:00 SATURDAY AND SUNDAY/PUBLIC HOLIDAY"]
[null,"  Security Officer",null,0,0]
[null,"  18:00 TO 06:00 MONDAY TO SUNDAY"]
[null,"  Security Officer",null,1,1]
[null,"  Handheld Metal Detector(s)",{"$nulls":4},3]
[]
["5.1.40","REGISTRAR OF THE HIGH COURT: THOHOYANDOU"]
[null,"  06:00 TO 18:00 MONDAY TO FRIDAY"]
["Area 3","  Security Officer",null,1,3,null,null,1]
[null,"  06:00 TO 18:00 SATURDAY AND SUNDAY/PUBLIC HOLIDAY"]
[null,"  Security Officer",null,0,0]
[null,"  18:00 TO 06:00 MONDAY TO SUNDAY"]
[null,"  Security Officer",null,1,1]
[null,"  Handheld Metal Detector(s)",{"$nulls":4},3]
[]
["5.1.41","MALAMULELE: PERIODICAL COURT, SASELAMANI "]
[null,"  06:00 TO 18:00 MONDAY TO FRIDAY"]
["Area 3","  Security Officer",null,null,2]
[null,"  06:00 TO 18:00 SATURDAY AND SUNDAY/PUBLIC HOLIDAY"]
[null,"  Security Officer",null,null,0]
[null,"  18:00 TO 06:00 MONDAY TO SUNDAY"]
[null,"  Security Officer",null,null,2]
[null,"  Handheld Metal Detector(s)",{"$nulls":4},2]
[]
["5.1.42","TSHITALE"]
[null,"  06:00 TO 18:00 MONDAY TO FRIDAY"]
["Area 3","  Security Officer",null,1,2]
[null,"  06:00 TO 18:00 SATURDAY AND SUNDAY/PUBLIC HOLIDAY"]
[null,"  Security Officer",null,0,0]
[null,"  18:00 TO 06:00 MONDAY TO SUNDAY"]
[null,"  Security Officer",null,1,1]
[null,"  Handheld Metal Detector(s)",{"$nulls":4},3]
[]
["5.1.43","MOREBENG SEKGOSESE"]
[null,"  06:00 TO 18:00 MONDAY TO FRIDAY"]
["Area 3","  Security Officer",null,1,3]
[null,"  06:00 TO 18:00 SATURDAY AND SUNDAY/PUBLIC HOLIDAY"]
[null,"  Security Officer",null,0,0]
[null,"  18:00 TO 06:00 MONDAY TO SUNDAY"]
[null,"  Security Officer",null,1,1]
[null,"  Handheld Metal Detector(s)",{"$nulls":4},3]
[]
["5.1.44","THOHOYANDOU"]
[null,"  06:00 TO 18:00 MONDAY TO FRIDAY"]
["Area 3","  Security Officer",null,1,4,null,null,1]
[null,"  06:00 TO 18:00 SATURDAY AND SUNDAY/PUBLIC HOLIDAY"]
[null,"  Security Officer",null,0,0]
[null,"  18:00 TO 06:00 MONDAY TO SUNDAY"]
[null,"  Security Officer",null,1,1]
[null,"  Handheld Metal Detector(s)",{"$nulls":4},3]
[]
["5.1.45","THOHOYANDOU: SIBASA REGIONAL COURT"]
[null,"  06:00 TO 18:00 MONDAY TO FRIDAY"]
["Area 3","  Security Officer",null,1,3]
[null,"  06:00 TO 18:00 SATURDAY AND SUNDAY/PUBLIC HOLIDAY"]
[null,"  Security Officer",null,0,0]
[null,"  18:00 TO 06:00 MONDAY TO SUNDAY"]
[null,"  Security Officer",null,1,1]
[null,"  Handheld Metal Detector(s)",{"$nulls":4},3]
[]
["5.1.46","THOHOYANDOU: PERIODICAL COURT, TSHAULU "]
[null,"  06:00 TO 18:00 MONDAY TO FRIDAY"]
["Area 3","  Security Officer",null,null,2]
[null,"  06:00 TO 18:00 SATURDAY AND SUNDAY/PUBLIC HOLIDAY"]
[null,"  Security Officer",null,null,0]
[null,"  18:00 TO 06:00 MONDAY TO SUNDAY"]
[null,"  Security Officer",null,null,2]
[null,"  Handheld Metal Detector(s)",{"$nulls":4},2]
[]
["5.1.47","TSHILWAVHUSIKU"]
[null,"  06:00 TO 18:00 MONDAY TO FRIDAY"]
["Area 3","  Security Officer",null,1,2]
[null,"  06:00 TO 18:00 SATURDAY AND SUNDAY/PUBLIC HOLIDAY"]
[null,"  Security Officer",null,0,0]
[null,"  18:00 TO 06:00 MONDAY TO SUNDAY"]
[null,"  Security Officer",null,1,1]
[null,"  Handheld Metal Detector(s)",{"$nulls":4},3]
[]
["5.1.48","TZANEEN"]
[null,"  06:00 TO 18:00 MONDAY TO FRIDAY"]
["Area 3","  Security Officer",null,1,3]
[null,"  06:00 TO 18:00 SATURDAY AND SUNDAY/PUBLIC HOLIDAY"]
[null,"  Security Officer",null,0,0]
[null,"  18:00 TO 06:00 MONDAY TO SUNDAY"]
[null,"  Security Officer",null,1,1]
[null,"  Handheld Metal Detector(s)",{"$nulls":4},3]
[]
["5.1.49","BOLOBEDU: PERIODICAL COURT, MODJADJIESKLOOF"]
[null,"  06:00 TO 18:00 MONDAY TO FRIDAY"]
["Area 3","  Security Officer",null,null,2]
[null,"  06:00 TO 18:00 SATURDAY AND SUNDAY/PUBLIC HOLIDAY"]
[null,"  Security Officer",null,null,0]
[null,"  18:00 TO 06:00 MONDAY TO SUNDAY"]
[null,"  Security Officer",null,null,2]
[null,"  Handheld Metal Detector(s)",{"$nulls":4},2]
[]
["5.1.50","LENYENYE / NAPHUNO"]
[null,"  06:00 TO 18:00 MONDAY TO FRIDAY"]
["Area 3","  Security Officer",null,1,5,null,null,1]
[null,"  06:00 TO 18:00 SATURDAY AND SUNDAY/PUBLIC HOLIDAY"]
[null,"  Security Officer",null,0,0]
[null,"  18:00 TO 06:00 MONDAY TO SUNDAY"]
[null,"  Security Officer",null,1,1]
[null,"  Handheld Metal Detector(s)",{"$nulls":4},2]
[]
["5.1.51","MUTALE"]
[null,"  06:00 TO 18:00 MONDAY TO FRIDAY"]
["Area 3","  Security Officer",null,1,2]
[null,"  06:00 TO 18:00 SATURDAY AND SUNDAY/PUBLIC HOLIDAY"]
[null,"  Security Officer",null,0,0]
[null,"  18:00 TO 06:00 MONDAY TO SUNDAY"]
[null,"  Security Officer",null,1,1]
[null,"  Handheld Metal Detector(s)",{"$nulls":4},3]
[]
["5.1.52","MUSINA: PERIODICAL COURT, MASISI "]
[null,"  06:00 TO 18:00 MONDAY TO FRIDAY"]
["Area 3","  Security Officer",null,null,2]
[null,"  06:00 TO 18:00 SATURDAY AND SUNDAY/PUBLIC HOLIDAY"]
[null,"  Security Officer",null,null,0]
[null,"  18:00 TO 06:00 MONDAY TO SUNDAY"]
[null,"  Security Officer",null,null,2]
[null,"  Handheld Metal Detector(s)",{"$nulls":4},2]
[]
["5.1.53","BOLOBEDU"]
[null,"  06:00 TO 18:00 MONDAY TO FRIDAY"]
["Area 3","  Security Officer",null,1,3]
[null,"  06:00 TO 18:00 SATURDAY AND SUNDAY/PUBLIC HOLIDAY"]
[null,"  Security Officer",null,0,0]
[null,"  18:00 TO 06:00 MONDAY TO SUNDAY"]
[null,"  Security Officer",null,1,1]
[null,"  Handheld Metal Detector(s)",{"$nulls":4},3]
[]
["5.1.54","VUWANI"]
[null,"  06:00 TO 18:00 MONDAY TO FRIDAY"]
["Area 3","  Security Officer",null,1,2]
[null,"  06:00 TO 18:00 SATURDAY AND SUNDAY/PUBLIC HOLIDAY"]
[null,"  Security Officer",null,0,0]
[null,"  18:00 TO 06:00 MONDAY TO SUNDAY"]
[null,"  Security Officer",null,1,1]
[null,"  Handheld Metal Detector(s)",{"$nulls":4},3]
[]
["5.1.55","LOUIS TRICHARDT"]
[null,"  06:00 TO 18:00 MONDAY TO FRIDAY"]
["Area 3","  Security Officer",null,1,3,null,null,2]
[null,"  06:00 TO 18:00 SATURDAY AND SUNDAY/PUBLIC HOLIDAY"]
[null,"  Security Officer",null,0,0]
[null,"  18:00 TO 06:00 MONDAY TO SUNDAY"]
[null,"  Security Officer",null,1,1]
[null,"  Handheld Metal Detector(s)",{"$nulls":4},3]
[]
["5.1.56","DZANANI"]
[null,"  06:00 TO 18:00 MONDAY TO FRIDAY"]
["Area 3","  Security Officer",null,1,2]
[null,"  06:00 TO 18:00 SATURDAY AND SUNDAY/PUBLIC HOLIDAY"]
[null,"  Security Officer",null,0,0]
[null,"  18:00 TO 06:00 MONDAY TO SUNDAY"]
[null,"  Security Officer",null,1,1]
[null,"  Handheld Metal Detector(s)",{"$nulls":4},3]
[]
["5.1.57","NKOWANKOWA / RITAVI"]
[null,"  06:00 TO 18:00 MONDAY TO FRIDAY"]
["Area 3","  Security Officer",null,1,3,null,null,1]
[null,"  06:00 TO 18:00 SATURDAY AND SUNDAY/PUBLIC HOLIDAY"]
[null,"  Security Officer",null,0,0]
[null,"  18:00 TO 06:00 MONDAY TO SUNDAY"]
[null,"  Security Officer",null,1,1]
[null,"  Handheld Metal Detector(s)",{"$nulls":4},3]
[]
["5.1.58","WATERVAL / HLANGANANI"]
[null,"  06:00 TO 18:00 MONDAY TO FRIDAY"]
["Area 3","  Security Officer",null,1,3]
[null,"  06:00 TO 18:00 SATURDAY AND SUNDAY/PUBLIC HOLIDAY"]
[null,"  Security Officer",null,0,0]
[null,"  18:00 TO 06:00 MONDAY TO SUNDAY"]
[null,"  Security Officer",null,1,1]
[null,"  Handheld Metal Detector(s)",{"$nulls":4},3]
[]
["5.1.59"," PHALABORWA"]
[null,"  06:00 TO 18:00 MONDAY TO FRIDAY"]
["Area 3","  Security Officer",null,1,3]
[null,"  06:00 TO 18:00 SATURDAY AND SUNDAY/PUBLIC HOLIDAY"]
[null,"  Security Officer",null,0,0]
[null,"  18:00 TO 06:00 MONDAY TO SUNDAY"]
[null,"  Security Officer",null,1,1]
[null,"  Handheld Metal Detector(s)",{"$nulls":4},3]
[]
["5.1.60","TIYANE"]
[null,"  06:00 TO 18:00 MONDAY TO FRIDAY"]
["Area 3","  Security Officer",null,1,2]
[null,"  06:00 TO 18:00 SATURDAY AND SUNDAY/PUBLIC HOLIDAY"]
[null,"  Security Officer",null,0,0]
[null,"  18:00 TO 06:00 MONDAY TO SUNDAY"]
[null,"  Security Officer",null,1,1]
[null,"  Handheld Metal Detector(s)",{"$nulls":4},3]
[]
["5.1.61","GIYANI"]
[null,"  06:00 TO 18:00 MONDAY TO FRIDAY"]
["Area 3","  Security Officer",null,1,3]
[null,"  06:00 TO 18:00 SATURDAY AND SUNDAY/PUBLIC HOLIDAY"]
[null,"  Security Officer",null,0,0]
[null,"  18:00 TO 06:00 MONDAY TO SUNDAY"]
[null,"  Security Officer",null,1,1]
[null,"  Handheld Metal Detector(s)",{"$nulls":4},3]
[]
["5.1.62","MALAMULELE"]
[null,"  06:00 TO 18:00 MONDAY TO FRIDAY"]
["Area 3","  Security Officer",null,1,2]
[null,"  06:00 TO 18:00 SATURDAY AND SUNDAY/PUBLIC HOLIDAY"]
[null,"  Security Officer",null,0,0]
[null,"  18:00 TO 06:00 MONDAY TO SUNDAY"]
[null,"  Security Officer",null,1,1]
[null,"  Handheld Metal Detector(s)",{"$nulls":4},3]
[]
["5.1.63","TZANEEN: FAMILY COURT"]
[null,"  06:00 TO 18:00 MONDAY TO FRIDAY"]
["Area 3","  Security Officer",null,0,2]
[null,"  06:00 TO 18:00 SATURDAY AND SUNDAY/PUBLIC HOLIDAY"]
[null,"  Security Officer",null,0,0]
[null,"  18:00 TO 06:00 MONDAY TO SUNDAY"]
[null,"  Security Officer",null,0,2]
[null,"  Handheld Metal Detector(s)",{"$nulls":4},2]
[{"$nulls":3},{"$f":"SUM(D4:D568)","v":97},{"$f":"SUM(E4:E568)","v":245}]
[]
[{"$nulls":3},"Total",342]

{"sheet":"North west","index":6,"n_rows":482,"n_cols":8,"rows_kept":482,"merged":[[0,2,0,5]]}
[null,"             RFB 2021 __ NW* "]
["Item no","NORTH WEST","Grade B\n","Grade C Armed\n","Grade C Unarmed \n","Control Room CCTV","Hand Held Metaldetector(s) "]
["6.1.1","BRITS"]
[null,"  06:00 TO 18:00 MONDAY TO FRIDAY"]
["Area 3","  Security Officer",null,1,3]
[null,"  06:00 TO 18:00 SATURDAY AND SUNDAY/PUBLIC HOLIDAY"]
[null,"  Security Officer",null,0,0]
[null,"  18:00 TO 06:00 MONDAY TO SUNDAY"]
[null,"  Security Officer",null,1,1]
[null,"  Handheld Metal Detector(s)",{"$nulls":4},3]
[]
["6.1.2","GANYESA"]
[null,"  06:00 TO 18:00 MONDAY TO FRIDAY"]
["Area 3","  Security Officer",null,1,2]
[null,"  06:00 TO 18:00 SATURDAY AND SUNDAY/PUBLIC HOLIDAY"]
[null,"  Security Officer",null,0,0]
[null,"  18:00 TO 06:00 MONDAY TO SUNDAY"]
[null,"  Security Officer",null,1,1]
[null,"  Handheld Metal Detector(s)",{"$nulls":4},3]
[]
["6.1.3","TAUNG"]
[null,"  06:00 TO 18:00 MONDAY TO FRIDAY"]
["Area 3","  Security Officer",null,1,3]
[null,"  06:00 TO 18:00 SATURDAY AND SUNDAY/PUBLIC HOLIDAY"]
[null,"  Security Officer",null,0,0]
[null,"  18:00 TO 06:00 MONDAY TO SUNDAY"]
[null,"  Security Officer",null,1,1]
[null,"  Handheld Metal Detector(s)",{"$nulls":4},3]
[]
["6.1.4","LICHTENBURG"]
[null,"  06:00 TO 18:00 MONDAY TO FRIDAY"]
["Area 3","  Security Officer",null,1,3]
[null,"  06:00 TO 18:00 SATURDAY AND SUNDAY/PUBLIC HOLIDAY"]
[null,"  Security Officer",null,0,0]
[null,"  18:00 TO 06:00 MONDAY TO SUNDAY"]
[null,"  Security Officer",null,1,1]
[null,"  Handheld Metal Detector(s)",{"$nulls":4},3]
[]
["6.1.5","DITSOBOTLA"]
[null,"  06:00 TO 18:00 MONDAY TO FRIDAY"]
["Area 3","  Security Officer",null,1,3]
[null,"  06:00 TO 18:00 SATURDAY AND SUNDAY/PUBLIC HOLIDAY"]
[null,"  Security Officer",null,0,0]
[null,"  18:00 TO 06:00 MONDAY TO SUNDAY"]
[null,"  Security Officer",null,1,1]
[null,"  Handheld Metal Detector(s)",{"$nulls":4},3]
[]
["6.1.6","KLERKSDORP"]
[null,"  06:00 TO 18:00 MONDAY TO FRIDAY"]
["Area 3","  Security Officer",null,1,4,null,null,1]
[null,"  06:00 TO 18:00 SATURDAY AND SUNDAY/PUBLIC HOLIDAY"]
[null,"  Security Officer",null,0,0]
[null,"  18:00 TO 06:00 MONDAY TO SUNDAY"]
[null,"  Security Officer",null,1,2]
[null,"  Handheld Metal Detector(s)",{"$nulls":4},4]
[]
["6.1.7","BAFOKENG"]
[null,"  06:00 TO 18:00 MONDAY TO FRIDAY"]
["Area 3","  Security Officer",null,1,4,null,null,1]
[null,"  06:00 TO 18:00 SATURDAY AND SUNDAY/PUBLIC HOLIDAY"]
[null,"  Security Officer",null,0,0]
[null,"  18:00 TO 06:00 MONDAY TO SUNDAY"]
[null,"  Security Officer",null,1,1]
[null,"  Handheld Metal Detector(s)",{"$nulls":4},4]
[]
["6.1.8","MANKWE"]
[null,"  06:00 TO 18:00 MONDAY TO FRIDAY"]
["Area 3","  Security Officer",null,1,4,null,null,2]
[null,"  06:00 TO 18:00 SATURDAY AND SUNDAY/PUBLIC HOLIDAY"]
[null,"  Security Officer",null,0,0]
[null,"  18:00 TO 06:00 MONDAY TO SUNDAY"]
[null,"  Security Officer",null,1,1]
[null,"  Handheld Metal Detector(s)",{"$nulls":4},5]
[]
["6.1.9","MORETELE /  THEMBA"]
[null,"  06:00 TO 18:00 MONDAY TO FRIDAY"]
["Area 3","  Security Officer",null,1,5,null,null,1]
[null,"  06:00 TO 18:00 SATURDAY AND SUNDAY/PUBLIC HOLIDAY"]
[null,"  Security Officer",null,0,0]
[null,"  18:00 TO 06:00 MONDAY TO SUNDAY"]
[null,"  Security Officer",null,1,2]
[null,"  Handheld Metal Detector(s)",{"$nulls":4},5]
[]
["6.1.10","ODI"]
[null,"  06:00 TO 18:00 MONDAY TO FRIDAY"]
["Area 3","  Security Officer",null,1,5,null,null,1]
[null,"  06:00 TO 18:00 SATURDAY AND SUNDAY/PUBLIC HOLIDAY"]
[null,"  Security Officer",null,0,0]
[null,"  18:00 TO 06:00 MONDAY TO SUNDAY"]
[null,"  Security Officer",null,1,2]
[null,"  Handheld Metal Detector(s)",{"$nulls":4},5]
[]
["6.1.11"," BLOEMHOF"]
[null,"  06:00 TO 18:00 MONDAY TO FRIDAY"]
["Area 3","  Security Officer",null,1,2]
[null,"  06:00 TO 18:00 SATURDAY AND SUNDAY/PUBLIC HOLIDAY"]
[null,"  Security Officer",null,0,0]
[null,"  18:00 TO 06:00 MONDAY TO SUNDAY"]
[null,"  Security Officer",null,1,1]
[null,"  Handheld Metal Detector(s)",{"$nulls":4},3]
[]
["6.1.12"," CHRISTIANA"]
[null,"  06:00 TO 18:00 MONDAY TO FRIDAY"]
["Area 3","  Security Officer",null,1,2]
[null,"  06:00 TO 18:00 SATURDAY AND SUNDAY/PUBLIC HOLIDAY"]
[null,"  Security Officer",null,0,0]
[null,"  18:00 TO 06:00 MONDAY TO SUNDAY"]
[null,"  Security Officer",null,1,1]
[null,"  Handheld Metal Detector(s)",{"$nulls":4},3]
[]
["6.1.13"," SCHWEIZER-RENEKE"]
[null,"  06:00 TO 18:00 MONDAY TO FRIDAY"]
["Area 3","  Security Officer",null,1,2]
[null,"  06:00 TO 18:00 SATURDAY AND SUNDAY/PUBLIC HOLIDAY"]
[null,"  Security Officer",null,0,0]
[null,"  18:00 TO 06:00 MONDAY TO SUNDAY"]
[null,"  Security Officer",null,1,1]
[null,"  Handheld Metal Detector(s)",{"$nulls":4},3]
[]
["6.1.14","WOLMARANSTAD"]
[null,"  06:00 TO 18:00 MONDAY TO FRIDAY"]
["Area 3","  Security Officer",null,1,2]
[null,"  06:00 TO 18:00 SATURDAY AND SUNDAY/PUBLIC HOLIDAY"]
[null,"  Security Officer",null,0,0]
[null,"  18:00 TO 06:00 MONDAY TO SUNDAY"]
[null,"  Security Officer",null,1,1]
[null,"  Handheld Metal Detector(s)",{"$nulls":4},3]
[]
["6.1.15","VRYBURG"]
[null,"  06:00 TO 18:00 MONDAY TO FRIDAY"]
["Area 3","  Security Officer",null,1,3,null,null,2]
[null,"  06:00 TO 18:00 SATURDAY AND SUNDAY/PUBLIC HOLIDAY"]
[null,"  Security Officer",null,0,0]
[null,"  18:00 TO 06:00 MONDAY TO SUNDAY"]
[null,"  Security Officer",null,1,2]
[null,"  Handheld Metal Detector(s)",{"$nulls":4},4]
[]
["6.1.16","ATAMELANG"]
[null,"  06:00 TO 18:00 MONDAY TO FRIDAY"]
["Area 3","  Security Officer",null,1,2]
[null,"  06:00 TO 18:00 SATURDAY AND SUNDAY/PUBLIC HOLIDAY"]
[null,"  Security Officer",null,0,0]
[null,"  18:00 TO 06:00 MONDAY TO SUNDAY"]
[null,"  Security Officer",null,1,1]
[null,"  Handheld Metal Detector(s)",{"$nulls":4},3]
[]
["6.1.17","RUSTENBURG"]
[null,"  06:00 TO 18:00 MONDAY TO FRIDAY"]
["Area 3","  Security Officer",null,1,4,null,null,1]
[null,"  06:00 TO 18:00 SATURDAY AND SUNDAY/PUBLIC HOLIDAY"]
[null,"  Security Officer",null,0,0]
[null,"  18:00 TO 06:00 MONDAY TO SUNDAY"]
[null,"  Security Officer",null,1,2]
[null,"  Handheld Metal Detector(s)",{"$nulls":4},3]
[]
["6.1.18","BRITS: JERICHO PERIODICAL COURT"]
[null,"  06:00 TO 18:00 MONDAY TO FRIDAY"]
["Area 3","  Security Officer",null,1,1]
[null,"  06:00 TO 18:00 SATURDAY AND SUNDAY/PUBLIC HOLIDAY"]
[null,"  Security Officer",null,0,0]
[null,"  18:00 TO 06:00 MONDAY TO SUNDAY"]
[null,"  Security Officer",null,1,1]
[null,"  Handheld Metal Detector(s)",{"$nulls":4},2]
[]
["6.1.19","MMAKAU PERIODICAL COURT"]
[null,"  06:00 TO 18:00 MONDAY TO FRIDAY"]
["Area 3","  Security Officer",null,1,1]
[null,"  06:00 TO 18:00 SATURDAY AND SUNDAY/PUBLIC HOLIDAY"]
[null,"  Security Officer",null,0,0]
[null,"  18:00 TO 06:00 MONDAY TO SUNDAY"]
[null,"  Security Officer",null,1,1]
[null,"  Handheld Metal Detector(s)",{"$nulls":4},2]
[]
["6.1.20","WOLMARANSTAD: LEEUDORINGSTAD PERIODICAL COURT  "]
[null,"  06:00 TO 18:00 MONDAY TO FRIDAY"]
["Area 3","  Security Officer",null,1,1]
[null,"  06:00 TO 18:00 SATURDAY AND SUNDAY/PUBLIC HOLIDAY"]
[null,"  Security Officer",null,0,0]
[null,"  18:00 TO 06:00 MONDAY TO SUNDAY"]
[null,"  Security Officer",null,1,1]
[null,"  Handheld Metal Detector(s)",{"$nulls":4},2]
[]
["6.1.21","WOLMARANSTAD: MAKWASSIE PERIODICAL COURT  "]
[null,"  06:00 TO 18:00 MONDAY TO FRIDAY"]
["Area 3","  Security Officer",null,1,1]
[null,"  06:00 TO 18:00 SATURDAY AND SUNDAY/PUBLIC HOLIDAY"]
[null,"  Security Officer",null,0,0]
[null,"  18:00 TO 06:00 MONDAY TO SUNDAY"]
[null,"  Security Officer",null,1,1]
[null,"  Handheld Metal Detector(s)",{"$nulls":4},2]
[]
["6.1.22","ORKNEY  "]
[null,"  06:00 TO 18:00 MONDAY TO FRIDAY"]
["Area 3","  Security Officer",null,1,2]
[null,"  06:00 TO 18:00 SATURDAY AND SUNDAY/PUBLIC HOLIDAY"]
[null,"  Security Officer",null,0,0]
[null,"  18:00 TO 06:00 MONDAY TO SUNDAY"]
[null,"  Security Officer",null,1,1]
[null,"  Handheld Metal Detector(s)",{"$nulls":4},3]
[]
["6.1.23","  STILFONTEIN "]
[null,"  06:00 TO 18:00 MONDAY TO FRIDAY"]
["Area 3","  Security Officer",null,1,2]
[null,"  06:00 TO 18:00 SATURDAY AND SUNDAY/PUBLIC HOLIDAY"]
[null,"  Security Officer",null,0,0]
[null,"  18:00 TO 06:00 MONDAY TO SUNDAY"]
[null,"  Security Officer",null,1,1]
[null,"  Handheld Metal Detector(s)",{"$nulls":4},3]
[]
["6.1.24","MOLOPO: MAKGOBISTAD PERIODICAL COURT"]
[null,"  06:00 TO 18:00 MONDAY TO FRIDAY"]
["Area 3","  Security Officer",null,1,1]
[null,"  06:00 TO 18:00 SATURDAY AND SUNDAY/PUBLIC HOLIDAY"]
[null,"  Security Officer",null,0,0]
[null,"  18:00 TO 06:00 MONDAY TO SUNDAY"]
[null,"  Security Officer",null,1,1]
[null,"  Handheld Metal Detector(s)",{"$nulls":4},2]
[]
["6.1.25","GANYESA: MOROKWENG PERIODICAL COURT"]
[null,"  06:00 TO 18:00 MONDAY TO FRIDAY"]
["Area 3","  Security Officer",null,1,1]
[null,"  06:00 TO 18:00 SATURDAY AND SUNDAY/PUBLIC HOLIDAY"]
[null,"  Security Officer",null,0,0]
[null,"  18:00 TO 06:00 MONDAY TO SUNDAY"]
[null,"  Security Officer",null,1,1]
[null,"  Handheld Metal Detector(s)",{"$nulls":4},2]
[]
["6.1.26"," FAMILY ADVOCATE : RUSTENBURG"]
[null,"  06:00 TO 18:00 MONDAY TO FRIDAY"]
["Area 3","  Security Officer",null,1,1]
[null,"  06:00 TO 18:00 SATURDAY AND SUNDAY/PUBLIC HOLIDAY"]
[null,"  Security Officer",null,0,0]
[null,"  18:00 TO 06:00 MONDAY TO SUNDAY"]
[null,"  Security Officer",null,1,1]
[null,"  Handheld Metal Detector(s)",{"$nulls":4},2]
[]
["6.1.27","LICHTENBURG: SANNIESHOF PERIODICAL COURT"]
[null,"  06:00 TO 18:00 MONDAY TO FRIDAY"]
["Area 3","  Security Officer",null,1,1]
[null,"  06:00 TO 18:00 SATURDAY AND SUNDAY/PUBLIC HOLIDAY"]
[null,"  Security Officer",null,0,0]
[null,"  18:00 TO 06:00 MONDAY TO SUNDAY"]
[null,"  Security Officer",null,1,1]
[null,"  Handheld Metal Detector(s)",{"$nulls":4},2]
[]
["6.1.28","RUSTENBURG: MARIKANA BRANCH COURT"]
[null,"  06:00 TO 18:00 MONDAY TO FRIDAY"]
["Area 3","  Security Officer",null,1,1]
[null,"  06:00 TO 18:00 SATURDAY AND SUNDAY/PUBLIC HOLIDAY"]
[null,"  Security Officer",null,0,0]
[null,"  18:00 TO 06:00 MONDAY TO SUNDAY"]
[null,"  Security Officer",null,1,1]
[null,"  Handheld Metal Detector(s)",{"$nulls":4},2]
[]
["6.1.29","FAMILY ADVOCATE: KLERKSDORP"]
[null,"  06:00 TO 18:00 MONDAY TO FRIDAY"]
["Area 1","  Security Officer",null,1,2]
[null,"  06:00 TO 18:00 SATURDAY AND SUNDAY/PUBLIC HOLIDAY"]
[null,"  Security Officer",null,0,0]
[null,"  18:00 TO 06:00 MONDAY TO SUNDAY"]
[null,"  Security Officer",null,1,1]
[null,"  Handheld Metal Detector(s)",{"$nulls":4},3]
[]
["6.1.30","KLERKSDORP :HARTBEESFONTEIN PERIODICAL COURT"]
[null,"  06:00 TO 18:00 MONDAY TO FRIDAY"]
["Area 1","  Security Officer",null,1,1]
[null,"  06:00 TO 18:00 SATURDAY AND SUNDAY/PUBLIC HOLIDAY"]
[null,"  Security Officer",null,0,0]
[null,"  18:00 TO 06:00 MONDAY TO SUNDAY"]
[null,"  Security Officer",null,1,1]
[null,"  Handheld Metal Detector(s)",{"$nulls":4},2]
[]
["6.1.31","KGOMOTSO"]
[null,"  06:00 TO 18:00 MONDAY TO FRIDAY"]
["Area 3","  Security Officer",null,1,2]
[null,"  06:00 TO 18:00 SATURDAY AND SUNDAY/PUBLIC HOLIDAY"]
[null,"  Security Officer",null,0,0]
[null,"  18:00 TO 06:00 MONDAY TO SUNDAY"]
[null,"  Security Officer",null,1,1]
[null,"  Handheld Metal Detector(s)",{"$nulls":4},3]
[]
["6.1.32","NPA : DPP KLERKSDORP"]
[null,"  06:00 TO 18:00 MONDAY TO FRIDAY "]
["Area 1","  Security Officer",null,1,1]
[null,"  06:00 TO 18:00 SATURDAY AND SUNDAY/PUBLIC HOLIDAY"]
[null,"  Security Officer",null,0,0]
[null,"  18:00 TO 06:00 MONDAY TO SUNDAY"]
[null,"  Security Officer",null,1,1]
[null,"Handheld Metal Detectors(s)",{"$nulls":4},2]
[]
["6.1.33","LEHURUTSHE"]
[null,"  06:00 TO 18:00 MONDAY TO FRIDAY"]
["Area 3","  Security Officer",null,1,2]
[null,"  06:00 TO 18:00 SATURDAY AND SUNDAY/PUBLIC HOLIDAY"]
[null,"  Security Officer",null,0,0]
[null,"  18:00 TO 06:00 MONDAY TO SUNDAY"]
[null,"  Security Officer",null,1,2]
[null,"  Handheld Metal Detector(s)",{"$nulls":4},3]
[]
["6.1.34","MASTER OF HIGH COURT, MMABATHO"]
[null,"  06:00 TO 18:00 MONDAY TO FRIDAY"]
["Area 3","  Security Officer",null,1,3]
[null,"  06:00 TO 18:00 SATURDAY AND SUNDAY/PUBLIC HOLIDAY"]
[null,"  Security Officer",null,0,0]
[null,"  18:00 TO 06:00 MONDAY TO SUNDAY"]
[null,"  Security Officer",null,1,1]
[null,"  Handheld Metal Detector(s)",{"$nulls":4},3]
[]
["6.1.35","REGIONAL OFFICE :  NORTH WEST "]
[null,"  06:00 TO 18:00 MONDAY TO FRIDAY"]
["Area 3","  Security Officer",null,1,4,null,null,1]
[null,"  06:00 TO 18:00 SATURDAY AND SUNDAY/PUBLIC HOLIDAY"]
[null,"  Security Officer",null,0,0]
[null,"  18:00 TO 06:00 MONDAY TO SUNDAY"]
[null,"  Security Officer",null,1,1,null,null,1]
[null,"  Handheld Metal Detector(s)",{"$nulls":4},4]
[]
["6.1.36","MOLOPO"]
[null,"  06:00 TO 18:00 MONDAY TO FRIDAY"]
["Area 3","  Security Officer",null,1,5]
[null,"  06:00 TO 18:00 SATURDAY AND SUNDAY/PUBLIC HOLIDAY"]
[null,"  Security Officer",null,0,0]
[null,"  18:00 TO 06:00 MONDAY TO SUNDAY"]
[null,"  Security Officer",null,1,2]
[null,"  Handheld Metal Detector(s)",{"$nulls":4},3]
[]
["6.1.37"," DELAREYVILLE"]
[null,"  06:00 TO 18:00 MONDAY TO FRIDAY"]
["Area 3","  Security Officer",null,1,2]
[null,"  06:00 TO 18:00 SATURDAY AND SUNDAY/PUBLIC HOLIDAY"]
[null,"  Security Officer",null,0,0]
[null,"  18:00 TO 06:00 MONDAY TO SUNDAY"]
[null,"  Security Officer",null,1,1]
[null,"  Handheld Metal Detector(s)",{"$nulls":4},3]
[]
["6.1.38"," KOSTER"]
[null,"  06:00 TO 18:00 MONDAY TO FRIDAY"]
["Area 3","  Security Officer",null,1,3]
[null,"  06:00 TO 18:00 SATURDAY AND SUNDAY/PUBLIC HOLIDAY"]
[null,"  Security Officer",null,0,0]
[null,"  18:00 TO 06:00 MONDAY TO SUNDAY"]
[null,"  Security Officer",null,1,1]
[null,"  Handheld Metal Detector(s)",{"$nulls":4},3]
[]
["6.1.39"," VENTERSDORP"]
[null,"  06:00 TO 18:00 MONDAY TO FRIDAY"]
["Area 3","  Security Officer",null,1,2]
[null,"  06:00 TO 18:00 SATURDAY AND SUNDAY/PUBLIC HOLIDAY"]
[null,"  Security Officer",null,0,0]
[null,"  18:00 TO 06:00 MONDAY TO SUNDAY"]
[null,"  Security Officer",null,1,1]
[null,"  Handheld Metal Detector(s)",{"$nulls":4},3]
[]
["6.1.40","COLIGNY"]
[null,"  06:00 TO 18:00 MONDAY TO FRIDAY"]
["Area 3","  Security Officer",null,1,2]
[null,"  06:00 TO 18:00 SATURDAY AND SUNDAY/PUBLIC HOLIDAY"]
[null,"  Security Officer",null,0,0]
[null,"  18:00 TO 06:00 MONDAY TO SUNDAY"]
[null,"  Security Officer",null,1,1]
[null,"  Handheld Metal Detector(s)",{"$nulls":4},3]
[]
["6.1.41","GROOT MARICO"]
[null,"  06:00 TO 18:00 MONDAY TO FRIDAY"]
["Area 3","  Security Officer",null,1,1]
[null,"  06:00 TO 18:00 SATURDAY AND SUNDAY/PUBLIC HOLIDAY"]
[null,"  Security Officer",null,0,0]
[null,"  18:00 TO 06:00 MONDAY TO SUNDAY"]
[null,"  Security Officer",null,1,1]
[null,"  Handheld Metal Detector(s)",{"$nulls":4},2]
[]
["6.1.42","OTTOSDAL"]
[null,"  06:00 TO 18:00 MONDAY TO FRIDAY"]
["Area 3","  Security Officer",null,1,2]
[null,"  06:00 TO 18:00 SATURDAY AND SUNDAY/PUBLIC HOLIDAY"]
[null,"  Security Officer",null,0,0]
[null,"  18:00 TO 06:00 MONDAY TO SUNDAY"]
[null,"  Security Officer",null,1,1]
[null,"  Handheld Metal Detector(s)",{"$nulls":4},3]
[]
["6.1.43","POTCHEFSTROOM"]
[null,"  06:00 TO 18:00 MONDAY TO FRIDAY"]
["Area 3","  Security Officer",null,1,4]
[null,"  06:00 TO 18:00 SATURDAY AND SUNDAY/PUBLIC HOLIDAY"]
[null,"  Security Officer",null,0,0]
[null,"  18:00 TO 06:00 MONDAY TO SUNDAY"]
[null,"  Security Officer",null,1,2]
[null,"  Handheld Metal Detector(s)",{"$nulls":4},4]
[]
["6.1.44","SWARTRUGGENS"]
[null,"  06:00 TO 18:00 MONDAY TO FRIDAY"]
["Area 3","  Security Officer",null,1,2]
[null,"  06:00 TO 18:00 SATURDAY AND SUNDAY/PUBLIC HOLIDAY"]
[null,"  Security Officer",null,0,0]
[null,"  18:00 TO 06:00 MONDAY TO SUNDAY"]
[null,"  Security Officer",null,1,1]
[null,"  Handheld Metal Detector(s)",{"$nulls":4},3]
[]
["6.1.45","ZEERUST"]
[null,"  06:00 TO 18:00 MONDAY TO FRIDAY"]
["Area 3","  Security Officer",null,1,3]
[null,"  06:00 TO 18:00 SATURDAY AND SUNDAY/PUBLIC HOLIDAY"]
[null,"  Security Officer",null,0,0]
[null,"  18:00 TO 06:00 MONDAY TO SUNDAY"]
[null,"  Security Officer",null,1,1]
[null,"  Handheld Metal Detector(s)",{"$nulls":4},3]
[]
["6.1.46","STATE ATTORNEY MMABATHO "]
[null,"  06:00 TO 18:00 MONDAY TO FRIDAY"]
["Area 3","  Security Officer",null,1,2]
[null,"  06:00 TO 18:00 SATURDAY AND SUNDAY/PUBLIC HOLIDAY"]
[null,"  Security Officer",null,0,0]
[null,"  18:00 TO 06:00 MONDAY TO SUNDAY"]
[null,"  Security Officer",null,1,1]
[null,"  Handheld Metal Detector(s)",{"$nulls":4},3]
[]
["6.1.47","MADIKWE"]
[null,"  06:00 TO 18:00 MONDAY TO FRIDAY"]
["Area 3","  Security Officer",null,1,3]
[null,"  06:00 TO 18:00 SATURDAY AND SUNDAY/PUBLIC HOLIDAY"]
[null,"  Security Officer",null,0,0]
[null,"  18:00 TO 06:00 MONDAY TO SUNDAY"]
[null,"  Security Officer",null,1,1]
[null,"  Handheld Metal Detector(s)",{"$nulls":4},3]
[]
["6.1.48","MOLOPO REGIONAL COURT"]
[null,"  06:00 TO 18:00 MONDAY TO FRIDAY"]
["Area 3","  Security Officer",null,1,3]
[null,"  06:00 TO 18:00 SATURDAY AND SUNDAY/PUBLIC HOLIDAY"]
[null,"  Security Officer",null,0,0]
[null,"  18:00 TO 06:00 MONDAY TO SUNDAY"]
[null,"  Security Officer",null,1,2]
[null,"  Handheld Metal Detector(s)",{"$nulls":4},3]
[]
["6.1.49","REGISTRAR HIGH COURT MMABATHO "]
[null,"  06:00 TO 18:00 MONDAY TO FRIDAY"]
["Area 3","  Security Officer",null,2,5,null,null,2]
[null,"  06:00 TO 18:00 SATURDAY AND SUNDAY/PUBLIC HOLIDAY"]
[null,"  Security Officer",null,0,0]
[null,"  18:00 TO 06:00 MONDAY TO SUNDAY"]
[null,"  Security Officer",null,1,1]
[null,"  Handheld Metal Detector(s)",{"$nulls":4},3]
[]
["6.1.50","KOSTER : BOONS PERIODICAL COURT"]
[null,"  06:00 TO 18:00 MONDAY TO FRIDAY"]
["Area 3","  Security Officer",null,1,1]
[null,"  06:00 TO 18:00 SATURDAY AND SUNDAY/PUBLIC HOLIDAY"]
[null,"  Security Officer",null,0,0]
[null,"  18:00 TO 06:00 MONDAY TO SUNDAY"]
[null,"  Security Officer",null,1,1]
[null,"  Handheld Metal Detector(s)",{"$nulls":4},2]
[]
["6.1.51","POTCHEFSTROOM: IKAGENG COMMUNITY COURT"]
[null,"  06:00 TO 18:00 MONDAY TO FRIDAY"]
["Area 3","  Security Officer",null,1,2]
[null,"  06:00 TO 18:00 SATURDAY AND SUNDAY/PUBLIC HOLIDAY"]
[null,"  Security Officer",null,0,0]
[null,"  18:00 TO 06:00 MONDAY TO SUNDAY"]
[null,"  Security Officer",null,1,1]
[null,"  Handheld Metal Detector(s)",{"$nulls":4},3]
[]
["6.1.52","FAMILY ADVOCATE: MAFIKENG"]
[null,"  06:00 TO 18:00 MONDAY TO FRIDAY"]
["Area 3","  Security Officer",null,1,2]
[null,"  06:00 TO 18:00 SATURDAY AND SUNDAY/PUBLIC HOLIDAY"]
[null,"  Security Officer",null,0,0]
[null,"  18:00 TO 06:00 MONDAY TO SUNDAY"]
[null,"  Security Officer",null,1,1]
[null,"  Handheld Metal Detector(s)",{"$nulls":4},3]
[]
["6.1.53","NPA: DPP MMABATHO"]
[null,"  06:00 TO 18:00 MONDAY TO FRIDAY"]
["Area 3","  Security Officer",null,2,2,null,null,2]
[null,"  06:00 TO 18:00 SATURDAY AND SUNDAY/PUBLIC HOLIDAY"]
[null,"  Security Officer",null,0,0]
[null,"  18:00 TO 06:00 MONDAY TO SUNDAY"]
[null,"  Security Officer",null,1,1,null,null,1]
[null,"  Handheld Metal Detector(s)",{"$nulls":4},3]
[{"$nulls":3},{"$f":"SUM(D4:D478)","v":108},{"$f":"SUM(E4:E478)","v":189}]
[]
[]
[{"$nulls":3},"Total ",297]

{"sheet":"Free State","index":7,"n_rows":769,"n_cols":8,"rows_kept":769,"merged":[[0,2,0,5]]}
[null,"               RFB 2021 __ FS"]
["Item no","FREE STATE","Grade B\n","Grade C Armed\n","Grade C Unarmed \n","Control Room    CCTV\n","Hand Held Metaldetector(s) "]
["7.1.1","SHARED COURT SERVICE CENTRE, FREE STATE"]
[null,"  06:00 TO 18:00 MONDAY TO FRIDAY "]
["Area 1","  Security Officer",null,1,3,0]
[null,"  06:00 TO 18:00 SATURDAY AND SUNDAY/PUBLIC HOLIDAY"]
[null,"  Security Officer",null,0,0,0]
[null,"  18:00 TO 06:00 MONDAY TO SUNDAY"]
[null,"  Security Officer",null,1,1,0]
[null,"  Handheld Metal Detector(s)",{"$nulls":4},3]
[]
["7.1.2","APPEAL COURT: BLOEMFONTEIN"]
[null,"  06:00 TO 18:00 MONDAY TO FRIDAY "]
["Area 1","  Security Officer",null,1,5,null,null,2]
[null,"  06:00 TO 18:00 SATURDAY AND SUNDAY/PUBLIC HOLIDAY"]
[null,"  Security Officer",null,0,0]
[null,"  18:00 TO 06:00 MONDAY TO SUNDAY"]
[null,"  Security Officer",null,1,1]
[null,"  Handheld Metal Detector(s)",{"$nulls":4},3]
[]
["7.1.3","REGISTRAR OF THE HIGH COURT: BLOEMFONTEIN"]
[null,"  06:00 TO 18:00 MONDAY TO FRIDAY "]
["Area 1","  Security Officer",null,1,4]
[null,"  06:00 TO 18:00 SATURDAY AND SUNDAY/PUBLIC HOLIDAY"]
[null,"  Security Officer",null,0,0]
[null,"  18:00 TO 06:00 MONDAY TO SUNDAY"]
[null,"  Security Officer",null,1,1]
[null,"  Handheld Metal Detector(s)",{"$nulls":4},3]
[]
["7.1.4","BLOEMFONTEIN (MAIN COURT) "]
[null,"  06:00 TO 18:00 MONDAY TO FRIDAY "]
["Area 1","  Security Officer",null,1,6,0,null,1]
[null,"  06:00 TO 18:00 SATURDAY AND SUNDAY/PUBLIC HOLIDAY"]
[null,"  Security Officer",null,0,0,0]
[null,"  18:00 TO 06:00 MONDAY TO SUNDAY"]
[null,"  Security Officer",null,1,1,0]
[null,"  Handheld Metal Detector(s)",{"$nulls":4},6]
[]
["7.1.5","BOTSHABELO"]
[null,"  06:00 TO 18:00 MONDAY TO FRIDAY "]
["Area 3","  Security Officer",null,1,3,0]
[null,"  06:00 TO 18:00 SATURDAY AND SUNDAY/PUBLIC HOLIDAY"]
[null,"  Security Officer",null,0,0,0]
[null,"  18:00 TO 06:00 MONDAY TO SUNDAY"]
[null,"  Security Officer",null,1,1,0]
[null,"  Handheld Metal Detector(s)",{"$nulls":4},3]
[]
["7.1.6","BETHULE"]
[null,"  06:00 TO 18:00 MONDAY TO FRIDAY "]
["Area 3","  Security Officer",null,1,2,0]
[null,"  06:00 TO 18:00 SATURDAY AND SUNDAY/PUBLIC HOLIDAY"]
[null,"  Security Officer",null,0,0,0]
[null,"  18:00 TO 06:00 MONDAY TO SUNDAY"]
[null,"  Security Officer",null,1,1,0]
[null,"  Handheld Metal Detector(s)",{"$nulls":4},3]
[]
["7.1.7","ROUXVILLE"]
[null,"  06:00 TO 18:00 MONDAY TO FRIDAY "]
["Area 3","  Security Officer",null,1,2,0]
[null,"  06:00 TO 18:00 SATURDAY AND SUNDAY/PUBLIC HOLIDAY"]
[null,"  Security Officer",null,0,0,0]
[null,"  18:00 TO 06:00 MONDAY TO SUNDAY"]
[null,"  Security Officer",null,1,1,0]
[null,"  Handheld Metal Detector(s)",{"$nulls":4},3]
[]
["7.1.8","BOSHOF"]
[null,"  06:00 TO 18:00 MONDAY TO FRIDAY "]
["Area 3","  Security Officer",null,1,2,0]
[null,"  06:00 TO 18:00 SATURDAY AND SUNDAY/PUBLIC HOLIDAY"]
[null,"  Security Officer",null,0,0,0]
[null,"  18:00 TO 06:00 MONDAY TO SUNDAY"]
[null,"  Security Officer",null,1,1,0]
[null,"  Handheld Metal Detector(s)",{"$nulls":4},3]
[]
["7.1.9","THABA-NCHU"]
[null,"  06:00 TO 18:00 MONDAY TO FRIDAY "]
["Area 3","  Security Officer",null,1,4,0,null,1]
[null,"  06:00 TO 18:00 SATURDAY AND SUNDAY/PUBLIC HOLIDAY"]
[null,"  Security Officer",null,0,0,0]
[null,"  18:00 TO 06:00 MONDAY TO SUNDAY"]
[null,"  Security Officer",null,1,1,0]
[null,"  Handheld Metal Detector(s)",{"$nulls":4},5]
[]
["7.1.10","MASTER OF THE HIGH COURT: BLOEMFONTEIN "]
[null,"  06:00 TO 18:00 MONDAY TO FRIDAY "]
["Area 1","  Security Officer",null,1,3,0]
[null,"  06:00 TO 18:00 SATURDAY AND SUNDAY/PUBLIC HOLIDAY"]
[null,"  Security Officer",null,0,0,0]
[null,"  18:00 TO 06:00 MONDAY TO SUNDAY"]
[null,"  Security Officer",null,1,1,0]
[null,"  Handheld Metal Detector(s)",{"$nulls":4},3]
[]
["7.1.11","BUILTFONTEIN"]
[null,"  06:00 TO 18:00 MONDAY TO FRIDAY "]
["Area 3","  Security Officer",null,1,2,0]
[null,"  06:00 TO 18:00 SATURDAY AND SUNDAY/PUBLIC HOLIDAY"]
[null,"  Security Officer",null,0,0,0]
[null,"  18:00 TO 06:00 MONDAY TO SUNDAY"]
[null,"  Security Officer",null,1,1,0]
[null,"  Handheld Metal Detector(s)",{"$nulls":4},3]
[]
["7.1.12","PETRUSBURG"]
[null,"  06:00 TO 18:00 MONDAY TO FRIDAY "]
["Area 3","  Security Officer",null,1,2,0]
[null,"  06:00 TO 18:00 SATURDAY AND SUNDAY/PUBLIC HOLIDAY"]
[null,"  Security Officer",null,0,0,0]
[null,"  18:00 TO 06:00 MONDAY TO SUNDAY"]
[null,"  Security Officer",null,1,1,0]
[null,"  Handheld Metal Detector(s)",{"$nulls":4},3]
[]
["7.1.13","THEUNISSEN"]
[null,"  06:00 TO 18:00 MONDAY TO FRIDAY "]
["Area 3","  Security Officer",null,1,2,0]
[null,"  06:00 TO 18:00 SATURDAY AND SUNDAY/PUBLIC HOLIDAY"]
[null,"  Security Officer",null,0,0,0]
[null,"  18:00 TO 06:00 MONDAY TO SUNDAY"]
[null,"  Security Officer",null,1,1,0]
[null,"  Handheld Metal Detector(s)",{"$nulls":4},3]
[]
["7.1.14","ZASTRON"]
[null,"  06:00 TO 18:00 MONDAY TO FRIDAY "]
["Area 3","  Security Officer",null,1,2,0]
[null,"  06:00 TO 18:00 SATURDAY AND SUNDAY/PUBLIC HOLIDAY"]
[null,"  Security Officer",null,0,0,0]
[null,"  18:00 TO 06:00 MONDAY TO SUNDAY"]
[null,"  Security Officer",null,1,1,0]
[null,"  Handheld Metal Detector(s)",{"$nulls":4},3]
[]
["7.1.15","LADYBRAND"]
[null,"  06:00 TO 18:00 MONDAY TO FRIDAY "]
["Area 3","  Security Officer",null,1,3,0]
[null,"  06:00 TO 18:00 SATURDAY AND SUNDAY/PUBLIC HOLIDAY"]
[null,"  Security Officer",null,0,0,0]
[null,"  18:00 TO 06:00 MONDAY TO SUNDAY"]
[null,"  Security Officer",null,1,1,0]
[null,"  Handheld Metal Detector(s)",{"$nulls":4},3]
[]
["7.1.16","FAURESMITH"]
[null,"  06:00 TO 18:00 MONDAY TO FRIDAY "]
["Area 3","  Security Officer",null,1,2,0]
[null,"  06:00 TO 18:00 SATURDAY AND SUNDAY/PUBLIC HOLIDAY"]
[null,"  Security Officer",null,0,0,0]
[null,"  18:00 TO 06:00 MONDAY TO SUNDAY"]
[null,"  Security Officer",null,1,1,0]
[null,"  Handheld Metal Detector(s)",{"$nulls":4},3]
[]
["7.1.17","EDENBURG"]
[null,"  06:00 TO 18:00 MONDAY TO FRIDAY "]
["Area 3","  Security Officer",null,1,3,0]
[null,"  06:00 TO 18:00 SATURDAY AND SUNDAY/PUBLIC HOLIDAY"]
[null,"  Security Officer",null,0,0,0]
[null,"  18:00 TO 06:00 MONDAY TO SUNDAY"]
[null,"  Security Officer",null,1,1,0]
[null,"  Handheld Metal Detector(s)",{"$nulls":4},3]
[]
["7.1.18","ODENDAALRUS"]
[null,"  06:00 TO 18:00 MONDAY TO FRIDAY "]
["Area 3","  Security Officer",null,1,3,0,null,1]
[null,"  06:00 TO 18:00 SATURDAY AND SUNDAY/PUBLIC HOLIDAY"]
[null,"  Security Officer",null,0,0,0]
[null,"  18:00 TO 06:00 MONDAY TO SUNDAY"]
[null,"  Security Officer",null,1,1,0]
[null,"  Handheld Metal Detector(s)",{"$nulls":4},4]
[]
["7.1.19","DOMESTIC VIOLENT COURT: BLOEMFONTEIN"]
[null,"  06:00 TO 18:00 MONDAY TO FRIDAY "]
["Area 1","  Security Officer",null,1,2,0]
[null,"  06:00 TO 18:00 SATURDAY AND SUNDAY/PUBLIC HOLIDAY"]
[null,"  Security Officer",null,0,0,0]
[null,"  18:00 TO 06:00 MONDAY TO SUNDAY"]
[null,"  Security Officer",null,1,1,0]
[null,"  Handheld Metal Detector(s)",{"$nulls":4},3]
[]
["7.1.20","BATHO (BLOEMFONTEIN) "]
[null,"  06:00 TO 18:00 MONDAY TO FRIDAY "]
["Area 1","  Security Officer",null,1,2,0]
[null,"  06:00 TO 18:00 SATURDAY AND SUNDAY/PUBLIC HOLIDAY"]
[null,"  Security Officer",null,0,0,0]
[null,"  18:00 TO 06:00 MONDAY TO SUNDAY"]
[null,"  Security Officer",null,1,1,0]
[null,"  Handheld Metal Detector(s)",{"$nulls":4},3]
[]
["7.1.21","CLOCOLAN"]
[null,"  06:00 TO 18:00 MONDAY TO FRIDAY "]
["Area 3","  Security Officer",null,1,2,0]
[null,"  06:00 TO 18:00 SATURDAY AND SUNDAY/PUBLIC HOLIDAY"]
[null,"  Security Officer",null,0,0,0]
[null,"  18:00 TO 06:00 MONDAY TO SUNDAY"]
[null,"  Security Officer",null,1,1,0]
[null,"  Handheld Metal Detector(s)",{"$nulls":4},3]
[]
["7.1.22","EXCELSIOR"]
[null,"  06:00 TO 18:00 MONDAY TO FRIDAY "]
["Area 3","  Security Officer",null,1,2,0]
[null,"  06:00 TO 18:00 SATURDAY AND SUNDAY/PUBLIC HOLIDAY"]
[null,"  Security Officer",null,0,0,0]
[null,"  18:00 TO 06:00 MONDAY TO SUNDAY"]
[null,"  Security Officer",null,1,1,0]
[null,"  Handheld Metal Detector(s)",{"$nulls":4},3]
[]
["7.1.23","HOOPSTAD"]
[null,"  06:00 TO 18:00 MONDAY TO FRIDAY "]
["Area 3","  Security Officer",null,1,2,0]
[null,"  06:00 TO 18:00 SATURDAY AND SUNDAY/PUBLIC HOLIDAY"]
[null,"  Security Officer",null,0,0,0]
[null,"  18:00 TO 06:00 MONDAY TO SUNDAY"]
[null,"  Security Officer",null,1,1,0]
[null,"  Handheld Metal Detector(s)",{"$nulls":4},3]
[]
["7.1.24","WEPENER"]
[null,"  06:00 TO 18:00 MONDAY TO FRIDAY "]
["Area 3","  Security Officer",null,1,2,0]
[null,"  06:00 TO 18:00 SATURDAY AND SUNDAY/PUBLIC HOLIDAY"]
[null,"  Security Officer",null,0,0,0]
[null,"  18:00 TO 06:00 MONDAY TO SUNDAY"]
[null,"  Security Officer",null,1,1,0]
[null,"  Handheld Metal Detector(s)",{"$nulls":4},3]
[]
["7.1.25","WESSELSBRON"]
[null,"  06:00 TO 18:00 MONDAY TO FRIDAY "]
["Area 3","  Security Officer",null,1,2,0]
[null,"  06:00 TO 18:00 SATURDAY AND SUNDAY/PUBLIC HOLIDAY"]
[null,"  Security Officer",null,0,0,0]
[null,"  18:00 TO 06:00 MONDAY TO SUNDAY"]
[null,"  Security Officer",null,1,1,0]
[null,"  Handheld Metal Detector(s)",{"$nulls":4},3]
[]
["7.1.26","SPRINGFONTEIN"]
[null,"  06:00 TO 18:00 MONDAY TO FRIDAY "]
["Area 3","  Security Officer",null,1,2,0]
[null,"  06:00 TO 18:00 SATURDAY AND SUNDAY/PUBLIC HOLIDAY"]
[null,"  Security Officer",null,0,0,0]
[null,"  18:00 TO 06:00 MONDAY TO SUNDAY"]
[null,"  Security Officer",null,1,1,0]
[null,"  Handheld Metal Detector(s)",{"$nulls":4},3]
[]
["7.1.27","WINBURG"]
[null,"  06:00 TO 18:00 MONDAY TO FRIDAY "]
["Area 3","  Security Officer",null,1,2,0]
[null,"  06:00 TO 18:00 SATURDAY AND SUNDAY/PUBLIC HOLIDAY"]
[null,"  Security Officer",null,0,0,0]
[null,"  18:00 TO 06:00 MONDAY TO SUNDAY"]
[null,"  Security Officer",null,1,1,0]
[null,"  Handheld Metal Detector(s)",{"$nulls":4},3]
[]
["7.1.28","BRANDFORT"]
[null,"  06:00 TO 18:00 MONDAY TO FRIDAY "]
["Area 3","  Security Officer",null,1,2,0]
[null,"  06:00 TO 18:00 SATURDAY AND SUNDAY/PUBLIC HOLIDAY"]
[null,"  Security Officer",null,0,0,0]
[null,"  18:00 TO 06:00 MONDAY TO SUNDAY"]
[null,"  Security Officer",null,1,1,0]
[null,"  Handheld Metal Detector(s)",{"$nulls":4},3]
[]
["7.1.29","MARQUARD"]
[null,"  06:00 TO 18:00 MONDAY TO FRIDAY "]
["Area 3","  Security Officer",null,1,2,0]
[null,"  06:00 TO 18:00 SATURDAY AND SUNDAY/PUBLIC HOLIDAY"]
[null,"  Security Officer",null,0,0,0]
[null,"  18:00 TO 06:00 MONDAY TO SUNDAY"]
[null,"  Security Officer",null,1,1,0,3]
[null,"  Handheld Metal Detector(s)",{"$nulls":4},3]
[]
["7.1.30","JACOBSDAL"]
[null,"  06:00 TO 18:00 MONDAY TO FRIDAY "]
["Area 3","  Security Officer",null,1,2,0]
[null,"  06:00 TO 18:00 SATURDAY AND SUNDAY/PUBLIC HOLIDAY"]
[null,"  Security Officer",null,0,0,0]
[null,"  18:00 TO 06:00 MONDAY TO SUNDAY"]
[null,"  Security Officer",null,1,1,0]
[null,"  Handheld Metal Detector(s)",{"$nulls":4},3]
[]
["7.1.31","PHILLIPOLIS"]
[null,"  06:00 TO 18:00 MONDAY TO FRIDAY "]
["Area 3","  Security Officer",null,1,2,0]
[null,"  06:00 TO 18:00 SATURDAY AND SUNDAY/PUBLIC HOLIDAY"]
[null,"  Security Officer",null,0,0,0]
[null,"  18:00 TO 06:00 MONDAY TO SUNDAY"]
[null,"  Security Officer",null,1,1,0]
[null,"  Handheld Metal Detector(s)",{"$nulls":4},3]
[]
["7.1.32","SMITHFIELD"]
[null,"  06:00 TO 18:00 MONDAY TO FRIDAY "]
["Area 3","  Security Officer",null,1,2,0]
[null,"  06:00 TO 18:00 SATURDAY AND SUNDAY/PUBLIC HOLIDAY"]
[null,"  Security Officer",null,0,0,0]
[null,"  18:00 TO 06:00 MONDAY TO SUNDAY"]
[null,"  Security Officer",null,1,1,0]
[null,"  Handheld Metal Detector(s)",{"$nulls":4},3]
[]
["7.1.33","DEWETSDORP"]
[null,"  06:00 TO 18:00 MONDAY TO FRIDAY "]
["Area 3","  Security Officer",null,1,2,0]
[null,"  06:00 TO 18:00 SATURDAY AND SUNDAY/PUBLIC HOLIDAY"]
[null,"  Security Officer",null,0,0,0]
[null,"  18:00 TO 06:00 MONDAY TO SUNDAY"]
[null,"  Security Officer",null,1,1,0]
[null,"  Handheld Metal Detector(s)",{"$nulls":4},3]
[]
["7.1.34","REDDERBURG"]
[null,"  06:00 TO 18:00 MONDAY TO FRIDAY "]
["Area 3","  Security Officer",null,1,2,0]
[null,"  06:00 TO 18:00 SATURDAY AND SUNDAY/PUBLIC HOLIDAY"]
[null,"  Security Officer",null,0,0,0]
[null,"  18:00 TO 06:00 MONDAY TO SUNDAY"]
[null,"  Security Officer",null,1,1,0]
[null,"  Handheld Metal Detector(s)",{"$nulls":4},3]
[]
["7.1.35","TROMPSBURG"]
[null,"  06:00 TO 18:00 MONDAY TO FRIDAY "]
["Area 3","  Security Officer",null,1,2,0]
[null,"  06:00 TO 18:00 SATURDAY AND SUNDAY/PUBLIC HOLIDAY"]
[null,"  Security Officer",null,0,0,0]
[null,"  18:00 TO 06:00 MONDAY TO SUNDAY"]
[null,"  Security Officer",null,1,1,0]
[null,"  Handheld Metal Detector(s)",{"$nulls":4},3]
[]
["7.1.36","HOBHOUSE"]
[null,"  06:00 TO 18:00 MONDAY TO FRIDAY "]
["Area 3","  Security Officer",null,1,2,0]
[null,"  06:00 TO 18:00 SATURDAY AND SUNDAY/PUBLIC HOLIDAY"]
[null,"  Security Officer",null,0,0,0]
[null,"  18:00 TO 06:00 MONDAY TO SUNDAY"]
[null,"  Security Officer",null,1,1,0]
[null,"  Handheld Metal Detector(s)",{"$nulls":4},3]
[]
["7.1.37","DEALESVILLE"]
[null,"  06:00 TO 18:00 MONDAY TO FRIDAY "]
["Area 3","  Security Officer",null,1,2,0]
[null,"  06:00 TO 18:00 SATURDAY AND SUNDAY/PUBLIC HOLIDAY"]
[null,"  Security Officer",null,0,0,0]
[null,"  18:00 TO 06:00 MONDAY TO SUNDAY"]
[null,"  Security Officer",null,1,1,0]
[null,"  Handheld Metal Detector(s)",{"$nulls":4},3]
[]
["7.1.38","HERTZOGVILLE"]
[null,"  06:00 TO 18:00 MONDAY TO FRIDAY "]
["Area 3","  Security Officer",null,1,2,0]
[null,"  06:00 TO 18:00 SATURDAY AND SUNDAY/PUBLIC HOLIDAY"]
[null,"  Security Officer",null,0,0,0]
[null,"  18:00 TO 06:00 MONDAY TO SUNDAY"]
[null,"  Security Officer",null,1,1,0]
[null,"  Handheld Metal Detector(s)",{"$nulls":4},3]
[]
["7.1.39","JAGGERSFONTEIN"]
[null,"  06:00 TO 18:00 MONDAY TO FRIDAY "]
["Area 3","  Security Officer",null,1,2,0]
[null,"  06:00 TO 18:00 SATURDAY AND SUNDAY/PUBLIC HOLIDAY"]
[null,"  Security Officer",null,0,0,0]
[null,"  18:00 TO 06:00 MONDAY TO SUNDAY"]
[null,"  Security Officer",null,1,1,0]
[null,"  Handheld Metal Detector(s)",{"$nulls":4},3]
[]
["7.1.40","KOFFIFONTEIN"]
[null,"  06:00 TO 18:00 MONDAY TO FRIDAY "]
["Area 3","  Security Officer",null,1,2,0]
[null,"  06:00 TO 18:00 SATURDAY AND SUNDAY/PUBLIC HOLIDAY"]
[null,"  Security Officer",null,0,0,0]
[null,"  18:00 TO 06:00 MONDAY TO SUNDAY"]
[null,"  Security Officer",null,1,1,0]
[null,"  Handheld Metal Detector(s)",{"$nulls":4},3]
[]
["7.1.41","WHITE HOUSE (APPEAL COURT): BLOEMFONTEIN"]
[null,"  06:00 TO 18:00 MONDAY TO FRIDAY "]
["Area 1","  Security Officer",null,1,1,0]
[null,"  06:00 TO 18:00 SATURDAY AND SUNDAY/PUBLIC HOLIDAY"]
[null,"  Security Officer",null,0,0,0]
[null,"  18:00 TO 06:00 MONDAY TO SUNDAY"]
[null,"  Security Officer",null,1,1,0]
[null,"  Handheld Metal Detector(s)",{"$nulls":4},3]
[]
["7.1.42","LUCKHOF "]
[null,"  06:00 TO 18:00 MONDAY TO FRIDAY "]
["Area 3","  Security Officer",null,1,2,0]
[null,"  06:00 TO 18:00 SATURDAY AND SUNDAY/PUBLIC HOLIDAY"]
[null,"  Security Officer",null,0,0,0]
[null,"  18:00 TO 06:00 MONDAY TO SUNDAY"]
[null,"  Security Officer",null,1,1,0]
[null,"  Handheld Metal Detector(s)",{"$nulls":4},3]
[]
["7.1.43","BLOEMFONTEIN: BRANCH COURT,  BLOEMSPRUIT"]
[null,"  06:00 TO 18:00 MONDAY TO FRIDAY "]
["Area 1","  Security Officer",null,1,2,0]
[null,"  06:00 TO 18:00 SATURDAY AND SUNDAY/PUBLIC HOLIDAY"]
[null,"  Security Officer",null,0,0,0]
[null,"  18:00 TO 06:00 MONDAY TO SUNDAY"]
[null,"  Security Officer",null,1,1,0]
[null,"  Handheld Metal Detector(s)",{"$nulls":4},3]
[]
["7.1.44","NPA:TELKOM RENTAL BUILDING "]
[null,"  06:00 TO 18:00 MONDAY TO FRIDAY "]
["Area 1","  Security Officer",null,1,1,0]
[null,"  06:00 TO 18:00 SATURDAY AND SUNDAY/PUBLIC HOLIDAY"]
[null,"  Security Officer",null,0,0,0]
[null,"  18:00 TO 06:00 MONDAY TO SUNDAY"]
[null,"  Security Officer",null,1,1,0]
[null,"  Handheld Metal Detector(s)",{"$nulls":4},2]
[]
["7.1.45","TWEESPRUIT PERIODICAL COURT"]
[null,"  06:00 TO 18:00 MONDAY TO FRIDAY "]
["Area 3","  Security Officer",null,1,1,0]
[null,"  06:00 TO 18:00 SATURDAY AND SUNDAY/PUBLIC HOLIDAY"]
[null,"  Security Officer",null,0,0,0]
[null,"  18:00 TO 06:00 MONDAY TO SUNDAY"]
[null,"  Security Officer",null,1,1,0]
[null,"  Handheld Metal Detector(s)",{"$nulls":4},2]
[]
["7.1.46","NPA: DPP BLOEMFONTEIN"]
[null,"  06:00 TO 18:00 MONDAY TO FRIDAY "]
["Area 1","  Security Officer",null,2,2,0,null,3]
[null,"  06:00 TO 18:00 SATURDAY AND SUNDAY/PUBLIC HOLIDAY"]
[null,"  Security Officer",null,0,0,0]
[null,"  18:00 TO 06:00 MONDAY TO SUNDAY"]
[null,"  Security Officer",null,1,1,0]
[null,"  Handheld Metal Detector(s)",{"$nulls":4},2]
[]
["7.1.47","CHRIS DE WET (TRAFFIC OFFENCES COURT)"]
[null,"  06:00 TO 18:00 MONDAY TO FRIDAY "]
["Area 1","  Security Officer",null,1,1,0]
[null,"  06:00 TO 18:00 SATURDAY AND SUNDAY/PUBLIC HOLIDAY"]
[null,"  Security Officer",null,0,0,0]
[null,"  18:00 TO 06:00 MONDAY TO SUNDAY"]
[null,"  Security Officer",null,0,0,0]
[null,"  Handheld Metal Detector(s)",{"$nulls":4},3]
[]
["7.1.48","FAMILY ADVOCATE, BLOEMFONTEIN"]
[null,"  06:00 TO 18:00 MONDAY TO FRIDAY "]
["Area 1","  Security Officer",null,1,2,0]
[null,"  06:00 TO 18:00 SATURDAY AND SUNDAY/PUBLIC HOLIDAY"]
[null,"  Security Officer",null,0,0,0]
[null,"  18:00 TO 06:00 MONDAY TO SUNDAY"]
[null,"  Security Officer",null,0,0,0]
[null,"  Handheld Metal Detector(s)",{"$nulls":4},3]
[]
["7.1.49","STATE ATTORNEY BLOEMFONTEIN "]
[null,"  06:00 TO 18:00 MONDAY TO FRIDAY "]
["Area 1","  Security Officer",null,1,2,0]
[null,"  06:00 TO 18:00 SATURDAY AND SUNDAY/PUBLIC HOLIDAY"]
[null,"  Security Officer",null,0,0,0]
[null,"  18:00 TO 06:00 MONDAY TO SUNDAY"]
[null,"  Security Officer",null,1,1,0]
[null,"  Handheld Metal Detector(s)",{"$nulls":4},3]
[]
["7.1.50","VILJOENSKROON"]
[null,"  06:00 TO 18:00 MONDAY TO FRIDAY "]
["Area 3","  Security Officer",null,1,2,0]
[null,"  06:00 TO 18:00 SATURDAY AND SUNDAY/PUBLIC HOLIDAY"]
[null,"  Security Officer",null,0,0,0]
[null,"  18:00 TO 06:00 MONDAY TO SUNDAY"]
[null,"  Security Officer",null,1,1,0]
[null,"  Handheld Metal Detector(s)",{"$nulls":4},3]
[]
["7.1.51","VREDEFORT"]
[null,"  06:00 TO 18:00 MONDAY TO FRIDAY "]
["Area 3","  Security Officer",null,1,2,0]
[null,"  06:00 TO 18:00 SATURDAY AND SUNDAY/PUBLIC HOLIDAY"]
[null,"  Security Officer",null,0,0,0]
[null,"  18:00 TO 06:00 MONDAY TO SUNDAY"]
[null,"  Security Officer",null,1,1,0]
[null,"  Handheld Metal Detector(s)",{"$nulls":4},3]
[]
["7.1.52","PARYS"]
[null,"  06:00 TO 18:00 MONDAY TO FRIDAY "]
["Area 3","  Security Officer",null,1,3,0]
[null,"  06:00 TO 18:00 SATURDAY AND SUNDAY/PUBLIC HOLIDAY"]
[null,"  Security Officer",null,0,0,0]
[null,"  18:00 TO 06:00 MONDAY TO SUNDAY"]
[null,"  Security Officer",null,1,1,0]
[null,"  Handheld Metal Detector(s)",{"$nulls":4},3]
[]
["7.1.53","FRANKFORT"]
[null,"  06:00 TO 18:00 MONDAY TO FRIDAY "]
["Area 3","  Security Officer",null,1,2,0]
[null,"  06:00 TO 18:00 SATURDAY AND SUNDAY/PUBLIC HOLIDAY"]
[null,"  Security Officer",null,0,0,0]
[null,"  18:00 TO 06:00 MONDAY TO SUNDAY"]
[null,"  Security Officer",null,1,1,0]
[null,"  Handheld Metal Detector(s)",{"$nulls":4},3]
[]
["7.1.54","PHUTHADITJHABA"]
[null,"  06:00 TO 18:00 MONDAY TO FRIDAY "]
["Area 3","  Security Officer",null,1,5,0,null,1]
[null,"  06:00 TO 18:00 SATURDAY AND SUNDAY/PUBLIC HOLIDAY"]
[null,"  Security Officer",null,0,0,0]
[null,"  18:00 TO 06:00 MONDAY TO SUNDAY"]
[null,"  Security Officer",null,1,1,0]
[null,"  Handheld Metal Detector(s)",{"$nulls":4},6]
[]
["7.1.55","MAKWANE"]
[null,"  06:00 TO 18:00 MONDAY TO FRIDAY "]
["Area 3","  Security Officer",null,1,2,0]
[null,"  06:00 TO 18:00 SATURDAY AND SUNDAY/PUBLIC HOLIDAY"]
[null,"  Security Officer",null,0,0,0]
[null,"  18:00 TO 06:00 MONDAY TO SUNDAY"]
[null,"  Security Officer",null,1,1,0]
[null,"  Handheld Metal Detector(s)",{"$nulls":4},4]
[]
["7.1.56","TSEKI"]
[null,"  06:00 TO 18:00 MONDAY TO FRIDAY "]
["Area 3","  Security Officer",null,1,3,0]
[null,"  06:00 TO 18:00 SATURDAY AND SUNDAY/PUBLIC HOLIDAY"]
[null,"  Security Officer",null,0,0,0]
[null,"  18:00 TO 06:00 MONDAY TO SUNDAY"]
[null,"  Security Officer",null,1,1,0]
[null,"  Handheld Metal Detector(s)",{"$nulls":4},4]
[]
["7.1.57","HARRISMITH"]
[null,"  06:00 TO 18:00 MONDAY TO FRIDAY "]
["Area 3","  Security Officer",null,1,3,0,null,1]
[null,"  06:00 TO 18:00 SATURDAY AND SUNDAY/PUBLIC HOLIDAY"]
[null,"  Security Officer",null,0,0,0]
[null,"  18:00 TO 06:00 MONDAY TO SUNDAY"]
[null,"  Security Officer",null,1,1,0]
[null,"  Handheld Metal Detector(s)",{"$nulls":4},4]
[]
["7.1.58","TSESENG"]
[null,"  06:00 TO 18:00 MONDAY TO FRIDAY "]
["Area 3","  Security Officer",null,1,2,0]
[null,"  06:00 TO 18:00 SATURDAY AND SUNDAY/PUBLIC HOLIDAY"]
[null,"  Security Officer",null,0,0,0]
[null,"  18:00 TO 06:00 MONDAY TO SUNDAY"]
[null,"  Security Officer",null,1,1,0]
[null,"  Handheld Metal Detector(s)",{"$nulls":4},3]
[]
["7.1.59","VREDE"]
[null,"  06:00 TO 18:00 MONDAY TO FRIDAY "]
["Area 3","  Security Officer",null,1,2,0]
[null,"  06:00 TO 18:00 SATURDAY AND SUNDAY/PUBLIC HOLIDAY"]
[null,"  Security Officer",null,0,0,0]
[null,"  18:00 TO 06:00 MONDAY TO SUNDAY"]
[null,"  Security Officer",null,1,1,0]
[null,"  Handheld Metal Detector(s)",{"$nulls":4},3]
[]
["7.1.60","HENNENMAN"]
[null,"  06:00 TO 18:00 MONDAY TO FRIDAY "]
["Area 3","  Security Officer",null,1,2,0]
[null,"  06:00 TO 18:00 SATURDAY AND SUNDAY/PUBLIC HOLIDAY"]
[null,"  Security Officer",null,0,0,0]
[null,"  18:00 TO 06:00 MONDAY TO SUNDAY"]
[null,"  Security Officer",null,1,1,0]
[null,"  Handheld Metal Detector(s)",{"$nulls":4},3]
[]
["7.1.61","KROONSTAD"]
[null,"  06:00 TO 18:00 MONDAY TO FRIDAY "]
["Area 3","  Security Officer",null,1,3,0,null,2]
[null,"  06:00 TO 18:00 SATURDAY AND SUNDAY/PUBLIC HOLIDAY"]
[null,"  Security Officer",null,0,0,0]
[null,"  18:00 TO 06:00 MONDAY TO SUNDAY"]
[null,"  Security Officer",null,1,1,0]
[null,"  Handheld Metal Detector(s)",{"$nulls":4},4]
[]
["7.1.62","SASOLBURG"]
[null,"  06:00 TO 18:00 MONDAY TO FRIDAY "]
["Area 1","  Security Officer",null,1,3,0,null,1]
[null,"  06:00 TO 18:00 SATURDAY AND SUNDAY/PUBLIC HOLIDAY"]
[null,"  Security Officer",null,0,0,0]
[null,"  18:00 TO 06:00 MONDAY TO SUNDAY"]
[null,"  Security Officer",null,1,1,0]
[null,"  Handheld Metal Detector(s)",{"$nulls":4},4]
[]
["7.1.63","BETHLEHEM"]
[null,"  06:00 TO 18:00 MONDAY TO FRIDAY "]
["Area 3","  Security Officer",null,1,4,0]
[null,"  06:00 TO 18:00 SATURDAY AND SUNDAY/PUBLIC HOLIDAY"]
[null,"  Security Officer",null,0,0,0]
[null,"  18:00 TO 06:00 MONDAY TO SUNDAY"]
[null,"  Security Officer",null,1,1,0]
[null,"  Handheld Metal Detector(s)",{"$nulls":4},5]
[]
["7.1.64","WELKOM"]
[null,"  06:00 TO 18:00 MONDAY TO FRIDAY "]
["Area 3","  Security Officer",null,1,8,0,null,5]
[null,"  06:00 TO 18:00 SATURDAY AND SUNDAY/PUBLIC HOLIDAY"]
[null,"  Security Officer",null,0,0,0]
[null,"  18:00 TO 06:00 MONDAY TO SUNDAY"]
[null,"  Security Officer",null,1,2,0]
[null,"  Handheld Metal Detector(s)",{"$nulls":4},6]
[]
["7.1.65","BOTHAVILLE"]
[null,"  06:00 TO 18:00 MONDAY TO FRIDAY "]
["Area 3","  Security Officer",null,1,3,0]
[null,"  06:00 TO 18:00 SATURDAY AND SUNDAY/PUBLIC HOLIDAY"]
[null,"  Security Officer",null,0,0,0]
[null,"  18:00 TO 06:00 MONDAY TO SUNDAY"]
[null,"  Security Officer",null,1,1,0]
[null,"  Handheld Metal Detector(s)",{"$nulls":4},3]
[]
["7.1.66","FICKSBURG"]
[null,"  06:00 TO 18:00 MONDAY TO FRIDAY "]
["Area 3","  Security Officer",null,1,3,0]
[null,"  06:00 TO 18:00 SATURDAY AND SUNDAY/PUBLIC HOLIDAY"]
[null,"  Security Officer",null,0,0,0]
[null,"  18:00 TO 06:00 MONDAY TO SUNDAY"]
[null,"  Security Officer",null,1,1,0]
[null,"  Handheld Metal Detector(s)",{"$nulls":4},3]
[]
["7.1.67","VIRGINIA"]
[null,"  06:00 TO 18:00 MONDAY TO FRIDAY "]
["Area 3","  Security Officer",null,1,3,0,null,1]
[null,"  06:00 TO 18:00 SATURDAY AND SUNDAY/PUBLIC HOLIDAY"]
[null,"  Security Officer",null,0,0,0]
[null,"  18:00 TO 06:00 MONDAY TO SUNDAY"]
[null,"  Security Officer",null,1,1,0]
[null,"  Handheld Metal Detector(s)",{"$nulls":4},4]
[]
["7.1.68","FRANKFORT: PERIODICAL COURT, TWEELING"]
[null,"  06:00 TO 18:00 MONDAY TO FRIDAY "]
["Area 3","  Security Officer",null,1,1,0]
[null,"  06:00 TO 18:00 SATURDAY AND SUNDAY/PUBLIC HOLIDAY"]
[null,"  Security Officer",null,0,0,0]
[null,"  18:00 TO 06:00 MONDAY TO SUNDAY"]
[null,"  Security Officer",null,1,1,0]
[null,"  Handheld Metal Detector(s)",{"$nulls":4},2]
[]
["7.1.69","SENEKAL"]
[null,"  06:00 TO 18:00 MONDAY TO FRIDAY "]
["Area 3","  Security Officer",null,1,2,0]
[null,"  06:00 TO 18:00 SATURDAY AND SUNDAY/PUBLIC HOLIDAY"]
[null,"  Security Officer",null,0,0,0]
[null,"  18:00 TO 06:00 MONDAY TO SUNDAY"]
[null,"  Security Officer",null,1,1,0]
[null,"  Handheld Metal Detector(s)",{"$nulls":4},3]
[]
["7.1.70","LINDLEY"]
[null,"  06:00 TO 18:00 MONDAY TO FRIDAY "]
["Area 3","  Security Officer",null,1,2,0]
[null,"  06:00 TO 18:00 SATURDAY AND SUNDAY/PUBLIC HOLIDAY"]
[null,"  Security Officer",null,0,0,0]
[null,"  18:00 TO 06:00 MONDAY TO SUNDAY"]
[null,"  Security Officer",null,1,1,0]
[null,"  Handheld Metal Detector(s)",{"$nulls":4},3]
[]
["7.1.71","PAULROUX"]
[null,"  06:00 TO 18:00 MONDAY TO FRIDAY "]
["Area 3","  Security Officer",null,1,2,0]
[null,"  06:00 TO 18:00 SATURDAY AND SUNDAY/PUBLIC HOLIDAY"]
[null,"  Security Officer",null,0,0,0]
[null,"  18:00 TO 06:00 MONDAY TO SUNDAY"]
[null,"  Security Officer",null,1,1,0]
[null,"  Handheld Metal Detector(s)",{"$nulls":4},3]
[]
["7.1.72","VENTERSBURG"]
[null,"  06:00 TO 18:00 MONDAY TO FRIDAY "]
["Area 3","  Security Officer",null,1,3,0]
[null,"  06:00 TO 18:00 SATURDAY AND SUNDAY/PUBLIC HOLIDAY"]
[null,"  Security Officer",null,0,0,0]
[null,"  18:00 TO 06:00 MONDAY TO SUNDAY"]
[null,"  Security Officer",null,1,1,0]
[null,"  Handheld Metal Detector(s)",{"$nulls":4},3]
[]
["7.1.73","KOPPIES"]
[null,"  06:00 TO 18:00 MONDAY TO FRIDAY "]
["Area 3","  Security Officer",null,1,2,0]
[null,"  06:00 TO 18:00 SATURDAY AND SUNDAY/PUBLIC HOLIDAY"]
[null,"  Security Officer",null,0,0,0]
[null,"  18:00 TO 06:00 MONDAY TO SUNDAY"]
[null,"  Security Officer",null,1,1,0]
[null,"  Handheld Metal Detector(s)",{"$nulls":4},3]
[]
["7.1.74","HEILBRON"]
[null,"  06:00 TO 18:00 MONDAY TO FRIDAY "]
["Area 3","  Security Officer",null,1,3,0]
[null,"  06:00 TO 18:00 SATURDAY AND SUNDAY/PUBLIC HOLIDAY"]
[null,"  Security Officer",null,0,0,0]
[null,"  18:00 TO 06:00 MONDAY TO SUNDAY"]
[null,"  Security Officer",null,1,1,0]
[null,"  Handheld Metal Detector(s)",{"$nulls":4},3]
[]
["7.1.75","REITZ"]
[null,"  06:00 TO 18:00 MONDAY TO FRIDAY "]
["Area 3","  Security Officer",null,1,2,0]
[null,"  06:00 TO 18:00 SATURDAY AND SUNDAY/PUBLIC HOLIDAY"]
[null,"  Security Officer",null,0,0,0]
[null,"  18:00 TO 06:00 MONDAY TO SUNDAY"]
[null,"  Security Officer",null,1,1,0]
[null,"  Handheld Metal Detector(s)",{"$nulls":4},3]
[]
["7.1.76","VILLIERS"]
[null,"  06:00 TO 18:00 MONDAY TO FRIDAY "]
["Area 3","  Security Officer",null,1,2,0]
[null,"  06:00 TO 18:00 SATURDAY AND SUNDAY/PUBLIC HOLIDAY"]
[null,"  Security Officer",null,0,0,0]
[null,"  18:00 TO 06:00 MONDAY TO SUNDAY"]
[null,"  Security Officer",null,1,1,0]
[null,"  Handheld Metal Detector(s)",{"$nulls":4},2]
[]
["7.1.77","FOURIESBURG"]
[null,"  06:00 TO 18:00 MONDAY TO FRIDAY "]
["Area 3","  Security Officer",null,1,2,0]
[null,"  06:00 TO 18:00 SATURDAY AND SUNDAY/PUBLIC HOLIDAY"]
[null,"  Security Officer",null,0,0,0]
[null,"  18:00 TO 06:00 MONDAY TO SUNDAY"]
[null,"  Security Officer",null,1,1,0]
[null,"  Handheld Metal Detector(s)",{"$nulls":4},2]
[]
["7.1.78","PETRUS STEYN"]
[null,"  06:00 TO 18:00 MONDAY TO FRIDAY "]
["Area 3","  Security Officer",null,1,2,0]
[null,"  06:00 TO 18:00 SATURDAY AND SUNDAY/PUBLIC HOLIDAY"]
[null,"  Security Officer",null,0,0,0]
[null,"  18:00 TO 06:00 MONDAY TO SUNDAY"]
[null,"  Security Officer",null,1,1,0]
[null,"  Handheld Metal Detector(s)",{"$nulls":4},2]
[]
["7.1.79","STEINSRUS"]
[null,"  06:00 TO 18:00 MONDAY TO FRIDAY "]
["Area 3","  Security Officer",null,1,2,0]
[null,"  06:00 TO 18:00 SATURDAY AND SUNDAY/PUBLIC HOLIDAY"]
[null,"  Security Officer",null,0,0,0]
[null,"  18:00 TO 06:00 MONDAY TO SUNDAY"]
[null,"  Security Officer",null,1,1,0]
[null,"  Handheld Metal Detector(s)",{"$nulls":4},3]
[]
["7.1.80","KESTEL"]
[null,"  06:00 TO 18:00 MONDAY TO FRIDAY "]
["Area 3","  Security Officer",null,1,2,0]
[null,"  06:00 TO 18:00 SATURDAY AND SUNDAY/PUBLIC HOLIDAY"]
[null,"  Security Officer",null,0,0,0]
[null,"  18:00 TO 06:00 MONDAY TO SUNDAY"]
[null,"  Security Officer",null,1,1,0]
[null,"  Handheld Metal Detector(s)",{"$nulls":4},3]
[]
["7.1.81","VREDE: PERIODICAL COURT, CORNELIA"]
[null,"  06:00 TO 18:00 MONDAY TO FRIDAY "]
["Area 3","  Security Officer",null,1,1,0]
[null,"  06:00 TO 18:00 SATURDAY AND SUNDAY/PUBLIC HOLIDAY"]
[null,"  Security Officer",null,0,0,0]
[null,"  18:00 TO 06:00 MONDAY TO SUNDAY"]
[null,"  Security Officer",null,1,1,0]
[null,"  Handheld Metal Detector(s)",{"$nulls":4},2]
[]
["7.1.82","EDENVILLE"]
[null,"  06:00 TO 18:00 MONDAY TO FRIDAY "]
["Area 3","  Security Officer",null,1,2,0]
[null,"  06:00 TO 18:00 SATURDAY AND SUNDAY/PUBLIC HOLIDAY"]
[null,"  Security Officer",null,0,0,0]
[null,"  18:00 TO 06:00 MONDAY TO SUNDAY"]
[null,"  Security Officer",null,1,1,0]
[null,"  Handheld Metal Detector(s)",{"$nulls":4},3]
[]
["7.1.83","MEMEL"]
[null,"  06:00 TO 18:00 MONDAY TO FRIDAY "]
["Area 3","  Security Officer",null,1,2,0]
[null,"  06:00 TO 18:00 SATURDAY AND SUNDAY/PUBLIC HOLIDAY"]
[null,"  Security Officer",null,0,0,0]
[null,"  18:00 TO 06:00 MONDAY TO SUNDAY"]
[null,"  Security Officer",null,1,1,0]
[null,"  Handheld Metal Detector(s)",{"$nulls":4},3]
[]
["7.1.84","WARDEN"]
[null,"  06:00 TO 18:00 MONDAY TO FRIDAY "]
["Area 3","  Security Officer",null,1,2,0]
[null,"  06:00 TO 18:00 SATURDAY AND SUNDAY/PUBLIC HOLIDAY"]
[null,"  Security Officer",null,0,0,0]
[null,"  18:00 TO 06:00 MONDAY TO SUNDAY"]
[null,"  Security Officer",null,1,1,0]
[null,"  Handheld Metal Detector(s)",{"$nulls":4},2]
[]
["7.1.85","PHUTHADITJHABA JUVENILE COURT "]
[null,"  06:00 TO 18:00 MONDAY TO FRIDAY "]
["Area 1","  Security Officer",null,1,1,0]
[null,"  06:00 TO 18:00 SATURDAY AND SUNDAY/PUBLIC HOLIDAY"]
[null,"  Security Officer",null,0,0,0]
[null,"  18:00 TO 06:00 MONDAY TO SUNDAY"]
[null,"  Security Officer",null,1,1,0]
[null,"  Handheld Metal Detector(s)",{"$nulls":4},2]
[{"$nulls":3},{"$f":"SUM(D3:D766)","v":169},{"$f":"SUM(E3:E766)","v":285}]
[]
[{"$nulls":3},"Total",454]

{"sheet":"Northern Cape","index":8,"n_rows":473,"n_cols":8,"rows_kept":473,"merged":[[0,2,0,5]]}
[null,"             RFB 2021 12 NC"]
["Item no","NORTHERN CAPE","Grade B\n","Grade C Armed\n","Grade C Unarmed \n","Control Room CCTV","Hand Held Metaldetector(s) "]
["8.1.1","BARKLY WEST"]
[null,"  06:00 TO 18:00 MONDAY TO FRIDAY"]
["Area 3","  Security Officer",0,1,3]
[null,"  06:00 TO 18:00 SATURDAY AND SUNDAY/PUBLIC HOLIDAY"]
[null,"  Security Officer",0,0,0]
[null,"  18:00 TO 06:00 MONDAY TO SUNDAY"]
[null,"  Security Officer",0,1,1]
[null,"  Handheld Metal Detector(s)                                                                           Guards to be posted at Periodical court Delportshoop and Winsorton",{"$nulls":4},3]
[]
["8.1.2","BRITSTOWN"]
[null,"  06:00 TO 18:00 MONDAY TO FRIDAY"]
["Area 3","  Security Officer",0,0,2]
[null,"  06:00 TO 18:00 SATURDAY AND SUNDAY/PUBLIC HOLIDAY"]
[null,"  Security Officer",0,0,0]
[null,"  18:00 TO 06:00 MONDAY TO SUNDAY"]
[null,"  Security Officer",0,0,1]
[null,"  Handheld Metal Detector(s)",{"$nulls":4},2]
[]
["8.1.3","COLESBERG "]
[null,"  06:00 TO 18:00 MONDAY TO FRIDAY"]
["Area 3","  Security Officer",0,1,3]
[null,"  06:00 TO 18:00 SATURDAY AND SUNDAY/PUBLIC HOLIDAY"]
[null,"  Security Officer",0,0,0]
[null,"  18:00 TO 06:00 MONDAY TO SUNDAY"]
[null,"  Security Officer",0,1,1]
[null,"  Handheld Metal Detector(s)",{"$nulls":4},3]
[]
["8.1.4","DE AAR"]
[null,"  06:00 TO 18:00 MONDAY TO FRIDAY"]
["Area 3","  Security Officer",0,1,2]
[null,"  06:00 TO 18:00 SATURDAY AND SUNDAY/PUBLIC HOLIDAY"]
[null,"  Security Officer",0,0,0]
[null,"  18:00 TO 06:00 MONDAY TO SUNDAY"]
[null,"  Security Officer",0,1,1]
[null,"  Handheld Metal Detector(s)",{"$nulls":4},3]
[]
["8.1.5","DE AAR HOUSING IN DE AAR"]
[null,"  06:00 TO 18:00 MONDAY TO FRIDAY"]
["Area 3","  Security Officer",0,0,2]
[null,"  06:00 TO 18:00 SATURDAY AND SUNDAY/PUBLIC HOLIDAY"]
[null,"  Security Officer",0,0,0]
[null,"  18:00 TO 06:00 MONDAY TO SUNDAY"]
[null,"  Security Officer",0,0,1]
[null,"  Handheld Metal Detector(s)",{"$nulls":4},3]
[]
["8.1.6","DOUGLAS"]
[null,"  06:00 TO 18:00 MONDAY TO FRIDAY"]
["Area 3","  Security Officer",0,1,2]
[null,"  06:00 TO 18:00 SATURDAY AND SUNDAY/PUBLIC HOLIDAY"]
[null,"  Security Officer",0,0,0]
[null,"  18:00 TO 06:00 MONDAY TO SUNDAY"]
[null,"  Security Officer",0,1,1]
[null,"  Handheld Metal Detector(s)",{"$nulls":4},3]
[]
["8.1.7","FAMILY LAW CENTRE: KIMBERLEY"]
[null,"  06:00 TO 18:00 MONDAY TO FRIDAY"]
["Area 1","  Security Officer",0,0,3]
[null,"  06:00 TO 18:00 SATURDAY AND SUNDAY/PUBLIC HOLIDAY"]
[null,"  Security Officer",0,0,0]
[null,"  18:00 TO 06:00 MONDAY TO SUNDAY"]
[null,"  Security Officer",0,1,1]
[null,"  Handheld Metal Detector(s)",{"$nulls":4},3]
[]
["8.1.8","FAMILY ADVOCATE: KIMBERLEY"]
[null,"  06:00 TO 18:00 MONDAY TO FRIDAY"]
["Area 1","  Security Officer",0,0,3]
[null,"  06:00 TO 18:00 SATURDAY AND SUNDAY/PUBLIC HOLIDAY"]
[null,"  Security Officer",0,0,0]
[null,"  18:00 TO 06:00 MONDAY TO SUNDAY"]
[null,"  Security Officer",0,0,1]
[null,"  Handheld Metal Detector(s)",{"$nulls":4},3]
[]
["8.1.9","GALESHEWE BRANCH COURT"]
[null,"  06:00 TO 18:00 MONDAY TO FRIDAY"]
["Area 1","  Security Officer",0,1,4,null,null,1]
[null,"  06:00 TO 18:00 SATURDAY AND SUNDAY/PUBLIC HOLIDAY"]
[null,"  Security Officer",0,0,0]
[null,"  18:00 TO 06:00 MONDAY TO SUNDAY"]
[null,"  Security Officer",0,1,1]
[null,"  Handheld Metal Detector(s)",{"$nulls":4},3]
[]
["8.1.10","HANOVER"]
[null,"  06:00 TO 18:00 MONDAY TO FRIDAY"]
["Area 3","  Security Officer",0,0,2]
[null,"  06:00 TO 18:00 SATURDAY AND SUNDAY/PUBLIC HOLIDAY"]
[null,"  Security Officer",0,0,0]
[null,"  18:00 TO 06:00 MONDAY TO SUNDAY"]
[null,"  Security Officer",0,0,1]
[null,"  Handheld Metal Detector(s)",{"$nulls":4},3]
[]
["8.1.11","HARTSWATER"]
[null,"  06:00 TO 18:00 MONDAY TO FRIDAY"]
["Area 3","  Security Officer",0,0,3]
[null,"  06:00 TO 18:00 SATURDAY AND SUNDAY/PUBLIC HOLIDAY"]
[null,"  Security Officer",0,0,0]
[null,"  18:00 TO 06:00 MONDAY TO SUNDAY"]
[null,"  Security Officer",0,0,2]
[null,"  Handheld Metal Detector(s)",{"$nulls":4},3]
[]
["8.1.12","HOPETOWN"]
[null,"  06:00 TO 18:00 MONDAY TO FRIDAY"]
["Area 3","  Security Officer",0,0,4]
[null,"  06:00 TO 18:00 SATURDAY AND SUNDAY/PUBLIC HOLIDAY"]
[null,"  Security Officer",0,0,0]
[null,"  18:00 TO 06:00 MONDAY TO SUNDAY"]
[null,"  Security Officer",0,1,0]
[null,"  Handheld Metal Detector(s)                                                                Guards to be posted at Periodical court Strydenburg",{"$nulls":4},3]
[]
["8.1.13","JANKEMPDORP"]
[null,"  06:00 TO 18:00 MONDAY TO FRIDAY"]
["Area 3","  Security Officer",0,null,3]
[null,"  06:00 TO 18:00 SATURDAY AND SUNDAY/PUBLIC HOLIDAY"]
[null,"  Security Officer",0,null,0]
[null,"  18:00 TO 06:00 MONDAY TO SUNDAY"]
[null,"  Security Officer",0,null,1]
[null,"  Handheld Metal Detector(s)",{"$nulls":4},3]
[]
["8.1.14","KIMBERLEY"]
[null,"  06:00 TO 18:00 MONDAY TO FRIDAY"]
["Area 1","  Security Officer",0,null,6,null,null,2]
[null,"  06:00 TO 18:00 SATURDAY AND SUNDAY/PUBLIC HOLIDAY"]
[null,"  Security Officer",0,0,0]
[null,"  18:00 TO 06:00 MONDAY TO SUNDAY"]
[null,"  Security Officer",0,1,2]
[null,"  Handheld Metal Detector(s)",{"$nulls":4},5]
[]
["8.1.15","NOUPOORT"]
[null,"  06:00 TO 18:00 MONDAY TO FRIDAY"]
["Area 3","  Security Officer",0,null,3]
[null,"  06:00 TO 18:00 SATURDAY AND SUNDAY/PUBLIC HOLIDAY"]
[null,"  Security Officer",0,null,0]
[null,"  18:00 TO 06:00 MONDAY TO SUNDAY"]
[null,"  Security Officer",0,null,1]
[null,"  Handheld Metal Detector(s)",{"$nulls":4},3]
[]
["8.1.16","PHILLIPSTOWN"]
[null,"  06:00 TO 18:00 MONDAY TO FRIDAY"]
["Area 3","  Security Officer",0,null,3]
[null,"  06:00 TO 18:00 SATURDAY AND SUNDAY/PUBLIC HOLIDAY"]
[null,"  Security Officer",0,null,0]
[null,"  18:00 TO 06:00 MONDAY TO SUNDAY"]
[null,"  Security Officer",0,null,1]
[null,"  Handheld Metal Detector(s)                                                            Guards to be posted at Periodical court Petrusville ",{"$nulls":4},3]
[]
["8.1.17","REGISTRAR OF HIGH COURT: KIMBERLEY"]
[null,"  06:00 TO 18:00 MONDAY TO FRIDAY"]
["Area 1","  Security Officer",0,1,4,null,null,1]
[null,"  06:00 TO 18:00 SATURDAY AND SUNDAY/PUBLIC HOLIDAY"]
[null,"  Security Officer",0,0,0]
[null,"  18:00 TO 06:00 MONDAY TO SUNDAY"]
[null,"  Security Officer",0,1,1]
[null,"  Handheld Metal Detector(s)",{"$nulls":4},3]
[]
["8.1.18","RICHMOND "]
[null,"  06:00 TO 18:00 MONDAY TO FRIDAY"]
["Area 3","  Security Officer",0,null,2]
[null,"  06:00 TO 18:00 SATURDAY AND SUNDAY/PUBLIC HOLIDAY"]
[null,"  Security Officer",0,null,0]
[null,"  18:00 TO 06:00 MONDAY TO SUNDAY"]
[null,"  Security Officer",0,null,1]
[null,"  Handheld Metal Detector(s)",{"$nulls":4},2]
[]
["8.1.19","STATE ATTORNEYS: KIMBERLEY"]
[null,"  06:00 TO 18:00 MONDAY TO FRIDAY"]
["Area 1","  Security Officer",0,null,2]
[null,"  06:00 TO 18:00 SATURDAY AND SUNDAY/PUBLIC HOLIDAY"]
[null,"  Security Officer",0,null,0]
[null,"  18:00 TO 06:00 MONDAY TO SUNDAY"]
[null,"  Security Officer",0,null,1]
[null,"  Handheld Metal Detector(s)",{"$nulls":4},2]
[]
["8.1.20","WARRENTON"]
[null,"  06:00 TO 18:00 MONDAY TO FRIDAY"]
["Area 3","  Security Officer",0,null,3]
[null,"  06:00 TO 18:00 SATURDAY AND SUNDAY/PUBLIC HOLIDAY"]
[null,"  Security Officer",0,null,0]
[null,"  18:00 TO 06:00 MONDAY TO SUNDAY"]
[null,"  Security Officer",0,null,2]
[null,"  Handheld Metal Detector(s)",{"$nulls":4},3]
[]
["8.1.21","KATHU"]
[null,"  06:00 TO 18:00 MONDAY TO FRIDAY"]
["Area 3","  Security Officer",0,1,3]
[null,"  06:00 TO 18:00 SATURDAY AND SUNDAY/PUBLIC HOLIDAY"]
[null,"  Security Officer",0,0,0]
[null,"  18:00 TO 06:00 MONDAY TO SUNDAY"]
[null,"  Security Officer",0,1,1]
[null,"  Handheld Metal Detector(s)                                                                Guards to be posted at Periodical court Deben ",{"$nulls":4},3]
[]
["8.1.22","KURUMAN"]
[null,"  06:00 TO 18:00 MONDAY TO FRIDAY"]
["Area 3","  Security Officer",0,1,2]
[null,"  06:00 TO 18:00 SATURDAY AND SUNDAY/PUBLIC HOLIDAY"]
[null,"  Security Officer",0,0,0]
[null,"  18:00 TO 06:00 MONDAY TO SUNDAY"]
[null,"  Security Officer",0,1,1]
[null,"  Handheld Metal Detector(s)                                                             Guards to be posted at Periodical court Tsineng",{"$nulls":4},3]
[]
["8.1.23","MASTER OF THE HIGH COURT: KIMBERLEY"]
[null,"  06:00 TO 18:00 MONDAY TO FRIDAY"]
["Area 1","  Security Officer",null,null,2]
[null,"  06:00 TO 18:00 SATURDAY AND SUNDAY/PUBLIC HOLIDAY"]
[null,"  Security Officer",0,0,0]
[null,"  18:00 TO 06:00 MONDAY TO SUNDAY"]
[null,"  Security Officer",0,0,0]
[null,"  Handheld Metal Detector(s)",{"$nulls":4},2]
[]
["8.1.24","NPA: DPP KIMBERLEY"]
[null,"  06:00 TO 18:00 MONDAY TO FRIDAY"]
["Area 1","  Security Officer",0,1,3,null,null,4]
[null,"  06:00 TO 18:00 SATURDAY AND SUNDAY/PUBLIC HOLIDAY"]
[null,"  Security Officer",0,0,0]
[null,"  18:00 TO 06:00 MONDAY TO SUNDAY"]
[null,"  Security Officer",0,1,2,null,null,1]
[null,"  Handheld Metal Detector(s)",{"$nulls":4},3]
[]
[]
["8.1.25","NPA: THUTHUZELA CARE CENTRE: KIMBERLEY"]
[null,"  06:00 TO 18:00 MONDAY TO FRIDAY"]
["Area 1","  Security Officer",0,1,1]
[null,"  06:00 TO 18:00 SATURDAY AND SUNDAY/PUBLIC HOLIDAY"]
[null,"  Security Officer",0,0,0]
[null,"  18:00 TO 06:00 MONDAY TO SUNDAY"]
[null,"  Security Officer",0,1,1]
[null,"  Handheld Metal Detector(s)",{"$nulls":4},2]
[]
["8.1.26","KUDUMANE"]
[null,"  06:00 TO 18:00 MONDAY TO FRIDAY"]
["Area 3","  Security Officer",0,1,3]
[null,"  06:00 TO 18:00 SATURDAY AND SUNDAY/PUBLIC HOLIDAY"]
[null,"  Security Officer",0,0,0]
[null,"  18:00 TO 06:00 MONDAY TO SUNDAY"]
[null,"  Security Officer",0,1,1,null,3]
[null,"  Handheld Metal Detector(s)                                                                Guards to be posted at Periodical court Van Zylsrust and Heiningsvlei"]
[]
["8.1.27","GANYESA: BOTHITONG PERIODICAL COURT"]
[null,"  06:00 TO 18:00 MONDAY TO FRIDAY"]
["Area 3","  Security Officer",0,0,2]
[null,"  06:00 TO 18:00 SATURDAY AND SUNDAY/PUBLIC HOLIDAY"]
[null,"  Security Officer",0,0,0]
[null,"  18:00 TO 06:00 MONDAY TO SUNDAY"]
[null,"  Security Officer",0,0,2]
[null,"  Handheld Metal Detector(s)",{"$nulls":4},2]
[]
["8.1.28","KIMBERLEY: RITCHIE PERIODICAL COURT"]
[null,"  06:00 TO 18:00 MONDAY TO FRIDAY"]
["Area 1","  Security Officer",0,0,2]
[null,"  06:00 TO 18:00 SATURDAY AND SUNDAY/PUBLIC HOLIDAY"]
[null,"  Security Officer",0,0,0]
[null,"  18:00 TO 06:00 MONDAY TO SUNDAY"]
[null,"  Security Officer",0,0,1]
[null,"  Handheld Metal Detector(s)",{"$nulls":4},2]
[]
["8.1.29","KAKAMAS: PERIODICAL COURT, AUGRABIES "]
[null,"  06:00 TO 18:00 MONDAY TO FRIDAY"]
["Area 3","  Security Officer",0,0,2]
[null,"  06:00 TO 18:00 SATURDAY AND SUNDAY/PUBLIC HOLIDAY"]
[null,"  Security Officer",0,0,0]
[null,"  18:00 TO 06:00 MONDAY TO SUNDAY"]
[null,"  Security Officer",0,0,1]
[null,"  Handheld Metal Detector(s)",{"$nulls":4},3]
[]
["8.1.30","PAMPIERSTAD"]
[null,"  06:00 TO 18:00 MONDAY TO FRIDAY "]
["Area 3","  Security Officer",0,1,3]
[null,"  06:00 TO 18:00 SATURDAY AND SUNDAY/PUBLIC HOLIDAY"]
[null,"  Security Officer",0,0,0]
[null,"  18:00 TO 06:00 MONDAY TO SUNDAY"]
[null,"  Security Officer",0,1,1,null,3]
[]
["8.1.31","POSTMASBURG"]
[null,"  06:00 TO 18:00 MONDAY TO FRIDAY"]
["Area 3","  Security Officer",0,0,4]
[null,"  06:00 TO 18:00 SATURDAY AND SUNDAY/PUBLIC HOLIDAY"]
[null,"  Security Officer",0,0,0]
[null,"  18:00 TO 06:00 MONDAY TO SUNDAY"]
[null,"  Security Officer",0,1,1]
[null,"  Handheld Metal Detector(s)                                                                                       Guards to be posted at Periodical court Lime Acres",{"$nulls":4},3]
[]
["8.1.32","PRIESKA"]
[null,"  06:00 TO 18:00 MONDAY TO FRIDAY"]
["Area 3","  Security Officer",0,0,4]
[null,"  06:00 TO 18:00 SATURDAY AND SUNDAY/PUBLIC HOLIDAY"]
[null,"  Security Officer",0,0,0]
[null,"  18:00 TO 06:00 MONDAY TO SUNDAY"]
[null,"  Security Officer",0,1,0]
[null,"  Handheld Metal Detector(s)                                                                 Guards to be posted at Periodical court Niekerkshoop and Marydale",{"$nulls":4},3]
[]
["8.1.33","CALVINIA "]
[null,"  06:00 TO 18:00 MONDAY TO FRIDAY"]
["Area 3","  Security Officer",0,1,3]
[null,"  06:00 TO 18:00 SATURDAY AND SUNDAY/PUBLIC HOLIDAY"]
[null,"  Security Officer",0,0,0]
[null,"  18:00 TO 06:00 MONDAY TO SUNDAY"]
[null,"  Security Officer",0,0,2]
[null,"  Handheld Metal Detector(s)                                                                 Guards to be posted at Periodical court Loeriesfontein, Nieuwoudtville and Brandvlei",{"$nulls":4},3]
[]
["8.1.34","CARNARVON"]
[null,"  06:00 TO 18:00 MONDAY TO FRIDAY"]
["Area 3","  Security Officer",0,0,4]
[null,"  06:00 TO 18:00 SATURDAY AND SUNDAY/PUBLIC HOLIDAY"]
[null,"  Security Officer",0,0,0]
[null,"  18:00 TO 06:00 MONDAY TO SUNDAY"]
[null,"  Security Officer",0,0,2]
[null,"  Handheld Metal Detector(s)                                                                  Guards to be posted at Periodical court Van Wyksvlei and Vosburg",{"$nulls":4},3]
[]
["8.1.35","FRASERBURG"]
[null,"  06:00 TO 18:00 MONDAY TO FRIDAY"]
["Area 3","  Security Officer",0,0,2]
[null,"  06:00 TO 18:00 SATURDAY AND SUNDAY/PUBLIC HOLIDAY"]
[null,"  Security Officer",0,0,0]
[null,"  18:00 TO 06:00 MONDAY TO SUNDAY"]
[null,"  Security Officer",0,0,1]
[null,"  Handheld Metal Detector(s)                                                                 Guards to be posted at Periodical court Delportshoop and Winsorton",{"$nulls":4},3]
[]
["8.1.36","GARIES"]
[null,"  06:00 TO 18:00 MONDAY TO FRIDAY"]
["Area 3","  Security Officer",0,0,2]
[null,"  06:00 TO 18:00 SATURDAY AND SUNDAY/PUBLIC HOLIDAY"]
[null,"  Security Officer",0,0,0]
[null,"  18:00 TO 06:00 MONDAY TO SUNDAY"]
[null,"  Security Officer",0,0,1]
[null,"  Handheld Metal Detector(s)",{"$nulls":4},3]
[]
["8.1.37","GRIEKWASTAD"]
[null,"  06:00 TO 18:00 MONDAY TO FRIDAY"]
["Area 3","  Security Officer",0,0,2]
[null,"  06:00 TO 18:00 SATURDAY AND SUNDAY/PUBLIC HOLIDAY"]
[null,"  Security Officer",0,0,0]
[null,"  18:00 TO 06:00 MONDAY TO SUNDAY"]
[null,"  Security Officer",0,0,1]
[null,"  Handheld Metal Detector(s)",{"$nulls":4},3]
[]
["8.1.38","GROBLERSHOOP"]
[null,"  06:00 TO 18:00 MONDAY TO FRIDAY"]
["Area 3","  Security Officer",0,0,3]
[null,"  06:00 TO 18:00 SATURDAY AND SUNDAY/PUBLIC HOLIDAY"]
[null,"  Security Officer",0,0,0]
[null,"  18:00 TO 06:00 MONDAY TO SUNDAY"]
[null,"  Security Officer",0,0,1]
[null,"  Handheld Metal Detector(s)",{"$nulls":4},2]
[]
["8.1.39","KAKAMAS"]
[null,"  06:00 TO 18:00 MONDAY TO FRIDAY"]
["Area 3","  Security Officer",0,0,3]
[null,"  06:00 TO 18:00 SATURDAY AND SUNDAY/PUBLIC HOLIDAY"]
[null,"  Security Officer",0,0,0]
[null,"  18:00 TO 06:00 MONDAY TO SUNDAY"]
[null,"  Security Officer",0,1,1]
[null,"  Handheld Metal Detector(s)",{"$nulls":4},2]
[]
["8.1.40","KEIMOES"]
[null,"  06:00 TO 18:00 MONDAY TO FRIDAY"]
["Area 3","  Security Officer",0,0,2]
[null,"  06:00 TO 18:00 SATURDAY AND SUNDAY/PUBLIC HOLIDAY"]
[null,"  Security Officer",0,0,0]
[null,"  18:00 TO 06:00 MONDAY TO SUNDAY"]
[null,"  Security Officer",0,0,1]
[null,"  Handheld Metal Detector(s)",{"$nulls":4},2]
[]
["8.1.41","KENHARDT"]
[null,"  06:00 TO 18:00 MONDAY TO FRIDAY"]
["Area 3","  Security Officer",0,0,2]
[null,"  06:00 TO 18:00 SATURDAY AND SUNDAY/PUBLIC HOLIDAY"]
[null,"  Security Officer",0,0,0]
[null,"  18:00 TO 06:00 MONDAY TO SUNDAY"]
[null,"  Security Officer",0,0,1]
[null,"  Handheld Metal Detector(s)",{"$nulls":4},2]
[]
["8.1.42","OLIFANTSHOEK"]
[null,"  06:00 TO 18:00 MONDAY TO FRIDAY"]
["Area 3","  Security Officer",0,0,2]
[null,"  06:00 TO 18:00 SATURDAY AND SUNDAY/PUBLIC HOLIDAY"]
[null,"  Security Officer",0,0,0]
[null,"  18:00 TO 06:00 MONDAY TO SUNDAY"]
[null,"  Security Officer",0,0,1]
[null,"  Handheld Metal Detector(s)",{"$nulls":4},2]
[]
["8.1.43","POFADDER"]
[null,"  06:00 TO 18:00 MONDAY TO FRIDAY"]
["Area 3","  Security Officer",0,0,2]
[null,"  06:00 TO 18:00 SATURDAY AND SUNDAY/PUBLIC HOLIDAY"]
[null,"  Security Officer",0,0,0]
[null,"  18:00 TO 06:00 MONDAY TO SUNDAY"]
[null,"  Security Officer",0,0,1]
[null,"  Handheld Metal Detector(s)",{"$nulls":4},2]
[]
["8.1.44","PORT NOLLOTH"]
[null,"  06:00 TO 18:00 MONDAY TO FRIDAY"]
["Area 3","  Security Officer",0,1,2]
[null,"  06:00 TO 18:00 SATURDAY AND SUNDAY/PUBLIC HOLIDAY"]
[null,"  Security Officer",0,0,0]
[null,"  18:00 TO 06:00 MONDAY TO SUNDAY"]
[null,"  Security Officer",0,1,1]
[null,"  Handheld Metal Detector(s)",{"$nulls":4},3]
[]
["8.1.45","SUTHERLAND"]
[null,"  06:00 TO 18:00 MONDAY TO FRIDAY"]
["Area 3","  Security Officer",0,0,2]
[null,"  06:00 TO 18:00 SATURDAY AND SUNDAY/PUBLIC HOLIDAY"]
[null,"  Security Officer",0,0,0]
[null,"  18:00 TO 06:00 MONDAY TO SUNDAY"]
[null,"  Security Officer",0,0,1]
[null,"  Handheld Metal Detector(s)",{"$nulls":4},2]
[]
["8.1.46","SPRINGBOK"]
[null,"  06:00 TO 18:00 MONDAY TO FRIDAY"]
["Area 3","  Security Officer",0,1,3]
[null,"  06:00 TO 18:00 SATURDAY AND SUNDAY/PUBLIC HOLIDAY"]
[null,"  Security Officer",0,0,0]
[null,"  18:00 TO 06:00 MONDAY TO SUNDAY"]
[null,"  Security Officer",0,1,1]
[null,"  Handheld Metal Detector(s)                                                                 Guards to be posted at Periodical court Vioolsdrift",{"$nulls":4},3]
[]
["8.1.47","SPRINGBOK OFFICE IN SPRINGBOK"]
[null,"  06:00 TO 18:00 MONDAY TO FRIDAY"]
["Area 3","  Security Officer",0,0,2]
[null,"  06:00 TO 18:00 SATURDAY AND SUNDAY/PUBLIC HOLIDAY"]
[null,"  Security Officer",0,0,0]
[null,"  18:00 TO 06:00 MONDAY TO SUNDAY"]
[null,"  Security Officer",0,0,1]
[null,"  Handheld Metal Detector(s)    ",{"$nulls":4},3]
[]
["8.1.48","UPINGTON"]
[null,"  06:00 TO 18:00 MONDAY TO FRIDAY"]
["Area 3","  Security Officer",0,1,5]
[null,"  06:00 TO 18:00 SATURDAY AND SUNDAY/PUBLIC HOLIDAY"]
[null,"  Security Officer",0,0,0]
[null,"  18:00 TO 06:00 MONDAY TO SUNDAY"]
[null,"  Security Officer",0,1,1]
[null,"  Handheld Metal Detector(s)                                                                 Guards to be posted at Periodical court Witdraai and Rietfontein",{"$nulls":4},3]
[]
["8.1.49","VICTORIA WEST"]
[null,"  06:00 TO 18:00 MONDAY TO FRIDAY"]
["Area 3","  Security Officer",0,1,3]
[null,"  06:00 TO 18:00 SATURDAY AND SUNDAY/PUBLIC HOLIDAY"]
[null,"  Security Officer",0,0,0]
[null,"  18:00 TO 06:00 MONDAY TO SUNDAY"]
[null,"  Security Officer",0,1,1]
[null,"  Handheld Metal Detector(s)                                                                 Guards to be posted at Periodical court  Loxton",{"$nulls":4},3]
[]
["8.1.50","WILLISTON"]
[null,"  06:00 TO 18:00 MONDAY TO FRIDAY"]
["Area 3","  Security Officer",0,0,2]
[null,"  06:00 TO 18:00 SATURDAY AND SUNDAY/PUBLIC HOLIDAY"]
[null,"  Security Officer",0,0,0]
[null,"  18:00 TO 06:00 MONDAY TO SUNDAY"]
[null,"  Security Officer",0,0,1]
[null,"  Handheld Metal Detector(s)",{"$nulls":4},2]
[]
["8.1.51","DANIELSKUIL"]
[null,"  06:00 TO 18:00 MONDAY TO FRIDAY"]
["Area 3","  Security Officer",0,0,2]
[null,"  06:00 TO 18:00 SATURDAY AND SUNDAY/PUBLIC HOLIDAY"]
[null,"  Security Officer",0,0,0]
[null,"  18:00 TO 06:00 MONDAY TO SUNDAY"]
[null,"  Security Officer",0,0,1]
[null,"  Handheld Metal Detector(s)",{"$nulls":4},2]
[]
["8.1.52","FAMILY ADVOCATE UPINGTON"]
[null,"  06:00 TO 18:00 MONDAY TO FRIDAY"]
["Area 3","  Security Officer",0,0,2]
[null,"  06:00 TO 18:00 SATURDAY AND SUNDAY/PUBLIC HOLIDAY"]
[null,"  Security Officer",0,0,0]
[null,"  18:00 TO 06:00 MONDAY TO SUNDAY"]
[null,"  Security Officer",0,0,1]
[null,"  Handheld Metal Detector(s)",{"$nulls":4},2]
[{"$nulls":3},{"$f":"SUM(D4:D469)","v":39},{"$f":"SUM(E4:E469)","v":196}]
[]
[]
[{"$nulls":3},"Total",235]

{"sheet":"Mpumalanga","index":9,"n_rows":535,"n_cols":8,"rows_kept":535,"merged":[[0,2,0,5]]}
[null,"            RFB 2021 12 MP*"]
["Item no","MPUMALANGA","Grade B\n","Grade C Armed\n","Grade C Unarmed \n","Control Room CCTV","Hand Held Metaldetector(s) "]
["9.1.1","AMERSFOORT"]
[null,"  06:00 TO 18:00 MONDAY TO FRIDAY"]
["Area 3","  Security Officer",null,1,2]
[null,"  06:00 TO 18:00 SATURDAY AND SUNDAY/PUBLIC HOLIDAY"]
[null,"  Security Officer",null,0,0]
[null,"  18:00 TO 06:00 MONDAY TO SUNDAY"]
[null,"  Security Officer",null,1,1]
[null,"  Handheld Metal Detector(s)",{"$nulls":4},3]
[]
["9.1.2","AMSTERDAM"]
[null,"  06:00 TO 18:00 MONDAY TO FRIDAY"]
["Area 3","  Security Officer",null,1,2]
[null,"  06:00 TO 18:00 SATURDAY AND SUNDAY/PUBLIC HOLIDAY"]
[null,"  Security Officer",null,0,0]
[null,"  18:00 TO 06:00 MONDAY TO SUNDAY"]
[null,"  Security Officer",null,1,1]
[null,"  Handheld Metal Detector(s)",{"$nulls":4},3]
[]
["9.1.3","BALFOUR"]
[null,"  06:00 TO 18:00 MONDAY TO FRIDAY"]
["Area 3","  Security Officer",null,1,2]
[null,"  06:00 TO 18:00 SATURDAY AND SUNDAY/PUBLIC HOLIDAY"]
[null,"  Security Officer",null,0,0]
[null,"  18:00 TO 06:00 MONDAY TO SUNDAY"]
[null,"  Security Officer",null,1,1]
[null,"  Handheld Metal Detector(s)",{"$nulls":4},3]
[]
["9.1.4","BELFAST"]
[null,"  06:00 TO 18:00 MONDAY TO FRIDAY"]
["Area 3","  Security Officer",null,1,2]
[null,"  06:00 TO 18:00 SATURDAY AND SUNDAY/PUBLIC HOLIDAY"]
[null,"  Security Officer",null,0,0]
[null,"  18:00 TO 06:00 MONDAY TO SUNDAY"]
[null,"  Security Officer",null,1,1]
[null,"  Handheld Metal Detector(s)",{"$nulls":4},3]
[]
["9.1.5","BETHAL"]
[null,"  06:00 TO 18:00 MONDAY TO FRIDAY"]
["Area 3","  Security Officer",null,1,3]
[null,"  06:00 TO 18:00 SATURDAY AND SUNDAY/PUBLIC HOLIDAY"]
[null,"  Security Officer",null,0,0]
[null,"  18:00 TO 06:00 MONDAY TO SUNDAY"]
[null,"  Security Officer",null,1,1]
[null,"  Handheld Metal Detector(s)",{"$nulls":4},3]
[]
["9.1.6","BREYTEN"]
[null,"  06:00 TO 18:00 MONDAY TO FRIDAY"]
["Area 3","  Security Officer",null,1,2]
[null,"  06:00 TO 18:00 SATURDAY AND SUNDAY/PUBLIC HOLIDAY"]
[null,"  Security Officer",null,0,0]
[null,"  18:00 TO 06:00 MONDAY TO SUNDAY"]
[null,"  Security Officer",null,1,1]
[null,"  Handheld Metal Detector(s)",{"$nulls":4},3]
[]
["9.1.7","CAROLINA"]
[null,"  06:00 TO 18:00 MONDAY TO FRIDAY"]
["Area 3","  Security Officer",null,1,3,null,null,1]
[null,"  06:00 TO 18:00 SATURDAY AND SUNDAY/PUBLIC HOLIDAY"]
[null,"  Security Officer",null,0,0]
[null,"  18:00 TO 06:00 MONDAY TO SUNDAY"]
[null,"  Security Officer",null,1,1]
[null,"  Handheld Metal Detector(s)",{"$nulls":4},3]
[]
["9.1.8","DELMAS"]
[null,"  06:00 TO 18:00 MONDAY TO FRIDAY"]
["Area 3","  Security Officer",null,1,4]
[null,"  06:00 TO 18:00 SATURDAY AND SUNDAY/PUBLIC HOLIDAY"]
[null,"  Security Officer",null,0,0]
[null,"  18:00 TO 06:00 MONDAY TO SUNDAY"]
[null,"  Security Officer",null,1,1]
[null,"  Handheld Metal Detector(s)",{"$nulls":4},3]
[]
["9.1.9","EERSTEHOEK"]
[null,"  06:00 TO 18:00 MONDAY TO FRIDAY"]
["Area 3","  Security Officer",null,1,3,null,null,1]
[null,"  06:00 TO 18:00 SATURDAY AND SUNDAY/PUBLIC HOLIDAY"]
[null,"  Security Officer",null,0,0]
[null,"  18:00 TO 06:00 MONDAY TO SUNDAY"]
[null,"  Security Officer",null,1,1]
[null,"  Handheld Metal Detector(s)",{"$nulls":4},3]
[]
["9.1.10","ERMELO"]
[null,"  06:00 TO 18:00 MONDAY TO FRIDAY"]
["Area 3","  Security Officer",null,1,3,null,null,1]
[null,"  06:00 TO 18:00 SATURDAY AND SUNDAY/PUBLIC HOLIDAY"]
[null,"  Security Officer",null,0,0]
[null,"  18:00 TO 06:00 MONDAY TO SUNDAY"]
[null,"  Security Officer",null,1,1]
[null,"  Handheld Metal Detector(s)",{"$nulls":4},3]
[]
["9.1.11","EVANDER"]
[null,"  06:00 TO 18:00 MONDAY TO FRIDAY"]
["Area 3","  Security Officer",null,1,3,null,null,1]
[null,"  06:00 TO 18:00 SATURDAY AND SUNDAY/PUBLIC HOLIDAY"]
[null,"  Security Officer",null,0,0]
[null,"  18:00 TO 06:00 MONDAY TO SUNDAY"]
[null,"  Security Officer",null,1,1]
[null,"  Handheld Metal Detector(s)",{"$nulls":4},3]
[]
["9.1.12","GRASKOP"]
[null,"  06:00 TO 18:00 MONDAY TO FRIDAY"]
["Area 3","  Security Officer",null,1,2]
[null,"  06:00 TO 18:00 SATURDAY AND SUNDAY/PUBLIC HOLIDAY"]
[null,"  Security Officer",null,0,0]
[null,"  18:00 TO 06:00 MONDAY TO SUNDAY"]
[null,"  Security Officer",null,1,1]
[null,"  Handheld Metal Detector(s)",{"$nulls":4},3]
[]
["9.1.13","HENDRINA"]
[null,"  06:00 TO 18:00 MONDAY TO FRIDAY"]
["Area 3","  Security Officer",null,1,2]
[null,"  06:00 TO 18:00 SATURDAY AND SUNDAY/PUBLIC HOLIDAY"]
[null,"  Security Officer",null,0,0]
[null,"  18:00 TO 06:00 MONDAY TO SUNDAY"]
[null,"  Security Officer",null,1,1]
[null,"  Handheld Metal Detector(s)",{"$nulls":4},3]
[]
["9.1.14","KRIEL/ GANALA"]
[null,"  06:00 TO 18:00 MONDAY TO FRIDAY"]
["Area 3","  Security Officer",null,1,3]
[null,"  06:00 TO 18:00 SATURDAY AND SUNDAY/PUBLIC HOLIDAY"]
[null,"  Security Officer",null,0,0]
[null,"  18:00 TO 06:00 MONDAY TO SUNDAY"]
[null,"  Security Officer",null,1,1]
[null,"  Handheld Metal Detector(s)",{"$nulls":4},3]
[]
["9.1.15","KWAMHLANGA"]
[null,"  06:00 TO 18:00 MONDAY TO FRIDAY"]
["Area 3","  Security Officer",null,1,3,null,null,1]
[null,"  06:00 TO 18:00 SATURDAY AND SUNDAY/PUBLIC HOLIDAY"]
[null,"  Security Officer",null,0,0]
[null,"  18:00 TO 06:00 MONDAY TO SUNDAY"]
[null,"  Security Officer",null,1,1]
[null,"  Handheld Metal Detector(s)",{"$nulls":4},3]
[]
["9.1.16","MASHISHING (LYDENBURG)"]
[null,"  06:00 TO 18:00 MONDAY TO FRIDAY"]
["Area 3","  Security Officer",null,1,3]
[null,"  06:00 TO 18:00 SATURDAY AND SUNDAY/PUBLIC HOLIDAY"]
[null,"  Security Officer",null,0,0]
[null,"  18:00 TO 06:00 MONDAY TO SUNDAY"]
[null,"  Security Officer",null,1,1]
[null,"  Handheld Metal Detector(s)",{"$nulls":4},3]
[]
["9.1.17","MBIBANA"]
[null,"  06:00 TO 18:00 MONDAY TO FRIDAY"]
["Area 3","  Security Officer",null,1,3]
[null,"  06:00 TO 18:00 SATURDAY AND SUNDAY/PUBLIC HOLIDAY"]
[null,"  Security Officer",null,0,0]
[null,"  18:00 TO 06:00 MONDAY TO SUNDAY"]
[null,"  Security Officer",null,1,1]
[null,"  Handheld Metal Detector(s)",{"$nulls":4},3]
[]
["9.1.18","MDUTJANA"]
[null,"  06:00 TO 18:00 MONDAY TO FRIDAY"]
["Area 3","  Security Officer",null,1,3]
[null,"  06:00 TO 18:00 SATURDAY AND SUNDAY/PUBLIC HOLIDAY"]
[null,"  Security Officer",null,0,0]
[null,"  18:00 TO 06:00 MONDAY TO SUNDAY"]
[null,"  Security Officer",null,1,1]
[null,"  Handheld Metal Detector(s)",{"$nulls":4},3]
[]
["9.1.19","MIDDELBURG"]
[null,"  06:00 TO 18:00 MONDAY TO FRIDAY"]
["Area 3","  Security Officer",null,1,4]
[null,"  06:00 TO 18:00 SATURDAY AND SUNDAY/PUBLIC HOLIDAY"]
[null,"  Security Officer",null,0,0]
[null,"  18:00 TO 06:00 MONDAY TO SUNDAY"]
[null,"  Security Officer",null,1,1]
[null,"  Handheld Metal Detector(s)",{"$nulls":4},3]
[]
["9.1.20","MKOBOLA"]
[null,"  06:00 TO 18:00 MONDAY TO FRIDAY"]
["Area 3","  Security Officer",null,1,3]
[null,"  06:00 TO 18:00 SATURDAY AND SUNDAY/PUBLIC HOLIDAY"]
[null,"  Security Officer",null,0,0]
[null,"  18:00 TO 06:00 MONDAY TO SUNDAY"]
[null,"  Security Officer",null,1,1]
[null,"  Handheld Metal Detector(s)",{"$nulls":4},3]
[]
["9.1.21","MORGENZON"]
[null,"  06:00 TO 18:00 MONDAY TO FRIDAY"]
["Area 3","  Security Officer",null,1,2]
[null,"  06:00 TO 18:00 SATURDAY AND SUNDAY/PUBLIC HOLIDAY"]
[null,"  Security Officer",null,0,0]
[null,"  18:00 TO 06:00 MONDAY TO SUNDAY"]
[null,"  Security Officer",null,1,1]
[null,"  Handheld Metal Detector(s)",{"$nulls":4},3]
[]
["9.1.22","PIET RETIEF"]
[null,"  06:00 TO 18:00 MONDAY TO FRIDAY"]
["Area 3","  Security Officer",null,1,2,null,null,2]
[null,"  06:00 TO 18:00 SATURDAY AND SUNDAY/PUBLIC HOLIDAY"]
[null,"  Security Officer",null,0,0]
[null,"  18:00 TO 06:00 MONDAY TO SUNDAY"]
[null,"  Security Officer",null,1,1]
[null,"  Handheld Metal Detector(s)",{"$nulls":4},4]
[]
["9.1.23","SABIE"]
[null,"  06:00 TO 18:00 MONDAY TO FRIDAY"]
["Area 3","  Security Officer",null,1,2]
[null,"  06:00 TO 18:00 SATURDAY AND SUNDAY/PUBLIC HOLIDAY"]
[null,"  Security Officer",null,0,0]
[null,"  18:00 TO 06:00 MONDAY TO SUNDAY"]
[null,"  Security Officer",null,1,1]
[null,"  Handheld Metal Detector(s)",{"$nulls":4},3]
[]
["9.1.24","SECUNDA"]
[null,"  06:00 TO 18:00 MONDAY TO FRIDAY"]
["Area 3","  Security Officer",null,1,3]
[null,"  06:00 TO 18:00 SATURDAY AND SUNDAY/PUBLIC HOLIDAY"]
[null,"  Security Officer",null,1,1]
[null,"  18:00 TO 06:00 MONDAY TO SUNDAY"]
[null,"  Security Officer",null,1,1]
[null,"  Handheld Metal Detector(s)",{"$nulls":4},3]
[]
["9.1.25","STANDERTON"]
[null,"  06:00 TO 18:00 MONDAY TO FRIDAY"]
["Area 3","  Security Officer",null,1,3]
[null,"  06:00 TO 18:00 SATURDAY AND SUNDAY/PUBLIC HOLIDAY"]
[null,"  Security Officer",null,0,0]
[null,"  18:00 TO 06:00 MONDAY TO SUNDAY"]
[null,"  Security Officer",null,1,1]
[null,"  Handheld Metal Detector(s)",{"$nulls":4},3]
[]
["9.1.26","VOLKSRUST"]
[null,"  06:00 TO 18:00 MONDAY TO FRIDAY"]
["Area 3","  Security Officer",null,1,3]
[null,"  06:00 TO 18:00 SATURDAY AND SUNDAY/PUBLIC HOLIDAY"]
[null,"  Security Officer",null,0,0]
[null,"  18:00 TO 06:00 MONDAY TO SUNDAY"]
[null,"  Security Officer",null,1,1]
[null,"  Handheld Metal Detector(s)",{"$nulls":4},3]
[]
["9.1.27","WAKKERSTROOM"]
[null,"  06:00 TO 18:00 MONDAY TO FRIDAY"]
["Area 3","  Security Officer",null,1,2]
[null,"  06:00 TO 18:00 SATURDAY AND SUNDAY/PUBLIC HOLIDAY"]
[null,"  Security Officer",null,0,0]
[null,"  18:00 TO 06:00 MONDAY TO SUNDAY"]
[null,"  Security Officer",null,1,1]
[null,"  Handheld Metal Detector(s)",{"$nulls":4},3]
[]
["9.1.28","EMGWENYA (WATERVAL-BOVEN)"]
[null,"  06:00 TO 18:00 MONDAY TO FRIDAY"]
["Area 3","  Security Officer",null,1,2]
[null,"  06:00 TO 18:00 SATURDAY AND SUNDAY/PUBLIC HOLIDAY"]
[null,"  Security Officer",null,0,0]
[null,"  18:00 TO 06:00 MONDAY TO SUNDAY"]
[null,"  Security Officer",null,1,1]
[null,"  Handheld Metal Detector(s)",{"$nulls":4},3]
[]
["9.1.29","EMALAHLENI (WITBANK)"]
[null,"  06:00 TO 18:00 MONDAY TO FRIDAY"]
["Area 3","  Security Officer",null,1,4,null,null,1]
[null,"  06:00 TO 18:00 SATURDAY AND SUNDAY/PUBLIC HOLIDAY"]
[null,"  Security Officer",null,0,0]
[null,"  18:00 TO 06:00 MONDAY TO SUNDAY"]
[null,"  Security Officer",null,1,1]
[null,"  Handheld Metal Detector(s)",{"$nulls":4},5]
[]
["9.1.30","LOCAL SEAT: MIDDELBURG"]
[null,"  06:00 TO 18:00 MONDAY TO FRIDAY "]
["Area 3","  Security Officer",null,1,5]
[null,"  06:00 TO 18:00 SATURDAY AND SUNDAY/PUBLIC HOLIDAY"]
[null,"  Security Officer",null,0,0]
[null,"  18:00 TO 06:00 MONDAY TO SUNDAY"]
[null,"  Security Officer",null,1,1]
[null,"  Handheld Metal Detector(s)",{"$nulls":4},4]
[]
["9.1.31","LOCAL SEAT: KWAMHLANGA"]
[null,"  06:00 TO 18:00 MONDAY TO FRIDAY "]
["Area 3","  Security Officer",null,1,2]
[null,"  06:00 TO 18:00 SATURDAY AND SUNDAY/PUBLIC HOLIDAY"]
[null,"  Security Officer"]
[null,"  18:00 TO 06:00 MONDAY TO SUNDAY"]
[null,"  Security Officer"]
[null,"Handheld Metal Detector(s)",{"$nulls":4},2]
[]
["9.1.32","EERSTEHOEK: PERIODICAL COURT, MAYFLOWER"]
[null,"  06:00 TO 18:00 MONDAY TO FRIDAY"]
["Area 3","  Security Officer",null,1,1]
[null,"  06:00 TO 18:00 SATURDAY AND SUNDAY/PUBLIC HOLIDAY"]
[null,"  Security Officer",null,0,0]
[null,"  18:00 TO 06:00 MONDAY TO SUNDAY"]
[null,"  Security Officer",null,0,1]
[null,"  Handheld Metal Detector(s)",{"$nulls":4},1]
[]
["9.1.33","MKOBOLA: PERIODICAL COURT, VERENA"]
[null,"  06:00 TO 18:00 MONDAY TO FRIDAY"]
["Area 3","  Security Officer",null,1,1]
[null,"  06:00 TO 18:00 SATURDAY AND SUNDAY/PUBLIC HOLIDAY"]
[null,"  Security Officer",null,0,0]
[null,"  18:00 TO 06:00 MONDAY TO SUNDAY"]
[null,"  Security Officer",null,1,1]
[null,"  Handheld Metal Detector(s)",{"$nulls":4},2]
[]
["9.1.34","SABIE: PERIODICAL COURT, PELGRIMSREST"]
[null,"  06:00 TO 18:00 MONDAY TO FRIDAY"]
["Area 3","  Security Officer",null,1,1]
[null,"  06:00 TO 18:00 SATURDAY AND SUNDAY/PUBLIC HOLIDAY"]
[null,"  Security Officer",null,0,0]
[null,"  18:00 TO 06:00 MONDAY TO SUNDAY"]
[null,"  Security Officer",null,1,1]
[null,"  Handheld Metal Detector(s)",{"$nulls":4},2]
[]
["9.1.35","WITBANK: PERIODICAL COURT, VOSMAN"]
[null,"  06:00 TO 18:00 MONDAY TO FRIDAY"]
["Area 3","  Security Officer",null,1,2]
[null,"  06:00 TO 18:00 SATURDAY AND SUNDAY/PUBLIC HOLIDAY"]
[null,"  Security Officer",null,0,0]
[null,"  18:00 TO 06:00 MONDAY TO SUNDAY"]
[null,"  Security Officer",null,1,1]
[null,"  Handheld Metal Detector(s)",{"$nulls":4},3]
[]
["9.1.36","LYDENBURG: PERIODICAL COURT DIENTJIE"]
[null,"  06:00 TO 18:00 MONDAY TO FRIDAY"]
["Area 3","  Security Officer",null,1,1]
[null,"  06:00 TO 18:00 SATURDAY AND SUNDAY/PUBLIC HOLIDAY"]
[null,"  Security Officer",null,0,0]
[null,"  18:00 TO 06:00 MONDAY TO SUNDAY"]
[null,"  Security Officer",null,1,1]
[null,"  Handheld Metal Detector(s)",{"$nulls":4},2]
[]
["9.1.37","MBIBANA: PERIODICAL COURT: MARAPYANE"]
[null,"  06:00 TO 18:00 MONDAY TO FRIDAY "]
["Area 3","  Security Officer",null,1,1]
[null,"  06:00 TO 18:00 SATURDAY AND SUNDAY/PUBLIC HOLIDAY"]
[null,"  Security Officer",null,0,0]
[null,"  18:00 TO 06:00 MONDAY TO SUNDAY"]
[null,"  Security Officer",null,1,1]
[null,"Handheld Metal Detector(s)",{"$nulls":4},2]
[]
["9.1.38","REGIONAL OFFICE MPUMALANGA: NELSPRUIT"]
[null,"  06:00 TO 18:00 MONDAY TO FRIDAY"]
["Area 3","  Security Officer",null,0,4,null,null,1]
[null,"  06:00 TO 18:00 SATURDAY AND SUNDAY/PUBLIC HOLIDAY"]
[null,"  Security Officer",null,0,0]
[null,"  18:00 TO 06:00 MONDAY TO SUNDAY"]
[null,"  Security Officer",null,0,2]
[null,"  Handheld Metal Detector(s)",{"$nulls":4},4]
[]
["9.1.39","BARBERTON"]
[null,"  06:00 TO 18:00 MONDAY TO FRIDAY"]
["Area 3","  Security Officer",null,1,2]
[null,"  06:00 TO 18:00 SATURDAY AND SUNDAY/PUBLIC HOLIDAY"]
[null,"  Security Officer",null,0,0]
[null,"  18:00 TO 06:00 MONDAY TO SUNDAY"]
[null,"  Security Officer",null,1,1]
[null,"  Handheld Metal Detector(s)",{"$nulls":4},3]
[]
["9.1.40","KOMATIPOORT"]
[null,"  06:00 TO 18:00 MONDAY TO FRIDAY"]
["Area 3","  Security Officer",null,1,2]
[null,"  06:00 TO 18:00 SATURDAY AND SUNDAY/PUBLIC HOLIDAY"]
[null,"  Security Officer",null,0,0]
[null,"  18:00 TO 06:00 MONDAY TO SUNDAY"]
[null,"  Security Officer",null,1,1]
[null,"  Handheld Metal Detector(s)",{"$nulls":4},3]
[]
["9.1.41","MAPULANENG (BUSHBUCKRIDGE)"]
[null,"  06:00 TO 18:00 MONDAY TO FRIDAY"]
["Area 3","  Security Officer",null,1,3]
[null,"  06:00 TO 18:00 SATURDAY AND SUNDAY/PUBLIC HOLIDAY"]
[null,"  Security Officer",null,0,0]
[null,"  18:00 TO 06:00 MONDAY TO SUNDAY"]
[null,"  Security Officer",null,1,1]
[null,"  Handheld Metal Detector(s)",{"$nulls":4},3]
[]
["9.1.42","MHALA"]
[null,"  06:00 TO 18:00 MONDAY TO FRIDAY"]
["Area 3","  Security Officer",null,1,3]
[null,"  06:00 TO 18:00 SATURDAY AND SUNDAY/PUBLIC HOLIDAY"]
[null,"  Security Officer",null,0,0]
[null,"  18:00 TO 06:00 MONDAY TO SUNDAY"]
[null,"  Security Officer",null,1,1]
[null,"  Handheld Metal Detector(s)",{"$nulls":4},3]
[]
["9.1.43","MBOMBELA (NELSPRUIT)"]
[null,"  06:00 TO 18:00 MONDAY TO FRIDAY"]
["Area 3","  Security Officer",null,1,3,null,null,1]
[null,"  06:00 TO 18:00 SATURDAY AND SUNDAY/PUBLIC HOLIDAY"]
[null,"  Security Officer",null,0,0]
[null,"  18:00 TO 06:00 MONDAY TO SUNDAY"]
[null,"  Security Officer",null,1,1]
[null,"  Handheld Metal Detector(s)",{"$nulls":4},4]
[]
["9.1.44","NKOMAZI"]
[null,"  06:00 TO 18:00 MONDAY TO FRIDAY"]
["Area 3","  Security Officer",null,1,3,null,null,1]
[null,"  06:00 TO 18:00 SATURDAY AND SUNDAY/PUBLIC HOLIDAY"]
[null,"  Security Officer",null,0,0]
[null,"  18:00 TO 06:00 MONDAY TO SUNDAY"]
[null,"  Security Officer",null,1,1]
[null,"  Handheld Metal Detector(s)",{"$nulls":4},3]
[]
["9.1.45","NSIKAZI (KABOKWENI)  "]
[null,"  06:00 TO 18:00 MONDAY TO FRIDAY"]
["Area 3","  Security Officer",null,1,3,null,null,1]
[null,"  06:00 TO 18:00 SATURDAY AND SUNDAY/PUBLIC HOLIDAY"]
[null,"  Security Officer",null,0,0]
[null,"  18:00 TO 06:00 MONDAY TO SUNDAY"]
[null,"  Security Officer",null,1,1]
[null,"  Handheld Metal Detector(s)",{"$nulls":4},3]
[]
["9.1.46","WHITE RIVER"]
[null,"  06:00 TO 18:00 MONDAY TO FRIDAY"]
["Area 3","  Security Officer",null,1,2]
[null,"  06:00 TO 18:00 SATURDAY AND SUNDAY/PUBLIC HOLIDAY"]
[null,"  Security Officer",null,0,0]
[null,"  18:00 TO 06:00 MONDAY TO SUNDAY"]
[null,"  Security Officer",null,1,1]
[null,"  Handheld Metal Detector(s)",{"$nulls":4},3]
[]
["9.1.47","FAMILY ADVOCATE’S / MASTER OF THE HIGH COURT: NELSPRUIT"]
[null,"  06:00 TO 18:00 MONDAY TO FRIDAY"]
["Area 3","  Security Officer",null,null,3]
[null,"  06:00 TO 18:00 SATURDAY AND SUNDAY/PUBLIC HOLIDAY"]
[null,"  Security Officer",null,null,0]
[null,"  18:00 TO 06:00 MONDAY TO SUNDAY"]
[null,"  Security Officer",null,null,2]
[null,"  Handheld Metal Detector(s)",{"$nulls":4},3]
[]
["9.1.48","REGIONAL OFFICE SITE OFFICE (NELSPRUIT)"]
[null,"  06:00 TO 18:00 MONDAY TO FRIDAY"]
["Area 3","  Security Officer",null,1,1]
[null,"  06:00 TO 18:00 SATURDAY AND SUNDAY/PUBLIC HOLIDAY"]
[null,"  Security Officer",null,0,0]
[null,"  18:00 TO 06:00 MONDAY TO SUNDAY"]
[null,"  Security Officer",null,1,1]
[null,"  Handheld Metal Detector(s)",{"$nulls":4},2]
[]
["9.1.49","HIGH COURT: MBOMBELA (NELSPRUIT)"]
[null,"  06:00 TO 18:00 MONDAY TO FRIDAY"]
["Area 3","  Security Officer",null,1,14,null,null,3]
[null,"  06:00 TO 18:00 SATURDAY AND SUNDAY/PUBLIC HOLIDAY"]
[null,"  Security Officer",null,0,0]
[null,"  18:00 TO 06:00 MONDAY TO SUNDAY"]
[null,"  Security Officer",null,1,4]
[null,"  Handheld Metal Detector(s)",{"$nulls":4},5]
[]
["9.1.50","NPA: DDPP: HIGH COURT: MBOMBELA (NELSPRUIT)"]
[null,"  06:00 TO 18:00 MONDAY TO FRIDAY "]
["Area 3","  Security Officer",null,1,3]
[null,"  06:00 TO 18:00 SATURDAY AND SUNDAY/PUBLIC HOLIDAY"]
[null,"  Security Officer",null,null,0]
[null,"  18:00 TO 06:00 MONDAY TO SUNDAY"]
[null,"  Security Officer",null,null,2]
[null,"Handheld Metal Detector(s)",{"$nulls":4},2]
[]
["9.1.51","NKOMAZI: BRANCH COURT, BOSCHFONTEIN"]
[null,"  06:00 TO 18:00 MONDAY TO FRIDAY"]
["Area 3","  Security Officer",null,1,2]
[null,"  06:00 TO 18:00 SATURDAY AND SUNDAY/PUBLIC HOLIDAY"]
[null,"  Security Officer",null,0,0]
[null,"  18:00 TO 06:00 MONDAY TO SUNDAY"]
[null,"  Security Officer",null,1,1]
[null,"  Handheld Metal Detector(s)",{"$nulls":4},3]
[]
["9.1.52","NSIKAZI: PERIODICAL COURT, KANYAMAZANE"]
[null,"  06:00 TO 18:00 MONDAY TO FRIDAY"]
["Area 3","  Security Officer",null,1,1]
[null,"  06:00 TO 18:00 SATURDAY AND SUNDAY/PUBLIC HOLIDAY"]
[null,"  Security Officer",null,0,0]
[null,"  18:00 TO 06:00 MONDAY TO SUNDAY"]
[null,"  Security Officer",null,1,1]
[null,"  Handheld Metal Detector(s)",{"$nulls":4},2]
[]
["9.1.53","NSIKAZI: BRANCH COURT, MASOYI"]
[null,"  06:00 TO 18:00 MONDAY TO FRIDAY"]
["Area 3","  Security Officer",null,1,1]
[null,"  06:00 TO 18:00 SATURDAY AND SUNDAY/PUBLIC HOLIDAY"]
[null,"  Security Officer",null,0,0]
[null,"  18:00 TO 06:00 MONDAY TO SUNDAY"]
[null,"  Security Officer",null,1,1]
[null,"  Handheld Metal Detector(s)",{"$nulls":4},2]
[]
["9.1.54","NSIKAZI: PERIODICAL COURT, MATSULU"]
[null,"  06:00 TO 18:00 MONDAY TO FRIDAY"]
["Area 3","  Security Officer",null,1,1]
[null,"  06:00 TO 18:00 SATURDAY AND SUNDAY/PUBLIC HOLIDAY"]
[null,"  Security Officer",null,0,0]
[null,"  18:00 TO 06:00 MONDAY TO SUNDAY"]
[null,"  Security Officer",null,1,1]
[null,"  Handheld Metal Detector(s)",{"$nulls":4},2]
[]
["9.1.55","WHITE RIVER: PERIODICAL COURT, HAZYVIEW"]
[null,"  06:00 TO 18:00 MONDAY TO FRIDAY"]
["Area 3","  Security Officer",null,1,1]
[null,"  06:00 TO 18:00 SATURDAY AND SUNDAY/PUBLIC HOLIDAY"]
[null,"  Security Officer",null,0,0]
[null,"  18:00 TO 06:00 MONDAY TO SUNDAY"]
[null,"  Security Officer",null,1,1]
[null,"  Handheld Metal Detector(s)",{"$nulls":4},2]
[]
["9.1.56","MAPULANENG: PERIODICAL COURT ACORNHOEK "]
[null,"  06:00 TO 18:00 MONDAY TO FRIDAY"]
["Area 3 ","  Security Officer",null,1,1]
[null,"  06:00 TO 18:00 SATURDAY AND SUNDAY/PUBLIC HOLIDAY"]
[null,"  Security Officer",null,0,0]
[null,"  18:00 TO 06:00 MONDAY TO SUNDAY"]
[null,"  Security Officer",null,1,1]
[null,"  Handheld Metal Detector(s)",{"$nulls":4},2]
[]
["9.1.57","MAPULANENG: PERIODICAL COURT SKUKUZA"]
[null,"  06:00 TO 18:00 MONDAY TO FRIDAY "]
["Area 3","  Security Officer",null,0,2]
[null,"  06:00 TO 18:00 SATURDAY AND SUNDAY/PUBLIC HOLIDAY"]
[null,"  Security Officer"]
[null,"  18:00 TO 06:00 MONDAY TO SUNDAY"]
[null,"  Security Officer"]
[null,"Handheld Metal Detector(s)",{"$nulls":4},2]
[]
["9.1.58","MHALA: PERIODICAL COURT MKHUHLU"]
[null,"  06:00 TO 18:00 MONDAY TO FRIDAY"]
["Area 3","  Security Officer",null,1,2]
[null,"  06:00 TO 18:00 SATURDAY AND SUNDAY/PUBLIC HOLIDAY"]
[null,"  Security Officer",null,0,0]
[null,"  18:00 TO 06:00 MONDAY TO SUNDAY"]
[null,"  Security Officer",null,1,1]
[null,"  Handheld Metal Detector(s)",{"$nulls":4},3]
[]
["9.1.59","SATE ATTORNEY: MBOMEBLA"]
[null,"  06:00 TO 18:00 MONDAY TO FRIDAY"]
["Area 3","  Security Officer",null,null,3]
[null,"  06:00 TO 18:00 SATURDAY AND SUNDAY/PUBLIC HOLIDAY"]
[null,"  Security Officer",null,null,0]
[null,"  18:00 TO 06:00 MONDAY TO SUNDAY"]
[null,"  Security Officer",null,null,2]
[null,"  Handheld Metal Detector(s)",{"$nulls":4},3]
[{"$nulls":3},{"$f":"SUM(D3:D532)","v":108},{"$f":"SUM(E4:E532)","v":217}]
[]
[{"$nulls":3},"Total",321]

{"sheet":"Sheet8","index":10,"n_rows":0,"n_cols":0,"rows_kept":0}

{"sheet":"Sheet9","index":11,"n_rows":0,"n_cols":0,"rows_kept":0}